Workbook

Sheet Notes
A1: RsVaEma.xlsm; Traders Tip spreadsheet created for the October 2022 Issue
A2: Coded beginning 2022-August-01 by Ronald McAllister (rpmac_xltt@sprynet.com)
A4: This Workbook demonstrates an EXCEL version of the ideas presented
A5: by Vitaly Apirine in an article titled "The Relative Strength Volume-Adjusted Exponential Moving Average", which originally appeared in the February 2022 issue of
A6: "Technical Analysis of Stocks and Commodities" magazine.
A8: Development Notes:
A13: * * * * * * * * * * * * * * * *
A14: March 15 2022 - for the May 2022 traders tip
A15: Built an alternative method to show/hide a series on a chart. This is driven by a user check box settings in the
A16: clutter control area and uses the "visible" property of a given series.
A17: Check box labels change on the fly to reflect changes to indicator parameters as the changes happen.
A18: Set up parallel price charts to contrast indicator settings as Mr. Apirine has done in the May 2022 article.
A19: Chart visibilities controlled by check box settings.
A20: Changed chart window shade logic to show all of the Volume Chart or overlay the upper portion of the
A21: volume chart to provide more vertical space for other charts. This partial overlay leaves the volume chart
A22: date labels visible so that no other chart needs to have labels providing more vertical space of actual charting.
A23: Refined my dynamic horizontal Tick interval and Tick Label placement settings logic.
A25: January 18 2022 - Random "Name of Company" Retrieval Errors
A26: For the last couple of months my data retrievals would randomly get a soft error on the company name.
A27: By soft I mean that the HTML Get request for a summary for the InputPriceData tab target symbol would have a good return code but the company name field would contain garbage.
A28: Simply clicking the get data button on the InputPriceData tab to rerun the data retrieval would fix" it.
A29: Remarkably, the historical pricing data is always retrieved and is correct.
A31: Sunday (Jan 16) while working on this spreadsheet, five out of six tries for the same symbol displayed junk in the company name.
A32: So I set a trap to copy the HTML text to disc for the bad return and the good return so that I could compare them.
A33: (for those with a technical bent Notepad++ has a really nice Compare add in)
A34: As it turns out the correct required data is present in both versions.
A35: But the formatting of the new version does not contain the landmarks I was using to parse out what was needed.
A37: I think Yahoo Finance is experimenting with a new/upgraded HTML generator and perhaps does not have it installed on all of their servers.
A38: So the randomness of the "failure" is probably an artifact of which server answered my HTML request.
A40: The result is that I spent the last day and a half comparing the two formats and have come up with a new set of landmarks
A41: that are common to both formats. It requires a few extra steps to ignore minor internal differences in these landmarks and the result is
A42: code that does not care which HTML format is returned.
A44: The fix - What Changed:
A45: Complete rewrite of:
A46: VBA Procedure: ExtractCompanyIdFromSummaryText as found in VBA Module: InputPriceDataLoader
A48: Retrofitting to older Traders Tips spreadsheets:
A49: For those of you with some familiarity with the EXCEL VBA editor, you can try the following copy and paste steps.
A51: First we need to grab a copy of the corrected ExtractCompanyIdFromSummaryText Sub.
A52: Open the VBA editor in this spreadsheet and navigate to module InputPriceDataLoader and then to procedure ExtractCompanyIdFromSummaryText
A53: Copy all of procedure ExtractCompanyIdFromSummaryText from the beginning Sub statement to and including the closing End Sub statement to a new Notepad or Notepad++ text document.
A54: Close this workbook, but do not close the Notepad or Notepad++ document.
A56: Now for the target of your retrofit attempt.
A57: Make a backup copy of this retrofit target spreadsheet in case you have a problem and need to start over with a fresh copy.
A58: Open the retrofit target.
A59: Open the VBA editor in this target spreadsheet and navigate to module InputPriceDataLoader and then to procedure ExtractCompanyIdFromSummaryText
A61: Delete all of the ExtractCompanyIdFromSummaryText procedure starting with the begining Sub statement to and including the closing End Sub statement.
A63: Do not close the VBA editor or the spread sheet.
A65: Navigate (Alt-Tab) to your Notepad or Notepad++ instance and select all of the text (Ctrl-a). Then Copy the selected text (Ctrl-c).
A66: Navigate (Alt-Tab) back to the VBA editor window. The VBA editor cursor should still be on the line where you just deleted the old version of ExtractCompanyIdFromSummaryText.
A67: This is probably a blank line just above a line that reads "Sub FormatPriceHistory(..."
A68: If there is no blank line above the "Sub FormatPriceHistory(..." line then click on the "S" of Sub and press enter to insert a blank line.
A69: Move your mouse cursor to this blank line and left-click to be sure of the VBA cursor location.
A70: Then (Ctrl-v) to paste the new version of ExtractCompanyIdFromSummaryText that you copied from the Notepad or Notepad++ text document.
A72: You are done with the tricky part. Close the VBA editor and save the now retrofitted spreadsheet.
A74: Go to the inputPriceData tab and retrieve some data to verify that nothing is broken.
A75: Easter egg time: (Curious minds want to know...)
A76: If the data retrieval encounters a new format HTML response, the company name this code will display will have an asterisk(*) as a prefix.
A78: Foot Note: Today (Jan 19 2022) I have not encountered a single instance of the new format HTML while testing this spreadsheet for submission to the editors.
A79: So maybe YahooFinance is not test/using the new version right now?
A81: New for May 2021
A82: Upgraded the data download logic to do a better job of catching the common data download errors and provide a more graceful resolution.
A83: This includes better user notification of the nature of the error and some user control over how the error should be handled.
A84: User notification comes in the form of a MSGbox display that includes the (sometimes cryptic) description of the error and offers the user three options.
A86: Abort - If I could customize the title, I would rename this button to "Debug"
A87: This choice places you in Debug mode at the failing VBA statement.
A88: Unless you are feeling good about your VBA (and Network) debugging skills, this is probably not for you.
A90: Retry
A91: Lets the code retry the failed download request.
A92: This is a reasonable option if the download request timed out (similar to video buffering) or your network connection has dropped out..
A93: Probably a good idea to make sure your internet connection is alive and well before you select Retry.
A95: Ignore
A96: Lets the code fall thru to a (hopefully) graceful error completion with the error indicated at the top of the InputPriceData tab
A98: New for August 2020
A99: Restructured my Symbol-Not-Found detection and now stop further processing in the not found case
A101: New with the May 2020 version of my T-Tips template: VBA to implement a "Perpetual" U.S. Markets Closed Holiday Calendar.
A103: Why we need one: The Yahoo Finance recently has begun having occasional filtration problems where bars for U.S. Market Closed Holidays
A104: make their way onto the Historical Data web page and into the Historical Data download.
A106: While testing this May 2020 spreadsheet with different symbols, I found that I sometimes had bars with the text "null" in the price fields.
A107: My code always translates the "null" text price values to zeros.
A108: The resulting zeros cause real problems with indicator computations and the amount of blank space below price candles on the price chart.
A110: "null" price bars can be valid for very lightly traded penny sheet symbols which may not trade every day the markets are open.
A111: But is definitely not normal for symbols on the big boards.
A113: A closer look determined that these "bars" were for holiday dates when the US markets are normally closed.
A114: I found it interesting that some times the next download for the same symbol would not contain any of these "holiday" bars. Weird!
A116: My approach here was to write code to determine if the DATE on a null price values bar falls on one of the 9 market closed U.S. Holidays.
A117: If the bar date corresponds to one of these market closed holidays, I drop the bar before it reaches the InputPriceData tab.
A118: If the date is not a holiday, I let the bar through with the resulting zero values.
A120: No messy tables to update over the years as there are good solid rules that can be used in VBA or any other programming language to determine
A121: the dates for U.S. Market Closed Holidays for any given calendar year.
A123: This workbook contains and uses VBA macros and may take advantage of user defined VBA Class structures.
A124: Input Data:
A125: The data in this workbook is sorted date-descending (most recent date at the top). All cell formulas and
A126: VBA routines are built assuming this date sequence.
A128: ERROR 9 (already fixed in this spreadsheet)
A129: On or about Jan 29, 2020 Yahoo Finance changed the format of the split factor expression used their historical data downloads.
A130: The Split expression went from using "/" as in "New Share Number/Old Share Number",
A131: to using ":" as in "New Share Number:Old Share Number".
A132: This caused the then current version of my VBA code to fail with a "Runtime Error '9': subscript out of range".
A134: Fix for this ERROR 9
A135: For T-Tip spreadsheets from September 2018 up to present:
A136: Selecting the Debug option takes one into the VBA at the code line which causes the failure:
A137: CellArray(C_A_RowNdx, C_A_ColNdx + 1) = SplitFactors(1)
A138: Two lines above the failing VBA line is a line that reads:
A139: SplitFactors = Split(CsvColumns(CsvColNdx), "/")
A140: Change the / to a :
A141: The corrected line should now read
A142: SplitFactors = Split(CsvColumns(CsvColNdx), ":")
A144: If you are fixing several spreadsheets and do not want to use the failure to find the fix location,
A145: you can use VBA’s FIND dialog (Ctrl F) to look for the substring
A146: SplitFactors =
A147: Do include one space and the equal sign in your FIND string
A148: Select the "Current Project" option
A149: There should only be one instance.
A151: T-Tip spreadsheets prior to the September 2018 spreadsheet do not hard fail.
A153: They just get weird results in the split columns of the Input Price Data tab (soft fail).
A154: These older spreadsheets used different data retrieval and formatting logic.
A156: To fix these older spreadsheets:
A157: In the VBA editor, use find (CTRL-F).
A158: Select the "Current Project" option, and search for the following:
A159: OtherChar:="/"
A160: You are looking for a hit in a line reading:
A161: Other:=True, OtherChar:="/", _
A162: This line is part of a multiline block of code starting with a line that reads:
A163: SplitRange.Offset(0, 1).Resize(SpRows, 1).TextToColumns
A164: Change the / to a : so that the line reads
A165: Other:=True, OtherChar:=":", _
A168: 2019-04-04 Finally came up with a mechanism to align the left location and overall length of the cursor scroll bar so that the left most and right most
A169: scroll bar thumb positions visually align reasonably well with the left and right ends of the price chart horizontal axis.
A170: Makes it a little easier to visually align the Thumb and thus the cursor with points of interest on the charts.
A172: Older:
B173: My sincere apologies to our Macintosh based readers: Neither MSXML nor WinHttpRequest are supported in your environment. So as it stands this version of the spreadsheet will not work for you.
B174: See "Why this approach does not work for Macintosh" below.
B175: I am investigating cURL as a non-Querytable based approach for the Macintosh environment.
A177: The new Yahoo Finance history download interface has changed rather radically. The biggest hurdle being a pseudo-security requirement of adding a
B178: crumb character string to any URL requesting any type of history download. That crumb must match up (by way of some sort of hash algorithm) with
B179: the Yahoo Finance cookie that must also be sent with any request to the new Yahoo History down load interface.
B181: A crumb value is returned, buried in the HTML for any of what I call the "entry level" Yahoo Finance web pages (no crumb security requirement for entry level pages).
B182: A crumb may come with other Yahoo Finance pages. A crumb may even accompany some of the secured pages as well. I have not checked.
B184: Entry level pages are the top level pages of the various Yahoo Finance dialogs and include: Quote Lookup, Stock Summary Quote, and any of the pages
B185: with links in the horizontal row with the "Summary" link on the quote summary page such as Options, Historical Data, and the rest.
B187: To date I have found no way to get at this crumb value using any native EXCEL capabilities.
B189: So this crumb requirement effectively shuts out any solution that attempts to exclusively use built-in facilities of EXCEL, which is to say a purely Querytables solution.
B191: The approach built for this Traders Tip spreadsheet uses WINHTTP calls to Load the InputPriceData worksheet.
B193: First I call to get the HTML text for the Yahoo Summary Quote page using the requested symbol. From this HTML text I extract the full company name,
B194: the market it trades, the market status and time stamp, and finally the associated crumb string. There is a bunch of other useful bits buried in this HTML
B195: text that do not necessarily appear on the web page your browser presents. Perhaps some day I will go after and build a worksheet with these other bits.
B197: Next I add the freshly extracted crumb string to the URLs I use in three separate WINHTTP calls to retrieve Price history, Split history, and Dividend history respectively.
B199: From there VBA code proceeds as in the past to fill in the cell formulas and formatting that make the "prettied up" InputPriceData sheet.
A201: Why this approach works for Windows:
B202: WINHTTP maintains a temporary computer memory cache where cookies are maintained for as long as the WINHTTP object is instantiated.
B203: WINHTTP updates this cache any time a "set cookie" header accompanies a web response.
B204: Subsequent WINHTTP calls automatically search this cache for cookies and add any "appropriate" cookies to the headers
B205: of any web requests that get sent out.
B206: This cookie handling automation means that even if the response to our WINHTTP call for the Summary web page includes a new version of
B207: the Yahoo Finance cookie, the imbedded Crumb value will always match the cookie newly installed in the cache!
A210: Why this approach does not work for Macintosh:
B211: For what it is worth, the Macintosh version of the MS Office suite of products do in fact maintain a special, shared amongst themselves only, cookie cache.
B212: They automate cookie handling into and from this cache JUST for the Office products and any Querytable activity they might originate.
B214: This cache is not tied to, nor shared with, any browser that might be installed on the MAC. And I have not found anything with HTTP capabilities similar to
B215: MSXML that can work with that Office product cookie cache.
B217: When working in the MAC EXCEL environment, I have not yet become conversant with a Mac based WINHTTP like capability.
B218: So l currently have no mechanism to replicate the non-Querytable data retrieval process I am using in Windows environments.
B219: A software product called CURL has been suggested as providing this capability in the MAC environment.
B220: A version of CURL is available for the Windows So some day I may explore its capabilities and how to access those capabilities from VBA.
A222: Calculation and Chart Worksheet Usage Comments:
C223: In General, Items in Bolded BLUE are items you may freely change to play what-if games.
C224: Be sure to have a backup copy of the spreadsheet before you alter anything else.
A226: Features carried forward from the June 2016 version of my T-Tips Template
A227: Added a pair of buttons near cell F12 that will allow the user to step the charting window forward or backward one bar for each click.
A228: I find this to be a good way to test my understanding of the author's ideas as I step through the evolution of the price behavior and the indicators.
B230: First: In the "Help! I would like to plot data" area.
B231: Added button to resolve #NA problems by locating the bar in the input data with a slightly more recent date than what the user actually requested.
B232: I find this particularly useful when I have a general idea of where I want to be date wise. Now I can pick a set of dates "out of the air".
B233: If either (or both) of my date specifications fall between dates that are available in the price history,
B234: this button will resolve them to the dates of the nearest, slightly more recent input bars.
B235: I can then refine my data interval search as necessary from there.
B236: Really great when working with Weekly or Monthly studies!
C237: 2016Jun11 - added logic to the "I would like to chart.." button to detect #N/A values and terminate
C238: gracefully with a message instead of blowing up in the charting logic.
B240: Second: In the "Price Chart Windowing Controls" area. (A11 and A12)
B241: When retrieving data for a new symbol or when changing from daily to weekly or monthly data, there was the possibility that the
B242: residual settings in A11 and A12 would fall outside of the number bars available on the input data tab after the new data retrieval.
B243: In certain combinations, this could create a serious error in the chart sizing logic and crash the spreadsheet.
B244: I have taken this opportunity to update the validity checking logic used in the chart sizing macros
B245: to adjust these values as necessary so that they fall within the boundaries of the newly retrieved input data.
A246: Features carried forward from the October 2015 Traders Tips Template
B247: Improved automation: changes to any of the following will automatically initiate calculations appropriate to reflect a change.
C248: Changing either of cells A11 (pan) or A12 (zoom) will automatically initiate the same chart sizing macros that the manual
C249: "Set Chart" button uses.

Sheet InputPriceData
A1: Dow Jones Industrial Average (^DJI) -DJI (Daily)
M2: To retrieve data for symbols traded on non US Exchanges, | II2: 241.79
A3: Request Online Yahoo History for: | F3: Market State == > | G3: As of | H3: 12:21:00 | I3: EDT. Market open. | M3: you will need to append the dot-suffix for the exchange to the symbol.
A4: Symbol | B4: ^DJI | D4: Valid | I4: =OFFSET(I4,-2,0,1,1) -> 0 | M4: The following links provide a description of how to use the exchange suffix
A5: From | B5: 1950-10-01 | D5: Data | M5: along with a list of suffixes for the major world exchanges. | AD5: Trailing 12 Div return (Cur Close)
A6: To | B6: =NOW() -> 2022-08-16T13:18:51.770 | D6: Types | E6: =VLOOKUP(B7,D7:E10,2,FALSE) -> d | M6: https://help.yahoo.com/kb/finance/SLN2310.html
A7: Data Type | B7: Daily | D7: Daily | E7: d | M7: And
A8: Crumb | B8: PxnWz112t7u | D8: Weekly | E8: w | M8: https://www.stockmarketeye.com/users-guide/ticker-symbols-and-data-providers/data-providers.html
A9: Available Data | D9: Monthly | E9: m
A10: Bar Count: | B10: 7714 | M10: You may search on “exchange suffixes” for additional discussions | AD10: =OFFSET(AC15,1,0,1,1)/OFFSET(N15,1,0,1,1) -> 0
A11: From: | B11: =IF(B10<=0,"",OFFSET(B15,B10,IF(HistReqDataType="v",1,0),1,1)) -> 1992-01-02 | W11: Trailing 12 Month Dividend Returns
A12: To: | B12: =IF(B10<=0,"",IF(HistReqDataType="v",OFFSET(B15,2,1,1,1),OFFSET(B15,1,0,1,1))) -> 2022-08-16 | W12: Raw Close price on Dividend date | X12: Div Year and Month | Y12: Looking for year ago Div Year and Month | Z12: Year ago Div Date we found | AA12: row offset to year ago div Date | AB12: Same month flag | AC12: Trailing 12 Div Total | AD12: Trailing 12 Div return
Q13: Split History | S13: 0 | T13: Running | U13: Dividend History
B14: Raw Data Values | H14: Adjusted | I14: Price Adjust | J14: Vol Adjust | K14: Adjusted Values | P14: Last | Q14: Effective | R14: Shares | T14: Vol Adjust | V14: 0
A15: RelRow | B15: Date | C15: Open | D15: High | E15: Low | F15: Close | G15: Volume | H15: Close | I15: Factor | J15: Factor | K15: Open | L15: High | M15: Low | N15: Close | O15: Volume | P15: Trade | Q15: 44790 | R15: New | S15: Old | T15: 1 | U15: Date | V15: $ / Share
A16: 1 | B16: 2022-08-16 | C16: 33924.35156 | D16: 34188.05078 | E16: 33852.57031 | F16: 34161.71094 | G16: 134711422 | H16: 34161.71094 | I16: =IF(F16=0,1,H16/F16) -> 1 | J16: =INDEX(OFFSET($T$15,0,0,$S$13+1,1),MATCH(B16,OFFSET($Q$15,0,0,$S$13+1,1),-1)) -> 1 | K16: =ROUND($I16*C16,2) -> 33924.35 | L16: =ROUND($I16*D16,2) -> 34188.05 | M16: 33852.57 | N16: 34161.71 | O16: =G16*J16 -> 134711422
A17: 2 | B17: 2022-08-15 | C17: 33710.69922 | D17: 33954.71094 | E17: 33582.96094 | F17: 33912.44141 | G17: 262670000 | H17: 33912.44141 | I17: =IF(F17=0,1,H17/F17) -> 1 | J17: =INDEX(OFFSET($T$15,0,0,$S$13+1,1),MATCH(B17,OFFSET($Q$15,0,0,$S$13+1,1),-1)) -> 1 | K17: =ROUND($I17*C17,2) -> 33710.7 | L17: =ROUND($I17*D17,2) -> 33954.71 | M17: =ROUND($I17*E17,2) -> 33582.96 | N17: =ROUND($I17*F17,2) -> 33912.44 | O17: =G17*J17 -> 262670000
A18: 3 | B18: 2022-08-12 | C18: 33430.71875 | D18: 33767.08984 | E18: 33398.32031 | F18: 33761.05078 | G18: 299140000 | H18: 33761.05078 | I18: 1 | J18: 1 | K18: 33430.72 | L18: 33767.09 | M18: 33398.32 | N18: 33761.05 | O18: 299140000
A19: 4 | B19: 2022-08-11 | C19: 33451.51172 | D19: 33651.80078 | E19: 33289.82812 | F19: 33336.67188 | G19: 308030000 | H19: 33336.67188 | I19: 1 | J19: 1 | K19: 33451.51 | L19: 33651.8 | M19: 33289.83 | N19: 33336.67 | O19: 308030000
A20: 5 | B20: 2022-08-10 | C20: 33130.62891 | D20: 33364.41016 | E20: 33130.62891 | F20: 33309.51172 | G20: 311740000 | H20: 33309.51172 | I20: 1 | J20: 1 | K20: 33130.63 | L20: 33364.41 | M20: 33130.63 | N20: 33309.51 | O20: 311740000
A21: 6 | B21: 2022-08-09 | C21: 32807.35938 | D21: 32877.53125 | E21: 32702.66016 | F21: 32774.41016 | G21: 281080000 | H21: 32774.41016 | I21: 1 | J21: 1 | K21: 32807.36 | L21: 32877.53 | M21: 32702.66 | N21: 32774.41 | O21: 281080000
A22: 7 | B22: 2022-08-08 | C22: 32877.35938 | D22: 33109.96094 | E22: 32769.10156 | F22: 32832.53906 | G22: 275350000 | H22: 32832.53906 | I22: 1 | J22: 1 | K22: 32877.36 | L22: 33109.96 | M22: 32769.1 | N22: 32832.54 | O22: 275350000
A23: 8 | B23: 2022-08-05 | C23: 32593.90039 | D23: 32814.60938 | E23: 32489.61914 | F23: 32803.46875 | G23: 273010000 | H23: 32803.46875 | I23: 1 | J23: 1 | K23: 32593.9 | L23: 32814.61 | M23: 32489.62 | N23: 32803.47 | O23: 273010000
A24: 9 | B24: 2022-08-04 | C24: 32805.69141 | D24: 32829.21875 | E24: 32652.63086 | F24: 32726.82031 | G24: 315590000 | H24: 32726.82031 | I24: 1 | J24: 1 | K24: 32805.69 | L24: 32829.22 | M24: 32652.63 | N24: 32726.82 | O24: 315590000
A25: 10 | B25: 2022-08-03 | C25: 32514.21094 | D25: 32912.73828 | E25: 32514.21094 | F25: 32812.5 | G25: 342160000 | H25: 32812.5 | I25: 1 | J25: 1 | K25: 32514.21 | L25: 32912.74 | M25: 32514.21 | N25: 32812.5 | O25: 342160000
A26: 11 | B26: 2022-08-02 | C26: 32691.28906 | D26: 32772.92969 | E26: 32387.11914 | F26: 32396.16992 | G26: 316740000 | H26: 32396.16992 | I26: 1 | J26: 1 | K26: 32691.29 | L26: 32772.93 | M26: 32387.12 | N26: 32396.17 | O26: 316740000
A27: 12 | B27: 2022-08-01 | C27: 32755.71094 | D27: 32972.03125 | E27: 32640.78906 | F27: 32798.39844 | G27: 321180000 | H27: 32798.39844 | I27: 1 | J27: 1 | K27: 32755.71 | L27: 32972.03 | M27: 32640.79 | N27: 32798.4 | O27: 321180000
A28: 13 | B28: 2022-07-29 | C28: 32515.61914 | D28: 32910.17969 | E28: 32493.01953 | F28: 32845.12891 | G28: 487360000 | H28: 32845.12891 | I28: 1 | J28: 1 | K28: 32515.62 | L28: 32910.18 | M28: 32493.02 | N28: 32845.13 | O28: 487360000
A29: 14 | B29: 2022-07-28 | C29: 32197.61914 | D29: 32609.53906 | E29: 31982.60938 | F29: 32529.63086 | G29: 331110000 | H29: 32529.63086 | I29: 1 | J29: 1 | K29: 32197.62 | L29: 32609.54 | M29: 31982.61 | N29: 32529.63 | O29: 331110000
A30: 15 | B30: 2022-07-27 | C30: 31865.05078 | D30: 32336.23047 | E30: 31799.42969 | F30: 32197.58984 | G30: 365480000 | H30: 32197.58984 | I30: 1 | J30: 1 | K30: 31865.05 | L30: 32336.23 | M30: 31799.43 | N30: 32197.59 | O30: 365480000
A31: 16 | B31: 2022-07-26 | C31: 31950.03906 | D31: 31950.03906 | E31: 31705.35938 | F31: 31761.53906 | G31: 324930000 | H31: 31761.53906 | I31: 1 | J31: 1 | K31: 31950.04 | L31: 31950.04 | M31: 31705.36 | N31: 31761.54 | O31: 324930000
A32: 17 | B32: 2022-07-25 | C32: 31950.92969 | D32: 32029.0293 | E32: 31821.66992 | F32: 31990.03906 | G32: 255450000 | H32: 31990.03906 | I32: 1 | J32: 1 | K32: 31950.93 | L32: 32029.03 | M32: 31821.67 | N32: 31990.04 | O32: 255450000
A33: 18 | B33: 2022-07-22 | C33: 32167.91992 | D33: 32219.25 | E33: 31731.4707 | F33: 31899.28906 | G33: 319880000 | H33: 31899.28906 | I33: 1 | J33: 1 | K33: 32167.92 | L33: 32219.25 | M33: 31731.47 | N33: 31899.29 | O33: 319880000
A34: 19 | B34: 2022-07-21 | C34: 31826.49023 | D34: 32040.63086 | E34: 31534.08008 | F34: 32036.90039 | G34: 302320000 | H34: 32036.90039 | I34: 1 | J34: 1 | K34: 31826.49 | L34: 32040.63 | M34: 31534.08 | N34: 32036.9 | O34: 302320000
A35: 20 | B35: 2022-07-20 | C35: 31829.99023 | D35: 31944.44922 | E35: 31646.94922 | F35: 31874.83984 | G35: 313520000 | H35: 31874.83984 | I35: 1 | J35: 1 | K35: 31829.99 | L35: 31944.45 | M35: 31646.95 | N35: 31874.84 | O35: 313520000
A36: 21 | B36: 2022-07-19 | C36: 31165.91016 | D36: 31842.25 | E36: 31165.91016 | F36: 31827.05078 | G36: 378720000 | H36: 31827.05078 | I36: 1 | J36: 1 | K36: 31165.91 | L36: 31842.25 | M36: 31165.91 | N36: 31827.05 | O36: 378720000
A37: 22 | B37: 2022-07-18 | C37: 31475.98047 | D37: 31644.67969 | E37: 30982.9707 | F37: 31072.60938 | G37: 309960000 | H37: 31072.60938 | I37: 1 | J37: 1 | K37: 31475.98 | L37: 31644.68 | M37: 30982.97 | N37: 31072.61 | O37: 309960000
A38: 23 | B38: 2022-07-15 | C38: 30775.36914 | D38: 31288.25977 | E38: 30775.36914 | F38: 31288.25977 | G38: 321570000 | H38: 31288.25977 | I38: 1 | J38: 1 | K38: 30775.37 | L38: 31288.26 | M38: 30775.37 | N38: 31288.26 | O38: 321570000
A39: 24 | B39: 2022-07-14 | C39: 30451.80078 | D39: 30680.11914 | E39: 30143.92969 | F39: 30630.16992 | G39: 325130000 | H39: 30630.16992 | I39: 1 | J39: 1 | K39: 30451.8 | L39: 30680.12 | M39: 30143.93 | N39: 30630.17 | O39: 325130000
A40: 25 | B40: 2022-07-13 | C40: 30743.63086 | D40: 30979.16992 | E40: 30514.60938 | F40: 30772.78906 | G40: 291830000 | H40: 30772.78906 | I40: 1 | J40: 1 | K40: 30743.63 | L40: 30979.17 | M40: 30514.61 | N40: 30772.79 | O40: 291830000
A41: 26 | B41: 2022-07-12 | C41: 31113.31055 | D41: 31346.09961 | E41: 30860.50977 | F41: 30981.33008 | G41: 324190000 | H41: 30981.33008 | I41: 1 | J41: 1 | K41: 31113.31 | L41: 31346.1 | M41: 30860.51 | N41: 30981.33 | O41: 324190000
A42: 27 | B42: 2022-07-11 | C42: 31277.98047 | D42: 31367.55078 | E42: 31114.40039 | F42: 31173.83984 | G42: 245020000 | H42: 31173.83984 | I42: 1 | J42: 1 | K42: 31277.98 | L42: 31367.55 | M42: 31114.4 | N42: 31173.84 | O42: 245020000
A43: 28 | B43: 2022-07-08 | C43: 31348.42969 | D43: 31511.46094 | E43: 31212.44922 | F43: 31338.15039 | G43: 238120000 | H43: 31338.15039 | I43: 1 | J43: 1 | K43: 31348.43 | L43: 31511.46 | M43: 31212.45 | N43: 31338.15 | O43: 238120000
A44: 29 | B44: 2022-07-07 | C44: 31190.65039 | D44: 31421.83984 | E44: 31154.64062 | F44: 31384.55078 | G44: 296620000 | H44: 31384.55078 | I44: 1 | J44: 1 | K44: 31190.65 | L44: 31421.84 | M44: 31154.64 | N44: 31384.55 | O44: 296620000
A45: 30 | B45: 2022-07-06 | C45: 30957.30078 | D45: 31224.68945 | E45: 30794.83984 | F45: 31037.67969 | G45: 289800000 | H45: 31037.67969 | I45: 1 | J45: 1 | K45: 30957.3 | L45: 31224.69 | M45: 30794.84 | N45: 31037.68 | O45: 289800000
A46: 31 | B46: 2022-07-05 | C46: 30903.11914 | D46: 30971.74023 | E46: 30355.11914 | F46: 30967.82031 | G46: 323080000 | H46: 30967.82031 | I46: 1 | J46: 1 | K46: 30903.12 | L46: 30971.74 | M46: 30355.12 | N46: 30967.82 | O46: 323080000
A47: 32 | B47: 2022-07-01 | C47: 30737.76953 | D47: 31139.34961 | E47: 30487.78906 | F47: 31097.25977 | G47: 310440000 | H47: 31097.25977 | I47: 1 | J47: 1 | K47: 30737.77 | L47: 31139.35 | M47: 30487.79 | N47: 31097.26 | O47: 310440000
A48: 33 | B48: 2022-06-30 | C48: 30790 | D48: 30979.84961 | E48: 30431.86914 | F48: 30775.42969 | G48: 394070000 | H48: 30775.42969 | I48: 1 | J48: 1 | K48: 30790 | L48: 30979.85 | M48: 30431.87 | N48: 30775.43 | O48: 394070000
A49: 34 | B49: 2022-06-29 | C49: 31067.41016 | D49: 31152.96094 | E49: 30894.5293 | F49: 31029.31055 | G49: 269390000 | H49: 31029.31055 | I49: 1 | J49: 1 | K49: 31067.41 | L49: 31152.96 | M49: 30894.53 | N49: 31029.31 | O49: 269390000
A50: 35 | B50: 2022-06-28 | C50: 31549.05078 | D50: 31885.08984 | E50: 30934.33008 | F50: 30946.99023 | G50: 350780000 | H50: 30946.99023 | I50: 1 | J50: 1 | K50: 31549.05 | L50: 31885.09 | M50: 30934.33 | N50: 30946.99 | O50: 350780000
A51: 36 | B51: 2022-06-27 | C51: 31533.59961 | D51: 31598.58984 | E51: 31351.36914 | F51: 31438.25977 | G51: 309910000 | H51: 31438.25977 | I51: 1 | J51: 1 | K51: 31533.6 | L51: 31598.59 | M51: 31351.37 | N51: 31438.26 | O51: 309910000
A52: 37 | B52: 2022-06-24 | C52: 30846.93945 | D52: 31517.28906 | E52: 30846.93945 | F52: 31500.67969 | G52: 465480000 | H52: 31500.67969 | I52: 1 | J52: 1 | K52: 30846.94 | L52: 31517.29 | M52: 30846.94 | N52: 31500.68 | O52: 465480000
A53: 38 | B53: 2022-06-23 | C53: 30570.33008 | D53: 30715.63086 | E53: 30293.40039 | F53: 30677.35938 | G53: 361420000 | H53: 30677.35938 | I53: 1 | J53: 1 | K53: 30570.33 | L53: 30715.63 | M53: 30293.4 | N53: 30677.36 | O53: 361420000
A54: 39 | B54: 2022-06-22 | C54: 30352.57031 | D54: 30777.91992 | E54: 30166.00977 | F54: 30483.13086 | G54: 343490000 | H54: 30483.13086 | I54: 1 | J54: 1 | K54: 30352.57 | L54: 30777.92 | M54: 30166.01 | N54: 30483.13 | O54: 343490000
A55: 40 | B55: 2022-06-21 | C55: 30074.68945 | D55: 30653.98047 | E55: 30074.68945 | F55: 30530.25 | G55: 376900000 | H55: 30530.25 | I55: 1 | J55: 1 | K55: 30074.69 | L55: 30653.98 | M55: 30074.69 | N55: 30530.25 | O55: 376900000
A56: 41 | B56: 2022-06-17 | C56: 29912.69922 | D56: 30167.51953 | E56: 29653.28906 | F56: 29888.7793 | G56: 692830000 | H56: 29888.7793 | I56: 1 | J56: 1 | K56: 29912.7 | L56: 30167.52 | M56: 29653.29 | N56: 29888.78 | O56: 692830000
A57: 42 | B57: 2022-06-16 | C57: 30305.74023 | D57: 30305.74023 | E57: 29740.34961 | F57: 29927.07031 | G57: 442910000 | H57: 29927.07031 | I57: 1 | J57: 1 | K57: 30305.74 | L57: 30305.74 | M57: 29740.35 | N57: 29927.07 | O57: 442910000
A58: 43 | B58: 2022-06-15 | C58: 30570.5 | D58: 31011.9707 | E58: 30185.08008 | F58: 30668.5293 | G58: 392670000 | H58: 30668.5293 | I58: 1 | J58: 1 | K58: 30570.5 | L58: 31011.97 | M58: 30185.08 | N58: 30668.53 | O58: 392670000
A59: 44 | B59: 2022-06-14 | C59: 30592.33984 | D59: 30690.80078 | E59: 30144.23047 | F59: 30364.83008 | G59: 366800000 | H59: 30364.83008 | I59: 1 | J59: 1 | K59: 30592.34 | L59: 30690.8 | M59: 30144.23 | N59: 30364.83 | O59: 366800000
A60: 45 | B60: 2022-06-13 | C60: 31144.91016 | D60: 31144.91016 | E60: 30373.7207 | F60: 30516.74023 | G60: 472290000 | H60: 30516.74023 | I60: 1 | J60: 1 | K60: 31144.91 | L60: 31144.91 | M60: 30373.72 | N60: 30516.74 | O60: 472290000
A61: 46 | B61: 2022-06-10 | C61: 32053.51953 | D61: 32053.51953 | E61: 31387.83984 | F61: 31392.78906 | G61: 362300000 | H61: 31392.78906 | I61: 1 | J61: 1 | K61: 32053.52 | L61: 32053.52 | M61: 31387.84 | N61: 31392.79 | O61: 362300000
A62: 47 | B62: 2022-06-09 | C62: 32828.62109 | D62: 32956.73047 | E62: 32267.7793 | F62: 32272.78906 | G62: 289710000 | H62: 32272.78906 | I62: 1 | J62: 1 | K62: 32828.62 | L62: 32956.73 | M62: 32267.78 | N62: 32272.79 | O62: 289710000
A63: 48 | B63: 2022-06-08 | C63: 33087.07031 | D63: 33156.5 | E63: 32824.37109 | F63: 32910.89844 | G63: 270470000 | H63: 32910.89844 | I63: 1 | J63: 1 | K63: 33087.07 | L63: 33156.5 | M63: 32824.37 | N63: 32910.9 | O63: 270470000
A64: 49 | B64: 2022-06-07 | C64: 32783.03125 | D64: 33207.44922 | E64: 32641.84961 | F64: 33180.14062 | G64: 270750000 | H64: 33180.14062 | I64: 1 | J64: 1 | K64: 32783.03 | L64: 33207.45 | M64: 32641.85 | N64: 33180.14 | O64: 270750000
A65: 50 | B65: 2022-06-06 | C65: 33032.03906 | D65: 33235.37109 | E65: 32819.5 | F65: 32915.78125 | G65: 253010000 | H65: 32915.78125 | I65: 1 | J65: 1 | K65: 33032.04 | L65: 33235.37 | M65: 32819.5 | N65: 32915.78 | O65: 253010000
A66: 51 | B66: 2022-06-03 | C66: 32986.32031 | D66: 33135.60938 | E66: 32839.21094 | F66: 32899.69922 | G66: 298570000 | H66: 32899.69922 | I66: 1 | J66: 1 | K66: 32986.32 | L66: 33135.61 | M66: 32839.21 | N66: 32899.7 | O66: 298570000
A67: 52 | B67: 2022-06-02 | C67: 32809.01172 | D67: 33248.60938 | E67: 32509.42969 | F67: 33248.28125 | G67: 333210000 | H67: 33248.28125 | I67: 1 | J67: 1 | K67: 32809.01 | L67: 33248.61 | M67: 32509.43 | N67: 33248.28 | O67: 333210000
A68: 53 | B68: 2022-06-01 | C68: 33156.30859 | D68: 33272.33984 | E68: 32584.75977 | F68: 32813.23047 | G68: 338210000 | H68: 32813.23047 | I68: 1 | J68: 1 | K68: 33156.31 | L68: 33272.34 | M68: 32584.76 | N68: 32813.23 | O68: 338210000
A69: 54 | B69: 2022-05-31 | C69: 33160.58984 | D69: 33240.21875 | E69: 32752.33984 | F69: 32990.12109 | G69: 533560000 | H69: 32990.12109 | I69: 1 | J69: 1 | K69: 33160.59 | L69: 33240.22 | M69: 32752.34 | N69: 32990.12 | O69: 533560000
A70: 55 | B70: 2022-05-27 | C70: 32735.08984 | D70: 33213.62109 | E70: 32682.00977 | F70: 33212.96094 | G70: 328770000 | H70: 33212.96094 | I70: 1 | J70: 1 | K70: 32735.09 | L70: 33213.62 | M70: 32682.01 | N70: 33212.96 | O70: 328770000
A71: 56 | B71: 2022-05-26 | C71: 32248.16992 | D71: 32774.14062 | E71: 32248.16992 | F71: 32637.18945 | G71: 351220000 | H71: 32637.18945 | I71: 1 | J71: 1 | K71: 32248.17 | L71: 32774.14 | M71: 32248.17 | N71: 32637.19 | O71: 351220000
A72: 57 | B72: 2022-05-25 | C72: 31816.31055 | D72: 32254.43945 | E72: 31754.33008 | F72: 32120.2793 | G72: 343460000 | H72: 32120.2793 | I72: 1 | J72: 1 | K72: 31816.31 | L72: 32254.44 | M72: 31754.33 | N72: 32120.28 | O72: 343460000
A73: 58 | B73: 2022-05-24 | C73: 31717.60938 | D73: 32014.85938 | E73: 31365.58984 | F73: 31928.61914 | G73: 382950000 | H73: 31928.61914 | I73: 1 | J73: 1 | K73: 31717.61 | L73: 32014.86 | M73: 31365.59 | N73: 31928.62 | O73: 382950000
A74: 59 | B74: 2022-05-23 | C74: 31395.89062 | D74: 31968.41992 | E74: 31395.89062 | F74: 31880.24023 | G74: 402010000 | H74: 31880.24023 | I74: 1 | J74: 1 | K74: 31395.89 | L74: 31968.42 | M74: 31395.89 | N74: 31880.24 | O74: 402010000
A75: 60 | B75: 2022-05-20 | C75: 31426.93945 | D75: 31515.7793 | E75: 30635.75977 | F75: 31261.90039 | G75: 495510000 | H75: 31261.90039 | I75: 1 | J75: 1 | K75: 31426.94 | L75: 31515.78 | M75: 30635.76 | N75: 31261.9 | O75: 495510000
A76: 61 | B76: 2022-05-19 | C76: 31262.61914 | D76: 31569.13086 | E76: 31016.41016 | F76: 31253.13086 | G76: 517190000 | H76: 31253.13086 | I76: 1 | J76: 1 | K76: 31262.62 | L76: 31569.13 | M76: 31016.41 | N76: 31253.13 | O76: 517190000
A77: 62 | B77: 2022-05-18 | C77: 32468.66992 | D77: 32468.66992 | E77: 31393.94922 | F77: 31490.07031 | G77: 465060000 | H77: 31490.07031 | I77: 1 | J77: 1 | K77: 32468.67 | L77: 32468.67 | M77: 31393.95 | N77: 31490.07 | O77: 465060000
A78: 63 | B78: 2022-05-17 | C78: 32427 | D78: 32689.14062 | E78: 32308.15039 | F78: 32654.58984 | G78: 389310000 | H78: 32654.58984 | I78: 1 | J78: 1 | K78: 32427 | L78: 32689.14 | M78: 32308.15 | N78: 32654.59 | O78: 389310000
A79: 64 | B79: 2022-05-16 | C79: 32152.15039 | D79: 32514.01953 | E79: 31928.17969 | F79: 32223.41992 | G79: 330030000 | H79: 32223.41992 | I79: 1 | J79: 1 | K79: 32152.15 | L79: 32514.02 | M79: 31928.18 | N79: 32223.42 | O79: 330030000
A80: 65 | B80: 2022-05-13 | C80: 31963.85938 | D80: 32276.05078 | E80: 31862.78906 | F80: 32196.66016 | G80: 388520000 | H80: 32196.66016 | I80: 1 | J80: 1 | K80: 31963.86 | L80: 32276.05 | M80: 31862.79 | N80: 32196.66 | O80: 388520000
A81: 66 | B81: 2022-05-12 | C81: 31699.03906 | D81: 31914.46094 | E81: 31228.2207 | F81: 31730.30078 | G81: 544240000 | H81: 31730.30078 | I81: =IF(F81=0,1,H81/F81) -> 1 | J81: =INDEX(OFFSET($T$15,0,0,$S$13+1,1),MATCH(B81,OFFSET($Q$15,0,0,$S$13+1,1),-1)) -> 1 | K81: =ROUND($I81*C81,2) -> 31699.04 | L81: =ROUND($I81*D81,2) -> 31914.46 | M81: =ROUND($I81*E81,2) -> 31228.22 | N81: =ROUND($I81*F81,2) -> 31730.3 | O81: =G81*J81 -> 544240000
A82: 67 | B82: 2022-05-11 | C82: 32123.24023 | D82: 32584.01953 | E82: 31798.85938 | F82: 31834.10938 | G82: 458460000 | H82: 31834.10938 | I82: 1 | J82: 1 | K82: 32123.24 | L82: 32584.02 | M82: 31798.86 | N82: 31834.11 | O82: 458460000
A83: 68 | B83: 2022-05-10 | C83: 32504.08984 | D83: 32752.16992 | E83: 31887.89062 | F83: 32160.74023 | G83: 439290000 | H83: 32160.74023 | I83: 1 | J83: 1 | K83: 32504.09 | L83: 32752.17 | M83: 31887.89 | N83: 32160.74 | O83: 439290000
A84: 69 | B84: 2022-05-09 | C84: 32685.16992 | D84: 32685.16992 | E84: 32121.98047 | F84: 32245.69922 | G84: 470770000 | H84: 32245.69922 | I84: 1 | J84: 1 | K84: 32685.17 | L84: 32685.17 | M84: 32121.98 | N84: 32245.7 | O84: 470770000
A85: 70 | B85: 2022-05-06 | C85: 32773.87891 | D85: 33055.83984 | E85: 32474.68945 | F85: 32899.37109 | G85: 416520000 | H85: 32899.37109 | I85: 1 | J85: 1 | K85: 32773.88 | L85: 33055.84 | M85: 32474.69 | N85: 32899.37 | O85: 416520000
A86: 71 | B86: 2022-05-05 | C86: 33854.17188 | D86: 33854.17188 | E86: 32685.09961 | F86: 32997.96875 | G86: 448420000 | H86: 32997.96875 | I86: 1 | J86: 1 | K86: 33854.17 | L86: 33854.17 | M86: 32685.1 | N86: 32997.97 | O86: 448420000
A87: 72 | B87: 2022-05-04 | C87: 33171.80078 | D87: 34117.73828 | E87: 33021.83984 | F87: 34061.05859 | G87: 411060000 | H87: 34061.05859 | I87: 1 | J87: 1 | K87: 33171.8 | L87: 34117.74 | M87: 33021.84 | N87: 34061.06 | O87: 411060000
A88: 73 | B88: 2022-05-03 | C88: 33086.08984 | D88: 33341.57812 | E88: 32914.75 | F88: 33128.78906 | G88: 364420000 | H88: 33128.78906 | I88: 1 | J88: 1 | K88: 33086.09 | L88: 33341.58 | M88: 32914.75 | N88: 33128.79 | O88: 364420000
A89: 74 | B89: 2022-05-02 | C89: 32978.48828 | D89: 33224.94922 | E89: 32449.86914 | F89: 33061.5 | G89: 453390000 | H89: 33061.5 | I89: 1 | J89: 1 | K89: 32978.49 | L89: 33224.95 | M89: 32449.87 | N89: 33061.5 | O89: 453390000
A90: 75 | B90: 2022-04-29 | C90: 33787.01172 | D90: 33919.58984 | E90: 32913.14844 | F90: 32977.21094 | G90: 501560000 | H90: 32977.21094 | I90: 1 | J90: 1 | K90: 33787.01 | L90: 33919.59 | M90: 32913.15 | N90: 32977.21 | O90: 501560000
A91: 76 | B91: 2022-04-28 | C91: 33425.96094 | D91: 34054.78906 | E91: 33248.46094 | F91: 33916.39062 | G91: 440380000 | H91: 33916.39062 | I91: 1 | J91: 1 | K91: 33425.96 | L91: 34054.79 | M91: 33248.46 | N91: 33916.39 | O91: 440380000
A92: 77 | B92: 2022-04-27 | C92: 33450.92188 | D92: 33697.17969 | E92: 33108.89062 | F92: 33301.92969 | G92: 447230000 | H92: 33301.92969 | I92: 1 | J92: 1 | K92: 33450.92 | L92: 33697.18 | M92: 33108.89 | N92: 33301.93 | O92: 447230000
A93: 78 | B93: 2022-04-26 | C93: 33907.48828 | D93: 33909.51172 | E93: 33230.94922 | F93: 33240.17969 | G93: 400020000 | H93: 33240.17969 | I93: 1 | J93: 1 | K93: 33907.49 | L93: 33909.51 | M93: 33230.95 | N93: 33240.18 | O93: 400020000
A94: 79 | B94: 2022-04-25 | C94: 33731.64844 | D94: 34106.01172 | E94: 33323.37109 | F94: 34049.46094 | G94: 416900000 | H94: 34049.46094 | I94: 1 | J94: 1 | K94: 33731.65 | L94: 34106.01 | M94: 33323.37 | N94: 34049.46 | O94: 416900000
A95: 80 | B95: 2022-04-22 | C95: 34727.37891 | D95: 34727.37891 | E95: 33773.39062 | F95: 33811.39844 | G95: 373280000 | H95: 33811.39844 | I95: 1 | J95: 1 | K95: 34727.38 | L95: 34727.38 | M95: 33773.39 | N95: 33811.4 | O95: 373280000
A96: 81 | B96: 2022-04-21 | C96: 35258.80078 | D96: 35492.21875 | E96: 34723.82031 | F96: 34792.76172 | G96: 366390000 | H96: 34792.76172 | I96: 1 | J96: 1 | K96: 35258.8 | L96: 35492.22 | M96: 34723.82 | N96: 34792.76 | O96: 366390000
A97: 82 | B97: 2022-04-20 | C97: 34962.67188 | D97: 35315.39844 | E97: 34962.67188 | F97: 35160.78906 | G97: 337620000 | H97: 35160.78906 | I97: 1 | J97: 1 | K97: 34962.67 | L97: 35315.4 | M97: 34962.67 | N97: 35160.79 | O97: 337620000
A98: 83 | B98: 2022-04-19 | C98: 34394.62109 | D98: 34983.10938 | E98: 34394.62109 | F98: 34911.19922 | G98: 296350000 | H98: 34911.19922 | I98: 1 | J98: 1 | K98: 34394.62 | L98: 34983.11 | M98: 34394.62 | N98: 34911.2 | O98: 296350000
A99: 84 | B99: 2022-04-18 | C99: 34411.48828 | D99: 34618.28906 | E99: 34279.07812 | F99: 34411.69141 | G99: 264110000 | H99: 34411.69141 | I99: 1 | J99: 1 | K99: 34411.49 | L99: 34618.29 | M99: 34279.08 | N99: 34411.69 | O99: 264110000
A100: 85 | B100: 2022-04-14 | C100: 34628.46094 | D100: 34889.17188 | E100: 34437.5 | F100: 34451.23047 | G100: 353680000 | H100: 34451.23047 | I100: 1 | J100: 1 | K100: 34628.46 | L100: 34889.17 | M100: 34437.5 | N100: 34451.23 | O100: 353680000
A101: 86 | B101: 2022-04-13 | C101: 34166.64062 | D101: 34598.35938 | E101: 34140.64062 | F101: 34564.58984 | G101: 313630000 | H101: 34564.58984 | I101: 1 | J101: 1 | K101: 34166.64 | L101: 34598.36 | M101: 34140.64 | N101: 34564.59 | O101: 313630000
A102: 87 | B102: 2022-04-12 | C102: 34412.51172 | D102: 34669.96875 | E102: 34102.80859 | F102: 34220.35938 | G102: 333510000 | H102: 34220.35938 | I102: 1 | J102: 1 | K102: 34412.51 | L102: 34669.97 | M102: 34102.81 | N102: 34220.36 | O102: 333510000
A103: 88 | B103: 2022-04-11 | C103: 34630.26953 | D103: 34701.33984 | E103: 34272.28906 | F103: 34308.07812 | G103: 333290000 | H103: 34308.07812 | I103: 1 | J103: 1 | K103: 34630.27 | L103: 34701.34 | M103: 34272.29 | N103: 34308.08 | O103: 333290000
A104: 89 | B104: 2022-04-08 | C104: 34569.23828 | D104: 34908.46094 | E104: 34470.19141 | F104: 34721.12109 | G104: 301750000 | H104: 34721.12109 | I104: 1 | J104: 1 | K104: 34569.24 | L104: 34908.46 | M104: 34470.19 | N104: 34721.12 | O104: 301750000
A105: 90 | B105: 2022-04-07 | C105: 34439.23828 | D105: 34705.82812 | E105: 34190.94922 | F105: 34583.57031 | G105: 319870000 | H105: 34583.57031 | I105: 1 | J105: 1 | K105: 34439.24 | L105: 34705.83 | M105: 34190.95 | N105: 34583.57 | O105: 319870000
A106: 91 | B106: 2022-04-06 | C106: 34520.33984 | D106: 34609.83984 | E106: 34277.17188 | F106: 34496.51172 | G106: 386250000 | H106: 34496.51172 | I106: 1 | J106: 1 | K106: 34520.34 | L106: 34609.84 | M106: 34277.17 | N106: 34496.51 | O106: 386250000
A107: 92 | B107: 2022-04-05 | C107: 34876.32812 | D107: 35112.21094 | E107: 34566.03906 | F107: 34641.17969 | G107: 304010000 | H107: 34641.17969 | I107: 1 | J107: 1 | K107: 34876.33 | L107: 35112.21 | M107: 34566.04 | N107: 34641.18 | O107: 304010000
A108: 93 | B108: 2022-04-04 | C108: 34799.98047 | D108: 34940.78125 | E108: 34615.37891 | F108: 34921.87891 | G108: 316570000 | H108: 34921.87891 | I108: 1 | J108: 1 | K108: 34799.98 | L108: 34940.78 | M108: 34615.38 | N108: 34921.88 | O108: 316570000
A109: 94 | B109: 2022-04-01 | C109: 34740.89062 | D109: 34847.91016 | E109: 34538.25 | F109: 34818.26953 | G109: 340400000 | H109: 34818.26953 | I109: 1 | J109: 1 | K109: 34740.89 | L109: 34847.91 | M109: 34538.25 | N109: 34818.27 | O109: 340400000
A110: 95 | B110: 2022-03-31 | C110: 35201.51953 | D110: 35201.51953 | E110: 34677.98828 | F110: 34678.35156 | G110: 433400000 | H110: 34678.35156 | I110: 1 | J110: 1 | K110: 35201.52 | L110: 35201.52 | M110: 34677.99 | N110: 34678.35 | O110: 433400000
A111: 96 | B111: 2022-03-30 | C111: 35273.62891 | D111: 35361.35938 | E111: 35058.57812 | F111: 35228.80859 | G111: 317320000 | H111: 35228.80859 | I111: 1 | J111: 1 | K111: 35273.63 | L111: 35361.36 | M111: 35058.58 | N111: 35228.81 | O111: 317320000
A112: 97 | B112: 2022-03-29 | C112: 35114.35156 | D112: 35372.26172 | E112: 35030.07031 | F112: 35294.19141 | G112: 355050000 | H112: 35294.19141 | I112: 1 | J112: 1 | K112: 35114.35 | L112: 35372.26 | M112: 35030.07 | N112: 35294.19 | O112: 355050000
A113: 98 | B113: 2022-03-28 | C113: 34833.03125 | D113: 34957.92969 | E113: 34552.23047 | F113: 34955.89062 | G113: 299790000 | H113: 34955.89062 | I113: 1 | J113: 1 | K113: 34833.03 | L113: 34957.93 | M113: 34552.23 | N113: 34955.89 | O113: 299790000
A114: 99 | B114: 2022-03-25 | C114: 34702.39062 | D114: 34942.69922 | E114: 34631.51953 | F114: 34861.23828 | G114: 285440000 | H114: 34861.23828 | I114: 1 | J114: 1 | K114: 34702.39 | L114: 34942.7 | M114: 34631.52 | N114: 34861.24 | O114: 285440000
A115: 100 | B115: 2022-03-24 | C115: 34406.80859 | D115: 34713.55859 | E115: 34355.42188 | F115: 34707.94141 | G115: 324870000 | H115: 34707.94141 | I115: 1 | J115: 1 | K115: 34406.81 | L115: 34713.56 | M115: 34355.42 | N115: 34707.94 | O115: 324870000
A116: 101 | B116: 2022-03-23 | C116: 34748.83984 | D116: 34748.83984 | E116: 34352.96094 | F116: 34358.5 | G116: 347880000 | H116: 34358.5 | I116: 1 | J116: 1 | K116: 34748.84 | L116: 34748.84 | M116: 34352.96 | N116: 34358.5 | O116: 347880000
A117: 102 | B117: 2022-03-22 | C117: 34583.23828 | D117: 34882.03125 | E117: 34583.23828 | F117: 34807.46094 | G117: 368550000 | H117: 34807.46094 | I117: 1 | J117: 1 | K117: 34583.24 | L117: 34882.03 | M117: 34583.24 | N117: 34807.46 | O117: 368550000
A118: 103 | B118: 2022-03-21 | C118: 34669.85156 | D118: 34808.28125 | E118: 34341.80859 | F118: 34552.98828 | G118: 408490000 | H118: 34552.98828 | I118: 1 | J118: 1 | K118: 34669.85 | L118: 34808.28 | M118: 34341.81 | N118: 34552.99 | O118: 408490000
A119: 104 | B119: 2022-03-18 | C119: 34466.71875 | D119: 34755.19922 | E119: 34279.82812 | F119: 34754.92969 | G119: 615420000 | H119: 34754.92969 | I119: 1 | J119: 1 | K119: 34466.72 | L119: 34755.2 | M119: 34279.83 | N119: 34754.93 | O119: 615420000
A120: 105 | B120: 2022-03-17 | C120: 33995.39062 | D120: 34483.92188 | E120: 33896.05859 | F120: 34480.76172 | G120: 339470000 | H120: 34480.76172 | I120: 1 | J120: 1 | K120: 33995.39 | L120: 34483.92 | M120: 33896.06 | N120: 34480.76 | O120: 339470000
A121: 106 | B121: 2022-03-16 | C121: 33653.92969 | D121: 34075.94141 | E121: 33391.23828 | F121: 34063.10156 | G121: 427400000 | H121: 34063.10156 | I121: 1 | J121: 1 | K121: 33653.93 | L121: 34075.94 | M121: 33391.24 | N121: 34063.1 | O121: 427400000
A122: 107 | B122: 2022-03-15 | C122: 32989.26953 | D122: 33620.83984 | E122: 32989.26953 | F122: 33544.33984 | G122: 388810000 | H122: 33544.33984 | I122: 1 | J122: 1 | K122: 32989.27 | L122: 33620.84 | M122: 32989.27 | N122: 33544.34 | O122: 388810000
A123: 108 | B123: 2022-03-14 | C123: 33000.37109 | D123: 33395.58984 | E123: 32818.16016 | F123: 32945.23828 | G123: 394940000 | H123: 32945.23828 | I123: 1 | J123: 1 | K123: 33000.37 | L123: 33395.59 | M123: 32818.16 | N123: 32945.24 | O123: 394940000
A124: 109 | B124: 2022-03-11 | C124: 33279.71875 | D124: 33515.60938 | E124: 32911.89062 | F124: 32944.19141 | G124: 369480000 | H124: 32944.19141 | I124: 1 | J124: 1 | K124: 33279.72 | L124: 33515.61 | M124: 32911.89 | N124: 32944.19 | O124: 369480000
A125: 110 | B125: 2022-03-10 | C125: 33106.76953 | D125: 33236.58984 | E125: 32819.76172 | F125: 33174.07031 | G125: 399480000 | H125: 33174.07031 | I125: 1 | J125: 1 | K125: 33106.77 | L125: 33236.59 | M125: 32819.76 | N125: 33174.07 | O125: 399480000
A126: 111 | B126: 2022-03-09 | C126: 32860.42188 | D126: 33457.28125 | E126: 32860.42188 | F126: 33286.25 | G126: 418670000 | H126: 33286.25 | I126: 1 | J126: 1 | K126: 32860.42 | L126: 33457.28 | M126: 32860.42 | N126: 33286.25 | O126: 418670000
A127: 112 | B127: 2022-03-08 | C127: 32885.17188 | D127: 33402.98047 | E127: 32578.73047 | F127: 32632.64062 | G127: 553750000 | H127: 32632.64062 | I127: 1 | J127: 1 | K127: 32885.17 | L127: 33402.98 | M127: 32578.73 | N127: 32632.64 | O127: 553750000
A128: 113 | B128: 2022-03-07 | C128: 33579.75 | D128: 33579.75 | E128: 32806.14844 | F128: 32817.37891 | G128: 488400000 | H128: 32817.37891 | I128: 1 | J128: 1 | K128: 33579.75 | L128: 33579.75 | M128: 32806.15 | N128: 32817.38 | O128: 488400000
A129: 114 | B129: 2022-03-04 | C129: 33655.42969 | D129: 33655.42969 | E129: 33254.12109 | F129: 33614.80078 | G129: 408390000 | H129: 33614.80078 | I129: 1 | J129: 1 | K129: 33655.43 | L129: 33655.43 | M129: 33254.12 | N129: 33614.8 | O129: 408390000
A130: 115 | B130: 2022-03-03 | C130: 33972.87109 | D130: 34179.07031 | E130: 33641.53125 | F130: 33794.66016 | G130: 369740000 | H130: 33794.66016 | I130: 1 | J130: 1 | K130: 33972.87 | L130: 34179.07 | M130: 33641.53 | N130: 33794.66 | O130: 369740000
A131: 116 | B131: 2022-03-02 | C131: 33379.51172 | D131: 34013.67188 | E131: 33379.51172 | F131: 33891.35156 | G131: 400920000 | H131: 33891.35156 | I131: 1 | J131: 1 | K131: 33379.51 | L131: 34013.67 | M131: 33379.51 | N131: 33891.35 | O131: 400920000
A132: 117 | B132: 2022-03-01 | C132: 33813.48047 | D132: 33870.14062 | E132: 33107.67188 | F132: 33294.94922 | G132: 438730000 | H132: 33294.94922 | I132: 1 | J132: 1 | K132: 33813.48 | L132: 33870.14 | M132: 33107.67 | N132: 33294.95 | O132: 438730000
A133: 118 | B133: 2022-02-28 | C133: 33870.62109 | D133: 33963.62891 | E133: 33469.30859 | F133: 33892.60156 | G133: 443460000 | H133: 33892.60156 | I133: 1 | J133: 1 | K133: 33870.62 | L133: 33963.63 | M133: 33469.31 | N133: 33892.6 | O133: 443460000
A134: 119 | B134: 2022-02-25 | C134: 33277.21875 | D134: 34095.73828 | E134: 33277.21875 | F134: 34058.75 | G134: 417630000 | H134: 34058.75 | I134: 1 | J134: 1 | K134: 33277.22 | L134: 34095.74 | M134: 33277.22 | N134: 34058.75 | O134: 417630000
A135: 120 | B135: 2022-02-24 | C135: 32830.32812 | D135: 33269.33984 | E135: 32272.64062 | F135: 33223.82812 | G135: 590850000 | H135: 33223.82812 | I135: 1 | J135: 1 | K135: 32830.33 | L135: 33269.34 | M135: 32272.64 | N135: 33223.83 | O135: 590850000
A136: 121 | B136: 2022-02-23 | C136: 33680.96875 | D136: 33832.58984 | E136: 33084.89844 | F136: 33131.76172 | G136: 370600000 | H136: 33131.76172 | I136: 1 | J136: 1 | K136: 33680.97 | L136: 33832.59 | M136: 33084.9 | N136: 33131.76 | O136: 370600000
A137: 122 | B137: 2022-02-22 | C137: 33974.08984 | D137: 34024.73828 | E137: 33364.28906 | F137: 33596.60938 | G137: 432090000 | H137: 33596.60938 | I137: 1 | J137: 1 | K137: 33974.09 | L137: 34024.74 | M137: 33364.29 | N137: 33596.61 | O137: 432090000
A138: 123 | B138: 2022-02-18 | C138: 34310.44922 | D138: 34423.57812 | E138: 33976.17969 | F138: 34079.17969 | G138: 414080000 | H138: 34079.17969 | I138: 1 | J138: 1 | K138: 34310.45 | L138: 34423.58 | M138: 33976.18 | N138: 34079.18 | O138: 414080000
A139: 124 | B139: 2022-02-17 | C139: 34858.46875 | D139: 34858.46875 | E139: 34246.23047 | F139: 34312.03125 | G139: 348720000 | H139: 34312.03125 | I139: 1 | J139: 1 | K139: 34858.47 | L139: 34858.47 | M139: 34246.23 | N139: 34312.03 | O139: 348720000
A140: 125 | B140: 2022-02-16 | C140: 34951.82812 | D140: 35042.08984 | E140: 34642.64062 | F140: 34934.26953 | G140: 294410000 | H140: 34934.26953 | I140: 1 | J140: 1 | K140: 34951.83 | L140: 35042.09 | M140: 34642.64 | N140: 34934.27 | O140: 294410000
A141: 126 | B141: 2022-02-15 | C141: 34686.19141 | D141: 35047.78906 | E141: 34686.19141 | F141: 34988.83984 | G141: 305670000 | H141: 34988.83984 | I141: 1 | J141: 1 | K141: 34686.19 | L141: 35047.79 | M141: 34686.19 | N141: 34988.84 | O141: 305670000
A142: 127 | B142: 2022-02-14 | C142: 34694.5 | D142: 34744.55859 | E142: 34304.28125 | F142: 34566.17188 | G142: 370320000 | H142: 34566.17188 | I142: 1 | J142: 1 | K142: 34694.5 | L142: 34744.56 | M142: 34304.28 | N142: 34566.17 | O142: 370320000
A143: 128 | B143: 2022-02-11 | C143: 35267.89062 | D143: 35431.14844 | E143: 34620.51953 | F143: 34738.05859 | G143: 398860000 | H143: 34738.05859 | I143: 1 | J143: 1 | K143: 35267.89 | L143: 35431.15 | M143: 34620.52 | N143: 34738.06 | O143: 398860000
A144: 129 | B144: 2022-02-10 | C144: 35630.80859 | D144: 35800.23828 | E144: 35100.71875 | F144: 35241.58984 | G144: 411620000 | H144: 35241.58984 | I144: 1 | J144: 1 | K144: 35630.81 | L144: 35800.24 | M144: 35100.72 | N144: 35241.59 | O144: 411620000
A145: 130 | B145: 2022-02-09 | C145: 35614.89844 | D145: 35824.28125 | E145: 35614.89844 | F145: 35768.05859 | G145: 333610000 | H145: 35768.05859 | I145: =IF(F145=0,1,H145/F145) -> 1 | J145: =INDEX(OFFSET($T$15,0,0,$S$13+1,1),MATCH(B145,OFFSET($Q$15,0,0,$S$13+1,1),-1)) -> 1 | K145: =ROUND($I145*C145,2) -> 35614.9 | L145: =ROUND($I145*D145,2) -> 35824.28 | M145: =ROUND($I145*E145,2) -> 35614.9 | N145: =ROUND($I145*F145,2) -> 35768.06 | O145: =G145*J145 -> 333610000
A146: 131 | B146: 2022-02-08 | C146: 35160.67969 | D146: 35544.89062 | E146: 35090.42188 | F146: 35462.78125 | G146: 319190000 | H146: 35462.78125 | I146: 1 | J146: 1 | K146: 35160.68 | L146: 35544.89 | M146: 35090.42 | N146: 35462.78 | O146: 319190000
A147: 132 | B147: 2022-02-07 | C147: 35108.37891 | D147: 35325.01172 | E147: 34993.98047 | F147: 35091.12891 | G147: 328910000 | H147: 35091.12891 | I147: 1 | J147: 1 | K147: 35108.38 | L147: 35325.01 | M147: 34993.98 | N147: 35091.13 | O147: 328910000
A148: 133 | B148: 2022-02-04 | C148: 35095.73828 | D148: 35333.55078 | E148: 34799.07812 | F148: 35089.73828 | G148: 349880000 | H148: 35089.73828 | I148: 1 | J148: 1 | K148: 35095.74 | L148: 35333.55 | M148: 34799.08 | N148: 35089.74 | O148: 349880000
A149: 134 | B149: 2022-02-03 | C149: 35520.07812 | D149: 35535.94141 | E149: 35071.05859 | F149: 35111.16016 | G149: 381020000 | H149: 35111.16016 | I149: 1 | J149: 1 | K149: 35520.08 | L149: 35535.94 | M149: 35071.06 | N149: 35111.16 | O149: 381020000
A150: 135 | B150: 2022-02-02 | C150: 35378.19141 | D150: 35679.19922 | E150: 35290.12109 | F150: 35629.32812 | G150: 359540000 | H150: 35629.32812 | I150: 1 | J150: 1 | K150: 35378.19 | L150: 35679.2 | M150: 35290.12 | N150: 35629.33 | O150: 359540000
A151: 136 | B151: 2022-02-01 | C151: 35151.46875 | D151: 35441.08984 | E151: 34977.94922 | F151: 35405.23828 | G151: 386080000 | H151: 35405.23828 | I151: 1 | J151: 1 | K151: 35151.47 | L151: 35441.09 | M151: 34977.95 | N151: 35405.24 | O151: 386080000
A152: 137 | B152: 2022-01-31 | C152: 34691.17188 | D152: 35148.14062 | E152: 34496.10156 | F152: 35131.85938 | G152: 468070000 | H152: 35131.85938 | I152: 1 | J152: 1 | K152: 34691.17 | L152: 35148.14 | M152: 34496.1 | N152: 35131.86 | O152: 468070000
A153: 138 | B153: 2022-01-28 | C153: 34135.23828 | D153: 34731.76953 | E153: 33807.51172 | F153: 34725.46875 | G153: 568440000 | H153: 34725.46875 | I153: 1 | J153: 1 | K153: 34135.24 | L153: 34731.77 | M153: 33807.51 | N153: 34725.47 | O153: 568440000
A154: 139 | B154: 2022-01-27 | C154: 34261.75 | D154: 34773.32031 | E154: 34007.78125 | F154: 34160.78125 | G154: 527780000 | H154: 34160.78125 | I154: 1 | J154: 1 | K154: 34261.75 | L154: 34773.32 | M154: 34007.78 | N154: 34160.78 | O154: 527780000
A155: 140 | B155: 2022-01-26 | C155: 34520.82031 | D155: 34815.67188 | E155: 33876.48047 | F155: 34168.08984 | G155: 546330000 | H155: 34168.08984 | I155: 1 | J155: 1 | K155: 34520.82 | L155: 34815.67 | M155: 33876.48 | N155: 34168.09 | O155: 546330000
A156: 141 | B156: 2022-01-25 | C156: 34186.64062 | D156: 34591.03906 | E156: 33545.51953 | F156: 34297.73047 | G156: 506430000 | H156: 34297.73047 | I156: 1 | J156: 1 | K156: 34186.64 | L156: 34591.04 | M156: 33545.52 | N156: 34297.73 | O156: 506430000
A157: 142 | B157: 2022-01-24 | C157: 34070.60938 | D157: 34420.98828 | E157: 33150.32812 | F157: 34364.5 | G157: 664010000 | H157: 34364.5 | I157: 1 | J157: 1 | K157: 34070.61 | L157: 34420.99 | M157: 33150.33 | N157: 34364.5 | O157: 664010000
A158: 143 | B158: 2022-01-21 | C158: 34701.69141 | D158: 34896.67188 | E158: 34229.55078 | F158: 34265.37109 | G158: 523880000 | H158: 34265.37109 | I158: 1 | J158: 1 | K158: 34701.69 | L158: 34896.67 | M158: 34229.55 | N158: 34265.37 | O158: 523880000
A159: 144 | B159: 2022-01-20 | C159: 35102.66016 | D159: 35490.19922 | E159: 34670.12109 | F159: 34715.39062 | G159: 369070000 | H159: 34715.39062 | I159: 1 | J159: 1 | K159: 35102.66 | L159: 35490.2 | M159: 34670.12 | N159: 34715.39 | O159: 369070000
A160: 145 | B160: 2022-01-19 | C160: 35412.30078 | D160: 35547.82812 | E160: 35015.48828 | F160: 35028.64844 | G160: 393080000 | H160: 35028.64844 | I160: 1 | J160: 1 | K160: 35412.3 | L160: 35547.83 | M160: 35015.49 | N160: 35028.65 | O160: 393080000
A161: 146 | B161: 2022-01-18 | C161: 35661.76172 | D161: 35661.76172 | E161: 35262.01953 | F161: 35368.46875 | G161: 427260000 | H161: 35368.46875 | I161: 1 | J161: 1 | K161: 35661.76 | L161: 35661.76 | M161: 35262.02 | N161: 35368.47 | O161: 427260000
A162: 147 | B162: 2022-01-14 | C162: 35996.42969 | D162: 35996.42969 | E162: 35641.48828 | F162: 35911.80859 | G162: 389200000 | H162: 35911.80859 | I162: 1 | J162: 1 | K162: 35996.43 | L162: 35996.43 | M162: 35641.49 | N162: 35911.81 | O162: 389200000
A163: 148 | B163: 2022-01-13 | C163: 36312.48828 | D163: 36513.87891 | E163: 36044.21875 | F163: 36113.62109 | G163: 343640000 | H163: 36113.62109 | I163: 1 | J163: 1 | K163: 36312.49 | L163: 36513.88 | M163: 36044.22 | N163: 36113.62 | O163: 343640000
A164: 149 | B164: 2022-01-12 | C164: 36336.16016 | D164: 36453.48828 | E164: 36168.14844 | F164: 36290.32031 | G164: 310180000 | H164: 36290.32031 | I164: 1 | J164: 1 | K164: 36336.16 | L164: 36453.49 | M164: 36168.15 | N164: 36290.32 | O164: 310180000
A165: 150 | B165: 2022-01-11 | C165: 36058.85156 | D165: 36271.46875 | E165: 35769.37891 | F165: 36252.01953 | G165: 356850000 | H165: 36252.01953 | I165: 1 | J165: 1 | K165: 36058.85 | L165: 36271.47 | M165: 35769.38 | N165: 36252.02 | O165: 356850000
A166: 151 | B166: 2022-01-10 | C166: 36175.21094 | D166: 36175.21094 | E166: 35639.91016 | F166: 36068.87109 | G166: 430680000 | H166: 36068.87109 | I166: 1 | J166: 1 | K166: 36175.21 | L166: 36175.21 | M166: 35639.91 | N166: 36068.87 | O166: 430680000
A167: 152 | B167: 2022-01-07 | C167: 36249.58984 | D167: 36382.83984 | E167: 36111.53125 | F167: 36231.66016 | G167: 356110000 | H167: 36231.66016 | I167: 1 | J167: 1 | K167: 36249.59 | L167: 36382.84 | M167: 36111.53 | N167: 36231.66 | O167: 356110000
A168: 153 | B168: 2022-01-06 | C168: 36409.05078 | D168: 36464.19141 | E168: 36200.67969 | F168: 36236.46875 | G168: 385890000 | H168: 36236.46875 | I168: 1 | J168: 1 | K168: 36409.05 | L168: 36464.19 | M168: 36200.68 | N168: 36236.47 | O168: 385890000
A169: 154 | B169: 2022-01-05 | C169: 36722.60156 | D169: 36952.64844 | E169: 36400.39062 | F169: 36407.10938 | G169: 462040000 | H169: 36407.10938 | I169: 1 | J169: 1 | K169: 36722.6 | L169: 36952.65 | M169: 36400.39 | N169: 36407.11 | O169: 462040000
A170: 155 | B170: 2022-01-04 | C170: 36636 | D170: 36934.83984 | E170: 36636 | F170: 36799.64844 | G170: 435080000 | H170: 36799.64844 | I170: 1 | J170: 1 | K170: 36636 | L170: 36934.84 | M170: 36636 | N170: 36799.65 | O170: 435080000
A171: 156 | B171: 2022-01-03 | C171: 36321.58984 | D171: 36595.82031 | E171: 36246.44922 | F171: 36585.05859 | G171: 347930000 | H171: 36585.05859 | I171: 1 | J171: 1 | K171: 36321.59 | L171: 36595.82 | M171: 36246.45 | N171: 36585.06 | O171: 347930000
A172: 157 | B172: 2021-12-31 | C172: 36385.85156 | D172: 36484.94141 | E172: 36303.96875 | F172: 36338.30078 | G172: 213200000 | H172: 36338.30078 | I172: 1 | J172: 1 | K172: 36385.85 | L172: 36484.94 | M172: 36303.97 | N172: 36338.3 | O172: 213200000
A173: 158 | B173: 2021-12-30 | C173: 36522.48047 | D173: 36679.44141 | E173: 36372.12891 | F173: 36398.07812 | G173: 205620000 | H173: 36398.07812 | I173: 1 | J173: 1 | K173: 36522.48 | L173: 36679.44 | M173: 36372.13 | N173: 36398.08 | O173: 205620000
A174: 159 | B174: 2021-12-29 | C174: 36421.14062 | D174: 36571.55078 | E174: 36396.19141 | F174: 36488.62891 | G174: 213480000 | H174: 36488.62891 | I174: 1 | J174: 1 | K174: 36421.14 | L174: 36571.55 | M174: 36396.19 | N174: 36488.63 | O174: 213480000
A175: 160 | B175: 2021-12-28 | C175: 36302.98828 | D175: 36527.26172 | E175: 36302.98828 | F175: 36398.21094 | G175: 239090000 | H175: 36398.21094 | I175: 1 | J175: 1 | K175: 36302.99 | L175: 36527.26 | M175: 36302.99 | N175: 36398.21 | O175: 239090000
A176: 161 | B176: 2021-12-27 | C176: 35954.48047 | D176: 36306.60938 | E176: 35954.48047 | F176: 36302.37891 | G176: 244350000 | H176: 36302.37891 | I176: 1 | J176: 1 | K176: 35954.48 | L176: 36306.61 | M176: 35954.48 | N176: 36302.38 | O176: 244350000
A177: 162 | B177: 2021-12-23 | C177: 35782.42188 | D177: 36060.98828 | E177: 35782.42188 | F177: 35950.55859 | G177: 247420000 | H177: 35950.55859 | I177: 1 | J177: 1 | K177: 35782.42 | L177: 36060.99 | M177: 35782.42 | N177: 35950.56 | O177: 247420000
A178: 163 | B178: 2021-12-22 | C178: 35491.71094 | D178: 35764.67188 | E178: 35433.12891 | F178: 35753.89062 | G178: 281930000 | H178: 35753.89062 | I178: 1 | J178: 1 | K178: 35491.71 | L178: 35764.67 | M178: 35433.13 | N178: 35753.89 | O178: 281930000
A179: 164 | B179: 2021-12-21 | C179: 35069.5 | D179: 35508.96094 | E179: 35069.5 | F179: 35492.69922 | G179: 346080000 | H179: 35492.69922 | I179: 1 | J179: 1 | K179: 35069.5 | L179: 35508.96 | M179: 35069.5 | N179: 35492.7 | O179: 346080000
A180: 165 | B180: 2021-12-20 | C180: 35222.12109 | D180: 35222.12109 | E180: 34665.5 | F180: 34932.16016 | G180: 386590000 | H180: 34932.16016 | I180: 1 | J180: 1 | K180: 35222.12 | L180: 35222.12 | M180: 34665.5 | N180: 34932.16 | O180: 386590000
A181: 166 | B181: 2021-12-17 | C181: 35800.10938 | D181: 35800.10938 | E181: 35284.26172 | F181: 35365.44141 | G181: 750480000 | H181: 35365.44141 | I181: 1 | J181: 1 | K181: 35800.11 | L181: 35800.11 | M181: 35284.26 | N181: 35365.44 | O181: 750480000
A182: 167 | B182: 2021-12-16 | C182: 36036.28125 | D182: 36189.82812 | E182: 35778.21094 | F182: 35897.64062 | G182: 473620000 | H182: 35897.64062 | I182: 1 | J182: 1 | K182: 36036.28 | L182: 36189.83 | M182: 35778.21 | N182: 35897.64 | O182: 473620000
A183: 168 | B183: 2021-12-15 | C183: 35549.35156 | D183: 35943.83984 | E183: 35389.30078 | F183: 35927.42969 | G183: 424720000 | H183: 35927.42969 | I183: 1 | J183: 1 | K183: 35549.35 | L183: 35943.84 | M183: 35389.3 | N183: 35927.43 | O183: 424720000
A184: 169 | B184: 2021-12-14 | C184: 35605.73047 | D184: 35779.46875 | E184: 35441.73828 | F184: 35544.17969 | G184: 440900000 | H184: 35544.17969 | I184: 1 | J184: 1 | K184: 35605.73 | L184: 35779.47 | M184: 35441.74 | N184: 35544.18 | O184: 440900000
A185: 170 | B185: 2021-12-13 | C185: 35958.92969 | D185: 35958.92969 | E185: 35609.53125 | F185: 35650.94922 | G185: 441110000 | H185: 35650.94922 | I185: 1 | J185: 1 | K185: 35958.93 | L185: 35958.93 | M185: 35609.53 | N185: 35650.95 | O185: 441110000
A186: 171 | B186: 2021-12-10 | C186: 35830.55078 | D186: 35982.69141 | E186: 35710.42969 | F186: 35970.98828 | G186: 361200000 | H186: 35970.98828 | I186: 1 | J186: 1 | K186: 35830.55 | L186: 35982.69 | M186: 35710.43 | N186: 35970.99 | O186: 361200000
A187: 172 | B187: 2021-12-09 | C187: 35722.26172 | D187: 35864.23828 | E187: 35577.14062 | F187: 35754.69141 | G187: 353020000 | H187: 35754.69141 | I187: 1 | J187: 1 | K187: 35722.26 | L187: 35864.24 | M187: 35577.14 | N187: 35754.69 | O187: 353020000
A188: 173 | B188: 2021-12-08 | C188: 35716.85156 | D188: 35840.51953 | E188: 35602.64844 | F188: 35754.75 | G188: 387650000 | H188: 35754.75 | I188: 1 | J188: 1 | K188: 35716.85 | L188: 35840.52 | M188: 35602.65 | N188: 35754.75 | O188: 387650000
A189: 174 | B189: 2021-12-07 | C189: 35423.98828 | D189: 35819.46875 | E189: 35423.98828 | F189: 35719.42969 | G189: 474940000 | H189: 35719.42969 | I189: 1 | J189: 1 | K189: 35423.99 | L189: 35819.47 | M189: 35423.99 | N189: 35719.43 | O189: 474940000
A190: 175 | B190: 2021-12-06 | C190: 34633.42969 | D190: 35356.75 | E190: 34633.42969 | F190: 35227.03125 | G190: 416720000 | H190: 35227.03125 | I190: 1 | J190: 1 | K190: 34633.43 | L190: 35356.75 | M190: 34633.43 | N190: 35227.03 | O190: 416720000
A191: 176 | B191: 2021-12-03 | C191: 34692.78125 | D191: 34801.30859 | E191: 34264.57031 | F191: 34580.07812 | G191: 439550000 | H191: 34580.07812 | I191: 1 | J191: 1 | K191: 34692.78 | L191: 34801.31 | M191: 34264.57 | N191: 34580.08 | O191: 439550000
A192: 177 | B192: 2021-12-02 | C192: 34076.25 | D192: 34759.64844 | E192: 34076.25 | F192: 34639.78906 | G192: 466900000 | H192: 34639.78906 | I192: 1 | J192: 1 | K192: 34076.25 | L192: 34759.65 | M192: 34076.25 | N192: 34639.79 | O192: 466900000
A193: 178 | B193: 2021-12-01 | C193: 34678.94141 | D193: 35004.64062 | E193: 34006.98047 | F193: 34022.03906 | G193: 496000000 | H193: 34022.03906 | I193: 1 | J193: 1 | K193: 34678.94 | L193: 35004.64 | M193: 34006.98 | N193: 34022.04 | O193: 496000000
A194: 179 | B194: 2021-11-30 | C194: 35056.98828 | D194: 35056.98828 | E194: 34424.44141 | F194: 34483.71875 | G194: 678800000 | H194: 34483.71875 | I194: 1 | J194: 1 | K194: 35056.99 | L194: 35056.99 | M194: 34424.44 | N194: 34483.72 | O194: 678800000
A195: 180 | B195: 2021-11-29 | C195: 35017.71094 | D195: 35287.91016 | E195: 34895.89062 | F195: 35135.94141 | G195: 416040000 | H195: 35135.94141 | I195: 1 | J195: 1 | K195: 35017.71 | L195: 35287.91 | M195: 34895.89 | N195: 35135.94 | O195: 416040000
A196: 181 | B196: 2021-11-26 | C196: 35366.69141 | D196: 35366.69141 | E196: 34749.80078 | F196: 34899.33984 | G196: 324580000 | H196: 34899.33984 | I196: 1 | J196: 1 | K196: 35366.69 | L196: 35366.69 | M196: 34749.8 | N196: 34899.34 | O196: 324580000
A197: 182 | B197: 2021-11-24 | C197: 35752.30859 | D197: 35825.46875 | E197: 35591.03125 | F197: 35804.37891 | G197: 280960000 | H197: 35804.37891 | I197: 1 | J197: 1 | K197: 35752.31 | L197: 35825.47 | M197: 35591.03 | N197: 35804.38 | O197: 280960000
A198: 183 | B198: 2021-11-23 | C198: 35619.92188 | D198: 35841.51953 | E198: 35542.87109 | F198: 35813.80078 | G198: 392520000 | H198: 35813.80078 | I198: 1 | J198: 1 | K198: 35619.92 | L198: 35841.52 | M198: 35542.87 | N198: 35813.8 | O198: 392520000
A199: 184 | B199: 2021-11-22 | C199: 35631.41016 | D199: 35929.66016 | E199: 35615.55078 | F199: 35619.25 | G199: 420810000 | H199: 35619.25 | I199: 1 | J199: 1 | K199: 35631.41 | L199: 35929.66 | M199: 35615.55 | N199: 35619.25 | O199: 420810000
A200: 185 | B200: 2021-11-19 | C200: 35879.08984 | D200: 35879.08984 | E200: 35555.37109 | F200: 35601.98047 | G200: 408840000 | H200: 35601.98047 | I200: 1 | J200: 1 | K200: 35879.09 | L200: 35879.09 | M200: 35555.37 | N200: 35601.98 | O200: 408840000
... 4300 more rows

Sheet CalculationsAndCharts
A1: RsVaEma.xlsm
A2: =" " & InputPriceData!A1 -> Dow Jones Industrial Average (^DJI) -DJI (Daily) | G2: ="Pairs Rotation(" &A18 &", " &#REF! & "), " & $A$2 & " :: " &#REF! -> 
A4: User Charting Controls | E4: Click to Shift Chart One Bar:
A5: Data Control | C5: TRUE
A6: =MIN(InputPriceData!$B$10) -> 7714 | B6: Available Input Data Rows | E6: Earliest: | F6: =OFFSET(InputPriceData!B15,CalculationsAndCharts!A6,0,1,1) -> 1992-01-02
A7: =MAX(A33:A56896) -> 2700 | B7: Available Calculation Rows | E7: Latest: | F7: =OFFSET(InputPriceData!B15,1,0,1,1) -> 2022-08-16
A8: =MIN(AvailableInputRows-DataPanRows,A7) -> 2700 | B8: Logically Available for Calc / Plot | E8: $ Change: | F8: =G33-G34 -> -134.97
A10: Historical Price Windowing Specifications | F10: Click to Shift
A11: 834 | B11: Input Data Offset (Pan) | F11: Points to Plot
A12: 156 | B12: Data Points to Plot (Zoom)
B13: First: | C13: =OFFSET(B32,A12,0,1,1) -> 2018-09-11
B14: ="Last: " & IF(OFFSET(InputPriceData!P15,1+A11,0,1,1)="","",TEXT(OFFSET(InputPriceData!P15,1+A11,0,1,1),"H:MM AM/PM")) -> Last: | C14: =B33 -> 2019-04-25
A15: User Controls | C15: Coefs | F15: Coefs
A16: ="First or only: RsVaEma ("&A$18&","&A$19&","&A$20&")" -> First or only: RsVaEma (20,20,10) | D16: ="Second: RsVaEma ["&D$18&","&D$19&","&D$20&"]" -> Second: RsVaEma [50,50,10]
A18: 20 | B18: Periods :: Mltp1 | C18: =2/(A18+1) -> 0.09523809524 | D18: 50 | E18: Periods | F18: =2/(D18+1) -> 0.03921568627
A19: 20 | B19: Pds | C19: =2/(A19+1) -> 0.09523809524 | D19: 50 | E19: Pds | F19: =2/(D19+1) -> 0.03921568627
A20: 10 | B20: Mltp | D20: 10 | E20: Mltp
B22: ="First or only: EMA ("&A23&") " -> First or only: EMA (20) | E22: ="Second: EMA ["&D23&"] " -> Second: EMA [20]
A23: 20 | B23: EMA | C23: =2/(A23+1) -> 0.09523809524 | D23: 20 | E23: EMA | F23: =2/(D23+1) -> 0.09523809524
A25: Help! I would like to plot data
A26: From | B26: 2018-08-02 | C26: =OFFSET(InputPriceData!$A$15,MATCH(B26,OFFSET(InputPriceData!B15,1,0,InputPriceData!$B$10,1),0),0,1,1)-C27 -> 186 | E26: 77
A27: To | B27: 2019-04-30 | C27: =OFFSET(InputPriceData!$A$15,MATCH(B27,OFFSET(InputPriceData!$B$15,1,0,InputPriceData!$B$10,1),0),0,1,1)-1 -> 831 | E27: =$A$12-$E$26+1 -> 80
H28: Value @ Cursor => | I28: =OFFSET(A32,$E$27,0,1,1)&"(RR)" -> 80(RR) | J28: =OFFSET($B$32,$E$27,0,1,1) -> 2018-12-31 | K28: =TEXT(OFFSET(D32,$E$27,0,1,1),"#,##0.00")&"(o)" -> 23,153.94(o) | L28: =TEXT(OFFSET(E32,$E$27,0,1,1),"#,##0.00")&"(h)" -> 23,333.18(h) | M28: =TEXT(OFFSET(F32,$E$27,0,1,1),"#,##0.00")&"(l)" -> 23,118.30(l) | N28: =TEXT(OFFSET(G32,$E$27,0,1,1),"#,##0.00")&"(c)" -> 23,327.46(c) | O28: =TEXT(OFFSET(C32,$E$27,0,1,1),"#,##0.00,,""M""")&"(v)" -> 288.83M(v)
E29: Cursor ==> | AY29: Work Area For Chart Cursors
B30: =LogicallyAvailableRows -> 2700 | C30: <== Calculation Rel Row Limits ==> | H30: =LogicallyAvailableRows-1 -> 2699 | J30: =H30-A19+1 -> 2680 | O30: =LogicallyAvailableRows-1-MAX(A18:A19)+1 -> 2680 | P30: =LogicallyAvailableRows-A23+1 -> 2681 | Q30: =H30-D19+1 -> 2650 | V30: =LogicallyAvailableRows-1-MAX(D18:D19)+1 -> 2650 | W30: =LogicallyAvailableRows-D23+1 -> 2681
A31: Rel Row | B31: =InputPriceData!$A$1 -> Dow Jones Industrial Average (^DJI) -DJI (Daily) | J31: ="EMA("&A19&") of " -> EMA(20) of | O31: ="1st RsVaEMA ("&$A$18&","&$A$19&","&$A$20&")" -> 1st RsVaEMA (20,20,10) | Q31: ="EMA("&D19&") of " -> EMA(50) of | V31: ="2nd RsVaEMA ["&$D$18&","&$D$19&","&$D$20&"]" -> 2nd RsVaEMA [50,50,10] | AW31: Used To Color Vol Bars | BM31: LoopChart Cursor
B32: Date | C32: Volume | D32: Open | E32: High | F32: Low | G32: Close | H32: Vup | I32: Vdwn | J32: Vup | K32: Vdwn | L32: RS | M32: RS * Mltp | N32: Rate | P32: ="1st EMA("&$A$23&")" -> 1st EMA(20) | Q32: Vup | R32: Vdwn | S32: RS | T32: RS * Mltp | U32: Rate | W32: ="2nd EMA["&$D$23&"]" -> 2nd EMA[20] | AW32: Up Vol | AX32: Dn Vol | AY32: Volume Cursor | AZ32: =MAX(OFFSET(C33,0,0,A12,1)) -> 900510000 | BA32: Price Chart Cursor | BC32: Indicator 01 Cursor | BE32: Indicator 02 Cursor | BG32: Indicator 03 Cursor | BI32: Indicator 04 Cursor | BK32: Price Chart2 Cursor | BM32: =OFFSET($B$32,$E$27,0,1,1) -> 2018-12-31
A33: 1 | B33: =IF($A33>$B$30,NA(),IF($A33>$A$8,"",OFFSET(InputPriceData!$B$15,$A33+$A$11,0,1,1))) -> 2019-04-25 | C33: =IF($A33>$B$30,NA(),IF($A33>$A$8,"",OFFSET(InputPriceData!$G$15,CalculationsAndCharts!$A33+$A$11,IF($C$5,8,0),1,1))) -> 296730000 | D33: =IF($A33>$B$30,NA(),IF($A33>$A$8,"",OFFSET(InputPriceData!$C$15,CalculationsAndCharts!$A33+$A$11,IF($C$5,8,0),1,1))) -> 26426.37 | E33: =IF($A33>$B$30,NA(),IF($A33>$A$8,"",OFFSET(InputPriceData!$D$15,CalculationsAndCharts!$A33+$A$11,IF($C$5,8,0),1,1))) -> 26536.48 | F33: =IF($A33>$B$30,NA(),IF($A33>$A$8,"",OFFSET(InputPriceData!$E$15,CalculationsAndCharts!$A33+$A$11,IF($C$5,8,0),1,1))) -> 26310.28 | G33: =IF($A33>$B$30,NA(),IF($A33>$A$8,"",OFFSET(InputPriceData!$F$15,CalculationsAndCharts!$A33+$A$11,IF($C$5,8,0),1,1))) -> 26462.08 | H33: =IF($A33>$H$30,NA(),IF($G33>$G34,$C33,0)) -> 0 | I33: =IF($A33>$H$30,NA(),IF($G33<$G34,$C33,0)) -> 296730000 | J33: =IF($A33>$J$30,NA(),IF($A33=$J$30,AVERAGE(OFFSET($H33,0,0,$A$19,1)),J34+$C$19*($H33-J34))) -> 137734479.3 | K33: =IF($A33>$J$30,NA(),IF($A33=$J$30,AVERAGE(OFFSET($I33,0,0,$A$19,1)),K34+$C$19*($I33-K34))) -> 149917161.7 | L33: =IF($A33>$J$30,NA(),ABS(J33-K33)/(J33+K33+0.00001)) -> 0.04235220898 | M33: =IF($A33>$J$30,NA(),L33*$A$20) -> 0.4235220898 | N33: =IF($A33>$J$30,NA(),$C$18*(1+M33)) -> 0.1355735324 | O33: =IF($A33>$O$30,NA(),IF($A33=$O$30,$G33,O34+N33*($G33-O34))) -> 26499.50309 | P33: =IF($A33>$P$30,NA(),IF($A33=$P$30,AVERAGE(OFFSET($G33,0,0,$A$23,1)),P34+$C$23*($G33-P34))) -> 26313.20442 | Q33: =IF($A33>$Q$30,NA(),IF($A33=$Q$30,AVERAGE(OFFSET($H33,0,0,$D$19,1)),Q34+$F$19*($H33-Q34))) -> 156435254.8 | R33: =IF($A33>$Q$30,NA(),IF($A33=$Q$30,AVERAGE(OFFSET($I33,0,0,$D$19,1)),R34+$F$19*($I33-R34))) -> 141126080.6 | S33: =IF($A33>$Q$30,NA(),ABS(Q33-R33)/(Q33+R33+0.00001)) -> 0.05144880192 | T33: =IF($A33>$J$30,NA(),S33*$A$20) -> 0.5144880192 | U33: =IF($A33>$Q$30,NA(),$F$18*(1+T33)) -> 0.05939168703 | V33: =IF($A33>$V$30,NA(),IF($A33=$V$30,$G33,V34+U33*($G33-V34))) -> 26287.93309 | W33: =IF($A33>$W$30,NA(),IF($A33=$W$30,AVERAGE(OFFSET($G33,0,0,$D$23,1)),W34+$F$23*($G33-W34))) -> 26313.20442 | AW33: =IF(G33>=D33,C33,NA()) -> 296730000 | AX33: =IF(G33<D33,C33,NA()) ->  | AY33: =$E$27 -> 80 | AZ33: 0 | BA33: =$E$27 -> 80 | BB33: 21712.53 | BC33: =$E$27 -> 80 | BE33: =$E$27 -> 80 | BG33: =$E$27 -> 80 | BI33: =$E$27 -> 80 | BK33: =$E$27 -> 80 | BL33: 1 | BM33: =OFFSET(#REF!,$E$27,0,1,1) ->  | BN33: =OFFSET($H$32,$E$27,0,1,1) -> 288830000
A34: 2 | B34: =IF(A34>$B$30,NA(),IF($A34>$A$8,"",OFFSET(InputPriceData!$B$15,$A34+$A$11,0,1,1))) -> 2019-04-24 | C34: =IF(A34>$B$30,NA(),IF($A34>$A$8,"",OFFSET(InputPriceData!$G$15,CalculationsAndCharts!$A34+$A$11,IF($C$5,8,0),1,1))) -> 283370000 | D34: =IF(A34>$B$30,NA(),IF(A34>$A$8,"",OFFSET(InputPriceData!$C$15,CalculationsAndCharts!$A34+$A$11,IF($C$5,8,0),1,1))) -> 26652.56 | E34: =IF(A34>$B$30,NA(),IF(A34>$A$8,"",OFFSET(InputPriceData!$D$15,CalculationsAndCharts!$A34+$A$11,IF($C$5,8,0),1,1))) -> 26680.58 | F34: =IF(A34>$B$30,NA(),IF(A34>$A$8,"",OFFSET(InputPriceData!$E$15,CalculationsAndCharts!$A34+$A$11,IF($C$5,8,0),1,1))) -> 26582.86 | G34: =IF(A34>$B$30,NA(),IF(A34>$A$8,"",OFFSET(InputPriceData!$F$15,CalculationsAndCharts!$A34+$A$11,IF($C$5,8,0),1,1))) -> 26597.05 | H34: 0 | I34: =IF($A34>$H$30,NA(),IF($G34<$G35,$C34,0)) -> 283370000 | J34: =IF($A34>$J$30,NA(),IF($A34=$J$30,AVERAGE(OFFSET(H34,0,0,$A$19,1)),J35+$C$19*(H34-J35))) -> 152232845.6 | K34: =IF($A34>$J$30,NA(),IF($A34=$J$30,AVERAGE(OFFSET(I34,0,0,$A$19,1)),K35+$C$19*(I34-K35))) -> 134463178.8 | L34: =IF($A34>$J$30,NA(),ABS(J34-K34)/(J34+K34+0.00001)) -> 0.0619808623 | M34: =IF($A34>$J$30,NA(),L34*$A$20) -> 0.619808623 | N34: =IF($A34>$J$30,NA(),$C$18*(1+M34)) -> 0.1542674879 | O34: =IF($A34>$O$30,NA(),IF($A34=$O$30,$G34,O35+N34*($G34-O35))) -> 26505.37239 | P34: =IF($A34>$P$30,NA(),IF($A34=$P$30,AVERAGE(OFFSET($G34,0,0,$A$23,1)),P35+$C$23*($G34-P35))) -> 26297.5333 | Q34: =IF($A34>$Q$30,NA(),IF($A34=$Q$30,AVERAGE(OFFSET($H34,0,0,$D$19,1)),Q35+$F$19*($H34-Q35))) -> 162820367.2 | R34: =IF($A34>$Q$30,NA(),IF($A34=$Q$30,AVERAGE(OFFSET($I34,0,0,$D$19,1)),R35+$F$19*($I34-R35))) -> 134774900.2 | S34: =IF($A34>$Q$30,NA(),ABS(Q34-R34)/(Q34+R34+0.00001)) -> 0.09424029915 | T34: =IF($A34>$J$30,NA(),S34*$A$20) -> 0.9424029915 | U34: =IF($A34>$Q$30,NA(),$F$18*(1+T34)) -> 0.07617266633 | V34: =IF($A34>$V$30,NA(),IF($A34=$V$30,$G34,V35+U34*($G34-V35))) -> 26276.93714 | W34: =IF($A34>$W$30,NA(),IF($A34=$W$30,AVERAGE(OFFSET($G34,0,0,$D$23,1)),W35+$F$23*($G34-W35))) -> 26297.5333 | AX34: 283370000 | AY34: =$E$27 -> 80 | AZ34: =CEILING(AZ32,10^INT(LOG10(AZ32))/8) -> 912500000 | BA34: =$E$27 -> 80 | BB34: 26951.81 | BC34: =$E$27 -> 80 | BD34: 0 | BE34: =$E$27 -> 80 | BF34: 0 | BG34: =$E$27 -> 80 | BH34: 0 | BI34: =$E$27 -> 80 | BJ34: 0 | BK34: =$E$27 -> 80 | BL34: 322901942.9
A35: 3 | B35: =IF(A35>$B$30,NA(),IF($A35>$A$8,"",OFFSET(InputPriceData!$B$15,$A35+$A$11,0,1,1))) -> 2019-04-23 | C35: =IF(A35>$B$30,NA(),IF($A35>$A$8,"",OFFSET(InputPriceData!$G$15,CalculationsAndCharts!$A35+$A$11,IF($C$5,8,0),1,1))) -> 311690000 | D35: =IF(A35>$B$30,NA(),IF(A35>$A$8,"",OFFSET(InputPriceData!$C$15,CalculationsAndCharts!$A35+$A$11,IF($C$5,8,0),1,1))) -> 26513.83 | E35: =IF(A35>$B$30,NA(),IF(A35>$A$8,"",OFFSET(InputPriceData!$D$15,CalculationsAndCharts!$A35+$A$11,IF($C$5,8,0),1,1))) -> 26695.96 | F35: =IF(A35>$B$30,NA(),IF(A35>$A$8,"",OFFSET(InputPriceData!$E$15,CalculationsAndCharts!$A35+$A$11,IF($C$5,8,0),1,1))) -> 26503.56 | G35: =IF(A35>$B$30,NA(),IF(A35>$A$8,"",OFFSET(InputPriceData!$F$15,CalculationsAndCharts!$A35+$A$11,IF($C$5,8,0),1,1))) -> 26656.39 | H35: 311690000 | I35: 0 | J35: 168257355.6 | K35: 118788776.5 | L35: 0.1723366859 | M35: 1.723366859 | N35: 0.2593682722 | O35: 26488.64976 | P35: 26266.00523 | Q35: 169466096.5 | R35: 128709794.1 | S35: 0.1366854387 | T35: 1.366854387 | U35: 0.0928178191 | V35: 26250.54276 | W35: 26266.00523 | AW35: 311690000
A36: 4 | B36: =IF(A36>$B$30,NA(),IF($A36>$A$8,"",OFFSET(InputPriceData!$B$15,$A36+$A$11,0,1,1))) -> 2019-04-22 | C36: =IF(A36>$B$30,NA(),IF($A36>$A$8,"",OFFSET(InputPriceData!$G$15,CalculationsAndCharts!$A36+$A$11,IF($C$5,8,0),1,1))) -> 232570000 | D36: =IF(A36>$B$30,NA(),IF(A36>$A$8,"",OFFSET(InputPriceData!$C$15,CalculationsAndCharts!$A36+$A$11,IF($C$5,8,0),1,1))) -> 26510.77 | E36: =IF(A36>$B$30,NA(),IF(A36>$A$8,"",OFFSET(InputPriceData!$D$15,CalculationsAndCharts!$A36+$A$11,IF($C$5,8,0),1,1))) -> 26553.05 | F36: =IF(A36>$B$30,NA(),IF(A36>$A$8,"",OFFSET(InputPriceData!$E$15,CalculationsAndCharts!$A36+$A$11,IF($C$5,8,0),1,1))) -> 26458.61 | G36: =IF(A36>$B$30,NA(),IF(A36>$A$8,"",OFFSET(InputPriceData!$F$15,CalculationsAndCharts!$A36+$A$11,IF($C$5,8,0),1,1))) -> 26511.05 | H36: 0 | I36: 232570000 | J36: 153159182.5 | K36: 131292858.3 | L36: 0.07687174333 | M36: 0.7687174333 | N36: 0.1684492794 | O36: 26429.90734 | P36: 26224.9121 | Q36: 163661039.2 | R36: 133963255.1 | S36: 0.09978279568 | T36: 0.9978279568 | U36: 0.07834619439 | V36: 26209.01874 | W36: 26224.9121 | AW36: 232570000
A37: 5 | B37: =IF(A37>$B$30,NA(),IF($A37>$A$8,"",OFFSET(InputPriceData!$B$15,$A37+$A$11,0,1,1))) -> 2019-04-18 | C37: =IF(A37>$B$30,NA(),IF($A37>$A$8,"",OFFSET(InputPriceData!$G$15,CalculationsAndCharts!$A37+$A$11,IF($C$5,8,0),1,1))) -> 332850000 | D37: =IF(A37>$B$30,NA(),IF(A37>$A$8,"",OFFSET(InputPriceData!$C$15,CalculationsAndCharts!$A37+$A$11,IF($C$5,8,0),1,1))) -> 26463.37 | E37: =IF(A37>$B$30,NA(),IF(A37>$A$8,"",OFFSET(InputPriceData!$D$15,CalculationsAndCharts!$A37+$A$11,IF($C$5,8,0),1,1))) -> 26602.42 | F37: =IF(A37>$B$30,NA(),IF(A37>$A$8,"",OFFSET(InputPriceData!$E$15,CalculationsAndCharts!$A37+$A$11,IF($C$5,8,0),1,1))) -> 26444.53 | G37: =IF(A37>$B$30,NA(),IF(A37>$A$8,"",OFFSET(InputPriceData!$F$15,CalculationsAndCharts!$A37+$A$11,IF($C$5,8,0),1,1))) -> 26559.54 | H37: 332850000 | I37: 0 | J37: 169281201.7 | K37: 120632106.5 | L37: 0.1678056642 | M37: 1.678056642 | N37: 0.2550530135 | O37: 26413.47007 | P37: 26194.79232 | Q37: 170341081.6 | R37: 129938490 | S37: 0.1345499178 | T37: 1.345499178 | U37: 0.0919803599 | V37: 26183.34424 | W37: 26194.79232 | AW37: 332850000
A38: 6 | B38: =IF(A38>$B$30,NA(),IF($A38>$A$8,"",OFFSET(InputPriceData!$B$15,$A38+$A$11,0,1,1))) -> 2019-04-17 | C38: =IF(A38>$B$30,NA(),IF($A38>$A$8,"",OFFSET(InputPriceData!$G$15,CalculationsAndCharts!$A38+$A$11,IF($C$5,8,0),1,1))) -> 367780000 | D38: =IF(A38>$B$30,NA(),IF(A38>$A$8,"",OFFSET(InputPriceData!$C$15,CalculationsAndCharts!$A38+$A$11,IF($C$5,8,0),1,1))) -> 26468.53 | E38: =IF(A38>$B$30,NA(),IF(A38>$A$8,"",OFFSET(InputPriceData!$D$15,CalculationsAndCharts!$A38+$A$11,IF($C$5,8,0),1,1))) -> 26501.02 | F38: =IF(A38>$B$30,NA(),IF(A38>$A$8,"",OFFSET(InputPriceData!$E$15,CalculationsAndCharts!$A38+$A$11,IF($C$5,8,0),1,1))) -> 26391.86 | G38: =IF(A38>$B$30,NA(),IF(A38>$A$8,"",OFFSET(InputPriceData!$F$15,CalculationsAndCharts!$A38+$A$11,IF($C$5,8,0),1,1))) -> 26449.54 | H38: 0 | I38: 367780000 | J38: 152063433.5 | K38: 133330223 | L38: 0.06563989811 | M38: 0.6563989811 | N38: 0.1577522839 | O38: 26363.45903 | P38: 26156.39782 | Q38: 163708064.6 | R38: 135242101.8 | S38: 0.09521975886 | T38: 0.9521975886 | U38: 0.07655676818 | V38: 26145.23645 | W38: 26156.39782 | AX38: 367780000
A39: 7 | B39: =IF(A39>$B$30,NA(),IF($A39>$A$8,"",OFFSET(InputPriceData!$B$15,$A39+$A$11,0,1,1))) -> 2019-04-16 | C39: =IF(A39>$B$30,NA(),IF($A39>$A$8,"",OFFSET(InputPriceData!$G$15,CalculationsAndCharts!$A39+$A$11,IF($C$5,8,0),1,1))) -> 302340000 | D39: =IF(A39>$B$30,NA(),IF(A39>$A$8,"",OFFSET(InputPriceData!$C$15,CalculationsAndCharts!$A39+$A$11,IF($C$5,8,0),1,1))) -> 26482.19 | E39: =IF(A39>$B$30,NA(),IF(A39>$A$8,"",OFFSET(InputPriceData!$D$15,CalculationsAndCharts!$A39+$A$11,IF($C$5,8,0),1,1))) -> 26530.71 | F39: =IF(A39>$B$30,NA(),IF(A39>$A$8,"",OFFSET(InputPriceData!$E$15,CalculationsAndCharts!$A39+$A$11,IF($C$5,8,0),1,1))) -> 26397.19 | G39: =IF(A39>$B$30,NA(),IF(A39>$A$8,"",OFFSET(InputPriceData!$F$15,CalculationsAndCharts!$A39+$A$11,IF($C$5,8,0),1,1))) -> 26452.66 | H39: 302340000 | I39: 0 | J39: 168070110.7 | K39: 108651299.1 | L39: 0.2147243023 | M39: 2.147243023 | N39: 0.2997374307 | O39: 26347.33614 | P39: 26125.54075 | Q39: 170390026.4 | R39: 125750759 | S39: 0.1507366413 | T39: 1.507366413 | U39: 0.09832809464 | V39: 26120.00859 | W39: 26125.54075 | AX39: 302340000
A40: 8 | B40: =IF(A40>$B$30,NA(),IF($A40>$A$8,"",OFFSET(InputPriceData!$B$15,$A40+$A$11,0,1,1))) -> 2019-04-15 | C40: =IF(A40>$B$30,NA(),IF($A40>$A$8,"",OFFSET(InputPriceData!$G$15,CalculationsAndCharts!$A40+$A$11,IF($C$5,8,0),1,1))) -> 250620000 | D40: =IF(A40>$B$30,NA(),IF(A40>$A$8,"",OFFSET(InputPriceData!$C$15,CalculationsAndCharts!$A40+$A$11,IF($C$5,8,0),1,1))) -> 26407.76 | E40: =IF(A40>$B$30,NA(),IF(A40>$A$8,"",OFFSET(InputPriceData!$D$15,CalculationsAndCharts!$A40+$A$11,IF($C$5,8,0),1,1))) -> 26424.85 | F40: =IF(A40>$B$30,NA(),IF(A40>$A$8,"",OFFSET(InputPriceData!$E$15,CalculationsAndCharts!$A40+$A$11,IF($C$5,8,0),1,1))) -> 26316.42 | G40: =IF(A40>$B$30,NA(),IF(A40>$A$8,"",OFFSET(InputPriceData!$F$15,CalculationsAndCharts!$A40+$A$11,IF($C$5,8,0),1,1))) -> 26384.77 | H40: 0 | I40: 250620000 | J40: 153936438.2 | K40: 120088277.9 | L40: 0.1235222892 | M40: 1.235222892 | N40: 0.2128783707 | O40: 26302.25376 | P40: 26091.10715 | Q40: 165004313.2 | R40: 130883443.1 | S40: 0.1153169382 | T40: 1.153169382 | U40: 0.08443801498 | V40: 26083.73267 | W40: 26091.10715 | AX40: 250620000
A41: 9 | B41: =IF(A41>$B$30,NA(),IF($A41>$A$8,"",OFFSET(InputPriceData!$B$15,$A41+$A$11,0,1,1))) -> 2019-04-12 | C41: =IF(A41>$B$30,NA(),IF($A41>$A$8,"",OFFSET(InputPriceData!$G$15,CalculationsAndCharts!$A41+$A$11,IF($C$5,8,0),1,1))) -> 369910000 | D41: =IF(A41>$B$30,NA(),IF(A41>$A$8,"",OFFSET(InputPriceData!$C$15,CalculationsAndCharts!$A41+$A$11,IF($C$5,8,0),1,1))) -> 26357.79 | E41: =IF(A41>$B$30,NA(),IF(A41>$A$8,"",OFFSET(InputPriceData!$D$15,CalculationsAndCharts!$A41+$A$11,IF($C$5,8,0),1,1))) -> 26436.68 | F41: =IF(A41>$B$30,NA(),IF(A41>$A$8,"",OFFSET(InputPriceData!$E$15,CalculationsAndCharts!$A41+$A$11,IF($C$5,8,0),1,1))) -> 26309.72 | G41: =IF(A41>$B$30,NA(),IF(A41>$A$8,"",OFFSET(InputPriceData!$F$15,CalculationsAndCharts!$A41+$A$11,IF($C$5,8,0),1,1))) -> 26412.3 | H41: 369910000 | I41: 0 | J41: 170140273.7 | K41: 106348096.6 | L41: 0.2307228221 | M41: 2.307228221 | N41: 0.3149741163 | O41: 26279.9371 | P41: 26060.19527 | Q41: 171739183.1 | R41: 125996236.7 | S41: 0.1536362267 | T41: 1.536362267 | U41: 0.09946518693 | V41: 26055.9694 | W41: 26060.19527 | AW41: 369910000
A42: 10 | B42: =IF(A42>$B$30,NA(),IF($A42>$A$8,"",OFFSET(InputPriceData!$B$15,$A42+$A$11,0,1,1))) -> 2019-04-11 | C42: =IF(A42>$B$30,NA(),IF($A42>$A$8,"",OFFSET(InputPriceData!$G$15,CalculationsAndCharts!$A42+$A$11,IF($C$5,8,0),1,1))) -> 211680000 | D42: =IF(A42>$B$30,NA(),IF(A42>$A$8,"",OFFSET(InputPriceData!$C$15,CalculationsAndCharts!$A42+$A$11,IF($C$5,8,0),1,1))) -> 26188.21 | E42: =IF(A42>$B$30,NA(),IF(A42>$A$8,"",OFFSET(InputPriceData!$D$15,CalculationsAndCharts!$A42+$A$11,IF($C$5,8,0),1,1))) -> 26229.88 | F42: =IF(A42>$B$30,NA(),IF(A42>$A$8,"",OFFSET(InputPriceData!$E$15,CalculationsAndCharts!$A42+$A$11,IF($C$5,8,0),1,1))) -> 26062.59 | G42: =IF(A42>$B$30,NA(),IF(A42>$A$8,"",OFFSET(InputPriceData!$F$15,CalculationsAndCharts!$A42+$A$11,IF($C$5,8,0),1,1))) -> 26143.05 | H42: 0 | I42: 211680000 | J42: 149111881.5 | K42: 117542633.1 | L42: 0.1183900765 | M42: 1.183900765 | N42: 0.207990549 | O42: 26219.0768 | P42: 26023.13161 | Q42: 163650578.3 | R42: 131138940.2 | S42: 0.1102876326 | T42: 1.102876326 | U42: 0.08246573829 | V42: 26016.61224 | W42: 26023.13161 | AX42: 211680000
A43: 11 | B43: =IF(A43>$B$30,NA(),IF($A43>$A$8,"",OFFSET(InputPriceData!$B$15,$A43+$A$11,0,1,1))) -> 2019-04-10 | C43: =IF(A43>$B$30,NA(),IF($A43>$A$8,"",OFFSET(InputPriceData!$G$15,CalculationsAndCharts!$A43+$A$11,IF($C$5,8,0),1,1))) -> 203130000 | D43: =IF(A43>$B$30,NA(),IF(A43>$A$8,"",OFFSET(InputPriceData!$C$15,CalculationsAndCharts!$A43+$A$11,IF($C$5,8,0),1,1))) -> 26173.71 | E43: =IF(A43>$B$30,NA(),IF(A43>$A$8,"",OFFSET(InputPriceData!$D$15,CalculationsAndCharts!$A43+$A$11,IF($C$5,8,0),1,1))) -> 26209.49 | F43: =IF(A43>$B$30,NA(),IF(A43>$A$8,"",OFFSET(InputPriceData!$E$15,CalculationsAndCharts!$A43+$A$11,IF($C$5,8,0),1,1))) -> 26101.24 | G43: =IF(A43>$B$30,NA(),IF(A43>$A$8,"",OFFSET(InputPriceData!$F$15,CalculationsAndCharts!$A43+$A$11,IF($C$5,8,0),1,1))) -> 26157.16 | H43: 203130000 | I43: 0 | J43: 164807869 | K43: 107633436.6 | L43: 0.209859633 | M43: 2.09859633 | N43: 0.2951044124 | O43: 26239.04228 | P43: 26010.50862 | Q43: 170330193.8 | R43: 127851550 | S43: 0.1424589018 | T43: 1.424589018 | U43: 0.09508192229 | V43: 26005.24832 | W43: 26010.50862 | AX43: 203130000
A44: 12 | B44: =IF(A44>$B$30,NA(),IF($A44>$A$8,"",OFFSET(InputPriceData!$B$15,$A44+$A$11,0,1,1))) -> 2019-04-09 | C44: =IF(A44>$B$30,NA(),IF($A44>$A$8,"",OFFSET(InputPriceData!$G$15,CalculationsAndCharts!$A44+$A$11,IF($C$5,8,0),1,1))) -> 244410000 | D44: =IF(A44>$B$30,NA(),IF(A44>$A$8,"",OFFSET(InputPriceData!$C$15,CalculationsAndCharts!$A44+$A$11,IF($C$5,8,0),1,1))) -> 26243.54 | E44: =IF(A44>$B$30,NA(),IF(A44>$A$8,"",OFFSET(InputPriceData!$D$15,CalculationsAndCharts!$A44+$A$11,IF($C$5,8,0),1,1))) -> 26246.34 | F44: =IF(A44>$B$30,NA(),IF(A44>$A$8,"",OFFSET(InputPriceData!$E$15,CalculationsAndCharts!$A44+$A$11,IF($C$5,8,0),1,1))) -> 26103.14 | G44: =IF(A44>$B$30,NA(),IF(A44>$A$8,"",OFFSET(InputPriceData!$F$15,CalculationsAndCharts!$A44+$A$11,IF($C$5,8,0),1,1))) -> 26150.58 | H44: 0 | I44: 244410000 | J44: 160773960.5 | K44: 118963272.1 | L44: 0.1494641527 | M44: 1.494641527 | N44: 0.2375849074 | O44: 26273.32229 | P44: 25995.07164 | Q44: 168991426.2 | R44: 133069980.6 | S44: 0.1189210033 | T44: 1.189210033 | U44: 0.08585137384 | V44: 25989.2866 | W44: 25995.07164 | AX44: 244410000
A45: 13 | B45: =IF(A45>$B$30,NA(),IF($A45>$A$8,"",OFFSET(InputPriceData!$B$15,$A45+$A$11,0,1,1))) -> 2019-04-08 | C45: =IF(A45>$B$30,NA(),IF($A45>$A$8,"",OFFSET(InputPriceData!$G$15,CalculationsAndCharts!$A45+$A$11,IF($C$5,8,0),1,1))) -> 229380000 | D45: =IF(A45>$B$30,NA(),IF(A45>$A$8,"",OFFSET(InputPriceData!$C$15,CalculationsAndCharts!$A45+$A$11,IF($C$5,8,0),1,1))) -> 26312.67 | E45: =IF(A45>$B$30,NA(),IF(A45>$A$8,"",OFFSET(InputPriceData!$D$15,CalculationsAndCharts!$A45+$A$11,IF($C$5,8,0),1,1))) -> 26344.65 | F45: =IF(A45>$B$30,NA(),IF(A45>$A$8,"",OFFSET(InputPriceData!$E$15,CalculationsAndCharts!$A45+$A$11,IF($C$5,8,0),1,1))) -> 26246.03 | G45: =IF(A45>$B$30,NA(),IF(A45>$A$8,"",OFFSET(InputPriceData!$F$15,CalculationsAndCharts!$A45+$A$11,IF($C$5,8,0),1,1))) -> 26341.02 | H45: 0 | I45: 229380000 | J45: 177697535.3 | K45: 105758353.3 | L45: 0.2537932174 | M45: 2.537932174 | N45: 0.3369459214 | O45: 26311.57142 | P45: 25978.70233 | Q45: 175889035.4 | R45: 128525490 | S45: 0.1555889795 | T45: 1.555889795 | U45: 0.1002309724 | V45: 25974.13889 | W45: 25978.70233 | AW45: 229380000
A46: 14 | B46: =IF(A46>$B$30,NA(),IF($A46>$A$8,"",OFFSET(InputPriceData!$B$15,$A46+$A$11,0,1,1))) -> 2019-04-05 | C46: =IF(A46>$B$30,NA(),IF($A46>$A$8,"",OFFSET(InputPriceData!$G$15,CalculationsAndCharts!$A46+$A$11,IF($C$5,8,0),1,1))) -> 229550000 | D46: =IF(A46>$B$30,NA(),IF(A46>$A$8,"",OFFSET(InputPriceData!$C$15,CalculationsAndCharts!$A46+$A$11,IF($C$5,8,0),1,1))) -> 26427.56 | E46: =IF(A46>$B$30,NA(),IF(A46>$A$8,"",OFFSET(InputPriceData!$D$15,CalculationsAndCharts!$A46+$A$11,IF($C$5,8,0),1,1))) -> 26487.57 | F46: =IF(A46>$B$30,NA(),IF(A46>$A$8,"",OFFSET(InputPriceData!$E$15,CalculationsAndCharts!$A46+$A$11,IF($C$5,8,0),1,1))) -> 26370.82 | G46: =IF(A46>$B$30,NA(),IF(A46>$A$8,"",OFFSET(InputPriceData!$F$15,CalculationsAndCharts!$A46+$A$11,IF($C$5,8,0),1,1))) -> 26424.99 | H46: 229550000 | I46: 0 | J46: 196402539 | K46: 92745548.41 | L46: 0.3584910124 | M46: 3.584910124 | N46: 0.4366581071 | O46: 26296.60645 | P46: 25940.56363 | Q46: 183068179.7 | R46: 124408979.4 | S46: 0.1907757976 | T46: 1.907757976 | U46: 0.1140297246 | V46: 25933.26967 | W46: 25940.56363 | AX46: 229550000
A47: 15 | B47: =IF(A47>$B$30,NA(),IF($A47>$A$8,"",OFFSET(InputPriceData!$B$15,$A47+$A$11,0,1,1))) -> 2019-04-04 | C47: =IF(A47>$B$30,NA(),IF($A47>$A$8,"",OFFSET(InputPriceData!$G$15,CalculationsAndCharts!$A47+$A$11,IF($C$5,8,0),1,1))) -> 233040000 | D47: =IF(A47>$B$30,NA(),IF(A47>$A$8,"",OFFSET(InputPriceData!$C$15,CalculationsAndCharts!$A47+$A$11,IF($C$5,8,0),1,1))) -> 26213.42 | E47: =IF(A47>$B$30,NA(),IF(A47>$A$8,"",OFFSET(InputPriceData!$D$15,CalculationsAndCharts!$A47+$A$11,IF($C$5,8,0),1,1))) -> 26398.9 | F47: =IF(A47>$B$30,NA(),IF(A47>$A$8,"",OFFSET(InputPriceData!$E$15,CalculationsAndCharts!$A47+$A$11,IF($C$5,8,0),1,1))) -> 26212.78 | G47: =IF(A47>$B$30,NA(),IF(A47>$A$8,"",OFFSET(InputPriceData!$F$15,CalculationsAndCharts!$A47+$A$11,IF($C$5,8,0),1,1))) -> 26384.63 | H47: 233040000 | I47: 0 | J47: 192913332.6 | K47: 102508237.7 | L47: 0.3060206294 | M47: 3.060206294 | N47: 0.3866863137 | O47: 26197.09368 | P47: 25889.57138 | Q47: 181170962.5 | R47: 129486896.9 | S47: 0.1663697345 | T47: 1.663697345 | U47: 0.1044587194 | V47: 25869.9823 | W47: 25889.57138 | AW47: 233040000
A48: 16 | B48: =IF(A48>$B$30,NA(),IF($A48>$A$8,"",OFFSET(InputPriceData!$B$15,$A48+$A$11,0,1,1))) -> 2019-04-03 | C48: =IF(A48>$B$30,NA(),IF($A48>$A$8,"",OFFSET(InputPriceData!$G$15,CalculationsAndCharts!$A48+$A$11,IF($C$5,8,0),1,1))) -> 271980000 | D48: =IF(A48>$B$30,NA(),IF(A48>$A$8,"",OFFSET(InputPriceData!$C$15,CalculationsAndCharts!$A48+$A$11,IF($C$5,8,0),1,1))) -> 26238.03 | E48: =IF(A48>$B$30,NA(),IF(A48>$A$8,"",OFFSET(InputPriceData!$D$15,CalculationsAndCharts!$A48+$A$11,IF($C$5,8,0),1,1))) -> 26282.17 | F48: =IF(A48>$B$30,NA(),IF(A48>$A$8,"",OFFSET(InputPriceData!$E$15,CalculationsAndCharts!$A48+$A$11,IF($C$5,8,0),1,1))) -> 26138.47 | G48: =IF(A48>$B$30,NA(),IF(A48>$A$8,"",OFFSET(InputPriceData!$F$15,CalculationsAndCharts!$A48+$A$11,IF($C$5,8,0),1,1))) -> 26218.13 | H48: 271980000 | I48: 0 | J48: 188689472.9 | K48: 113298578.5 | L48: 0.2496486003 | M48: 2.496486003 | N48: 0.332998667 | O48: 26078.85446 | P48: 25837.45995 | Q48: 179053859 | R48: 134772076.4 | S48: 0.1411030051 | T48: 1.411030051 | U48: 0.09455019808 | V48: 25809.95219 | W48: 25837.45995 | AX48: 271980000
A49: 17 | B49: =IF(A49>$B$30,NA(),IF($A49>$A$8,"",OFFSET(InputPriceData!$B$15,$A49+$A$11,0,1,1))) -> 2019-04-02 | C49: =IF(A49>$B$30,NA(),IF($A49>$A$8,"",OFFSET(InputPriceData!$G$15,CalculationsAndCharts!$A49+$A$11,IF($C$5,8,0),1,1))) -> 250940000 | D49: =IF(A49>$B$30,NA(),IF(A49>$A$8,"",OFFSET(InputPriceData!$C$15,CalculationsAndCharts!$A49+$A$11,IF($C$5,8,0),1,1))) -> 26213.55 | E49: =IF(A49>$B$30,NA(),IF(A49>$A$8,"",OFFSET(InputPriceData!$D$15,CalculationsAndCharts!$A49+$A$11,IF($C$5,8,0),1,1))) -> 26221.24 | F49: =IF(A49>$B$30,NA(),IF(A49>$A$8,"",OFFSET(InputPriceData!$E$15,CalculationsAndCharts!$A49+$A$11,IF($C$5,8,0),1,1))) -> 26122.31 | G49: =IF(A49>$B$30,NA(),IF(A49>$A$8,"",OFFSET(InputPriceData!$F$15,CalculationsAndCharts!$A49+$A$11,IF($C$5,8,0),1,1))) -> 26179.13 | H49: 0 | I49: 250940000 | J49: 179922049 | K49: 125224744.7 | L49: 0.1792491529 | M49: 1.792491529 | N49: 0.2659515742 | O49: 26009.32151 | P49: 25797.38942 | Q49: 175260955.3 | R49: 140272977.5 | S49: 0.1108849925 | T49: 1.108849925 | U49: 0.08269999706 | V49: 25767.32885 | W49: 25797.38942 | AX49: 250940000
A50: 18 | B50: =IF(A50>$B$30,NA(),IF($A50>$A$8,"",OFFSET(InputPriceData!$B$15,$A50+$A$11,0,1,1))) -> 2019-04-01 | C50: =IF(A50>$B$30,NA(),IF($A50>$A$8,"",OFFSET(InputPriceData!$G$15,CalculationsAndCharts!$A50+$A$11,IF($C$5,8,0),1,1))) -> 295570000 | D50: =IF(A50>$B$30,NA(),IF(A50>$A$8,"",OFFSET(InputPriceData!$C$15,CalculationsAndCharts!$A50+$A$11,IF($C$5,8,0),1,1))) -> 26075.1 | E50: =IF(A50>$B$30,NA(),IF(A50>$A$8,"",OFFSET(InputPriceData!$D$15,CalculationsAndCharts!$A50+$A$11,IF($C$5,8,0),1,1))) -> 26280.9 | F50: =IF(A50>$B$30,NA(),IF(A50>$A$8,"",OFFSET(InputPriceData!$E$15,CalculationsAndCharts!$A50+$A$11,IF($C$5,8,0),1,1))) -> 26071.69 | G50: =IF(A50>$B$30,NA(),IF(A50>$A$8,"",OFFSET(InputPriceData!$F$15,CalculationsAndCharts!$A50+$A$11,IF($C$5,8,0),1,1))) -> 26258.42 | H50: 295570000 | I50: 0 | J50: 198861212 | K50: 111991559.9 | L50: 0.2794559352 | M50: 2.794559352 | N50: 0.361386605 | O50: 25947.79855 | P50: 25757.2062 | Q50: 182414463.6 | R50: 135755956.2 | S50: 0.1466462769 | T50: 1.466462769 | U50: 0.09672403014 | V50: 25730.20256 | W50: 25757.2062 | AW50: 295570000
A51: 19 | B51: =IF(A51>$B$30,NA(),IF($A51>$A$8,"",OFFSET(InputPriceData!$B$15,$A51+$A$11,0,1,1))) -> 2019-03-29 | C51: =IF(A51>$B$30,NA(),IF($A51>$A$8,"",OFFSET(InputPriceData!$G$15,CalculationsAndCharts!$A51+$A$11,IF($C$5,8,0),1,1))) -> 300620000 | D51: =IF(A51>$B$30,NA(),IF(A51>$A$8,"",OFFSET(InputPriceData!$C$15,CalculationsAndCharts!$A51+$A$11,IF($C$5,8,0),1,1))) -> 25827.31 | E51: =IF(A51>$B$30,NA(),IF(A51>$A$8,"",OFFSET(InputPriceData!$D$15,CalculationsAndCharts!$A51+$A$11,IF($C$5,8,0),1,1))) -> 25949.32 | F51: =IF(A51>$B$30,NA(),IF(A51>$A$8,"",OFFSET(InputPriceData!$E$15,CalculationsAndCharts!$A51+$A$11,IF($C$5,8,0),1,1))) -> 25771.67 | G51: =IF(A51>$B$30,NA(),IF(A51>$A$8,"",OFFSET(InputPriceData!$F$15,CalculationsAndCharts!$A51+$A$11,IF($C$5,8,0),1,1))) -> 25928.68 | H51: 300620000 | I51: 0 | J51: 188681339.6 | K51: 123780145.2 | L51: 0.2077094221 | M51: 2.077094221 | N51: 0.2930565924 | O51: 25772.02016 | P51: 25704.44685 | Q51: 177795870.3 | R51: 141297015.6 | S51: 0.1143831666 | T51: 1.143831666 | U51: 0.08407183002 | V51: 25673.64031 | W51: 25704.44685 | AW51: 300620000
A52: 20 | B52: =IF(A52>$B$30,NA(),IF($A52>$A$8,"",OFFSET(InputPriceData!$B$15,$A52+$A$11,0,1,1))) -> 2019-03-28 | C52: =IF(A52>$B$30,NA(),IF($A52>$A$8,"",OFFSET(InputPriceData!$G$15,CalculationsAndCharts!$A52+$A$11,IF($C$5,8,0),1,1))) -> 237170000 | D52: =IF(A52>$B$30,NA(),IF(A52>$A$8,"",OFFSET(InputPriceData!$C$15,CalculationsAndCharts!$A52+$A$11,IF($C$5,8,0),1,1))) -> 25693.32 | E52: =IF(A52>$B$30,NA(),IF(A52>$A$8,"",OFFSET(InputPriceData!$D$15,CalculationsAndCharts!$A52+$A$11,IF($C$5,8,0),1,1))) -> 25743.41 | F52: =IF(A52>$B$30,NA(),IF(A52>$A$8,"",OFFSET(InputPriceData!$E$15,CalculationsAndCharts!$A52+$A$11,IF($C$5,8,0),1,1))) -> 25576.69 | G52: =IF(A52>$B$30,NA(),IF(A52>$A$8,"",OFFSET(InputPriceData!$F$15,CalculationsAndCharts!$A52+$A$11,IF($C$5,8,0),1,1))) -> 25717.46 | H52: 237170000 | I52: 0 | J52: 176898322.7 | K52: 136809634.1 | L52: 0.1277898367 | M52: 1.277898367 | N52: 0.2169427016 | O52: 25707.07833 | P52: 25680.84336 | Q52: 172782640.5 | R52: 147064240.7 | S52: 0.08040847453 | T52: 0.8040847453 | U52: 0.07074842139 | V52: 25650.23055 | W52: 25680.84336 | AW52: 237170000
A53: 21 | B53: =IF(A53>$B$30,NA(),IF($A53>$A$8,"",OFFSET(InputPriceData!$B$15,$A53+$A$11,0,1,1))) -> 2019-03-27 | C53: =IF(A53>$B$30,NA(),IF($A53>$A$8,"",OFFSET(InputPriceData!$G$15,CalculationsAndCharts!$A53+$A$11,IF($C$5,8,0),1,1))) -> 270340000 | D53: =IF(A53>$B$30,NA(),IF(A53>$A$8,"",OFFSET(InputPriceData!$C$15,CalculationsAndCharts!$A53+$A$11,IF($C$5,8,0),1,1))) -> 25676.34 | E53: =IF(A53>$B$30,NA(),IF(A53>$A$8,"",OFFSET(InputPriceData!$D$15,CalculationsAndCharts!$A53+$A$11,IF($C$5,8,0),1,1))) -> 25758.17 | F53: =IF(A53>$B$30,NA(),IF(A53>$A$8,"",OFFSET(InputPriceData!$E$15,CalculationsAndCharts!$A53+$A$11,IF($C$5,8,0),1,1))) -> 25425.27 | G53: =IF(A53>$B$30,NA(),IF(A53>$A$8,"",OFFSET(InputPriceData!$F$15,CalculationsAndCharts!$A53+$A$11,IF($C$5,8,0),1,1))) -> 25625.59 | H53: 0 | I53: 270340000 | J53: 170553935.6 | K53: 151210648.3 | L53: 0.06011627238 | M53: 0.6011627238 | N53: 0.152491688 | O53: 25704.20214 | P53: 25676.98898 | Q53: 170154585 | R53: 153066862.8 | S53: 0.05286691945 | T53: 0.5286691945 | U53: 0.05994781155 | V53: 25645.11205 | W53: 25676.98898 | AX53: 270340000
A54: 22 | B54: =IF(A54>$B$30,NA(),IF($A54>$A$8,"",OFFSET(InputPriceData!$B$15,$A54+$A$11,0,1,1))) -> 2019-03-26 | C54: =IF(A54>$B$30,NA(),IF($A54>$A$8,"",OFFSET(InputPriceData!$G$15,CalculationsAndCharts!$A54+$A$11,IF($C$5,8,0),1,1))) -> 305110000 | D54: =IF(A54>$B$30,NA(),IF(A54>$A$8,"",OFFSET(InputPriceData!$C$15,CalculationsAndCharts!$A54+$A$11,IF($C$5,8,0),1,1))) -> 25649.56 | E54: =IF(A54>$B$30,NA(),IF(A54>$A$8,"",OFFSET(InputPriceData!$D$15,CalculationsAndCharts!$A54+$A$11,IF($C$5,8,0),1,1))) -> 25796.29 | F54: =IF(A54>$B$30,NA(),IF(A54>$A$8,"",OFFSET(InputPriceData!$E$15,CalculationsAndCharts!$A54+$A$11,IF($C$5,8,0),1,1))) -> 25544.78 | G54: =IF(A54>$B$30,NA(),IF(A54>$A$8,"",OFFSET(InputPriceData!$F$15,CalculationsAndCharts!$A54+$A$11,IF($C$5,8,0),1,1))) -> 25657.73 | H54: 305110000 | I54: 0 | J54: 188506981.5 | K54: 138670716.5 | L54: 0.1523217056 | M54: 1.523217056 | N54: 0.2403063863 | O54: 25718.34677 | P54: 25682.3994 | Q54: 177099670.1 | R54: 148280204.1 | S54: 0.08857175348 | T54: 0.8857175348 | U54: 0.07394970725 | V54: 25646.35698 | W54: 25682.3994 | AW54: 305110000
A55: 23 | B55: =IF(A55>$B$30,NA(),IF($A55>$A$8,"",OFFSET(InputPriceData!$B$15,$A55+$A$11,0,1,1))) -> 2019-03-25 | C55: =IF(A55>$B$30,NA(),IF($A55>$A$8,"",OFFSET(InputPriceData!$G$15,CalculationsAndCharts!$A55+$A$11,IF($C$5,8,0),1,1))) -> 303120000 | D55: =IF(A55>$B$30,NA(),IF(A55>$A$8,"",OFFSET(InputPriceData!$C$15,CalculationsAndCharts!$A55+$A$11,IF($C$5,8,0),1,1))) -> 25490.72 | E55: =IF(A55>$B$30,NA(),IF(A55>$A$8,"",OFFSET(InputPriceData!$D$15,CalculationsAndCharts!$A55+$A$11,IF($C$5,8,0),1,1))) -> 25603.27 | F55: =IF(A55>$B$30,NA(),IF(A55>$A$8,"",OFFSET(InputPriceData!$E$15,CalculationsAndCharts!$A55+$A$11,IF($C$5,8,0),1,1))) -> 25372.26 | G55: =IF(A55>$B$30,NA(),IF(A55>$A$8,"",OFFSET(InputPriceData!$F$15,CalculationsAndCharts!$A55+$A$11,IF($C$5,8,0),1,1))) -> 25516.83 | H55: 303120000 | I55: 0 | J55: 176232979.5 | K55: 153267634 | L55: 0.06969742867 | M55: 0.6969742867 | N55: 0.1616165987 | O55: 25737.52108 | P55: 25684.99618 | Q55: 171874758.7 | R55: 154332457.4 | S55: 0.05377655826 | T55: 0.5377655826 | U55: 0.06030453265 | V55: 25645.44879 | W55: 25684.99618 | AW55: 303120000
A56: 24 | B56: =IF(A56>$B$30,NA(),IF($A56>$A$8,"",OFFSET(InputPriceData!$B$15,$A56+$A$11,0,1,1))) -> 2019-03-22 | C56: =IF(A56>$B$30,NA(),IF($A56>$A$8,"",OFFSET(InputPriceData!$G$15,CalculationsAndCharts!$A56+$A$11,IF($C$5,8,0),1,1))) -> 386510000 | D56: =IF(A56>$B$30,NA(),IF(A56>$A$8,"",OFFSET(InputPriceData!$C$15,CalculationsAndCharts!$A56+$A$11,IF($C$5,8,0),1,1))) -> 25844.65 | E56: =IF(A56>$B$30,NA(),IF(A56>$A$8,"",OFFSET(InputPriceData!$D$15,CalculationsAndCharts!$A56+$A$11,IF($C$5,8,0),1,1))) -> 25877.01 | F56: =IF(A56>$B$30,NA(),IF(A56>$A$8,"",OFFSET(InputPriceData!$E$15,CalculationsAndCharts!$A56+$A$11,IF($C$5,8,0),1,1))) -> 25501.45 | G56: =IF(A56>$B$30,NA(),IF(A56>$A$8,"",OFFSET(InputPriceData!$F$15,CalculationsAndCharts!$A56+$A$11,IF($C$5,8,0),1,1))) -> 25502.32 | H56: 0 | I56: 386510000 | J56: 162876451.1 | K56: 169401069.2 | L56: 0.01963605035 | M56: 0.1963605035 | N56: 0.1139390956 | O56: 25780.06408 | P56: 25702.69788 | Q56: 166517810.1 | R56: 160631741.3 | S56: 0.01799198176 | T56: 0.1799198176 | U56: 0.0462713654 | V56: 25653.70284 | W56: 25702.69788 | AX56: 386510000
A57: 25 | B57: =IF(A57>$B$30,NA(),IF($A57>$A$8,"",OFFSET(InputPriceData!$B$15,$A57+$A$11,0,1,1))) -> 2019-03-21 | C57: =IF(A57>$B$30,NA(),IF($A57>$A$8,"",OFFSET(InputPriceData!$G$15,CalculationsAndCharts!$A57+$A$11,IF($C$5,8,0),1,1))) -> 335250000 | D57: =IF(A57>$B$30,NA(),IF(A57>$A$8,"",OFFSET(InputPriceData!$C$15,CalculationsAndCharts!$A57+$A$11,IF($C$5,8,0),1,1))) -> 25688.44 | E57: =IF(A57>$B$30,NA(),IF(A57>$A$8,"",OFFSET(InputPriceData!$D$15,CalculationsAndCharts!$A57+$A$11,IF($C$5,8,0),1,1))) -> 26009.9 | F57: =IF(A57>$B$30,NA(),IF(A57>$A$8,"",OFFSET(InputPriceData!$E$15,CalculationsAndCharts!$A57+$A$11,IF($C$5,8,0),1,1))) -> 25657.78 | G57: =IF(A57>$B$30,NA(),IF(A57>$A$8,"",OFFSET(InputPriceData!$F$15,CalculationsAndCharts!$A57+$A$11,IF($C$5,8,0),1,1))) -> 25962.51 | H57: 335250000 | I57: 0 | J57: 180021340.7 | K57: 146547497.5 | L57: 0.102501645 | M57: 1.02501645 | N57: 0.1928587096 | O57: 25815.77935 | P57: 25723.79029 | Q57: 173314455.4 | R57: 151412220.6 | S57: 0.06744821554 | T57: 0.6744821554 | U57: 0.06566596688 | V57: 25661.04738 | W57: 25723.79029 | AW57: 335250000
A58: 26 | B58: =IF(A58>$B$30,NA(),IF($A58>$A$8,"",OFFSET(InputPriceData!$B$15,$A58+$A$11,0,1,1))) -> 2019-03-20 | C58: =IF(A58>$B$30,NA(),IF($A58>$A$8,"",OFFSET(InputPriceData!$G$15,CalculationsAndCharts!$A58+$A$11,IF($C$5,8,0),1,1))) -> 321980000 | D58: =IF(A58>$B$30,NA(),IF(A58>$A$8,"",OFFSET(InputPriceData!$C$15,CalculationsAndCharts!$A58+$A$11,IF($C$5,8,0),1,1))) -> 25867.79 | E58: =IF(A58>$B$30,NA(),IF(A58>$A$8,"",OFFSET(InputPriceData!$D$15,CalculationsAndCharts!$A58+$A$11,IF($C$5,8,0),1,1))) -> 25929.52 | F58: =IF(A58>$B$30,NA(),IF(A58>$A$8,"",OFFSET(InputPriceData!$E$15,CalculationsAndCharts!$A58+$A$11,IF($C$5,8,0),1,1))) -> 25670.63 | G58: =IF(A58>$B$30,NA(),IF(A58>$A$8,"",OFFSET(InputPriceData!$F$15,CalculationsAndCharts!$A58+$A$11,IF($C$5,8,0),1,1))) -> 25745.67 | H58: 0 | I58: 321980000 | J58: 163681481.8 | K58: 161973549.9 | L58: 0.005244604615 | M58: 0.05244604615 | N58: 0.1002329568 | O58: 25780.71946 | P58: 25698.6619 | Q58: 166704841.3 | R58: 157592311.2 | S58: 0.02809932206 | T58: 0.2809932206 | U58: 0.05023502826 | V58: 25639.86027 | W58: 25698.6619 | AX58: 321980000
A59: 27 | B59: =IF(A59>$B$30,NA(),IF($A59>$A$8,"",OFFSET(InputPriceData!$B$15,$A59+$A$11,0,1,1))) -> 2019-03-19 | C59: =IF(A59>$B$30,NA(),IF($A59>$A$8,"",OFFSET(InputPriceData!$G$15,CalculationsAndCharts!$A59+$A$11,IF($C$5,8,0),1,1))) -> 342250000 | D59: =IF(A59>$B$30,NA(),IF(A59>$A$8,"",OFFSET(InputPriceData!$C$15,CalculationsAndCharts!$A59+$A$11,IF($C$5,8,0),1,1))) -> 25987.87 | E59: =IF(A59>$B$30,NA(),IF(A59>$A$8,"",OFFSET(InputPriceData!$D$15,CalculationsAndCharts!$A59+$A$11,IF($C$5,8,0),1,1))) -> 26109.68 | F59: =IF(A59>$B$30,NA(),IF(A59>$A$8,"",OFFSET(InputPriceData!$E$15,CalculationsAndCharts!$A59+$A$11,IF($C$5,8,0),1,1))) -> 25814.92 | G59: =IF(A59>$B$30,NA(),IF(A59>$A$8,"",OFFSET(InputPriceData!$F$15,CalculationsAndCharts!$A59+$A$11,IF($C$5,8,0),1,1))) -> 25887.38 | H59: 0 | I59: 342250000 | J59: 180911111.4 | K59: 145130765.7 | L59: 0.1097415647 | M59: 1.097415647 | N59: 0.1997538712 | O59: 25784.62393 | P59: 25693.71368 | Q59: 173509120.6 | R59: 150882609.6 | S59: 0.06975057885 | T59: 0.6975057885 | U59: 0.06656885445 | V59: 25634.26378 | W59: 25693.71368 | AX59: 342250000
A60: 28 | B60: =IF(A60>$B$30,NA(),IF($A60>$A$8,"",OFFSET(InputPriceData!$B$15,$A60+$A$11,0,1,1))) -> 2019-03-18 | C60: =IF(A60>$B$30,NA(),IF($A60>$A$8,"",OFFSET(InputPriceData!$G$15,CalculationsAndCharts!$A60+$A$11,IF($C$5,8,0),1,1))) -> 303170000 | D60: =IF(A60>$B$30,NA(),IF(A60>$A$8,"",OFFSET(InputPriceData!$C$15,CalculationsAndCharts!$A60+$A$11,IF($C$5,8,0),1,1))) -> 25801.88 | E60: =IF(A60>$B$30,NA(),IF(A60>$A$8,"",OFFSET(InputPriceData!$D$15,CalculationsAndCharts!$A60+$A$11,IF($C$5,8,0),1,1))) -> 25924.77 | F60: =IF(A60>$B$30,NA(),IF(A60>$A$8,"",OFFSET(InputPriceData!$E$15,CalculationsAndCharts!$A60+$A$11,IF($C$5,8,0),1,1))) -> 25785.66 | G60: =IF(A60>$B$30,NA(),IF(A60>$A$8,"",OFFSET(InputPriceData!$F$15,CalculationsAndCharts!$A60+$A$11,IF($C$5,8,0),1,1))) -> 25914.1 | H60: 303170000 | I60: 0 | J60: 199954386.3 | K60: 124381372.6 | L60: 0.2330085773 | M60: 2.330085773 | N60: 0.317151026 | O60: 25758.97442 | P60: 25673.32775 | Q60: 180591125.5 | R60: 143071695.7 | S60: 0.1159213456 | T60: 1.159213456 | U60: 0.0846750375 | V60: 25616.21246 | W60: 25673.32775 | AW60: 303170000
A61: 29 | B61: =IF(A61>$B$30,NA(),IF($A61>$A$8,"",OFFSET(InputPriceData!$B$15,$A61+$A$11,0,1,1))) -> 2019-03-15 | C61: =IF(A61>$B$30,NA(),IF($A61>$A$8,"",OFFSET(InputPriceData!$G$15,CalculationsAndCharts!$A61+$A$11,IF($C$5,8,0),1,1))) -> 616910000 | D61: =IF(A61>$B$30,NA(),IF(A61>$A$8,"",OFFSET(InputPriceData!$C$15,CalculationsAndCharts!$A61+$A$11,IF($C$5,8,0),1,1))) -> 25720.96 | E61: =IF(A61>$B$30,NA(),IF(A61>$A$8,"",OFFSET(InputPriceData!$D$15,CalculationsAndCharts!$A61+$A$11,IF($C$5,8,0),1,1))) -> 25927.91 | F61: =IF(A61>$B$30,NA(),IF(A61>$A$8,"",OFFSET(InputPriceData!$E$15,CalculationsAndCharts!$A61+$A$11,IF($C$5,8,0),1,1))) -> 25649.7 | G61: =IF(A61>$B$30,NA(),IF(A61>$A$8,"",OFFSET(InputPriceData!$F$15,CalculationsAndCharts!$A61+$A$11,IF($C$5,8,0),1,1))) -> 25848.87 | H61: 616910000 | I61: 0 | J61: 189089584.9 | K61: 137474148.7 | L61: 0.1580562412 | M61: 1.580562412 | N61: 0.2457678488 | O61: 25686.92593 | P61: 25647.9833 | Q61: 175587906.1 | R61: 148911356.8 | S61: 0.08220835115 | T61: 0.8220835115 | U61: 0.07145425535 | V61: 25588.65543 | W61: 25647.9833 | AW61: 616910000
A62: 30 | B62: =IF(A62>$B$30,NA(),IF($A62>$A$8,"",OFFSET(InputPriceData!$B$15,$A62+$A$11,0,1,1))) -> 2019-03-14 | C62: =IF(A62>$B$30,NA(),IF($A62>$A$8,"",OFFSET(InputPriceData!$G$15,CalculationsAndCharts!$A62+$A$11,IF($C$5,8,0),1,1))) -> 302790000 | D62: =IF(A62>$B$30,NA(),IF(A62>$A$8,"",OFFSET(InputPriceData!$C$15,CalculationsAndCharts!$A62+$A$11,IF($C$5,8,0),1,1))) -> 25692.31 | E62: =IF(A62>$B$30,NA(),IF(A62>$A$8,"",OFFSET(InputPriceData!$D$15,CalculationsAndCharts!$A62+$A$11,IF($C$5,8,0),1,1))) -> 25752.84 | F62: =IF(A62>$B$30,NA(),IF(A62>$A$8,"",OFFSET(InputPriceData!$E$15,CalculationsAndCharts!$A62+$A$11,IF($C$5,8,0),1,1))) -> 25621.31 | G62: =IF(A62>$B$30,NA(),IF(A62>$A$8,"",OFFSET(InputPriceData!$F$15,CalculationsAndCharts!$A62+$A$11,IF($C$5,8,0),1,1))) -> 25709.94 | H62: 302790000 | I62: 0 | J62: 144055857 | K62: 151945111.7 | L62: 0.02665280023 | M62: 0.2665280023 | N62: 0.1206217145 | O62: 25634.15618 | P62: 25626.83733 | Q62: 157574759.4 | R62: 154989371.3 | S62: 0.008271544447 | T62: 0.08271544447 | U62: 0.04245942919 | V62: 25568.63118 | W62: 25626.83733 | AW62: 302790000
A63: 31 | B63: =IF(A63>$B$30,NA(),IF($A63>$A$8,"",OFFSET(InputPriceData!$B$15,$A63+$A$11,0,1,1))) -> 2019-03-13 | C63: =IF(A63>$B$30,NA(),IF($A63>$A$8,"",OFFSET(InputPriceData!$G$15,CalculationsAndCharts!$A63+$A$11,IF($C$5,8,0),1,1))) -> 331410000 | D63: =IF(A63>$B$30,NA(),IF(A63>$A$8,"",OFFSET(InputPriceData!$C$15,CalculationsAndCharts!$A63+$A$11,IF($C$5,8,0),1,1))) -> 25637.23 | E63: =IF(A63>$B$30,NA(),IF(A63>$A$8,"",OFFSET(InputPriceData!$D$15,CalculationsAndCharts!$A63+$A$11,IF($C$5,8,0),1,1))) -> 25776.49 | F63: =IF(A63>$B$30,NA(),IF(A63>$A$8,"",OFFSET(InputPriceData!$E$15,CalculationsAndCharts!$A63+$A$11,IF($C$5,8,0),1,1))) -> 25571.31 | G63: =IF(A63>$B$30,NA(),IF(A63>$A$8,"",OFFSET(InputPriceData!$F$15,CalculationsAndCharts!$A63+$A$11,IF($C$5,8,0),1,1))) -> 25702.89 | H63: 331410000 | I63: 0 | J63: 127346999.8 | K63: 167939333.9 | L63: 0.1374677033 | M63: 1.374677033 | N63: 0.2261597174 | O63: 25623.76114 | P63: 25618.08968 | Q63: 151647606.8 | R63: 161315468.1 | S63: 0.0308913803 | T63: 0.308913803 | U63: 0.05132995306 | V63: 25562.36524 | W63: 25618.08968 | AW63: 331410000
A64: 32 | B64: =IF(A64>$B$30,NA(),IF($A64>$A$8,"",OFFSET(InputPriceData!$B$15,$A64+$A$11,0,1,1))) -> 2019-03-12 | C64: =IF(A64>$B$30,NA(),IF($A64>$A$8,"",OFFSET(InputPriceData!$G$15,CalculationsAndCharts!$A64+$A$11,IF($C$5,8,0),1,1))) -> 317730000 | D64: =IF(A64>$B$30,NA(),IF(A64>$A$8,"",OFFSET(InputPriceData!$C$15,CalculationsAndCharts!$A64+$A$11,IF($C$5,8,0),1,1))) -> 25600.3 | E64: =IF(A64>$B$30,NA(),IF(A64>$A$8,"",OFFSET(InputPriceData!$D$15,CalculationsAndCharts!$A64+$A$11,IF($C$5,8,0),1,1))) -> 25675.44 | F64: =IF(A64>$B$30,NA(),IF(A64>$A$8,"",OFFSET(InputPriceData!$E$15,CalculationsAndCharts!$A64+$A$11,IF($C$5,8,0),1,1))) -> 25522.17 | G64: =IF(A64>$B$30,NA(),IF(A64>$A$8,"",OFFSET(InputPriceData!$F$15,CalculationsAndCharts!$A64+$A$11,IF($C$5,8,0),1,1))) -> 25554.66 | H64: 0 | I64: 317730000 | J64: 105866684 | K64: 185617158.6 | L64: 0.273601699 | M64: 2.73601699 | N64: 0.3558111419 | O64: 25600.63522 | P64: 25609.16333 | Q64: 144310366.2 | R64: 167899772.9 | S64: 0.07555618402 | T64: 0.7555618402 | U64: 0.06884556236 | V64: 25554.76182 | W64: 25609.16333 | AX64: 317730000
A65: 33 | B65: =IF(A65>$B$30,NA(),IF($A65>$A$8,"",OFFSET(InputPriceData!$B$15,$A65+$A$11,0,1,1))) -> 2019-03-11 | C65: =IF(A65>$B$30,NA(),IF($A65>$A$8,"",OFFSET(InputPriceData!$G$15,CalculationsAndCharts!$A65+$A$11,IF($C$5,8,0),1,1))) -> 309790000 | D65: =IF(A65>$B$30,NA(),IF(A65>$A$8,"",OFFSET(InputPriceData!$C$15,CalculationsAndCharts!$A65+$A$11,IF($C$5,8,0),1,1))) -> 25208 | E65: =IF(A65>$B$30,NA(),IF(A65>$A$8,"",OFFSET(InputPriceData!$D$15,CalculationsAndCharts!$A65+$A$11,IF($C$5,8,0),1,1))) -> 25661.63 | F65: =IF(A65>$B$30,NA(),IF(A65>$A$8,"",OFFSET(InputPriceData!$E$15,CalculationsAndCharts!$A65+$A$11,IF($C$5,8,0),1,1))) -> 25208 | G65: =IF(A65>$B$30,NA(),IF(A65>$A$8,"",OFFSET(InputPriceData!$F$15,CalculationsAndCharts!$A65+$A$11,IF($C$5,8,0),1,1))) -> 25650.88 | H65: 309790000 | I65: 0 | J65: 117010545.5 | K65: 171710543.7 | L65: 0.1894561923 | M65: 1.894561923 | N65: 0.2756725641 | O65: 25626.02917 | P65: 25614.90053 | Q65: 150200585.3 | R65: 161784253.5 | S65: 0.03712894599 | T65: 0.3712894599 | U65: 0.05377605725 | V65: 25554.76935 | W65: 25614.90053 | AW65: 309790000
A66: 34 | B66: =IF(A66>$B$30,NA(),IF($A66>$A$8,"",OFFSET(InputPriceData!$B$15,$A66+$A$11,0,1,1))) -> 2019-03-08 | C66: =IF(A66>$B$30,NA(),IF($A66>$A$8,"",OFFSET(InputPriceData!$G$15,CalculationsAndCharts!$A66+$A$11,IF($C$5,8,0),1,1))) -> 270500000 | D66: =IF(A66>$B$30,NA(),IF(A66>$A$8,"",OFFSET(InputPriceData!$C$15,CalculationsAndCharts!$A66+$A$11,IF($C$5,8,0),1,1))) -> 25347.38 | E66: =IF(A66>$B$30,NA(),IF(A66>$A$8,"",OFFSET(InputPriceData!$D$15,CalculationsAndCharts!$A66+$A$11,IF($C$5,8,0),1,1))) -> 25466.14 | F66: =IF(A66>$B$30,NA(),IF(A66>$A$8,"",OFFSET(InputPriceData!$E$15,CalculationsAndCharts!$A66+$A$11,IF($C$5,8,0),1,1))) -> 25252.46 | G66: =IF(A66>$B$30,NA(),IF(A66>$A$8,"",OFFSET(InputPriceData!$F$15,CalculationsAndCharts!$A66+$A$11,IF($C$5,8,0),1,1))) -> 25450.24 | H66: 0 | I66: 270500000 | J66: 96717971.33 | K66: 189785337.8 | L66: 0.3248387138 | M66: 3.248387138 | N66: 0.4046082989 | O66: 25616.57117 | P66: 25611.11321 | Q66: 143686731.6 | R66: 168387692.4 | S66: 0.07915086565 | T66: 0.7915086565 | U66: 0.07025524143 | V66: 25549.30717 | W66: 25611.11321 | AW66: 270500000
A67: 35 | B67: =IF(A67>$B$30,NA(),IF($A67>$A$8,"",OFFSET(InputPriceData!$B$15,$A67+$A$11,0,1,1))) -> 2019-03-07 | C67: =IF(A67>$B$30,NA(),IF($A67>$A$8,"",OFFSET(InputPriceData!$G$15,CalculationsAndCharts!$A67+$A$11,IF($C$5,8,0),1,1))) -> 289140000 | D67: =IF(A67>$B$30,NA(),IF(A67>$A$8,"",OFFSET(InputPriceData!$C$15,CalculationsAndCharts!$A67+$A$11,IF($C$5,8,0),1,1))) -> 25645.45 | E67: =IF(A67>$B$30,NA(),IF(A67>$A$8,"",OFFSET(InputPriceData!$D$15,CalculationsAndCharts!$A67+$A$11,IF($C$5,8,0),1,1))) -> 25645.45 | F67: =IF(A67>$B$30,NA(),IF(A67>$A$8,"",OFFSET(InputPriceData!$E$15,CalculationsAndCharts!$A67+$A$11,IF($C$5,8,0),1,1))) -> 25352.55 | G67: =IF(A67>$B$30,NA(),IF(A67>$A$8,"",OFFSET(InputPriceData!$F$15,CalculationsAndCharts!$A67+$A$11,IF($C$5,8,0),1,1))) -> 25473.23 | H67: 0 | I67: 289140000 | J67: 106898810.4 | K67: 181289057.5 | L67: 0.2581310852 | M67: 2.581310852 | N67: 0.341077224 | O67: 25729.60427 | P67: 25628.04724 | Q67: 149551496.1 | R67: 164219843.1 | S67: 0.04674852393 | T67: 0.4674852393 | U67: 0.05754844076 | V67: 25556.79308 | W67: 25628.04724 | AX67: 289140000
A68: 36 | B68: =IF(A68>$B$30,NA(),IF($A68>$A$8,"",OFFSET(InputPriceData!$B$15,$A68+$A$11,0,1,1))) -> 2019-03-06 | C68: =IF(A68>$B$30,NA(),IF($A68>$A$8,"",OFFSET(InputPriceData!$G$15,CalculationsAndCharts!$A68+$A$11,IF($C$5,8,0),1,1))) -> 256250000 | D68: =IF(A68>$B$30,NA(),IF(A68>$A$8,"",OFFSET(InputPriceData!$C$15,CalculationsAndCharts!$A68+$A$11,IF($C$5,8,0),1,1))) -> 25818.76 | E68: =IF(A68>$B$30,NA(),IF(A68>$A$8,"",OFFSET(InputPriceData!$D$15,CalculationsAndCharts!$A68+$A$11,IF($C$5,8,0),1,1))) -> 25837.61 | F68: =IF(A68>$B$30,NA(),IF(A68>$A$8,"",OFFSET(InputPriceData!$E$15,CalculationsAndCharts!$A68+$A$11,IF($C$5,8,0),1,1))) -> 25633.71 | G68: =IF(A68>$B$30,NA(),IF(A68>$A$8,"",OFFSET(InputPriceData!$F$15,CalculationsAndCharts!$A68+$A$11,IF($C$5,8,0),1,1))) -> 25673.46 | H68: 0 | I68: 256250000 | J68: 118151316.8 | K68: 169936326.7 | L68: 0.1797543599 | M68: 1.797543599 | N68: 0.2664327237 | O68: 25862.3109 | P68: 25644.34379 | Q68: 155655638.8 | R68: 159121061.2 | S68: 0.01100914505 | T68: 0.1100914505 | U68: 0.04353299806 | V68: 25561.89565 | W68: 25644.34379 | AX68: 256250000
A69: 37 | B69: =IF(A69>$B$30,NA(),IF($A69>$A$8,"",OFFSET(InputPriceData!$B$15,$A69+$A$11,0,1,1))) -> 2019-03-05 | C69: =IF(A69>$B$30,NA(),IF($A69>$A$8,"",OFFSET(InputPriceData!$G$15,CalculationsAndCharts!$A69+$A$11,IF($C$5,8,0),1,1))) -> 252260000 | D69: =IF(A69>$B$30,NA(),IF(A69>$A$8,"",OFFSET(InputPriceData!$C$15,CalculationsAndCharts!$A69+$A$11,IF($C$5,8,0),1,1))) -> 25829.07 | E69: =IF(A69>$B$30,NA(),IF(A69>$A$8,"",OFFSET(InputPriceData!$D$15,CalculationsAndCharts!$A69+$A$11,IF($C$5,8,0),1,1))) -> 25877.15 | F69: =IF(A69>$B$30,NA(),IF(A69>$A$8,"",OFFSET(InputPriceData!$E$15,CalculationsAndCharts!$A69+$A$11,IF($C$5,8,0),1,1))) -> 25725.63 | G69: =IF(A69>$B$30,NA(),IF(A69>$A$8,"",OFFSET(InputPriceData!$F$15,CalculationsAndCharts!$A69+$A$11,IF($C$5,8,0),1,1))) -> 25806.63 | H69: 0 | I69: 252260000 | J69: 130588297.5 | K69: 160850676.9 | L69: 0.1038377914 | M69: 1.038377914 | N69: 0.1941312299 | O69: 25930.90183 | P69: 25641.27892 | Q69: 162008930.2 | R69: 155156614.7 | S69: 0.0216048547 | T69: 0.216048547 | U69: 0.04768817831 | V69: 25556.81787 | W69: 25641.27892 | AX69: 252260000
A70: 38 | B70: =IF(A70>$B$30,NA(),IF($A70>$A$8,"",OFFSET(InputPriceData!$B$15,$A70+$A$11,0,1,1))) -> 2019-03-04 | C70: =IF(A70>$B$30,NA(),IF($A70>$A$8,"",OFFSET(InputPriceData!$G$15,CalculationsAndCharts!$A70+$A$11,IF($C$5,8,0),1,1))) -> 295510000 | D70: =IF(A70>$B$30,NA(),IF(A70>$A$8,"",OFFSET(InputPriceData!$C$15,CalculationsAndCharts!$A70+$A$11,IF($C$5,8,0),1,1))) -> 26122.19 | E70: =IF(A70>$B$30,NA(),IF(A70>$A$8,"",OFFSET(InputPriceData!$D$15,CalculationsAndCharts!$A70+$A$11,IF($C$5,8,0),1,1))) -> 26155.98 | F70: =IF(A70>$B$30,NA(),IF(A70>$A$8,"",OFFSET(InputPriceData!$E$15,CalculationsAndCharts!$A70+$A$11,IF($C$5,8,0),1,1))) -> 25611.55 | G70: =IF(A70>$B$30,NA(),IF(A70>$A$8,"",OFFSET(InputPriceData!$F$15,CalculationsAndCharts!$A70+$A$11,IF($C$5,8,0),1,1))) -> 25819.65 | H70: 0 | I70: 295510000 | J70: 144334434.1 | K70: 151228642.9 | L70: 0.02332567691 | M70: 0.2332567691 | N70: 0.1174530256 | O70: 25960.83852 | P70: 25623.87354 | Q70: 168621539.6 | R70: 151193211.2 | S70: 0.05449507362 | T70: 0.5449507362 | U70: 0.06058630338 | V70: 25544.30822 | W70: 25623.87354 | AX70: 295510000
A71: 39 | B71: =IF(A71>$B$30,NA(),IF($A71>$A$8,"",OFFSET(InputPriceData!$B$15,$A71+$A$11,0,1,1))) -> 2019-03-01 | C71: =IF(A71>$B$30,NA(),IF($A71>$A$8,"",OFFSET(InputPriceData!$G$15,CalculationsAndCharts!$A71+$A$11,IF($C$5,8,0),1,1))) -> 289890000 | D71: =IF(A71>$B$30,NA(),IF(A71>$A$8,"",OFFSET(InputPriceData!$C$15,CalculationsAndCharts!$A71+$A$11,IF($C$5,8,0),1,1))) -> 26019.67 | E71: =IF(A71>$B$30,NA(),IF(A71>$A$8,"",OFFSET(InputPriceData!$D$15,CalculationsAndCharts!$A71+$A$11,IF($C$5,8,0),1,1))) -> 26143.92 | F71: =IF(A71>$B$30,NA(),IF(A71>$A$8,"",OFFSET(InputPriceData!$E$15,CalculationsAndCharts!$A71+$A$11,IF($C$5,8,0),1,1))) -> 25914.37 | G71: =IF(A71>$B$30,NA(),IF(A71>$A$8,"",OFFSET(InputPriceData!$F$15,CalculationsAndCharts!$A71+$A$11,IF($C$5,8,0),1,1))) -> 26026.32 | H71: 289890000 | I71: 0 | J71: 159527532.4 | K71: 136041131.6 | L71: 0.07946174143 | M71: 0.7946174143 | N71: 0.1709159442 | O71: 25979.62847 | P71: 25603.2655 | Q71: 175504051.4 | R71: 145302730.1 | S71: 0.09414177982 | T71: 0.9414177982 | U71: 0.0761340313 | V71: 25526.5504 | W71: 25603.2655 | AW71: 289890000
A72: 40 | B72: =IF(A72>$B$30,NA(),IF($A72>$A$8,"",OFFSET(InputPriceData!$B$15,$A72+$A$11,0,1,1))) -> 2019-02-28 | C72: =IF(A72>$B$30,NA(),IF($A72>$A$8,"",OFFSET(InputPriceData!$G$15,CalculationsAndCharts!$A72+$A$11,IF($C$5,8,0),1,1))) -> 338520000 | D72: =IF(A72>$B$30,NA(),IF(A72>$A$8,"",OFFSET(InputPriceData!$C$15,CalculationsAndCharts!$A72+$A$11,IF($C$5,8,0),1,1))) -> 25984.28 | E72: =IF(A72>$B$30,NA(),IF(A72>$A$8,"",OFFSET(InputPriceData!$D$15,CalculationsAndCharts!$A72+$A$11,IF($C$5,8,0),1,1))) -> 26029.21 | F72: =IF(A72>$B$30,NA(),IF(A72>$A$8,"",OFFSET(InputPriceData!$E$15,CalculationsAndCharts!$A72+$A$11,IF($C$5,8,0),1,1))) -> 25896.56 | G72: =IF(A72>$B$30,NA(),IF(A72>$A$8,"",OFFSET(InputPriceData!$F$15,CalculationsAndCharts!$A72+$A$11,IF($C$5,8,0),1,1))) -> 25916 | H72: 0 | I72: 338520000 | J72: 145805167.4 | K72: 150361250.8 | L72: 0.01538352458 | M72: 0.1538352458 | N72: 0.109889071 | O72: 25970.003 | P72: 25558.73344 | Q72: 170835237.2 | R72: 151233453.7 | S72: 0.06086212053 | T72: 0.6086212053 | U72: 0.06308318452 | V72: 25485.36534 | W72: 25558.73344 | AX72: 338520000
A73: 41 | B73: =IF(A73>$B$30,NA(),IF($A73>$A$8,"",OFFSET(InputPriceData!$B$15,$A73+$A$11,0,1,1))) -> 2019-02-27 | C73: =IF(A73>$B$30,NA(),IF($A73>$A$8,"",OFFSET(InputPriceData!$G$15,CalculationsAndCharts!$A73+$A$11,IF($C$5,8,0),1,1))) -> 255380000 | D73: =IF(A73>$B$30,NA(),IF(A73>$A$8,"",OFFSET(InputPriceData!$C$15,CalculationsAndCharts!$A73+$A$11,IF($C$5,8,0),1,1))) -> 25995.6 | E73: =IF(A73>$B$30,NA(),IF(A73>$A$8,"",OFFSET(InputPriceData!$D$15,CalculationsAndCharts!$A73+$A$11,IF($C$5,8,0),1,1))) -> 26039.68 | F73: =IF(A73>$B$30,NA(),IF(A73>$A$8,"",OFFSET(InputPriceData!$E$15,CalculationsAndCharts!$A73+$A$11,IF($C$5,8,0),1,1))) -> 25877.24 | G73: =IF(A73>$B$30,NA(),IF(A73>$A$8,"",OFFSET(InputPriceData!$F$15,CalculationsAndCharts!$A73+$A$11,IF($C$5,8,0),1,1))) -> 25985.16 | H73: 0 | I73: 255380000 | J73: 161153079.7 | K73: 130555066.6 | L73: 0.1048925561 | M73: 1.048925561 | N73: 0.1951357677 | O73: 25976.66997 | P73: 25521.12644 | Q73: 177808104 | R73: 143589104.9 | S73: 0.1064694969 | T73: 1.064694969 | U73: 0.08096843015 | V73: 25456.37044 | W73: 25521.12644 | AX73: 255380000
A74: 42 | B74: =IF(A74>$B$30,NA(),IF($A74>$A$8,"",OFFSET(InputPriceData!$B$15,$A74+$A$11,0,1,1))) -> 2019-02-26 | C74: =IF(A74>$B$30,NA(),IF($A74>$A$8,"",OFFSET(InputPriceData!$G$15,CalculationsAndCharts!$A74+$A$11,IF($C$5,8,0),1,1))) -> 257850000 | D74: =IF(A74>$B$30,NA(),IF(A74>$A$8,"",OFFSET(InputPriceData!$C$15,CalculationsAndCharts!$A74+$A$11,IF($C$5,8,0),1,1))) -> 26051.61 | E74: =IF(A74>$B$30,NA(),IF(A74>$A$8,"",OFFSET(InputPriceData!$D$15,CalculationsAndCharts!$A74+$A$11,IF($C$5,8,0),1,1))) -> 26155.29 | F74: =IF(A74>$B$30,NA(),IF(A74>$A$8,"",OFFSET(InputPriceData!$E$15,CalculationsAndCharts!$A74+$A$11,IF($C$5,8,0),1,1))) -> 25966.01 | G74: =IF(A74>$B$30,NA(),IF(A74>$A$8,"",OFFSET(InputPriceData!$F$15,CalculationsAndCharts!$A74+$A$11,IF($C$5,8,0),1,1))) -> 26057.98 | H74: 0 | I74: 257850000 | J74: 178116561.8 | K74: 117415600 | L74: 0.2053954517 | M74: 2.053954517 | N74: 0.2908528112 | O74: 25974.61159 | P74: 25472.2808 | Q74: 185065577.7 | R74: 139026211.2 | S74: 0.1420565655 | T74: 1.420565655 | U74: 0.09492414335 | V74: 25409.78307 | W74: 25472.2808 | AW74: 257850000
A75: 43 | B75: =IF(A75>$B$30,NA(),IF($A75>$A$8,"",OFFSET(InputPriceData!$B$15,$A75+$A$11,0,1,1))) -> 2019-02-25 | C75: =IF(A75>$B$30,NA(),IF($A75>$A$8,"",OFFSET(InputPriceData!$G$15,CalculationsAndCharts!$A75+$A$11,IF($C$5,8,0),1,1))) -> 281600000 | D75: =IF(A75>$B$30,NA(),IF(A75>$A$8,"",OFFSET(InputPriceData!$C$15,CalculationsAndCharts!$A75+$A$11,IF($C$5,8,0),1,1))) -> 26126.15 | E75: =IF(A75>$B$30,NA(),IF(A75>$A$8,"",OFFSET(InputPriceData!$D$15,CalculationsAndCharts!$A75+$A$11,IF($C$5,8,0),1,1))) -> 26241.42 | F75: =IF(A75>$B$30,NA(),IF(A75>$A$8,"",OFFSET(InputPriceData!$E$15,CalculationsAndCharts!$A75+$A$11,IF($C$5,8,0),1,1))) -> 26080.66 | G75: =IF(A75>$B$30,NA(),IF(A75>$A$8,"",OFFSET(InputPriceData!$F$15,CalculationsAndCharts!$A75+$A$11,IF($C$5,8,0),1,1))) -> 26091.95 | H75: 281600000 | I75: 0 | J75: 196865673.6 | K75: 102633031.5 | L75: 0.3146345558 | M75: 3.146345558 | N75: 0.3948900532 | O75: 25940.4185 | P75: 25410.62825 | Q75: 192619274.7 | R75: 134176260.7 | S75: 0.1788366355 | T75: 1.788366355 | U75: 0.1093477002 | V75: 25341.80033 | W75: 25410.62825 | AX75: 281600000
A76: 44 | B76: =IF(A76>$B$30,NA(),IF($A76>$A$8,"",OFFSET(InputPriceData!$B$15,$A76+$A$11,0,1,1))) -> 2019-02-22 | C76: =IF(A76>$B$30,NA(),IF($A76>$A$8,"",OFFSET(InputPriceData!$G$15,CalculationsAndCharts!$A76+$A$11,IF($C$5,8,0),1,1))) -> 279760000 | D76: =IF(A76>$B$30,NA(),IF(A76>$A$8,"",OFFSET(InputPriceData!$C$15,CalculationsAndCharts!$A76+$A$11,IF($C$5,8,0),1,1))) -> 25906.27 | E76: =IF(A76>$B$30,NA(),IF(A76>$A$8,"",OFFSET(InputPriceData!$D$15,CalculationsAndCharts!$A76+$A$11,IF($C$5,8,0),1,1))) -> 26052.9 | F76: =IF(A76>$B$30,NA(),IF(A76>$A$8,"",OFFSET(InputPriceData!$E$15,CalculationsAndCharts!$A76+$A$11,IF($C$5,8,0),1,1))) -> 25906.27 | G76: =IF(A76>$B$30,NA(),IF(A76>$A$8,"",OFFSET(InputPriceData!$F$15,CalculationsAndCharts!$A76+$A$11,IF($C$5,8,0),1,1))) -> 26031.81 | H76: 279760000 | I76: 0 | J76: 187946270.8 | K76: 113436508.5 | L76: 0.2472263427 | M76: 2.472263427 | N76: 0.3306917549 | O76: 25841.53022 | P76: 25338.91017 | Q76: 188987408.4 | R76: 139652842.7 | S76: 0.1501172345 | T76: 1.501172345 | U76: 0.09808519001 | V76: 25249.70251 | W76: 25338.91017 | AW76: 279760000
A77: 45 | B77: =IF(A77>$B$30,NA(),IF($A77>$A$8,"",OFFSET(InputPriceData!$B$15,$A77+$A$11,0,1,1))) -> 2019-02-21 | C77: =IF(A77>$B$30,NA(),IF($A77>$A$8,"",OFFSET(InputPriceData!$G$15,CalculationsAndCharts!$A77+$A$11,IF($C$5,8,0),1,1))) -> 255710000 | D77: =IF(A77>$B$30,NA(),IF(A77>$A$8,"",OFFSET(InputPriceData!$C$15,CalculationsAndCharts!$A77+$A$11,IF($C$5,8,0),1,1))) -> 25922.41 | E77: =IF(A77>$B$30,NA(),IF(A77>$A$8,"",OFFSET(InputPriceData!$D$15,CalculationsAndCharts!$A77+$A$11,IF($C$5,8,0),1,1))) -> 25938.88 | F77: =IF(A77>$B$30,NA(),IF(A77>$A$8,"",OFFSET(InputPriceData!$E$15,CalculationsAndCharts!$A77+$A$11,IF($C$5,8,0),1,1))) -> 25762.21 | G77: =IF(A77>$B$30,NA(),IF(A77>$A$8,"",OFFSET(InputPriceData!$F$15,CalculationsAndCharts!$A77+$A$11,IF($C$5,8,0),1,1))) -> 25850.63 | H77: 0 | I77: 255710000 | J77: 178281667.7 | K77: 125377193.6 | L77: 0.174223383 | M77: 1.74223383 | N77: 0.2611651266 | O77: 25747.51681 | P77: 25265.97335 | Q77: 185282404.6 | R77: 145352958.8 | S77: 0.1207658052 | T77: 1.207658052 | U77: 0.08657482556 | V77: 25164.64662 | W77: 25265.97335 | AX77: 255710000
A78: 46 | B78: =IF(A78>$B$30,NA(),IF($A78>$A$8,"",OFFSET(InputPriceData!$B$15,$A78+$A$11,0,1,1))) -> 2019-02-20 | C78: =IF(A78>$B$30,NA(),IF($A78>$A$8,"",OFFSET(InputPriceData!$G$15,CalculationsAndCharts!$A78+$A$11,IF($C$5,8,0),1,1))) -> 287880000 | D78: =IF(A78>$B$30,NA(),IF(A78>$A$8,"",OFFSET(InputPriceData!$C$15,CalculationsAndCharts!$A78+$A$11,IF($C$5,8,0),1,1))) -> 25872.26 | E78: =IF(A78>$B$30,NA(),IF(A78>$A$8,"",OFFSET(InputPriceData!$D$15,CalculationsAndCharts!$A78+$A$11,IF($C$5,8,0),1,1))) -> 25986.2 | F78: =IF(A78>$B$30,NA(),IF(A78>$A$8,"",OFFSET(InputPriceData!$E$15,CalculationsAndCharts!$A78+$A$11,IF($C$5,8,0),1,1))) -> 25846.48 | G78: =IF(A78>$B$30,NA(),IF(A78>$A$8,"",OFFSET(InputPriceData!$F$15,CalculationsAndCharts!$A78+$A$11,IF($C$5,8,0),1,1))) -> 25954.44 | H78: 287880000 | I78: 0 | J78: 197048159.1 | K78: 111657950.9 | L78: 0.2766067968 | M78: 2.766067968 | N78: 0.3586731398 | O78: 25711.06811 | P78: 25204.43054 | Q78: 192844951.8 | R78: 140848589.7 | S78: 0.1558207025 | T78: 1.558207025 | U78: 0.1003218441 | V78: 25099.62883 | W78: 25204.43054 | AW78: 287880000
A79: 47 | B79: =IF(A79>$B$30,NA(),IF($A79>$A$8,"",OFFSET(InputPriceData!$B$15,$A79+$A$11,0,1,1))) -> 2019-02-19 | C79: =IF(A79>$B$30,NA(),IF($A79>$A$8,"",OFFSET(InputPriceData!$G$15,CalculationsAndCharts!$A79+$A$11,IF($C$5,8,0),1,1))) -> 280620000 | D79: =IF(A79>$B$30,NA(),IF(A79>$A$8,"",OFFSET(InputPriceData!$C$15,CalculationsAndCharts!$A79+$A$11,IF($C$5,8,0),1,1))) -> 25849.85 | E79: =IF(A79>$B$30,NA(),IF(A79>$A$8,"",OFFSET(InputPriceData!$D$15,CalculationsAndCharts!$A79+$A$11,IF($C$5,8,0),1,1))) -> 25961.44 | F79: =IF(A79>$B$30,NA(),IF(A79>$A$8,"",OFFSET(InputPriceData!$E$15,CalculationsAndCharts!$A79+$A$11,IF($C$5,8,0),1,1))) -> 25820.01 | G79: =IF(A79>$B$30,NA(),IF(A79>$A$8,"",OFFSET(InputPriceData!$F$15,CalculationsAndCharts!$A79+$A$11,IF($C$5,8,0),1,1))) -> 25891.32 | H79: 280620000 | I79: 0 | J79: 187486912.7 | K79: 123411419.4 | L79: 0.2060978998 | M79: 2.060978998 | N79: 0.2915218093 | O79: 25574.95817 | P79: 25125.48218 | Q79: 188965970.2 | R79: 146597511.8 | S79: 0.1262606354 | T79: 1.262606354 | U79: 0.08872966095 | V79: 25004.31004 | W79: 25125.48218 | AW79: 280620000
A80: 48 | B80: =IF(A80>$B$30,NA(),IF($A80>$A$8,"",OFFSET(InputPriceData!$B$15,$A80+$A$11,0,1,1))) -> 2019-02-15 | C80: =IF(A80>$B$30,NA(),IF($A80>$A$8,"",OFFSET(InputPriceData!$G$15,CalculationsAndCharts!$A80+$A$11,IF($C$5,8,0),1,1))) -> 328530000 | D80: =IF(A80>$B$30,NA(),IF(A80>$A$8,"",OFFSET(InputPriceData!$C$15,CalculationsAndCharts!$A80+$A$11,IF($C$5,8,0),1,1))) -> 25564.63 | E80: =IF(A80>$B$30,NA(),IF(A80>$A$8,"",OFFSET(InputPriceData!$D$15,CalculationsAndCharts!$A80+$A$11,IF($C$5,8,0),1,1))) -> 25883.72 | F80: =IF(A80>$B$30,NA(),IF(A80>$A$8,"",OFFSET(InputPriceData!$E$15,CalculationsAndCharts!$A80+$A$11,IF($C$5,8,0),1,1))) -> 25564.63 | G80: =IF(A80>$B$30,NA(),IF(A80>$A$8,"",OFFSET(InputPriceData!$F$15,CalculationsAndCharts!$A80+$A$11,IF($C$5,8,0),1,1))) -> 25883.25 | H80: 328530000 | I80: 0 | J80: 177683429.8 | K80: 136402095.1 | L80: 0.1314334199 | M80: 1.314334199 | N80: 0.2204127809 | O80: 25444.78286 | P80: 25044.86767 | Q80: 185224989.4 | R80: 152581083.7 | S80: 0.09663504697 | T80: 0.9663504697 | U80: 0.07711178313 | V80: 24917.94259 | W80: 25044.86767 | AW80: 328530000
A81: 49 | B81: =IF(A81>$B$30,NA(),IF($A81>$A$8,"",OFFSET(InputPriceData!$B$15,$A81+$A$11,0,1,1))) -> 2019-02-14 | C81: =IF(A81>$B$30,NA(),IF($A81>$A$8,"",OFFSET(InputPriceData!$G$15,CalculationsAndCharts!$A81+$A$11,IF($C$5,8,0),1,1))) -> 313010000 | D81: =IF(A81>$B$30,NA(),IF(A81>$A$8,"",OFFSET(InputPriceData!$C$15,CalculationsAndCharts!$A81+$A$11,IF($C$5,8,0),1,1))) -> 25460.65 | E81: =IF(A81>$B$30,NA(),IF(A81>$A$8,"",OFFSET(InputPriceData!$D$15,CalculationsAndCharts!$A81+$A$11,IF($C$5,8,0),1,1))) -> 25558.9 | F81: =IF(A81>$B$30,NA(),IF(A81>$A$8,"",OFFSET(InputPriceData!$E$15,CalculationsAndCharts!$A81+$A$11,IF($C$5,8,0),1,1))) -> 25308.09 | G81: =IF(A81>$B$30,NA(),IF(A81>$A$8,"",OFFSET(InputPriceData!$F$15,CalculationsAndCharts!$A81+$A$11,IF($C$5,8,0),1,1))) -> 25439.39 | H81: 0 | I81: 313010000 | J81: 161804843.4 | K81: 150760210.4 | L81: 0.03533546995 | M81: 0.3533546995 | N81: 0.1288909238 | O81: 25320.81499 | P81: 24956.6169 | Q81: 179375805.3 | R81: 158808883 | S81: 0.06081565195 | T81: 0.6081565195 | U81: 0.06306496155 | V81: 24837.28648 | W81: 24956.6169 | AX81: 313010000
A82: 50 | B82: =IF(A82>$B$30,NA(),IF($A82>$A$8,"",OFFSET(InputPriceData!$B$15,$A82+$A$11,0,1,1))) -> 2019-02-13 | C82: =IF(A82>$B$30,NA(),IF($A82>$A$8,"",OFFSET(InputPriceData!$G$15,CalculationsAndCharts!$A82+$A$11,IF($C$5,8,0),1,1))) -> 263330000 | D82: =IF(A82>$B$30,NA(),IF(A82>$A$8,"",OFFSET(InputPriceData!$C$15,CalculationsAndCharts!$A82+$A$11,IF($C$5,8,0),1,1))) -> 25480.86 | E82: =IF(A82>$B$30,NA(),IF(A82>$A$8,"",OFFSET(InputPriceData!$D$15,CalculationsAndCharts!$A82+$A$11,IF($C$5,8,0),1,1))) -> 25625.95 | F82: =IF(A82>$B$30,NA(),IF(A82>$A$8,"",OFFSET(InputPriceData!$E$15,CalculationsAndCharts!$A82+$A$11,IF($C$5,8,0),1,1))) -> 25480.86 | G82: =IF(A82>$B$30,NA(),IF(A82>$A$8,"",OFFSET(InputPriceData!$F$15,CalculationsAndCharts!$A82+$A$11,IF($C$5,8,0),1,1))) -> 25543.27 | H82: 263330000 | I82: 0 | J82: 178836932.2 | K82: 133681285.1 | L82: 0.1444896475 | M82: 1.444896475 | N82: 0.2328472834 | O82: 25303.27042 | P82: 24905.79868 | Q82: 186697266.7 | R82: 152514959.9 | S82: 0.1007696781 | T82: 1.007696781 | U82: 0.0787332071 | V82: 24796.75898 | W82: 24905.79868 | AW82: 263330000
A83: 51 | B83: =IF(A83>$B$30,NA(),IF($A83>$A$8,"",OFFSET(InputPriceData!$B$15,$A83+$A$11,0,1,1))) -> 2019-02-12 | C83: =IF(A83>$B$30,NA(),IF($A83>$A$8,"",OFFSET(InputPriceData!$G$15,CalculationsAndCharts!$A83+$A$11,IF($C$5,8,0),1,1))) -> 278110000 | D83: =IF(A83>$B$30,NA(),IF(A83>$A$8,"",OFFSET(InputPriceData!$C$15,CalculationsAndCharts!$A83+$A$11,IF($C$5,8,0),1,1))) -> 25152.03 | E83: =IF(A83>$B$30,NA(),IF(A83>$A$8,"",OFFSET(InputPriceData!$D$15,CalculationsAndCharts!$A83+$A$11,IF($C$5,8,0),1,1))) -> 25458.98 | F83: =IF(A83>$B$30,NA(),IF(A83>$A$8,"",OFFSET(InputPriceData!$E$15,CalculationsAndCharts!$A83+$A$11,IF($C$5,8,0),1,1))) -> 25152.03 | G83: =IF(A83>$B$30,NA(),IF(A83>$A$8,"",OFFSET(InputPriceData!$F$15,CalculationsAndCharts!$A83+$A$11,IF($C$5,8,0),1,1))) -> 25425.76 | H83: 278110000 | I83: 0 | J83: 169942925.1 | K83: 147752999.4 | L83: 0.06984642863 | M83: 0.6984642863 | N83: 0.1617585035 | O83: 25230.4254 | P83: 24838.69644 | Q83: 183569400.1 | R83: 158740060.3 | S83: 0.07253477538 | T83: 0.7253477538 | U83: 0.06766069623 | V83: 24732.96073 | W83: 24838.69644 | AW83: 278110000
A84: 52 | B84: =IF(A84>$B$30,NA(),IF($A84>$A$8,"",OFFSET(InputPriceData!$B$15,$A84+$A$11,0,1,1))) -> 2019-02-11 | C84: =IF(A84>$B$30,NA(),IF($A84>$A$8,"",OFFSET(InputPriceData!$G$15,CalculationsAndCharts!$A84+$A$11,IF($C$5,8,0),1,1))) -> 241700000 | D84: =IF(A84>$B$30,NA(),IF(A84>$A$8,"",OFFSET(InputPriceData!$C$15,CalculationsAndCharts!$A84+$A$11,IF($C$5,8,0),1,1))) -> 25142.81 | E84: =IF(A84>$B$30,NA(),IF(A84>$A$8,"",OFFSET(InputPriceData!$D$15,CalculationsAndCharts!$A84+$A$11,IF($C$5,8,0),1,1))) -> 25196.75 | F84: =IF(A84>$B$30,NA(),IF(A84>$A$8,"",OFFSET(InputPriceData!$E$15,CalculationsAndCharts!$A84+$A$11,IF($C$5,8,0),1,1))) -> 25009.1 | G84: =IF(A84>$B$30,NA(),IF(A84>$A$8,"",OFFSET(InputPriceData!$F$15,CalculationsAndCharts!$A84+$A$11,IF($C$5,8,0),1,1))) -> 25053.11 | H84: 0 | I84: 241700000 | J84: 158556917.2 | K84: 163305946.7 | L84: 0.01475482265 | M84: 0.1475482265 | N84: 0.1092903073 | O84: 25192.73097 | P84: 24776.90027 | Q84: 179710600.1 | R84: 165219246.4 | S84: 0.04201246669 | T84: 0.4201246669 | U84: 0.05569116341 | V84: 24682.68367 | W84: 24776.90027 | AX84: 241700000
A85: 53 | B85: =IF(A85>$B$30,NA(),IF($A85>$A$8,"",OFFSET(InputPriceData!$B$15,$A85+$A$11,0,1,1))) -> 2019-02-08 | C85: =IF(A85>$B$30,NA(),IF($A85>$A$8,"",OFFSET(InputPriceData!$G$15,CalculationsAndCharts!$A85+$A$11,IF($C$5,8,0),1,1))) -> 248210000 | D85: =IF(A85>$B$30,NA(),IF(A85>$A$8,"",OFFSET(InputPriceData!$C$15,CalculationsAndCharts!$A85+$A$11,IF($C$5,8,0),1,1))) -> 25042.36 | E85: =IF(A85>$B$30,NA(),IF(A85>$A$8,"",OFFSET(InputPriceData!$D$15,CalculationsAndCharts!$A85+$A$11,IF($C$5,8,0),1,1))) -> 25106.39 | F85: =IF(A85>$B$30,NA(),IF(A85>$A$8,"",OFFSET(InputPriceData!$E$15,CalculationsAndCharts!$A85+$A$11,IF($C$5,8,0),1,1))) -> 24883.04 | G85: =IF(A85>$B$30,NA(),IF(A85>$A$8,"",OFFSET(InputPriceData!$F$15,CalculationsAndCharts!$A85+$A$11,IF($C$5,8,0),1,1))) -> 25106.33 | H85: 0 | I85: 248210000 | J85: 175247119 | K85: 155053941.1 | L85: 0.06113567406 | M85: 0.6113567406 | N85: 0.1534625467 | O85: 25209.8625 | P85: 24747.82557 | Q85: 187045726.6 | R85: 162097583 | S85: 0.07145531061 | T85: 0.7145531061 | U85: 0.06723737671 | V85: 24660.83756 | W85: 24747.82557 | AW85: 248210000
A86: 54 | B86: =IF(A86>$B$30,NA(),IF($A86>$A$8,"",OFFSET(InputPriceData!$B$15,$A86+$A$11,0,1,1))) -> 2019-02-07 | C86: =IF(A86>$B$30,NA(),IF($A86>$A$8,"",OFFSET(InputPriceData!$G$15,CalculationsAndCharts!$A86+$A$11,IF($C$5,8,0),1,1))) -> 295460000 | D86: =IF(A86>$B$30,NA(),IF(A86>$A$8,"",OFFSET(InputPriceData!$C$15,CalculationsAndCharts!$A86+$A$11,IF($C$5,8,0),1,1))) -> 25265.81 | E86: =IF(A86>$B$30,NA(),IF(A86>$A$8,"",OFFSET(InputPriceData!$D$15,CalculationsAndCharts!$A86+$A$11,IF($C$5,8,0),1,1))) -> 25314.26 | F86: =IF(A86>$B$30,NA(),IF(A86>$A$8,"",OFFSET(InputPriceData!$E$15,CalculationsAndCharts!$A86+$A$11,IF($C$5,8,0),1,1))) -> 25000.52 | G86: =IF(A86>$B$30,NA(),IF(A86>$A$8,"",OFFSET(InputPriceData!$F$15,CalculationsAndCharts!$A86+$A$11,IF($C$5,8,0),1,1))) -> 25169.53 | H86: 0 | I86: 295460000 | J86: 193694184.2 | K86: 145248040.1 | L86: 0.1429333396 | M86: 1.429333396 | N86: 0.2313650853 | O86: 25228.63115 | P86: 24710.08826 | Q86: 194680246.1 | R86: 158582790.5 | S86: 0.1021829399 | T86: 1.021829399 | U86: 0.0792874274 | V86: 24628.72462 | W86: 24710.08826 | AX86: 295460000
A87: 55 | B87: =IF(A87>$B$30,NA(),IF($A87>$A$8,"",OFFSET(InputPriceData!$B$15,$A87+$A$11,0,1,1))) -> 2019-02-06 | C87: =IF(A87>$B$30,NA(),IF($A87>$A$8,"",OFFSET(InputPriceData!$G$15,CalculationsAndCharts!$A87+$A$11,IF($C$5,8,0),1,1))) -> 247590000 | D87: =IF(A87>$B$30,NA(),IF(A87>$A$8,"",OFFSET(InputPriceData!$C$15,CalculationsAndCharts!$A87+$A$11,IF($C$5,8,0),1,1))) -> 25371.57 | E87: =IF(A87>$B$30,NA(),IF(A87>$A$8,"",OFFSET(InputPriceData!$D$15,CalculationsAndCharts!$A87+$A$11,IF($C$5,8,0),1,1))) -> 25439.04 | F87: =IF(A87>$B$30,NA(),IF(A87>$A$8,"",OFFSET(InputPriceData!$E$15,CalculationsAndCharts!$A87+$A$11,IF($C$5,8,0),1,1))) -> 25312.06 | G87: =IF(A87>$B$30,NA(),IF(A87>$A$8,"",OFFSET(InputPriceData!$F$15,CalculationsAndCharts!$A87+$A$11,IF($C$5,8,0),1,1))) -> 25390.3 | H87: 0 | I87: 247590000 | J87: 214083045.7 | K87: 129436254.9 | L87: 0.2464105821 | M87: 2.464105821 | N87: 0.3299148401 | O87: 25246.42105 | P87: 24661.72597 | Q87: 202626378.6 | R87: 152995965.6 | S87: 0.1395593213 | T87: 1.395593213 | U87: 0.09394483189 | V87: 24582.15301 | W87: 24661.72597 | AW87: 247590000
A88: 56 | B88: =IF(A88>$B$30,NA(),IF($A88>$A$8,"",OFFSET(InputPriceData!$B$15,$A88+$A$11,0,1,1))) -> 2019-02-05 | C88: =IF(A88>$B$30,NA(),IF($A88>$A$8,"",OFFSET(InputPriceData!$G$15,CalculationsAndCharts!$A88+$A$11,IF($C$5,8,0),1,1))) -> 310650000 | D88: =IF(A88>$B$30,NA(),IF(A88>$A$8,"",OFFSET(InputPriceData!$C$15,CalculationsAndCharts!$A88+$A$11,IF($C$5,8,0),1,1))) -> 25287.93 | E88: =IF(A88>$B$30,NA(),IF(A88>$A$8,"",OFFSET(InputPriceData!$D$15,CalculationsAndCharts!$A88+$A$11,IF($C$5,8,0),1,1))) -> 25427.32 | F88: =IF(A88>$B$30,NA(),IF(A88>$A$8,"",OFFSET(InputPriceData!$E$15,CalculationsAndCharts!$A88+$A$11,IF($C$5,8,0),1,1))) -> 25287.65 | G88: =IF(A88>$B$30,NA(),IF(A88>$A$8,"",OFFSET(InputPriceData!$F$15,CalculationsAndCharts!$A88+$A$11,IF($C$5,8,0),1,1))) -> 25411.52 | H88: 310650000 | I88: 0 | J88: 236618103.1 | K88: 116999018.5 | L88: 0.3382728868 | M88: 3.382728868 | N88: 0.4174027493 | O88: 25175.5826 | P88: 24585.03396 | Q88: 210896843 | R88: 149134984.6 | S88: 0.1715455515 | T88: 1.715455515 | U88: 0.1064884516 | V88: 24498.35985 | W88: 24585.03396 | AW88: 310650000
A89: 57 | B89: =IF(A89>$B$30,NA(),IF($A89>$A$8,"",OFFSET(InputPriceData!$B$15,$A89+$A$11,0,1,1))) -> 2019-02-04 | C89: =IF(A89>$B$30,NA(),IF($A89>$A$8,"",OFFSET(InputPriceData!$G$15,CalculationsAndCharts!$A89+$A$11,IF($C$5,8,0),1,1))) -> 298540000 | D89: =IF(A89>$B$30,NA(),IF(A89>$A$8,"",OFFSET(InputPriceData!$C$15,CalculationsAndCharts!$A89+$A$11,IF($C$5,8,0),1,1))) -> 25062.12 | E89: =IF(A89>$B$30,NA(),IF(A89>$A$8,"",OFFSET(InputPriceData!$D$15,CalculationsAndCharts!$A89+$A$11,IF($C$5,8,0),1,1))) -> 25239.91 | F89: =IF(A89>$B$30,NA(),IF(A89>$A$8,"",OFFSET(InputPriceData!$E$15,CalculationsAndCharts!$A89+$A$11,IF($C$5,8,0),1,1))) -> 24977.67 | G89: =IF(A89>$B$30,NA(),IF(A89>$A$8,"",OFFSET(InputPriceData!$F$15,CalculationsAndCharts!$A89+$A$11,IF($C$5,8,0),1,1))) -> 25239.37 | H89: 298540000 | I89: 0 | J89: 228825271.8 | K89: 129314704.7 | L89: 0.2778538383 | M89: 2.778538383 | N89: 0.3598607984 | O89: 25006.54486 | P89: 24498.03543 | Q89: 206825285.6 | R89: 155222126.8 | S89: 0.1425314945 | T89: 1.425314945 | U89: 0.09511039 | V89: 24389.52968 | W89: 24498.03543 | AW89: 298540000
A90: 58 | B90: =IF(A90>$B$30,NA(),IF($A90>$A$8,"",OFFSET(InputPriceData!$B$15,$A90+$A$11,0,1,1))) -> 2019-02-01 | C90: =IF(A90>$B$30,NA(),IF($A90>$A$8,"",OFFSET(InputPriceData!$G$15,CalculationsAndCharts!$A90+$A$11,IF($C$5,8,0),1,1))) -> 372090000 | D90: =IF(A90>$B$30,NA(),IF(A90>$A$8,"",OFFSET(InputPriceData!$C$15,CalculationsAndCharts!$A90+$A$11,IF($C$5,8,0),1,1))) -> 25025.31 | E90: =IF(A90>$B$30,NA(),IF(A90>$A$8,"",OFFSET(InputPriceData!$D$15,CalculationsAndCharts!$A90+$A$11,IF($C$5,8,0),1,1))) -> 25193.15 | F90: =IF(A90>$B$30,NA(),IF(A90>$A$8,"",OFFSET(InputPriceData!$E$15,CalculationsAndCharts!$A90+$A$11,IF($C$5,8,0),1,1))) -> 24982.49 | G90: =IF(A90>$B$30,NA(),IF(A90>$A$8,"",OFFSET(InputPriceData!$F$15,CalculationsAndCharts!$A90+$A$11,IF($C$5,8,0),1,1))) -> 25063.89 | H90: 372090000 | I90: 0 | J90: 221486879.4 | K90: 142926778.9 | L90: 0.2155794623 | M90: 2.155794623 | N90: 0.3005518689 | O90: 24875.65982 | P90: 24420.00022 | Q90: 203081827.8 | R90: 161557723.8 | S90: 0.1138771256 | T90: 1.138771256 | U90: 0.08387338258 | V90: 24300.20537 | W90: 24420.00022 | AW90: 372090000
A91: 59 | B91: =IF(A91>$B$30,NA(),IF($A91>$A$8,"",OFFSET(InputPriceData!$B$15,$A91+$A$11,0,1,1))) -> 2019-01-31 | C91: =IF(A91>$B$30,NA(),IF($A91>$A$8,"",OFFSET(InputPriceData!$G$15,CalculationsAndCharts!$A91+$A$11,IF($C$5,8,0),1,1))) -> 507350000 | D91: =IF(A91>$B$30,NA(),IF(A91>$A$8,"",OFFSET(InputPriceData!$C$15,CalculationsAndCharts!$A91+$A$11,IF($C$5,8,0),1,1))) -> 24954.48 | E91: =IF(A91>$B$30,NA(),IF(A91>$A$8,"",OFFSET(InputPriceData!$D$15,CalculationsAndCharts!$A91+$A$11,IF($C$5,8,0),1,1))) -> 25049.62 | F91: =IF(A91>$B$30,NA(),IF(A91>$A$8,"",OFFSET(InputPriceData!$E$15,CalculationsAndCharts!$A91+$A$11,IF($C$5,8,0),1,1))) -> 24842.09 | G91: =IF(A91>$B$30,NA(),IF(A91>$A$8,"",OFFSET(InputPriceData!$F$15,CalculationsAndCharts!$A91+$A$11,IF($C$5,8,0),1,1))) -> 24999.67 | H91: 0 | I91: 507350000 | J91: 205633919.3 | K91: 157971703 | L91: 0.1310821765 | M91: 1.310821765 | N91: 0.2200782634 | O91: 24794.77758 | P91: 24352.22235 | Q91: 196183535.1 | R91: 168151916.6 | S91: 0.07693903609 | T91: 0.7693903609 | U91: 0.06938785729 | V91: 24230.28838 | W91: 24352.22235 | AW91: 507350000
A92: 60 | B92: =IF(A92>$B$30,NA(),IF($A92>$A$8,"",OFFSET(InputPriceData!$B$15,$A92+$A$11,0,1,1))) -> 2019-01-30 | C92: =IF(A92>$B$30,NA(),IF($A92>$A$8,"",OFFSET(InputPriceData!$G$15,CalculationsAndCharts!$A92+$A$11,IF($C$5,8,0),1,1))) -> 397330000 | D92: =IF(A92>$B$30,NA(),IF(A92>$A$8,"",OFFSET(InputPriceData!$C$15,CalculationsAndCharts!$A92+$A$11,IF($C$5,8,0),1,1))) -> 24826.52 | E92: =IF(A92>$B$30,NA(),IF(A92>$A$8,"",OFFSET(InputPriceData!$D$15,CalculationsAndCharts!$A92+$A$11,IF($C$5,8,0),1,1))) -> 25109.62 | F92: =IF(A92>$B$30,NA(),IF(A92>$A$8,"",OFFSET(InputPriceData!$E$15,CalculationsAndCharts!$A92+$A$11,IF($C$5,8,0),1,1))) -> 24790.9 | G92: =IF(A92>$B$30,NA(),IF(A92>$A$8,"",OFFSET(InputPriceData!$F$15,CalculationsAndCharts!$A92+$A$11,IF($C$5,8,0),1,1))) -> 25014.86 | H92: 397330000 | I92: 0 | J92: 227279595.1 | K92: 121195040.1 | L92: 0.304425471 | M92: 3.04425471 | N92: 0.3851671152 | O92: 24736.96105 | P92: 24284.06996 | Q92: 204191026.3 | R92: 154307096.9 | S92: 0.1391469751 | T92: 1.391469751 | U92: 0.09378312749 | V92: 24172.92211 | W92: 24284.06996 | AW92: 397330000
A93: 61 | B93: =IF(A93>$B$30,NA(),IF($A93>$A$8,"",OFFSET(InputPriceData!$B$15,$A93+$A$11,0,1,1))) -> 2019-01-29 | C93: =IF(A93>$B$30,NA(),IF($A93>$A$8,"",OFFSET(InputPriceData!$G$15,CalculationsAndCharts!$A93+$A$11,IF($C$5,8,0),1,1))) -> 330870000 | D93: =IF(A93>$B$30,NA(),IF(A93>$A$8,"",OFFSET(InputPriceData!$C$15,CalculationsAndCharts!$A93+$A$11,IF($C$5,8,0),1,1))) -> 24519.62 | E93: =IF(A93>$B$30,NA(),IF(A93>$A$8,"",OFFSET(InputPriceData!$D$15,CalculationsAndCharts!$A93+$A$11,IF($C$5,8,0),1,1))) -> 24674.87 | F93: =IF(A93>$B$30,NA(),IF(A93>$A$8,"",OFFSET(InputPriceData!$E$15,CalculationsAndCharts!$A93+$A$11,IF($C$5,8,0),1,1))) -> 24504.04 | G93: =IF(A93>$B$30,NA(),IF(A93>$A$8,"",OFFSET(InputPriceData!$F$15,CalculationsAndCharts!$A93+$A$11,IF($C$5,8,0),1,1))) -> 24579.96 | H93: 330870000 | I93: 0 | J93: 209379552.4 | K93: 133952412.8 | L93: 0.2196915735 | M93: 2.196915735 | N93: 0.3044681652 | O93: 24562.86897 | P93: 24207.14469 | Q93: 196307802.9 | R93: 160605345.7 | S93: 0.1000312185 | T93: 1.000312185 | U93: 0.0784436151 | V93: 24085.79113 | W93: 24207.14469 | AW93: 330870000
A94: 62 | B94: =IF(A94>$B$30,NA(),IF($A94>$A$8,"",OFFSET(InputPriceData!$B$15,$A94+$A$11,0,1,1))) -> 2019-01-28 | C94: =IF(A94>$B$30,NA(),IF($A94>$A$8,"",OFFSET(InputPriceData!$G$15,CalculationsAndCharts!$A94+$A$11,IF($C$5,8,0),1,1))) -> 347170000 | D94: =IF(A94>$B$30,NA(),IF(A94>$A$8,"",OFFSET(InputPriceData!$C$15,CalculationsAndCharts!$A94+$A$11,IF($C$5,8,0),1,1))) -> 24596.98 | E94: =IF(A94>$B$30,NA(),IF(A94>$A$8,"",OFFSET(InputPriceData!$D$15,CalculationsAndCharts!$A94+$A$11,IF($C$5,8,0),1,1))) -> 24596.98 | F94: =IF(A94>$B$30,NA(),IF(A94>$A$8,"",OFFSET(InputPriceData!$E$15,CalculationsAndCharts!$A94+$A$11,IF($C$5,8,0),1,1))) -> 24323.94 | G94: =IF(A94>$B$30,NA(),IF(A94>$A$8,"",OFFSET(InputPriceData!$F$15,CalculationsAndCharts!$A94+$A$11,IF($C$5,8,0),1,1))) -> 24528.22 | H94: 0 | I94: 347170000 | J94: 196591084.3 | K94: 148052666.8 | L94: 0.1408364939 | M94: 1.408364939 | N94: 0.2293680894 | O94: 24555.3874 | P94: 24167.90098 | Q94: 190815468.3 | R94: 167160666 | S94: 0.066079272 | T94: 0.66079272 | U94: 0.06512912627 | V94: 24043.72708 | W94: 24167.90098 | AX94: 347170000
A95: 63 | B95: =IF(A95>$B$30,NA(),IF($A95>$A$8,"",OFFSET(InputPriceData!$B$15,$A95+$A$11,0,1,1))) -> 2019-01-25 | C95: =IF(A95>$B$30,NA(),IF($A95>$A$8,"",OFFSET(InputPriceData!$G$15,CalculationsAndCharts!$A95+$A$11,IF($C$5,8,0),1,1))) -> 376890000 | D95: =IF(A95>$B$30,NA(),IF(A95>$A$8,"",OFFSET(InputPriceData!$C$15,CalculationsAndCharts!$A95+$A$11,IF($C$5,8,0),1,1))) -> 24687.21 | E95: =IF(A95>$B$30,NA(),IF(A95>$A$8,"",OFFSET(InputPriceData!$D$15,CalculationsAndCharts!$A95+$A$11,IF($C$5,8,0),1,1))) -> 24860.15 | F95: =IF(A95>$B$30,NA(),IF(A95>$A$8,"",OFFSET(InputPriceData!$E$15,CalculationsAndCharts!$A95+$A$11,IF($C$5,8,0),1,1))) -> 24676.75 | G95: =IF(A95>$B$30,NA(),IF(A95>$A$8,"",OFFSET(InputPriceData!$F$15,CalculationsAndCharts!$A95+$A$11,IF($C$5,8,0),1,1))) -> 24737.2 | H95: 376890000 | I95: 0 | J95: 217284882.6 | K95: 127092947.5 | L95: 0.2618982039 | M95: 2.618982039 | N95: 0.3446649561 | O95: 24563.47341 | P95: 24129.97266 | Q95: 198603854.8 | R95: 159813346.2 | S95: 0.1082272515 | T95: 1.082272515 | U95: 0.0816577457 | V95: 24009.97418 | W95: 24129.97266 | AW95: 376890000
A96: 64 | B96: =IF(A96>$B$30,NA(),IF($A96>$A$8,"",OFFSET(InputPriceData!$B$15,$A96+$A$11,0,1,1))) -> 2019-01-24 | C96: =IF(A96>$B$30,NA(),IF($A96>$A$8,"",OFFSET(InputPriceData!$G$15,CalculationsAndCharts!$A96+$A$11,IF($C$5,8,0),1,1))) -> 320170000 | D96: =IF(A96>$B$30,NA(),IF(A96>$A$8,"",OFFSET(InputPriceData!$C$15,CalculationsAndCharts!$A96+$A$11,IF($C$5,8,0),1,1))) -> 24579.96 | E96: =IF(A96>$B$30,NA(),IF(A96>$A$8,"",OFFSET(InputPriceData!$D$15,CalculationsAndCharts!$A96+$A$11,IF($C$5,8,0),1,1))) -> 24626.3 | F96: =IF(A96>$B$30,NA(),IF(A96>$A$8,"",OFFSET(InputPriceData!$E$15,CalculationsAndCharts!$A96+$A$11,IF($C$5,8,0),1,1))) -> 24422.73 | G96: =IF(A96>$B$30,NA(),IF(A96>$A$8,"",OFFSET(InputPriceData!$F$15,CalculationsAndCharts!$A96+$A$11,IF($C$5,8,0),1,1))) -> 24553.24 | H96: 0 | I96: 320170000 | J96: 200484344 | K96: 140471152.5 | L96: 0.1760147354 | M96: 1.760147354 | N96: 0.2628711766 | O96: 24472.10416 | P96: 24066.05399 | Q96: 191326869.3 | R96: 166336339.9 | S96: 0.06987168006 | T96: 0.6987168006 | U96: 0.06661634512 | V96: 23945.31025 | W96: 24066.05399 | AX96: 320170000
A97: 65 | B97: =IF(A97>$B$30,NA(),IF($A97>$A$8,"",OFFSET(InputPriceData!$B$15,$A97+$A$11,0,1,1))) -> 2019-01-23 | C97: =IF(A97>$B$30,NA(),IF($A97>$A$8,"",OFFSET(InputPriceData!$G$15,CalculationsAndCharts!$A97+$A$11,IF($C$5,8,0),1,1))) -> 318600000 | D97: =IF(A97>$B$30,NA(),IF(A97>$A$8,"",OFFSET(InputPriceData!$C$15,CalculationsAndCharts!$A97+$A$11,IF($C$5,8,0),1,1))) -> 24577.25 | E97: =IF(A97>$B$30,NA(),IF(A97>$A$8,"",OFFSET(InputPriceData!$D$15,CalculationsAndCharts!$A97+$A$11,IF($C$5,8,0),1,1))) -> 24700.98 | F97: =IF(A97>$B$30,NA(),IF(A97>$A$8,"",OFFSET(InputPriceData!$E$15,CalculationsAndCharts!$A97+$A$11,IF($C$5,8,0),1,1))) -> 24307.17 | G97: =IF(A97>$B$30,NA(),IF(A97>$A$8,"",OFFSET(InputPriceData!$F$15,CalculationsAndCharts!$A97+$A$11,IF($C$5,8,0),1,1))) -> 24575.62 | H97: 318600000 | I97: 0 | J97: 221587959.1 | K97: 121555484.3 | L97: 0.2915179548 | M97: 2.915179548 | N97: 0.3728742426 | O97: 24443.16991 | P97: 24014.77125 | Q97: 199136129.2 | R97: 160057415 | S97: 0.1087957031 | T97: 1.087957031 | U97: 0.08188066788 | V97: 23901.92181 | W97: 24014.77125 | AW97: =IF(G97>=D97,C97,NA()) ->  | AX97: =IF(G97<D97,C97,NA()) -> 318600000
A98: 66 | B98: =IF(A98>$B$30,NA(),IF($A98>$A$8,"",OFFSET(InputPriceData!$B$15,$A98+$A$11,0,1,1))) -> 2019-01-22 | C98: =IF(A98>$B$30,NA(),IF($A98>$A$8,"",OFFSET(InputPriceData!$G$15,CalculationsAndCharts!$A98+$A$11,IF($C$5,8,0),1,1))) -> 338480000 | D98: =IF(A98>$B$30,NA(),IF(A98>$A$8,"",OFFSET(InputPriceData!$C$15,CalculationsAndCharts!$A98+$A$11,IF($C$5,8,0),1,1))) -> 24607.76 | E98: =IF(A98>$B$30,NA(),IF(A98>$A$8,"",OFFSET(InputPriceData!$D$15,CalculationsAndCharts!$A98+$A$11,IF($C$5,8,0),1,1))) -> 24607.76 | F98: =IF(A98>$B$30,NA(),IF(A98>$A$8,"",OFFSET(InputPriceData!$E$15,CalculationsAndCharts!$A98+$A$11,IF($C$5,8,0),1,1))) -> 24244.31 | G98: =IF(A98>$B$30,NA(),IF(A98>$A$8,"",OFFSET(InputPriceData!$F$15,CalculationsAndCharts!$A98+$A$11,IF($C$5,8,0),1,1))) -> 24404.48 | H98: =IF($A98>$H$30,NA(),IF($G98>$G99,$C98,0)) -> 0 | I98: =IF($A98>$H$30,NA(),IF($G98<$G99,$C98,0)) -> 338480000 | J98: =IF($A98>$J$30,NA(),IF($A98=$J$30,AVERAGE(OFFSET(H98,0,0,$A$19,1)),J99+$C$19*(H98-J99))) -> 211376165.3 | K98: =IF($A98>$J$30,NA(),IF($A98=$J$30,AVERAGE(OFFSET(I98,0,0,$A$19,1)),K99+$C$19*(I98-K99))) -> 134350798.4 | L98: =IF($A98>$J$30,NA(),ABS(J98-K98)/(J98+K98+0.00001)) -> 0.2227924778 | M98: =IF($A98>$J$30,NA(),L98*$A$20) -> 2.227924778 | N98: =IF($A98>$J$30,NA(),$C$18*(1+M98)) -> 0.3074214074 | O98: =IF($A98>$O$30,NA(),IF($A98=$O$30,$G98,O99+N98*($G98-O99))) -> 24364.41819 | P98: =IF($A98>$P$30,NA(),IF($A98=$P$30,AVERAGE(OFFSET($G98,0,0,$A$23,1)),P99+$C$23*($G98-P99))) -> 23955.73454 | Q98: =IF($A98>$Q$30,NA(),IF($A98=$Q$30,AVERAGE(OFFSET($H98,0,0,$D$19,1)),Q99+$F$19*($H98-Q99))) -> 194260052.9 | R98: =IF($A98>$Q$30,NA(),IF($A98=$Q$30,AVERAGE(OFFSET($I98,0,0,$D$19,1)),R99+$F$19*($I98-R99))) -> 166590370.8 | S98: =IF($A98>$Q$30,NA(),ABS(Q98-R98)/(Q98+R98+0.00001)) -> 0.07667909002 | T98: =IF($A98>$J$30,NA(),S98*$A$20) -> 0.7667909002 | U98: =IF($A98>$Q$30,NA(),$F$18*(1+T98)) -> 0.06928591766 | V98: =IF($A98>$V$30,NA(),IF($A98=$V$30,$G98,V99+U98*($G98-V99))) -> 23841.83936 | W98: =IF($A98>$W$30,NA(),IF($A98=$W$30,AVERAGE(OFFSET($G98,0,0,$D$23,1)),W99+$F$23*($G98-W99))) -> 23955.73454 | AX98: 338480000
A99: 67 | B99: =IF(A99>$B$30,NA(),IF($A99>$A$8,"",OFFSET(InputPriceData!$B$15,$A99+$A$11,0,1,1))) -> 2019-01-18 | C99: =IF(A99>$B$30,NA(),IF($A99>$A$8,"",OFFSET(InputPriceData!$G$15,CalculationsAndCharts!$A99+$A$11,IF($C$5,8,0),1,1))) -> 372970000 | D99: =IF(A99>$B$30,NA(),IF(A99>$A$8,"",OFFSET(InputPriceData!$C$15,CalculationsAndCharts!$A99+$A$11,IF($C$5,8,0),1,1))) -> 24534.19 | E99: =IF(A99>$B$30,NA(),IF(A99>$A$8,"",OFFSET(InputPriceData!$D$15,CalculationsAndCharts!$A99+$A$11,IF($C$5,8,0),1,1))) -> 24750.22 | F99: =IF(A99>$B$30,NA(),IF(A99>$A$8,"",OFFSET(InputPriceData!$E$15,CalculationsAndCharts!$A99+$A$11,IF($C$5,8,0),1,1))) -> 24459.03 | G99: =IF(A99>$B$30,NA(),IF(A99>$A$8,"",OFFSET(InputPriceData!$F$15,CalculationsAndCharts!$A99+$A$11,IF($C$5,8,0),1,1))) -> 24706.35 | H99: 372970000 | I99: 0 | J99: 233626288 | K99: 112863514.1 | L99: 0.3485319718 | M99: 3.485319718 | N99: 0.4271733065 | O99: 24346.63558 | P99: 23908.49818 | Q99: 202189034.6 | R99: 159574467.5 | S99: 0.1177967563 | T99: 1.177967563 | U99: 0.08541049267 | V99: 23799.95424 | W99: 23908.49818 | AW99: 372970000
A100: 68 | B100: =IF(A100>$B$30,NA(),IF($A100>$A$8,"",OFFSET(InputPriceData!$B$15,$A100+$A$11,0,1,1))) -> 2019-01-17 | C100: =IF(A100>$B$30,NA(),IF($A100>$A$8,"",OFFSET(InputPriceData!$G$15,CalculationsAndCharts!$A100+$A$11,IF($C$5,8,0),1,1))) -> 288590000 | D100: =IF(A100>$B$30,NA(),IF(A100>$A$8,"",OFFSET(InputPriceData!$C$15,CalculationsAndCharts!$A100+$A$11,IF($C$5,8,0),1,1))) -> 24147.09 | E100: =IF(A100>$B$30,NA(),IF(A100>$A$8,"",OFFSET(InputPriceData!$D$15,CalculationsAndCharts!$A100+$A$11,IF($C$5,8,0),1,1))) -> 24474.46 | F100: =IF(A100>$B$30,NA(),IF(A100>$A$8,"",OFFSET(InputPriceData!$E$15,CalculationsAndCharts!$A100+$A$11,IF($C$5,8,0),1,1))) -> 24088.9 | G100: =IF(A100>$B$30,NA(),IF(A100>$A$8,"",OFFSET(InputPriceData!$F$15,CalculationsAndCharts!$A100+$A$11,IF($C$5,8,0),1,1))) -> 24370.1 | H100: 288590000 | I100: 0 | J100: 218958528.8 | K100: 124743884 | L100: 0.2741169144 | M100: 2.741169144 | N100: 0.3563018233 | O100: 24078.38621 | P100: 23824.51378 | Q100: 195218383 | R100: 166087711.1 | S100: 0.08062601866 | T100: 0.8062601866 | U100: 0.07083373281 | V100: 23715.30894 | W100: 23824.51378 | AW100: 288590000
A101: 69 | B101: =IF(A101>$B$30,NA(),IF($A101>$A$8,"",OFFSET(InputPriceData!$B$15,$A101+$A$11,0,1,1))) -> 2019-01-16 | C101: =IF(A101>$B$30,NA(),IF($A101>$A$8,"",OFFSET(InputPriceData!$G$15,CalculationsAndCharts!$A101+$A$11,IF($C$5,8,0),1,1))) -> 302830000 | D101: =IF(A101>$B$30,NA(),IF(A101>$A$8,"",OFFSET(InputPriceData!$C$15,CalculationsAndCharts!$A101+$A$11,IF($C$5,8,0),1,1))) -> 24139.91 | E101: =IF(A101>$B$30,NA(),IF(A101>$A$8,"",OFFSET(InputPriceData!$D$15,CalculationsAndCharts!$A101+$A$11,IF($C$5,8,0),1,1))) -> 24288.61 | F101: =IF(A101>$B$30,NA(),IF(A101>$A$8,"",OFFSET(InputPriceData!$E$15,CalculationsAndCharts!$A101+$A$11,IF($C$5,8,0),1,1))) -> 24119.72 | G101: =IF(A101>$B$30,NA(),IF(A101>$A$8,"",OFFSET(InputPriceData!$F$15,CalculationsAndCharts!$A101+$A$11,IF($C$5,8,0),1,1))) -> 24207.16 | H101: 302830000 | I101: 0 | J101: 211628900.3 | K101: 137874819.1 | L101: 0.2110251682 | M101: 2.110251682 | N101: 0.2962144459 | O101: 23916.91588 | P101: 23767.08365 | Q101: 191407296.6 | R101: 172866801.4 | S101: 0.0508971001 | T101: 0.508971001 | U101: 0.05917533337 | V101: 23665.39183 | W101: 23767.08365 | AW101: 302830000
A102: 70 | B102: =IF(A102>$B$30,NA(),IF($A102>$A$8,"",OFFSET(InputPriceData!$B$15,$A102+$A$11,0,1,1))) -> 2019-01-15 | C102: =IF(A102>$B$30,NA(),IF($A102>$A$8,"",OFFSET(InputPriceData!$G$15,CalculationsAndCharts!$A102+$A$11,IF($C$5,8,0),1,1))) -> 291570000 | D102: =IF(A102>$B$30,NA(),IF(A102>$A$8,"",OFFSET(InputPriceData!$C$15,CalculationsAndCharts!$A102+$A$11,IF($C$5,8,0),1,1))) -> 23914.11 | E102: =IF(A102>$B$30,NA(),IF(A102>$A$8,"",OFFSET(InputPriceData!$D$15,CalculationsAndCharts!$A102+$A$11,IF($C$5,8,0),1,1))) -> 24099.14 | F102: =IF(A102>$B$30,NA(),IF(A102>$A$8,"",OFFSET(InputPriceData!$E$15,CalculationsAndCharts!$A102+$A$11,IF($C$5,8,0),1,1))) -> 23887.93 | G102: =IF(A102>$B$30,NA(),IF(A102>$A$8,"",OFFSET(InputPriceData!$F$15,CalculationsAndCharts!$A102+$A$11,IF($C$5,8,0),1,1))) -> 24065.59 | H102: 291570000 | I102: 0 | J102: 202028784.5 | K102: 152387958 | L102: 0.1400634355 | M102: 1.400634355 | N102: 0.2286318434 | O102: 23794.7558 | P102: 23720.75982 | Q102: 186859431.1 | R102: 179922589.2 | S102: 0.01891270997 | T102: 0.1891270997 | U102: 0.04663243528 | V102: 23631.31607 | W102: 23720.75982 | AW102: 291570000
A103: 71 | B103: =IF(A103>$B$30,NA(),IF($A103>$A$8,"",OFFSET(InputPriceData!$B$15,$A103+$A$11,0,1,1))) -> 2019-01-14 | C103: =IF(A103>$B$30,NA(),IF($A103>$A$8,"",OFFSET(InputPriceData!$G$15,CalculationsAndCharts!$A103+$A$11,IF($C$5,8,0),1,1))) -> 277560000 | D103: =IF(A103>$B$30,NA(),IF(A103>$A$8,"",OFFSET(InputPriceData!$C$15,CalculationsAndCharts!$A103+$A$11,IF($C$5,8,0),1,1))) -> 23880.53 | E103: =IF(A103>$B$30,NA(),IF(A103>$A$8,"",OFFSET(InputPriceData!$D$15,CalculationsAndCharts!$A103+$A$11,IF($C$5,8,0),1,1))) -> 23964.9 | F103: =IF(A103>$B$30,NA(),IF(A103>$A$8,"",OFFSET(InputPriceData!$E$15,CalculationsAndCharts!$A103+$A$11,IF($C$5,8,0),1,1))) -> 23765.24 | G103: =IF(A103>$B$30,NA(),IF(A103>$A$8,"",OFFSET(InputPriceData!$F$15,CalculationsAndCharts!$A103+$A$11,IF($C$5,8,0),1,1))) -> 23909.84 | H103: 0 | I103: 277560000 | J103: 192603393.4 | K103: 168428795.7 | L103: 0.06695967428 | M103: 0.6695967428 | N103: 0.1590092136 | O103: 23714.48113 | P103: 23684.46191 | Q103: 182585530.4 | R103: 187266368.3 | S103: 0.01265597923 | T103: 0.1265597923 | U103: 0.04417881539 | V103: 23610.07426 | W103: 23684.46191 | AW103: 277560000
A104: 72 | B104: =IF(A104>$B$30,NA(),IF($A104>$A$8,"",OFFSET(InputPriceData!$B$15,$A104+$A$11,0,1,1))) -> 2019-01-11 | C104: =IF(A104>$B$30,NA(),IF($A104>$A$8,"",OFFSET(InputPriceData!$G$15,CalculationsAndCharts!$A104+$A$11,IF($C$5,8,0),1,1))) -> 262650000 | D104: =IF(A104>$B$30,NA(),IF(A104>$A$8,"",OFFSET(InputPriceData!$C$15,CalculationsAndCharts!$A104+$A$11,IF($C$5,8,0),1,1))) -> 23940.01 | E104: =IF(A104>$B$30,NA(),IF(A104>$A$8,"",OFFSET(InputPriceData!$D$15,CalculationsAndCharts!$A104+$A$11,IF($C$5,8,0),1,1))) -> 23996.32 | F104: =IF(A104>$B$30,NA(),IF(A104>$A$8,"",OFFSET(InputPriceData!$E$15,CalculationsAndCharts!$A104+$A$11,IF($C$5,8,0),1,1))) -> 23798.16 | G104: =IF(A104>$B$30,NA(),IF(A104>$A$8,"",OFFSET(InputPriceData!$F$15,CalculationsAndCharts!$A104+$A$11,IF($C$5,8,0),1,1))) -> 23995.95 | H104: 0 | I104: 262650000 | J104: 212877434.9 | K104: 156941300.5 | L104: 0.1512528411 | M104: 1.512528411 | N104: 0.2392884201 | O104: 23677.54392 | P104: 23660.7379 | Q104: 190038001 | R104: 183580914 | S104: 0.01728254854 | T104: 0.1728254854 | U104: 0.04599315629 | V104: 23596.21885 | W104: 23660.7379 | AW104: 262650000
A105: 73 | B105: =IF(A105>$B$30,NA(),IF($A105>$A$8,"",OFFSET(InputPriceData!$B$15,$A105+$A$11,0,1,1))) -> 2019-01-10 | C105: =IF(A105>$B$30,NA(),IF($A105>$A$8,"",OFFSET(InputPriceData!$G$15,CalculationsAndCharts!$A105+$A$11,IF($C$5,8,0),1,1))) -> 338150000 | D105: =IF(A105>$B$30,NA(),IF(A105>$A$8,"",OFFSET(InputPriceData!$C$15,CalculationsAndCharts!$A105+$A$11,IF($C$5,8,0),1,1))) -> 23811.11 | E105: =IF(A105>$B$30,NA(),IF(A105>$A$8,"",OFFSET(InputPriceData!$D$15,CalculationsAndCharts!$A105+$A$11,IF($C$5,8,0),1,1))) -> 24014.78 | F105: =IF(A105>$B$30,NA(),IF(A105>$A$8,"",OFFSET(InputPriceData!$E$15,CalculationsAndCharts!$A105+$A$11,IF($C$5,8,0),1,1))) -> 23703.25 | G105: =IF(A105>$B$30,NA(),IF(A105>$A$8,"",OFFSET(InputPriceData!$F$15,CalculationsAndCharts!$A105+$A$11,IF($C$5,8,0),1,1))) -> 24001.92 | H105: 338150000 | I105: 0 | J105: 235285585.9 | K105: 145814068.9 | L105: 0.2347719706 | M105: 2.347719706 | N105: 0.3188304482 | O105: 23577.38652 | P105: 23625.45242 | Q105: 197794654.1 | R105: 180353604.3 | S105: 0.04612225332 | T105: 0.4612225332 | U105: 0.05730284444 | V105: 23576.94761 | W105: 23625.45242 | AW105: 338150000
A106: 74 | B106: =IF(A106>$B$30,NA(),IF($A106>$A$8,"",OFFSET(InputPriceData!$B$15,$A106+$A$11,0,1,1))) -> 2019-01-09 | C106: =IF(A106>$B$30,NA(),IF($A106>$A$8,"",OFFSET(InputPriceData!$G$15,CalculationsAndCharts!$A106+$A$11,IF($C$5,8,0),1,1))) -> 324570000 | D106: =IF(A106>$B$30,NA(),IF(A106>$A$8,"",OFFSET(InputPriceData!$C$15,CalculationsAndCharts!$A106+$A$11,IF($C$5,8,0),1,1))) -> 23844.27 | E106: =IF(A106>$B$30,NA(),IF(A106>$A$8,"",OFFSET(InputPriceData!$D$15,CalculationsAndCharts!$A106+$A$11,IF($C$5,8,0),1,1))) -> 24084.71 | F106: =IF(A106>$B$30,NA(),IF(A106>$A$8,"",OFFSET(InputPriceData!$E$15,CalculationsAndCharts!$A106+$A$11,IF($C$5,8,0),1,1))) -> 23703.16 | G106: =IF(A106>$B$30,NA(),IF(A106>$A$8,"",OFFSET(InputPriceData!$F$15,CalculationsAndCharts!$A106+$A$11,IF($C$5,8,0),1,1))) -> 23879.12 | H106: 324570000 | I106: 0 | J106: 224457752.8 | K106: 161162918.3 | L106: 0.1641375561 | M106: 1.641375561 | N106: 0.2515595772 | O106: 23378.67799 | P106: 23585.82425 | Q106: 192065864.5 | R106: 187714975.9 | S106: 0.01145631394 | T106: 0.1145631394 | U106: 0.04370835841 | V106: 23551.11521 | W106: 23585.82425 | AW106: 324570000
A107: 75 | B107: =IF(A107>$B$30,NA(),IF($A107>$A$8,"",OFFSET(InputPriceData!$B$15,$A107+$A$11,0,1,1))) -> 2019-01-08 | C107: =IF(A107>$B$30,NA(),IF($A107>$A$8,"",OFFSET(InputPriceData!$G$15,CalculationsAndCharts!$A107+$A$11,IF($C$5,8,0),1,1))) -> 317420000 | D107: =IF(A107>$B$30,NA(),IF(A107>$A$8,"",OFFSET(InputPriceData!$C$15,CalculationsAndCharts!$A107+$A$11,IF($C$5,8,0),1,1))) -> 23680.32 | E107: =IF(A107>$B$30,NA(),IF(A107>$A$8,"",OFFSET(InputPriceData!$D$15,CalculationsAndCharts!$A107+$A$11,IF($C$5,8,0),1,1))) -> 23864.65 | F107: =IF(A107>$B$30,NA(),IF(A107>$A$8,"",OFFSET(InputPriceData!$E$15,CalculationsAndCharts!$A107+$A$11,IF($C$5,8,0),1,1))) -> 23581.45 | G107: =IF(A107>$B$30,NA(),IF(A107>$A$8,"",OFFSET(InputPriceData!$F$15,CalculationsAndCharts!$A107+$A$11,IF($C$5,8,0),1,1))) -> 23787.45 | H107: 317420000 | I107: 0 | J107: 213919621.5 | K107: 178127436 | L107: 0.09129563621 | M107: 0.9129563621 | N107: 0.1821863202 | O107: 23210.47358 | P107: 23554.95101 | Q107: 186657532.4 | R107: 195376811.7 | S107: 0.02282328648 | T107: 0.2282328648 | U107: 0.0481659947 | V107: 23536.12339 | W107: 23554.95101 | AW107: 317420000
A108: 76 | B108: =IF(A108>$B$30,NA(),IF($A108>$A$8,"",OFFSET(InputPriceData!$B$15,$A108+$A$11,0,1,1))) -> 2019-01-07 | C108: =IF(A108>$B$30,NA(),IF($A108>$A$8,"",OFFSET(InputPriceData!$G$15,CalculationsAndCharts!$A108+$A$11,IF($C$5,8,0),1,1))) -> 334200000 | D108: =IF(A108>$B$30,NA(),IF(A108>$A$8,"",OFFSET(InputPriceData!$C$15,CalculationsAndCharts!$A108+$A$11,IF($C$5,8,0),1,1))) -> 23474.26 | E108: =IF(A108>$B$30,NA(),IF(A108>$A$8,"",OFFSET(InputPriceData!$D$15,CalculationsAndCharts!$A108+$A$11,IF($C$5,8,0),1,1))) -> 23687.74 | F108: =IF(A108>$B$30,NA(),IF(A108>$A$8,"",OFFSET(InputPriceData!$E$15,CalculationsAndCharts!$A108+$A$11,IF($C$5,8,0),1,1))) -> 23301.59 | G108: =IF(A108>$B$30,NA(),IF(A108>$A$8,"",OFFSET(InputPriceData!$F$15,CalculationsAndCharts!$A108+$A$11,IF($C$5,8,0),1,1))) -> 23531.35 | H108: 334200000 | I108: 0 | J108: 203024844.9 | K108: 196877692.4 | L108: 0.0153716265 | M108: 0.153716265 | N108: 0.1098777395 | O108: 23081.93916 | P108: 23530.47743 | Q108: 181320288.8 | R108: 203351375.4 | S108: 0.05727244465 | T108: 0.5727244465 | U108: 0.06167546849 | V108: 23523.40542 | W108: 23530.47743 | AW108: 334200000
A109: 77 | B109: =IF(A109>$B$30,NA(),IF($A109>$A$8,"",OFFSET(InputPriceData!$B$15,$A109+$A$11,0,1,1))) -> 2019-01-04 | C109: =IF(A109>$B$30,NA(),IF($A109>$A$8,"",OFFSET(InputPriceData!$G$15,CalculationsAndCharts!$A109+$A$11,IF($C$5,8,0),1,1))) -> 396020000 | D109: =IF(A109>$B$30,NA(),IF(A109>$A$8,"",OFFSET(InputPriceData!$C$15,CalculationsAndCharts!$A109+$A$11,IF($C$5,8,0),1,1))) -> 22894.92 | E109: =IF(A109>$B$30,NA(),IF(A109>$A$8,"",OFFSET(InputPriceData!$D$15,CalculationsAndCharts!$A109+$A$11,IF($C$5,8,0),1,1))) -> 23518.64 | F109: =IF(A109>$B$30,NA(),IF(A109>$A$8,"",OFFSET(InputPriceData!$E$15,CalculationsAndCharts!$A109+$A$11,IF($C$5,8,0),1,1))) -> 22894.92 | G109: =IF(A109>$B$30,NA(),IF(A109>$A$8,"",OFFSET(InputPriceData!$F$15,CalculationsAndCharts!$A109+$A$11,IF($C$5,8,0),1,1))) -> 23433.16 | H109: 396020000 | I109: 0 | J109: 189216933.8 | K109: 217601660 | L109: 0.06977244079 | M109: 0.6977244079 | N109: 0.1616880388 | O109: 23026.46336 | P109: 23530.38558 | Q109: 175080300.6 | R109: 211651431.6 | S109: 0.09456459842 | T109: 0.9456459842 | U109: 0.07629984252 | V109: 23522.88323 | W109: 23530.38558 | AW109: 396020000
A110: 78 | B110: =IF(A110>$B$30,NA(),IF($A110>$A$8,"",OFFSET(InputPriceData!$B$15,$A110+$A$11,0,1,1))) -> 2019-01-03 | C110: =IF(A110>$B$30,NA(),IF($A110>$A$8,"",OFFSET(InputPriceData!$G$15,CalculationsAndCharts!$A110+$A$11,IF($C$5,8,0),1,1))) -> 424240000 | D110: =IF(A110>$B$30,NA(),IF(A110>$A$8,"",OFFSET(InputPriceData!$C$15,CalculationsAndCharts!$A110+$A$11,IF($C$5,8,0),1,1))) -> 23176.39 | E110: =IF(A110>$B$30,NA(),IF(A110>$A$8,"",OFFSET(InputPriceData!$D$15,CalculationsAndCharts!$A110+$A$11,IF($C$5,8,0),1,1))) -> 23176.39 | F110: =IF(A110>$B$30,NA(),IF(A110>$A$8,"",OFFSET(InputPriceData!$E$15,CalculationsAndCharts!$A110+$A$11,IF($C$5,8,0),1,1))) -> 22638.41 | G110: =IF(A110>$B$30,NA(),IF(A110>$A$8,"",OFFSET(InputPriceData!$F$15,CalculationsAndCharts!$A110+$A$11,IF($C$5,8,0),1,1))) -> 22686.22 | H110: 0 | I110: 424240000 | J110: 167448190 | K110: 240507097.9 | L110: 0.1790855766 | M110: 1.790855766 | N110: 0.2657957872 | O110: 22948.02241 | P110: 23540.61986 | Q110: 166062353.7 | R110: 220290265.5 | S110: 0.1403585976 | T110: 1.403585976 | U110: 0.09425827356 | V110: 23530.29459 | W110: 23540.61986 | AX110: 424240000
A111: 79 | B111: =IF(A111>$B$30,NA(),IF($A111>$A$8,"",OFFSET(InputPriceData!$B$15,$A111+$A$11,0,1,1))) -> 2019-01-02 | C111: =IF(A111>$B$30,NA(),IF($A111>$A$8,"",OFFSET(InputPriceData!$G$15,CalculationsAndCharts!$A111+$A$11,IF($C$5,8,0),1,1))) -> 321570000 | D111: =IF(A111>$B$30,NA(),IF(A111>$A$8,"",OFFSET(InputPriceData!$C$15,CalculationsAndCharts!$A111+$A$11,IF($C$5,8,0),1,1))) -> 23058.61 | E111: =IF(A111>$B$30,NA(),IF(A111>$A$8,"",OFFSET(InputPriceData!$D$15,CalculationsAndCharts!$A111+$A$11,IF($C$5,8,0),1,1))) -> 23413.47 | F111: =IF(A111>$B$30,NA(),IF(A111>$A$8,"",OFFSET(InputPriceData!$E$15,CalculationsAndCharts!$A111+$A$11,IF($C$5,8,0),1,1))) -> 22928.59 | G111: =IF(A111>$B$30,NA(),IF(A111>$A$8,"",OFFSET(InputPriceData!$F$15,CalculationsAndCharts!$A111+$A$11,IF($C$5,8,0),1,1))) -> 23346.24 | H111: 321570000 | I111: 0 | J111: 185074315.2 | K111: 221166792.5 | L111: 0.08884496555 | M111: 0.8884496555 | N111: 0.1798523481 | O111: 23042.79983 | P111: 23630.55668 | Q111: 172840409 | R111: 211965786.5 | S111: 0.1016755397 | T111: 1.016755397 | U111: 0.07908844692 | V111: 23618.13532 | W111: 23630.55668 | AW111: 321570000
A112: 80 | B112: =IF(A112>$B$30,NA(),IF($A112>$A$8,"",OFFSET(InputPriceData!$B$15,$A112+$A$11,0,1,1))) -> 2018-12-31 | C112: =IF(A112>$B$30,NA(),IF($A112>$A$8,"",OFFSET(InputPriceData!$G$15,CalculationsAndCharts!$A112+$A$11,IF($C$5,8,0),1,1))) -> 288830000 | D112: =IF(A112>$B$30,NA(),IF(A112>$A$8,"",OFFSET(InputPriceData!$C$15,CalculationsAndCharts!$A112+$A$11,IF($C$5,8,0),1,1))) -> 23153.94 | E112: =IF(A112>$B$30,NA(),IF(A112>$A$8,"",OFFSET(InputPriceData!$D$15,CalculationsAndCharts!$A112+$A$11,IF($C$5,8,0),1,1))) -> 23333.18 | F112: =IF(A112>$B$30,NA(),IF(A112>$A$8,"",OFFSET(InputPriceData!$E$15,CalculationsAndCharts!$A112+$A$11,IF($C$5,8,0),1,1))) -> 23118.3 | G112: =IF(A112>$B$30,NA(),IF(A112>$A$8,"",OFFSET(InputPriceData!$F$15,CalculationsAndCharts!$A112+$A$11,IF($C$5,8,0),1,1))) -> 23327.46 | H112: 288830000 | I112: 0 | J112: 170706348.4 | K112: 244447507.5 | L112: 0.1776236881 | M112: 1.776236881 | N112: 0.2644035125 | O112: 22976.25763 | P112: 23660.48476 | Q112: 166769813.4 | R112: 220617451.3 | S112: 0.139002086 | T112: 1.39002086 | U112: 0.09372630825 | V112: 23641.48585 | W112: 23660.48476 | AW112: 288830000
A113: 81 | B113: =IF(A113>$B$30,NA(),IF($A113>$A$8,"",OFFSET(InputPriceData!$B$15,$A113+$A$11,0,1,1))) -> 2018-12-28 | C113: =IF(A113>$B$30,NA(),IF($A113>$A$8,"",OFFSET(InputPriceData!$G$15,CalculationsAndCharts!$A113+$A$11,IF($C$5,8,0),1,1))) -> 336510000 | D113: =IF(A113>$B$30,NA(),IF(A113>$A$8,"",OFFSET(InputPriceData!$C$15,CalculationsAndCharts!$A113+$A$11,IF($C$5,8,0),1,1))) -> 23213.61 | E113: =IF(A113>$B$30,NA(),IF(A113>$A$8,"",OFFSET(InputPriceData!$D$15,CalculationsAndCharts!$A113+$A$11,IF($C$5,8,0),1,1))) -> 23381.88 | F113: =IF(A113>$B$30,NA(),IF(A113>$A$8,"",OFFSET(InputPriceData!$E$15,CalculationsAndCharts!$A113+$A$11,IF($C$5,8,0),1,1))) -> 22981.33 | G113: =IF(A113>$B$30,NA(),IF(A113>$A$8,"",OFFSET(InputPriceData!$F$15,CalculationsAndCharts!$A113+$A$11,IF($C$5,8,0),1,1))) -> 23062.4 | H113: 0 | I113: 336510000 | J113: 158272279.8 | K113: 270178824 | L113: 0.2611886005 | M113: 2.611886005 | N113: 0.3439891433 | O113: 22850.02111 | P113: 23695.53999 | Q113: 161787765 | R113: 229622245.2 | S113: 0.1733079852 | T113: 1.733079852 | U113: 0.107179602 | V113: 23673.96223 | W113: 23695.53999 | AX113: 336510000
A114: 82 | B114: =IF(A114>$B$30,NA(),IF($A114>$A$8,"",OFFSET(InputPriceData!$B$15,$A114+$A$11,0,1,1))) -> 2018-12-27 | C114: =IF(A114>$B$30,NA(),IF($A114>$A$8,"",OFFSET(InputPriceData!$G$15,CalculationsAndCharts!$A114+$A$11,IF($C$5,8,0),1,1))) -> 407940000 | D114: =IF(A114>$B$30,NA(),IF(A114>$A$8,"",OFFSET(InputPriceData!$C$15,CalculationsAndCharts!$A114+$A$11,IF($C$5,8,0),1,1))) -> 22629.06 | E114: =IF(A114>$B$30,NA(),IF(A114>$A$8,"",OFFSET(InputPriceData!$D$15,CalculationsAndCharts!$A114+$A$11,IF($C$5,8,0),1,1))) -> 23138.89 | F114: =IF(A114>$B$30,NA(),IF(A114>$A$8,"",OFFSET(InputPriceData!$E$15,CalculationsAndCharts!$A114+$A$11,IF($C$5,8,0),1,1))) -> 22267.42 | G114: =IF(A114>$B$30,NA(),IF(A114>$A$8,"",OFFSET(InputPriceData!$F$15,CalculationsAndCharts!$A114+$A$11,IF($C$5,8,0),1,1))) -> 23138.82 | H114: 407940000 | I114: 0 | J114: 174932519.8 | K114: 263196595 | L114: 0.2014567674 | M114: 2.014567674 | N114: 0.2871016832 | O114: 22738.65705 | P114: 23762.18631 | Q114: 168391347.2 | R114: 225259479.7 | S114: 0.1444633889 | T114: 1.444633889 | U114: 0.09586799566 | V114: 23747.37788 | W114: 23762.18631 | AW114: 407940000
A115: 83 | B115: =IF(A115>$B$30,NA(),IF($A115>$A$8,"",OFFSET(InputPriceData!$B$15,$A115+$A$11,0,1,1))) -> 2018-12-26 | C115: =IF(A115>$B$30,NA(),IF($A115>$A$8,"",OFFSET(InputPriceData!$G$15,CalculationsAndCharts!$A115+$A$11,IF($C$5,8,0),1,1))) -> 433080000 | D115: =IF(A115>$B$30,NA(),IF(A115>$A$8,"",OFFSET(InputPriceData!$C$15,CalculationsAndCharts!$A115+$A$11,IF($C$5,8,0),1,1))) -> 21857.73 | E115: =IF(A115>$B$30,NA(),IF(A115>$A$8,"",OFFSET(InputPriceData!$D$15,CalculationsAndCharts!$A115+$A$11,IF($C$5,8,0),1,1))) -> 22878.92 | F115: =IF(A115>$B$30,NA(),IF(A115>$A$8,"",OFFSET(InputPriceData!$E$15,CalculationsAndCharts!$A115+$A$11,IF($C$5,8,0),1,1))) -> 21712.53 | G115: =IF(A115>$B$30,NA(),IF(A115>$A$8,"",OFFSET(InputPriceData!$F$15,CalculationsAndCharts!$A115+$A$11,IF($C$5,8,0),1,1))) -> 22878.45 | H115: 433080000 | I115: 0 | J115: 150405416.6 | K115: 290901499.7 | L115: 0.3183636555 | M115: 3.183636555 | N115: 0.3984415766 | O115: 22577.5016 | P115: 23827.80381 | Q115: 158613851.2 | R115: 234453744.2 | S115: 0.192943641 | T115: 1.92943641 | U115: 0.1148798592 | V115: 23811.90521 | W115: 23827.80381 | AW115: 433080000
A116: 84 | B116: =IF(A116>$B$30,NA(),IF($A116>$A$8,"",OFFSET(InputPriceData!$B$15,$A116+$A$11,0,1,1))) -> 2018-12-24 | C116: =IF(A116>$B$30,NA(),IF($A116>$A$8,"",OFFSET(InputPriceData!$G$15,CalculationsAndCharts!$A116+$A$11,IF($C$5,8,0),1,1))) -> 308420000 | D116: =IF(A116>$B$30,NA(),IF(A116>$A$8,"",OFFSET(InputPriceData!$C$15,CalculationsAndCharts!$A116+$A$11,IF($C$5,8,0),1,1))) -> 22317.28 | E116: =IF(A116>$B$30,NA(),IF(A116>$A$8,"",OFFSET(InputPriceData!$D$15,CalculationsAndCharts!$A116+$A$11,IF($C$5,8,0),1,1))) -> 22339.87 | F116: =IF(A116>$B$30,NA(),IF(A116>$A$8,"",OFFSET(InputPriceData!$E$15,CalculationsAndCharts!$A116+$A$11,IF($C$5,8,0),1,1))) -> 21792.2 | G116: =IF(A116>$B$30,NA(),IF(A116>$A$8,"",OFFSET(InputPriceData!$F$15,CalculationsAndCharts!$A116+$A$11,IF($C$5,8,0),1,1))) -> 21792.2 | H116: 0 | I116: 308420000 | J116: 120650197.3 | K116: 321522710.2 | L116: 0.4542849854 | M116: 4.542849854 | N116: 0.5278904623 | O116: 22378.16874 | P116: 23927.73579 | Q116: 147411151.2 | R116: 244023284.8 | S116: 0.2468156214 | T116: 2.468156214 | U116: 0.136006126 | V116: 23933.05849 | W116: 23927.73579 | AX116: 308420000
A117: 85 | B117: =IF(A117>$B$30,NA(),IF($A117>$A$8,"",OFFSET(InputPriceData!$B$15,$A117+$A$11,0,1,1))) -> 2018-12-21 | C117: =IF(A117>$B$30,NA(),IF($A117>$A$8,"",OFFSET(InputPriceData!$G$15,CalculationsAndCharts!$A117+$A$11,IF($C$5,8,0),1,1))) -> 900510000 | D117: =IF(A117>$B$30,NA(),IF(A117>$A$8,"",OFFSET(InputPriceData!$C$15,CalculationsAndCharts!$A117+$A$11,IF($C$5,8,0),1,1))) -> 22871.74 | E117: =IF(A117>$B$30,NA(),IF(A117>$A$8,"",OFFSET(InputPriceData!$D$15,CalculationsAndCharts!$A117+$A$11,IF($C$5,8,0),1,1))) -> 23254.59 | F117: =IF(A117>$B$30,NA(),IF(A117>$A$8,"",OFFSET(InputPriceData!$E$15,CalculationsAndCharts!$A117+$A$11,IF($C$5,8,0),1,1))) -> 22396.34 | G117: =IF(A117>$B$30,NA(),IF(A117>$A$8,"",OFFSET(InputPriceData!$F$15,CalculationsAndCharts!$A117+$A$11,IF($C$5,8,0),1,1))) -> 22445.37 | H117: 0 | I117: 900510000 | J117: 133350218.1 | K117: 322901942.9 | L117: 0.4154538673 | M117: 4.154538673 | N117: 0.4909084451 | O117: 23033.37116 | P117: 24152.52904 | Q117: 153427932.9 | R117: 241394847.4 | S117: 0.2228010107 | T117: 2.228010107 | U117: 0.1265886317 | V117: 24270.06304 | W117: 24152.52904 | AX117: 900510000
A118: 86 | B118: =IF(A118>$B$30,NA(),IF($A118>$A$8,"",OFFSET(InputPriceData!$B$15,$A118+$A$11,0,1,1))) -> 2018-12-20 | C118: =IF(A118>$B$30,NA(),IF($A118>$A$8,"",OFFSET(InputPriceData!$G$15,CalculationsAndCharts!$A118+$A$11,IF($C$5,8,0),1,1))) -> 576700000 | D118: =IF(A118>$B$30,NA(),IF(A118>$A$8,"",OFFSET(InputPriceData!$C$15,CalculationsAndCharts!$A118+$A$11,IF($C$5,8,0),1,1))) -> 23224.12 | E118: =IF(A118>$B$30,NA(),IF(A118>$A$8,"",OFFSET(InputPriceData!$D$15,CalculationsAndCharts!$A118+$A$11,IF($C$5,8,0),1,1))) -> 23282.2 | F118: =IF(A118>$B$30,NA(),IF(A118>$A$8,"",OFFSET(InputPriceData!$E$15,CalculationsAndCharts!$A118+$A$11,IF($C$5,8,0),1,1))) -> 22644.31 | G118: =IF(A118>$B$30,NA(),IF(A118>$A$8,"",OFFSET(InputPriceData!$F$15,CalculationsAndCharts!$A118+$A$11,IF($C$5,8,0),1,1))) -> 22859.6 | H118: 0 | I118: 576700000 | J118: 147387083.2 | K118: 262101094.8 | L118: 0.2801399839 | M118: 2.801399839 | N118: 0.3620380799 | O118: 23600.37081 | P118: 24332.22999 | Q118: 159690297.5 | R118: 214492188.1 | S118: 0.1464576583 | T118: 1.464576583 | U118: 0.09665006208 | V118: 24534.5265 | W118: 24332.22999 | AX118: 576700000
A119: 87 | B119: =IF(A119>$B$30,NA(),IF($A119>$A$8,"",OFFSET(InputPriceData!$B$15,$A119+$A$11,0,1,1))) -> 2018-12-19 | C119: =IF(A119>$B$30,NA(),IF($A119>$A$8,"",OFFSET(InputPriceData!$G$15,CalculationsAndCharts!$A119+$A$11,IF($C$5,8,0),1,1))) -> 503550000 | D119: =IF(A119>$B$30,NA(),IF(A119>$A$8,"",OFFSET(InputPriceData!$C$15,CalculationsAndCharts!$A119+$A$11,IF($C$5,8,0),1,1))) -> 23693.33 | E119: =IF(A119>$B$30,NA(),IF(A119>$A$8,"",OFFSET(InputPriceData!$D$15,CalculationsAndCharts!$A119+$A$11,IF($C$5,8,0),1,1))) -> 24057.34 | F119: =IF(A119>$B$30,NA(),IF(A119>$A$8,"",OFFSET(InputPriceData!$E$15,CalculationsAndCharts!$A119+$A$11,IF($C$5,8,0),1,1))) -> 23162.64 | G119: =IF(A119>$B$30,NA(),IF(A119>$A$8,"",OFFSET(InputPriceData!$F$15,CalculationsAndCharts!$A119+$A$11,IF($C$5,8,0),1,1))) -> 23323.66 | H119: 0 | I119: 503550000 | J119: 162901513 | K119: 228985420.5 | L119: 0.1686300355 | M119: 1.686300355 | N119: 0.2558381291 | O119: 24020.75208 | P119: 24487.24367 | Q119: 166208268.8 | R119: 199708195.8 | S119: 0.09155075055 | T119: 0.9155075055 | U119: 0.07511794139 | V119: 24713.7281 | W119: 24487.24367 | AX119: 503550000
A120: 88 | B120: =IF(A120>$B$30,NA(),IF($A120>$A$8,"",OFFSET(InputPriceData!$B$15,$A120+$A$11,0,1,1))) -> 2018-12-18 | C120: =IF(A120>$B$30,NA(),IF($A120>$A$8,"",OFFSET(InputPriceData!$G$15,CalculationsAndCharts!$A120+$A$11,IF($C$5,8,0),1,1))) -> 408070000 | D120: =IF(A120>$B$30,NA(),IF(A120>$A$8,"",OFFSET(InputPriceData!$C$15,CalculationsAndCharts!$A120+$A$11,IF($C$5,8,0),1,1))) -> 23769.13 | E120: =IF(A120>$B$30,NA(),IF(A120>$A$8,"",OFFSET(InputPriceData!$D$15,CalculationsAndCharts!$A120+$A$11,IF($C$5,8,0),1,1))) -> 23927.77 | F120: =IF(A120>$B$30,NA(),IF(A120>$A$8,"",OFFSET(InputPriceData!$E$15,CalculationsAndCharts!$A120+$A$11,IF($C$5,8,0),1,1))) -> 23516.02 | G120: =IF(A120>$B$30,NA(),IF(A120>$A$8,"",OFFSET(InputPriceData!$F$15,CalculationsAndCharts!$A120+$A$11,IF($C$5,8,0),1,1))) -> 23675.64 | H120: 408070000 | I120: 0 | J120: 180049040.7 | K120: 200083885.8 | L120: 0.05270484023 | M120: 0.5270484023 | N120: 0.1454331812 | O120: 24260.40792 | P120: 24609.72616 | Q120: 172992279.8 | R120: 187306489.5 | S120: 0.03972872219 | T120: 0.3972872219 | U120: 0.05479557733 | V120: 24826.62796 | W120: 24609.72616 | AX120: 408070000
A121: 89 | B121: =IF(A121>$B$30,NA(),IF($A121>$A$8,"",OFFSET(InputPriceData!$B$15,$A121+$A$11,0,1,1))) -> 2018-12-17 | C121: =IF(A121>$B$30,NA(),IF($A121>$A$8,"",OFFSET(InputPriceData!$G$15,CalculationsAndCharts!$A121+$A$11,IF($C$5,8,0),1,1))) -> 466740000 | D121: =IF(A121>$B$30,NA(),IF(A121>$A$8,"",OFFSET(InputPriceData!$C$15,CalculationsAndCharts!$A121+$A$11,IF($C$5,8,0),1,1))) -> 23986.83 | E121: =IF(A121>$B$30,NA(),IF(A121>$A$8,"",OFFSET(InputPriceData!$D$15,CalculationsAndCharts!$A121+$A$11,IF($C$5,8,0),1,1))) -> 24088.08 | F121: =IF(A121>$B$30,NA(),IF(A121>$A$8,"",OFFSET(InputPriceData!$E$15,CalculationsAndCharts!$A121+$A$11,IF($C$5,8,0),1,1))) -> 23456.88 | G121: =IF(A121>$B$30,NA(),IF(A121>$A$8,"",OFFSET(InputPriceData!$F$15,CalculationsAndCharts!$A121+$A$11,IF($C$5,8,0),1,1))) -> 23592.98 | H121: 0 | I121: 466740000 | J121: 156046834.4 | K121: 221145347.5 | L121: 0.1725871219 | M121: 1.725871219 | N121: 0.2596067827 | O121: 24359.92577 | P121: 24708.05102 | Q121: 163397270.8 | R121: 194951652.4 | S121: 0.08805490821 | T121: 0.8805490821 | U121: 0.07374702283 | V121: 24893.35326 | W121: 24708.05102 | AX121: 466740000
A122: 90 | B122: =IF(A122>$B$30,NA(),IF($A122>$A$8,"",OFFSET(InputPriceData!$B$15,$A122+$A$11,0,1,1))) -> 2018-12-14 | C122: =IF(A122>$B$30,NA(),IF($A122>$A$8,"",OFFSET(InputPriceData!$G$15,CalculationsAndCharts!$A122+$A$11,IF($C$5,8,0),1,1))) -> 416940000 | D122: =IF(A122>$B$30,NA(),IF(A122>$A$8,"",OFFSET(InputPriceData!$C$15,CalculationsAndCharts!$A122+$A$11,IF($C$5,8,0),1,1))) -> 24408.04 | E122: =IF(A122>$B$30,NA(),IF(A122>$A$8,"",OFFSET(InputPriceData!$D$15,CalculationsAndCharts!$A122+$A$11,IF($C$5,8,0),1,1))) -> 24431.14 | F122: =IF(A122>$B$30,NA(),IF(A122>$A$8,"",OFFSET(InputPriceData!$E$15,CalculationsAndCharts!$A122+$A$11,IF($C$5,8,0),1,1))) -> 24033.79 | G122: =IF(A122>$B$30,NA(),IF(A122>$A$8,"",OFFSET(InputPriceData!$F$15,CalculationsAndCharts!$A122+$A$11,IF($C$5,8,0),1,1))) -> 24100.51 | H122: 0 | I122: 416940000 | J122: 172472817 | K122: 195293278.8 | L122: 0.06205156503 | M122: 0.6205156503 | N122: 0.1543348238 | O122: 24628.84278 | P122: 24825.42692 | Q122: 170066547.2 | R122: 183858250.4 | S122: 0.03896789184 | T122: 0.3896789184 | U122: 0.05449721249 | V122: 24996.88724 | W122: 24825.42692 | AX122: 416940000
A123: 91 | B123: =IF(A123>$B$30,NA(),IF($A123>$A$8,"",OFFSET(InputPriceData!$B$15,$A123+$A$11,0,1,1))) -> 2018-12-13 | C123: =IF(A123>$B$30,NA(),IF($A123>$A$8,"",OFFSET(InputPriceData!$G$15,CalculationsAndCharts!$A123+$A$11,IF($C$5,8,0),1,1))) -> 299970000 | D123: =IF(A123>$B$30,NA(),IF(A123>$A$8,"",OFFSET(InputPriceData!$C$15,CalculationsAndCharts!$A123+$A$11,IF($C$5,8,0),1,1))) -> 24575.86 | E123: =IF(A123>$B$30,NA(),IF(A123>$A$8,"",OFFSET(InputPriceData!$D$15,CalculationsAndCharts!$A123+$A$11,IF($C$5,8,0),1,1))) -> 24740.96 | F123: =IF(A123>$B$30,NA(),IF(A123>$A$8,"",OFFSET(InputPriceData!$E$15,CalculationsAndCharts!$A123+$A$11,IF($C$5,8,0),1,1))) -> 24473.29 | G123: =IF(A123>$B$30,NA(),IF(A123>$A$8,"",OFFSET(InputPriceData!$F$15,CalculationsAndCharts!$A123+$A$11,IF($C$5,8,0),1,1))) -> 24597.38 | H123: 299970000 | I123: 0 | J123: 190627850.4 | K123: 171962045 | L123: 0.0514791107 | M123: 0.514791107 | N123: 0.1442658197 | O123: 24725.26409 | P123: 24901.73396 | Q123: 177008038.9 | R123: 174344709.6 | S123: 0.00758021475 | T123: 0.0758021475 | U123: 0.04218831951 | V123: 25048.55293 | W123: 24901.73396 | AW123: 299970000
A124: 92 | B124: =IF(A124>$B$30,NA(),IF($A124>$A$8,"",OFFSET(InputPriceData!$B$15,$A124+$A$11,0,1,1))) -> 2018-12-12 | C124: =IF(A124>$B$30,NA(),IF($A124>$A$8,"",OFFSET(InputPriceData!$G$15,CalculationsAndCharts!$A124+$A$11,IF($C$5,8,0),1,1))) -> 344330000 | D124: =IF(A124>$B$30,NA(),IF(A124>$A$8,"",OFFSET(InputPriceData!$C$15,CalculationsAndCharts!$A124+$A$11,IF($C$5,8,0),1,1))) -> 24509.09 | E124: =IF(A124>$B$30,NA(),IF(A124>$A$8,"",OFFSET(InputPriceData!$D$15,CalculationsAndCharts!$A124+$A$11,IF($C$5,8,0),1,1))) -> 24828.29 | F124: =IF(A124>$B$30,NA(),IF(A124>$A$8,"",OFFSET(InputPriceData!$E$15,CalculationsAndCharts!$A124+$A$11,IF($C$5,8,0),1,1))) -> 24509.09 | G124: =IF(A124>$B$30,NA(),IF(A124>$A$8,"",OFFSET(InputPriceData!$F$15,CalculationsAndCharts!$A124+$A$11,IF($C$5,8,0),1,1))) -> 24527.27 | H124: 344330000 | I124: 0 | J124: 179118150.4 | K124: 190063312.9 | L124: 0.02964710739 | M124: 0.2964710739 | N124: 0.1234734356 | O124: 24746.82371 | P124: 24933.77122 | Q124: 171989183.4 | R124: 181460820.2 | S124: 0.02679767087 | T124: 0.2679767087 | U124: 0.04972457681 | V124: 25068.42556 | W124: 24933.77122 | AW124: 344330000
A125: 93 | B125: =IF(A125>$B$30,NA(),IF($A125>$A$8,"",OFFSET(InputPriceData!$B$15,$A125+$A$11,0,1,1))) -> 2018-12-11 | C125: =IF(A125>$B$30,NA(),IF($A125>$A$8,"",OFFSET(InputPriceData!$G$15,CalculationsAndCharts!$A125+$A$11,IF($C$5,8,0),1,1))) -> 342960000 | D125: =IF(A125>$B$30,NA(),IF(A125>$A$8,"",OFFSET(InputPriceData!$C$15,CalculationsAndCharts!$A125+$A$11,IF($C$5,8,0),1,1))) -> 24719.91 | E125: =IF(A125>$B$30,NA(),IF(A125>$A$8,"",OFFSET(InputPriceData!$D$15,CalculationsAndCharts!$A125+$A$11,IF($C$5,8,0),1,1))) -> 24791.26 | F125: =IF(A125>$B$30,NA(),IF(A125>$A$8,"",OFFSET(InputPriceData!$E$15,CalculationsAndCharts!$A125+$A$11,IF($C$5,8,0),1,1))) -> 24221.06 | G125: =IF(A125>$B$30,NA(),IF(A125>$A$8,"",OFFSET(InputPriceData!$F$15,CalculationsAndCharts!$A125+$A$11,IF($C$5,8,0),1,1))) -> 24370.24 | H125: 0 | I125: 342960000 | J125: 161727429.4 | K125: 210069977.4 | L125: 0.1300238978 | M125: 1.300238978 | N125: 0.2190703788 | O125: 24777.75152 | P125: 24976.56082 | Q125: 164954864.3 | R125: 188867384.3 | S125: 0.06758342669 | T125: 0.6758342669 | U125: 0.06571899086 | V125: 25096.74233 | W125: 24976.56082 | AX125: 342960000
A126: 94 | B126: =IF(A126>$B$30,NA(),IF($A126>$A$8,"",OFFSET(InputPriceData!$B$15,$A126+$A$11,0,1,1))) -> 2018-12-10 | C126: =IF(A126>$B$30,NA(),IF($A126>$A$8,"",OFFSET(InputPriceData!$G$15,CalculationsAndCharts!$A126+$A$11,IF($C$5,8,0),1,1))) -> 389690000 | D126: =IF(A126>$B$30,NA(),IF(A126>$A$8,"",OFFSET(InputPriceData!$C$15,CalculationsAndCharts!$A126+$A$11,IF($C$5,8,0),1,1))) -> 24360.95 | E126: =IF(A126>$B$30,NA(),IF(A126>$A$8,"",OFFSET(InputPriceData!$D$15,CalculationsAndCharts!$A126+$A$11,IF($C$5,8,0),1,1))) -> 24500.81 | F126: =IF(A126>$B$30,NA(),IF(A126>$A$8,"",OFFSET(InputPriceData!$E$15,CalculationsAndCharts!$A126+$A$11,IF($C$5,8,0),1,1))) -> 23881.37 | G126: =IF(A126>$B$30,NA(),IF(A126>$A$8,"",OFFSET(InputPriceData!$F$15,CalculationsAndCharts!$A126+$A$11,IF($C$5,8,0),1,1))) -> 24423.26 | H126: 389690000 | I126: 0 | J126: 178751369.3 | K126: 196081554 | L126: 0.04623442491 | M126: 0.4623442491 | N126: 0.1392708809 | O126: 24892.06874 | P126: 25040.38407 | Q126: 171687715.9 | R126: 182577889.8 | S126: 0.03074013877 | T126: 0.3074013877 | U126: 0.05127064265 | V126: 25147.84579 | W126: 25040.38407 | AW126: 389690000
A127: 95 | B127: =IF(A127>$B$30,NA(),IF($A127>$A$8,"",OFFSET(InputPriceData!$B$15,$A127+$A$11,0,1,1))) -> 2018-12-07 | C127: =IF(A127>$B$30,NA(),IF($A127>$A$8,"",OFFSET(InputPriceData!$G$15,CalculationsAndCharts!$A127+$A$11,IF($C$5,8,0),1,1))) -> 398230000 | D127: =IF(A127>$B$30,NA(),IF(A127>$A$8,"",OFFSET(InputPriceData!$C$15,CalculationsAndCharts!$A127+$A$11,IF($C$5,8,0),1,1))) -> 24918.82 | E127: =IF(A127>$B$30,NA(),IF(A127>$A$8,"",OFFSET(InputPriceData!$D$15,CalculationsAndCharts!$A127+$A$11,IF($C$5,8,0),1,1))) -> 25095.62 | F127: =IF(A127>$B$30,NA(),IF(A127>$A$8,"",OFFSET(InputPriceData!$E$15,CalculationsAndCharts!$A127+$A$11,IF($C$5,8,0),1,1))) -> 24284.78 | G127: =IF(A127>$B$30,NA(),IF(A127>$A$8,"",OFFSET(InputPriceData!$F$15,CalculationsAndCharts!$A127+$A$11,IF($C$5,8,0),1,1))) -> 24388.95 | H127: 0 | I127: 398230000 | J127: 156547303 | K127: 216721717.6 | L127: 0.1612092386 | M127: 1.612092386 | N127: 0.2487707035 | O127: 24967.92467 | P127: 25105.34449 | Q127: 162789663.5 | R127: 190030048.6 | S127: 0.07720766195 | T127: 0.7720766195 | U127: 0.06949320076 | V127: 25187.00341 | W127: 25105.34449 | AX127: 398230000
A128: 96 | B128: =IF(A128>$B$30,NA(),IF($A128>$A$8,"",OFFSET(InputPriceData!$B$15,$A128+$A$11,0,1,1))) -> 2018-12-06 | C128: =IF(A128>$B$30,NA(),IF($A128>$A$8,"",OFFSET(InputPriceData!$G$15,CalculationsAndCharts!$A128+$A$11,IF($C$5,8,0),1,1))) -> 471690000 | D128: =IF(A128>$B$30,NA(),IF(A128>$A$8,"",OFFSET(InputPriceData!$C$15,CalculationsAndCharts!$A128+$A$11,IF($C$5,8,0),1,1))) -> 24737.42 | E128: =IF(A128>$B$30,NA(),IF(A128>$A$8,"",OFFSET(InputPriceData!$D$15,CalculationsAndCharts!$A128+$A$11,IF($C$5,8,0),1,1))) -> 24951.01 | F128: =IF(A128>$B$30,NA(),IF(A128>$A$8,"",OFFSET(InputPriceData!$E$15,CalculationsAndCharts!$A128+$A$11,IF($C$5,8,0),1,1))) -> 24242.22 | G128: =IF(A128>$B$30,NA(),IF(A128>$A$8,"",OFFSET(InputPriceData!$F$15,CalculationsAndCharts!$A128+$A$11,IF($C$5,8,0),1,1))) -> 24947.67 | H128: 0 | I128: 471690000 | J128: 173025966.4 | K128: 197615582.6 | L128: 0.06634338815 | M128: 0.6634338815 | N128: 0.1584222744 | O128: 25159.65299 | P128: 25180.75444 | Q128: 169434139.6 | R128: 181532091.4 | S128: 0.03447041547 | T128: 0.3447041547 | U128: 0.05273349626 | V128: 25246.60457 | W128: 25180.75444 | AW128: 471690000
A129: 97 | B129: =IF(A129>$B$30,NA(),IF($A129>$A$8,"",OFFSET(InputPriceData!$B$15,$A129+$A$11,0,1,1))) -> 2018-12-04 | C129: =IF(A129>$B$30,NA(),IF($A129>$A$8,"",OFFSET(InputPriceData!$G$15,CalculationsAndCharts!$A129+$A$11,IF($C$5,8,0),1,1))) -> 418900000 | D129: =IF(A129>$B$30,NA(),IF(A129>$A$8,"",OFFSET(InputPriceData!$C$15,CalculationsAndCharts!$A129+$A$11,IF($C$5,8,0),1,1))) -> 25752.56 | E129: =IF(A129>$B$30,NA(),IF(A129>$A$8,"",OFFSET(InputPriceData!$D$15,CalculationsAndCharts!$A129+$A$11,IF($C$5,8,0),1,1))) -> 25773.12 | F129: =IF(A129>$B$30,NA(),IF(A129>$A$8,"",OFFSET(InputPriceData!$E$15,CalculationsAndCharts!$A129+$A$11,IF($C$5,8,0),1,1))) -> 25008.11 | G129: =IF(A129>$B$30,NA(),IF(A129>$A$8,"",OFFSET(InputPriceData!$F$15,CalculationsAndCharts!$A129+$A$11,IF($C$5,8,0),1,1))) -> 25027.07 | H129: 0 | I129: 418900000 | J129: 191239226.1 | K129: 168765643.9 | L129: 0.0624257726 | M129: 0.624257726 | N129: 0.154691212 | O129: 25199.5576 | P129: 25205.28965 | Q129: 176349818.7 | R129: 169688911.4 | S129: 0.01924902254 | T129: 0.1924902254 | U129: 0.04676432256 | V129: 25263.246 | W129: 25205.28965 | AX129: 418900000
A130: 98 | B130: =IF(A130>$B$30,NA(),IF($A130>$A$8,"",OFFSET(InputPriceData!$B$15,$A130+$A$11,0,1,1))) -> 2018-12-03 | C130: =IF(A130>$B$30,NA(),IF($A130>$A$8,"",OFFSET(InputPriceData!$G$15,CalculationsAndCharts!$A130+$A$11,IF($C$5,8,0),1,1))) -> 388480000 | D130: =IF(A130>$B$30,NA(),IF(A130>$A$8,"",OFFSET(InputPriceData!$C$15,CalculationsAndCharts!$A130+$A$11,IF($C$5,8,0),1,1))) -> 25779.57 | E130: =IF(A130>$B$30,NA(),IF(A130>$A$8,"",OFFSET(InputPriceData!$D$15,CalculationsAndCharts!$A130+$A$11,IF($C$5,8,0),1,1))) -> 25980.21 | F130: =IF(A130>$B$30,NA(),IF(A130>$A$8,"",OFFSET(InputPriceData!$E$15,CalculationsAndCharts!$A130+$A$11,IF($C$5,8,0),1,1))) -> 25670.51 | G130: =IF(A130>$B$30,NA(),IF(A130>$A$8,"",OFFSET(InputPriceData!$F$15,CalculationsAndCharts!$A130+$A$11,IF($C$5,8,0),1,1))) -> 25826.43 | H130: 388480000 | I130: 0 | J130: 211369670.9 | K130: 142435711.7 | L130: 0.1948358126 | M130: 1.948358126 | N130: 0.280796012 | O130: 25231.12277 | P130: 25224.04961 | Q130: 183547770.5 | R130: 159517030.3 | S130: 0.07004723368 | T130: 0.7004723368 | U130: 0.06668518968 | V130: 25274.83244 | W130: 25224.04961 | AW130: 388480000
A131: 99 | B131: =IF(A131>$B$30,NA(),IF($A131>$A$8,"",OFFSET(InputPriceData!$B$15,$A131+$A$11,0,1,1))) -> 2018-11-30 | C131: =IF(A131>$B$30,NA(),IF($A131>$A$8,"",OFFSET(InputPriceData!$G$15,CalculationsAndCharts!$A131+$A$11,IF($C$5,8,0),1,1))) -> 482250000 | D131: =IF(A131>$B$30,NA(),IF(A131>$A$8,"",OFFSET(InputPriceData!$C$15,CalculationsAndCharts!$A131+$A$11,IF($C$5,8,0),1,1))) -> 25307.14 | E131: =IF(A131>$B$30,NA(),IF(A131>$A$8,"",OFFSET(InputPriceData!$D$15,CalculationsAndCharts!$A131+$A$11,IF($C$5,8,0),1,1))) -> 25549.71 | F131: =IF(A131>$B$30,NA(),IF(A131>$A$8,"",OFFSET(InputPriceData!$E$15,CalculationsAndCharts!$A131+$A$11,IF($C$5,8,0),1,1))) -> 25250.97 | G131: =IF(A131>$B$30,NA(),IF(A131>$A$8,"",OFFSET(InputPriceData!$F$15,CalculationsAndCharts!$A131+$A$11,IF($C$5,8,0),1,1))) -> 25538.46 | H131: 482250000 | I131: 0 | J131: 192726478.4 | K131: 157428944.5 | L131: 0.1008053326 | M131: 1.008053326 | N131: 0.1912431739 | O131: 24998.69929 | P131: 25160.64115 | Q131: 175183189.7 | R131: 166027929.4 | S131: 0.02683165865 | T131: 0.2683165865 | U131: 0.04973790535 | V131: 25235.42088 | W131: 25160.64115 | AW131: 482250000
A132: 100 | B132: =IF(A132>$B$30,NA(),IF($A132>$A$8,"",OFFSET(InputPriceData!$B$15,$A132+$A$11,0,1,1))) -> 2018-11-29 | C132: =IF(A132>$B$30,NA(),IF($A132>$A$8,"",OFFSET(InputPriceData!$G$15,CalculationsAndCharts!$A132+$A$11,IF($C$5,8,0),1,1))) -> 305110000 | D132: =IF(A132>$B$30,NA(),IF(A132>$A$8,"",OFFSET(InputPriceData!$C$15,CalculationsAndCharts!$A132+$A$11,IF($C$5,8,0),1,1))) -> 25343.65 | E132: =IF(A132>$B$30,NA(),IF(A132>$A$8,"",OFFSET(InputPriceData!$D$15,CalculationsAndCharts!$A132+$A$11,IF($C$5,8,0),1,1))) -> 25479.04 | F132: =IF(A132>$B$30,NA(),IF(A132>$A$8,"",OFFSET(InputPriceData!$E$15,CalculationsAndCharts!$A132+$A$11,IF($C$5,8,0),1,1))) -> 25202.79 | G132: =IF(A132>$B$30,NA(),IF(A132>$A$8,"",OFFSET(InputPriceData!$F$15,CalculationsAndCharts!$A132+$A$11,IF($C$5,8,0),1,1))) -> 25338.84 | H132: 0 | I132: 305110000 | J132: 162250318.2 | K132: 174000412.3 | L132: 0.03494444197 | M132: 0.3494444197 | N132: 0.1285185162 | O132: 24871.06444 | P132: 25120.87074 | Q132: 162649850.5 | R132: 172804579.6 | S132: 0.03027156056 | T132: 0.3027156056 | U132: 0.0510868865 | V132: 25219.55944 | W132: 25120.87074 | AX132: 305110000
A133: 101 | B133: =IF(A133>$B$30,NA(),IF($A133>$A$8,"",OFFSET(InputPriceData!$B$15,$A133+$A$11,0,1,1))) -> 2018-11-28 | C133: =IF(A133>$B$30,NA(),IF($A133>$A$8,"",OFFSET(InputPriceData!$G$15,CalculationsAndCharts!$A133+$A$11,IF($C$5,8,0),1,1))) -> 362160000 | D133: =IF(A133>$B$30,NA(),IF(A133>$A$8,"",OFFSET(InputPriceData!$C$15,CalculationsAndCharts!$A133+$A$11,IF($C$5,8,0),1,1))) -> 24832.84 | E133: =IF(A133>$B$30,NA(),IF(A133>$A$8,"",OFFSET(InputPriceData!$D$15,CalculationsAndCharts!$A133+$A$11,IF($C$5,8,0),1,1))) -> 25368.93 | F133: =IF(A133>$B$30,NA(),IF(A133>$A$8,"",OFFSET(InputPriceData!$E$15,CalculationsAndCharts!$A133+$A$11,IF($C$5,8,0),1,1))) -> 24832.84 | G133: =IF(A133>$B$30,NA(),IF(A133>$A$8,"",OFFSET(InputPriceData!$F$15,CalculationsAndCharts!$A133+$A$11,IF($C$5,8,0),1,1))) -> 25366.43 | H133: 362160000 | I133: 0 | J133: 179329299.1 | K133: 160199403.1 | L133: 0.05634250013 | M133: 0.5634250013 | N133: 0.1488976192 | O133: 24802.08097 | P133: 25097.92661 | Q133: 169288619.9 | R133: 167404358.4 | S133: 0.005596379109 | T133: 0.05596379109 | U133: 0.04141034475 | V133: 25213.1377 | W133: 25097.92661 | AW133: 362160000
A134: 102 | B134: =IF(A134>$B$30,NA(),IF($A134>$A$8,"",OFFSET(InputPriceData!$B$15,$A134+$A$11,0,1,1))) -> 2018-11-27 | C134: =IF(A134>$B$30,NA(),IF($A134>$A$8,"",OFFSET(InputPriceData!$G$15,CalculationsAndCharts!$A134+$A$11,IF($C$5,8,0),1,1))) -> 308250000 | D134: =IF(A134>$B$30,NA(),IF(A134>$A$8,"",OFFSET(InputPriceData!$C$15,CalculationsAndCharts!$A134+$A$11,IF($C$5,8,0),1,1))) -> 24557.02 | E134: =IF(A134>$B$30,NA(),IF(A134>$A$8,"",OFFSET(InputPriceData!$D$15,CalculationsAndCharts!$A134+$A$11,IF($C$5,8,0),1,1))) -> 24750.73 | F134: =IF(A134>$B$30,NA(),IF(A134>$A$8,"",OFFSET(InputPriceData!$E$15,CalculationsAndCharts!$A134+$A$11,IF($C$5,8,0),1,1))) -> 24416.03 | G134: =IF(A134>$B$30,NA(),IF(A134>$A$8,"",OFFSET(InputPriceData!$F$15,CalculationsAndCharts!$A134+$A$11,IF($C$5,8,0),1,1))) -> 24748.73 | H134: 308250000 | I134: 0 | J134: 160083962.1 | K134: 177062498.2 | L134: 0.05035952637 | M134: 0.5035952637 | N134: 0.1431995489 | O134: 24703.34992 | P134: 25069.66309 | Q134: 161416318.7 | R134: 174237189.3 | S134: 0.03819674254 | T134: 0.3819674254 | U134: 0.054194801 | V134: 25206.51559 | W134: 25069.66309 | AW134: 308250000
A135: 103 | B135: =IF(A135>$B$30,NA(),IF($A135>$A$8,"",OFFSET(InputPriceData!$B$15,$A135+$A$11,0,1,1))) -> 2018-11-26 | C135: =IF(A135>$B$30,NA(),IF($A135>$A$8,"",OFFSET(InputPriceData!$G$15,CalculationsAndCharts!$A135+$A$11,IF($C$5,8,0),1,1))) -> 306280000 | D135: =IF(A135>$B$30,NA(),IF(A135>$A$8,"",OFFSET(InputPriceData!$C$15,CalculationsAndCharts!$A135+$A$11,IF($C$5,8,0),1,1))) -> 24364.13 | E135: =IF(A135>$B$30,NA(),IF(A135>$A$8,"",OFFSET(InputPriceData!$D$15,CalculationsAndCharts!$A135+$A$11,IF($C$5,8,0),1,1))) -> 24673.29 | F135: =IF(A135>$B$30,NA(),IF(A135>$A$8,"",OFFSET(InputPriceData!$E$15,CalculationsAndCharts!$A135+$A$11,IF($C$5,8,0),1,1))) -> 24364.13 | G135: =IF(A135>$B$30,NA(),IF(A135>$A$8,"",OFFSET(InputPriceData!$F$15,CalculationsAndCharts!$A135+$A$11,IF($C$5,8,0),1,1))) -> 24640.24 | H135: 306280000 | I135: 0 | J135: 144487537.1 | K135: 195700655.9 | L135: 0.1505434929 | M135: 1.505434929 | N135: 0.2386128503 | O135: 24695.76542 | P135: 25103.44552 | Q135: 155423107.2 | R135: 181348911.4 | S135: 0.07698324889 | T135: 0.7698324889 | U135: 0.06940519564 | V135: 25232.74678 | W135: 25103.44552 | AW135: 306280000
A136: 104 | B136: =IF(A136>$B$30,NA(),IF($A136>$A$8,"",OFFSET(InputPriceData!$B$15,$A136+$A$11,0,1,1))) -> 2018-11-23 | C136: =IF(A136>$B$30,NA(),IF($A136>$A$8,"",OFFSET(InputPriceData!$G$15,CalculationsAndCharts!$A136+$A$11,IF($C$5,8,0),1,1))) -> 155940000 | D136: =IF(A136>$B$30,NA(),IF(A136>$A$8,"",OFFSET(InputPriceData!$C$15,CalculationsAndCharts!$A136+$A$11,IF($C$5,8,0),1,1))) -> 24336.4 | E136: =IF(A136>$B$30,NA(),IF(A136>$A$8,"",OFFSET(InputPriceData!$D$15,CalculationsAndCharts!$A136+$A$11,IF($C$5,8,0),1,1))) -> 24408.8 | F136: =IF(A136>$B$30,NA(),IF(A136>$A$8,"",OFFSET(InputPriceData!$E$15,CalculationsAndCharts!$A136+$A$11,IF($C$5,8,0),1,1))) -> 24268.74 | G136: =IF(A136>$B$30,NA(),IF(A136>$A$8,"",OFFSET(InputPriceData!$F$15,CalculationsAndCharts!$A136+$A$11,IF($C$5,8,0),1,1))) -> 24285.95 | H136: 0 | I136: 155940000 | J136: 127456751.5 | K136: 216300724.9 | L136: 0.2584495742 | M136: 2.584495742 | N136: 0.3413805468 | O136: 24713.16666 | P136: 25152.204 | Q136: 149265683 | R136: 188750907.7 | S136: 0.1168144576 | T136: 1.168144576 | U136: 0.08502527748 | V136: 25276.93685 | W136: 25152.204 | AX136: 155940000
A137: 105 | B137: =IF(A137>$B$30,NA(),IF($A137>$A$8,"",OFFSET(InputPriceData!$B$15,$A137+$A$11,0,1,1))) -> 2018-11-21 | C137: =IF(A137>$B$30,NA(),IF($A137>$A$8,"",OFFSET(InputPriceData!$G$15,CalculationsAndCharts!$A137+$A$11,IF($C$5,8,0),1,1))) -> 289370000 | D137: =IF(A137>$B$30,NA(),IF(A137>$A$8,"",OFFSET(InputPriceData!$C$15,CalculationsAndCharts!$A137+$A$11,IF($C$5,8,0),1,1))) -> 24541.65 | E137: =IF(A137>$B$30,NA(),IF(A137>$A$8,"",OFFSET(InputPriceData!$D$15,CalculationsAndCharts!$A137+$A$11,IF($C$5,8,0),1,1))) -> 24669.79 | F137: =IF(A137>$B$30,NA(),IF(A137>$A$8,"",OFFSET(InputPriceData!$E$15,CalculationsAndCharts!$A137+$A$11,IF($C$5,8,0),1,1))) -> 24463.28 | G137: =IF(A137>$B$30,NA(),IF(A137>$A$8,"",OFFSET(InputPriceData!$F$15,CalculationsAndCharts!$A137+$A$11,IF($C$5,8,0),1,1))) -> 24464.69 | H137: 0 | I137: 289370000 | J137: 140873251.7 | K137: 222654485.4 | L137: 0.2249655952 | M137: 2.249655952 | N137: 0.3094910431 | O137: 24934.60478 | P137: 25243.38863 | Q137: 155358159.9 | R137: 190090128.5 | S137: 0.1005417301 | T137: 1.005417301 | U137: 0.07864381572 | V137: 25369.02566 | W137: 25243.38863 | AX137: 289370000
A138: 106 | B138: =IF(A138>$B$30,NA(),IF($A138>$A$8,"",OFFSET(InputPriceData!$B$15,$A138+$A$11,0,1,1))) -> 2018-11-20 | C138: =IF(A138>$B$30,NA(),IF($A138>$A$8,"",OFFSET(InputPriceData!$G$15,CalculationsAndCharts!$A138+$A$11,IF($C$5,8,0),1,1))) -> 445920000 | D138: =IF(A138>$B$30,NA(),IF(A138>$A$8,"",OFFSET(InputPriceData!$C$15,CalculationsAndCharts!$A138+$A$11,IF($C$5,8,0),1,1))) -> 24618.68 | E138: =IF(A138>$B$30,NA(),IF(A138>$A$8,"",OFFSET(InputPriceData!$D$15,CalculationsAndCharts!$A138+$A$11,IF($C$5,8,0),1,1))) -> 24707.26 | F138: =IF(A138>$B$30,NA(),IF(A138>$A$8,"",OFFSET(InputPriceData!$E$15,CalculationsAndCharts!$A138+$A$11,IF($C$5,8,0),1,1))) -> 24368.98 | G138: =IF(A138>$B$30,NA(),IF(A138>$A$8,"",OFFSET(InputPriceData!$F$15,CalculationsAndCharts!$A138+$A$11,IF($C$5,8,0),1,1))) -> 24465.64 | H138: 0 | I138: 445920000 | J138: 155702015 | K138: 215631799.7 | L138: 0.1613905934 | M138: 1.613905934 | N138: 0.2489434223 | O138: 25145.22394 | P138: 25325.35691 | Q138: 161699309.3 | R138: 186037888.8 | S138: 0.06999130281 | T138: 0.6999130281 | U138: 0.066663256 | V138: 25446.21666 | W138: 25325.35691 | AX138: 445920000
A139: 107 | B139: =IF(A139>$B$30,NA(),IF($A139>$A$8,"",OFFSET(InputPriceData!$B$15,$A139+$A$11,0,1,1))) -> 2018-11-19 | C139: =IF(A139>$B$30,NA(),IF($A139>$A$8,"",OFFSET(InputPriceData!$G$15,CalculationsAndCharts!$A139+$A$11,IF($C$5,8,0),1,1))) -> 358090000 | D139: =IF(A139>$B$30,NA(),IF(A139>$A$8,"",OFFSET(InputPriceData!$C$15,CalculationsAndCharts!$A139+$A$11,IF($C$5,8,0),1,1))) -> 25392.61 | E139: =IF(A139>$B$30,NA(),IF(A139>$A$8,"",OFFSET(InputPriceData!$D$15,CalculationsAndCharts!$A139+$A$11,IF($C$5,8,0),1,1))) -> 25392.61 | F139: =IF(A139>$B$30,NA(),IF(A139>$A$8,"",OFFSET(InputPriceData!$E$15,CalculationsAndCharts!$A139+$A$11,IF($C$5,8,0),1,1))) -> 24900.98 | G139: =IF(A139>$B$30,NA(),IF(A139>$A$8,"",OFFSET(InputPriceData!$F$15,CalculationsAndCharts!$A139+$A$11,IF($C$5,8,0),1,1))) -> 25017.44 | H139: 0 | I139: 358090000 | J139: 172091700.8 | K139: 191390936.5 | L139: 0.05309534413 | M139: 0.5309534413 | N139: 0.1458050896 | O139: 25370.47721 | P139: 25415.85343 | Q139: 168299281.1 | R139: 175430455.7 | S139: 0.02074645819 | T139: 0.2074645819 | U139: 0.04735155223 | V139: 25516.25401 | W139: 25415.85343 | AX139: 358090000
A140: 108 | B140: =IF(A140>$B$30,NA(),IF($A140>$A$8,"",OFFSET(InputPriceData!$B$15,$A140+$A$11,0,1,1))) -> 2018-11-16 | C140: =IF(A140>$B$30,NA(),IF($A140>$A$8,"",OFFSET(InputPriceData!$G$15,CalculationsAndCharts!$A140+$A$11,IF($C$5,8,0),1,1))) -> 354460000 | D140: =IF(A140>$B$30,NA(),IF(A140>$A$8,"",OFFSET(InputPriceData!$C$15,CalculationsAndCharts!$A140+$A$11,IF($C$5,8,0),1,1))) -> 25242.35 | E140: =IF(A140>$B$30,NA(),IF(A140>$A$8,"",OFFSET(InputPriceData!$D$15,CalculationsAndCharts!$A140+$A$11,IF($C$5,8,0),1,1))) -> 25510.23 | F140: =IF(A140>$B$30,NA(),IF(A140>$A$8,"",OFFSET(InputPriceData!$E$15,CalculationsAndCharts!$A140+$A$11,IF($C$5,8,0),1,1))) -> 25147.8 | G140: =IF(A140>$B$30,NA(),IF(A140>$A$8,"",OFFSET(InputPriceData!$F$15,CalculationsAndCharts!$A140+$A$11,IF($C$5,8,0),1,1))) -> 25413.22 | H140: 354460000 | I140: 0 | J140: 190206616.7 | K140: 173843666.7 | L140: 0.04494695033 | M140: 0.4494695033 | N140: 0.1380447146 | O140: 25430.73819 | P140: 25457.79168 | Q140: 175168639.5 | R140: 167974964.1 | S140: 0.02096403758 | T140: 0.2096403758 | U140: 0.04743687748 | V140: 25541.04765 | W140: 25457.79168 | AW140: 354460000
A141: 109 | B141: =IF(A141>$B$30,NA(),IF($A141>$A$8,"",OFFSET(InputPriceData!$B$15,$A141+$A$11,0,1,1))) -> 2018-11-15 | C141: =IF(A141>$B$30,NA(),IF($A141>$A$8,"",OFFSET(InputPriceData!$G$15,CalculationsAndCharts!$A141+$A$11,IF($C$5,8,0),1,1))) -> 392750000 | D141: =IF(A141>$B$30,NA(),IF(A141>$A$8,"",OFFSET(InputPriceData!$C$15,CalculationsAndCharts!$A141+$A$11,IF($C$5,8,0),1,1))) -> 25061.48 | E141: =IF(A141>$B$30,NA(),IF(A141>$A$8,"",OFFSET(InputPriceData!$D$15,CalculationsAndCharts!$A141+$A$11,IF($C$5,8,0),1,1))) -> 25354.56 | F141: =IF(A141>$B$30,NA(),IF(A141>$A$8,"",OFFSET(InputPriceData!$E$15,CalculationsAndCharts!$A141+$A$11,IF($C$5,8,0),1,1))) -> 24787.79 | G141: =IF(A141>$B$30,NA(),IF(A141>$A$8,"",OFFSET(InputPriceData!$F$15,CalculationsAndCharts!$A141+$A$11,IF($C$5,8,0),1,1))) -> 25289.27 | H141: 392750000 | I141: 0 | J141: 172916786.8 | K141: 192143000 | L141: 0.05266592993 | M141: 0.5266592993 | N141: 0.1453961237 | O141: 25433.54378 | P141: 25462.48344 | Q141: 167850624.8 | R141: 174831085.1 | S141: 0.02037009883 | T141: 0.2037009883 | U141: 0.04720396032 | V141: 25547.41336 | W141: 25462.48344 | AW141: 392750000
A142: 110 | B142: =IF(A142>$B$30,NA(),IF($A142>$A$8,"",OFFSET(InputPriceData!$B$15,$A142+$A$11,0,1,1))) -> 2018-11-14 | C142: =IF(A142>$B$30,NA(),IF($A142>$A$8,"",OFFSET(InputPriceData!$G$15,CalculationsAndCharts!$A142+$A$11,IF($C$5,8,0),1,1))) -> 384240000 | D142: =IF(A142>$B$30,NA(),IF(A142>$A$8,"",OFFSET(InputPriceData!$C$15,CalculationsAndCharts!$A142+$A$11,IF($C$5,8,0),1,1))) -> 25388.08 | E142: =IF(A142>$B$30,NA(),IF(A142>$A$8,"",OFFSET(InputPriceData!$D$15,CalculationsAndCharts!$A142+$A$11,IF($C$5,8,0),1,1))) -> 25501.29 | F142: =IF(A142>$B$30,NA(),IF(A142>$A$8,"",OFFSET(InputPriceData!$E$15,CalculationsAndCharts!$A142+$A$11,IF($C$5,8,0),1,1))) -> 24935.82 | G142: =IF(A142>$B$30,NA(),IF(A142>$A$8,"",OFFSET(InputPriceData!$F$15,CalculationsAndCharts!$A142+$A$11,IF($C$5,8,0),1,1))) -> 25080.5 | H142: 0 | I142: 384240000 | J142: 149776448.6 | K142: 212368579 | L142: 0.1728371938 | M142: 1.728371938 | N142: 0.2598449465 | O142: 25458.08948 | P142: 25480.71643 | Q142: 158671058.5 | R142: 181967047.7 | S142: 0.06838926375 | T142: 0.6838926375 | U142: 0.06603500539 | V142: 25560.20244 | W142: 25480.71643 | AX142: 384240000
A143: 111 | B143: =IF(A143>$B$30,NA(),IF($A143>$A$8,"",OFFSET(InputPriceData!$B$15,$A143+$A$11,0,1,1))) -> 2018-11-13 | C143: =IF(A143>$B$30,NA(),IF($A143>$A$8,"",OFFSET(InputPriceData!$G$15,CalculationsAndCharts!$A143+$A$11,IF($C$5,8,0),1,1))) -> 339690000 | D143: =IF(A143>$B$30,NA(),IF(A143>$A$8,"",OFFSET(InputPriceData!$C$15,CalculationsAndCharts!$A143+$A$11,IF($C$5,8,0),1,1))) -> 25321.21 | E143: =IF(A143>$B$30,NA(),IF(A143>$A$8,"",OFFSET(InputPriceData!$D$15,CalculationsAndCharts!$A143+$A$11,IF($C$5,8,0),1,1))) -> 25511.03 | F143: =IF(A143>$B$30,NA(),IF(A143>$A$8,"",OFFSET(InputPriceData!$E$15,CalculationsAndCharts!$A143+$A$11,IF($C$5,8,0),1,1))) -> 25193.78 | G143: =IF(A143>$B$30,NA(),IF(A143>$A$8,"",OFFSET(InputPriceData!$F$15,CalculationsAndCharts!$A143+$A$11,IF($C$5,8,0),1,1))) -> 25286.49 | H143: 0 | I143: 339690000 | J143: 165542390.6 | K143: 194276850.4 | L143: 0.07985804138 | M143: 0.7985804138 | N143: 0.1712933727 | O143: 25590.64916 | P143: 25522.84448 | Q143: 165147428.2 | R143: 173711008.9 | S143: 0.02527185323 | T143: 0.2527185323 | U143: 0.04912621695 | V143: 25594.1193 | W143: 25522.84448 | AX143: 339690000
A144: 112 | B144: =IF(A144>$B$30,NA(),IF($A144>$A$8,"",OFFSET(InputPriceData!$B$15,$A144+$A$11,0,1,1))) -> 2018-11-12 | C144: =IF(A144>$B$30,NA(),IF($A144>$A$8,"",OFFSET(InputPriceData!$G$15,CalculationsAndCharts!$A144+$A$11,IF($C$5,8,0),1,1))) -> 346910000 | D144: =IF(A144>$B$30,NA(),IF(A144>$A$8,"",OFFSET(InputPriceData!$C$15,CalculationsAndCharts!$A144+$A$11,IF($C$5,8,0),1,1))) -> 25959.33 | E144: =IF(A144>$B$30,NA(),IF(A144>$A$8,"",OFFSET(InputPriceData!$D$15,CalculationsAndCharts!$A144+$A$11,IF($C$5,8,0),1,1))) -> 25966.71 | F144: =IF(A144>$B$30,NA(),IF(A144>$A$8,"",OFFSET(InputPriceData!$E$15,CalculationsAndCharts!$A144+$A$11,IF($C$5,8,0),1,1))) -> 25340.51 | G144: =IF(A144>$B$30,NA(),IF(A144>$A$8,"",OFFSET(InputPriceData!$F$15,CalculationsAndCharts!$A144+$A$11,IF($C$5,8,0),1,1))) -> 25387.18 | H144: 0 | I144: 346910000 | J144: 182967905.4 | K144: 178970203.1 | L144: 0.0110452649 | M144: 0.110452649 | N144: 0.1057573951 | O144: 25653.51875 | P144: 25547.72389 | Q144: 171888139.5 | R144: 166936356.2 | S144: 0.01461459673 | T144: 0.1461459673 | U144: 0.04494690068 | V144: 25610.01275 | W144: 25547.72389 | AX144: 346910000
A145: 113 | B145: =IF(A145>$B$30,NA(),IF($A145>$A$8,"",OFFSET(InputPriceData!$B$15,$A145+$A$11,0,1,1))) -> 2018-11-09 | C145: =IF(A145>$B$30,NA(),IF($A145>$A$8,"",OFFSET(InputPriceData!$G$15,CalculationsAndCharts!$A145+$A$11,IF($C$5,8,0),1,1))) -> 324450000 | D145: =IF(A145>$B$30,NA(),IF(A145>$A$8,"",OFFSET(InputPriceData!$C$15,CalculationsAndCharts!$A145+$A$11,IF($C$5,8,0),1,1))) -> 26149.11 | E145: =IF(A145>$B$30,NA(),IF(A145>$A$8,"",OFFSET(InputPriceData!$D$15,CalculationsAndCharts!$A145+$A$11,IF($C$5,8,0),1,1))) -> 26161.49 | F145: =IF(A145>$B$30,NA(),IF(A145>$A$8,"",OFFSET(InputPriceData!$E$15,CalculationsAndCharts!$A145+$A$11,IF($C$5,8,0),1,1))) -> 25882.91 | G145: =IF(A145>$B$30,NA(),IF(A145>$A$8,"",OFFSET(InputPriceData!$F$15,CalculationsAndCharts!$A145+$A$11,IF($C$5,8,0),1,1))) -> 25989.3 | H145: 0 | I145: 324450000 | J145: 202227684.9 | K145: 161292329.7 | L145: 0.1126082568 | M145: 1.126082568 | N145: 0.2024840541 | O145: 25685.01725 | P145: 25564.62325 | Q145: 178903982 | R145: 159590493.2 | S145: 0.05705702819 | T145: 0.5705702819 | U145: 0.06159099145 | V145: 25620.49975 | W145: 25564.62325 | AX145: 324450000
A146: 114 | B146: =IF(A146>$B$30,NA(),IF($A146>$A$8,"",OFFSET(InputPriceData!$B$15,$A146+$A$11,0,1,1))) -> 2018-11-08 | C146: =IF(A146>$B$30,NA(),IF($A146>$A$8,"",OFFSET(InputPriceData!$G$15,CalculationsAndCharts!$A146+$A$11,IF($C$5,8,0),1,1))) -> 295650000 | D146: =IF(A146>$B$30,NA(),IF(A146>$A$8,"",OFFSET(InputPriceData!$C$15,CalculationsAndCharts!$A146+$A$11,IF($C$5,8,0),1,1))) -> 26139.59 | E146: =IF(A146>$B$30,NA(),IF(A146>$A$8,"",OFFSET(InputPriceData!$D$15,CalculationsAndCharts!$A146+$A$11,IF($C$5,8,0),1,1))) -> 26277.82 | F146: =IF(A146>$B$30,NA(),IF(A146>$A$8,"",OFFSET(InputPriceData!$E$15,CalculationsAndCharts!$A146+$A$11,IF($C$5,8,0),1,1))) -> 26081.9 | G146: =IF(A146>$B$30,NA(),IF(A146>$A$8,"",OFFSET(InputPriceData!$F$15,CalculationsAndCharts!$A146+$A$11,IF($C$5,8,0),1,1))) -> 26191.22 | H146: 295650000 | I146: 0 | J146: 223514809.6 | K146: 144117838.1 | L146: 0.215968228 | M146: 2.15968228 | N146: 0.3009221219 | O146: 25607.76186 | P146: 25519.92044 | Q146: 186206185.3 | R146: 152861533.7 | S146: 0.09834215925 | T146: 0.9834215925 | U146: 0.07778123892 | V146: 25596.29412 | W146: 25519.92044 | AW146: 295650000
A147: 115 | B147: =IF(A147>$B$30,NA(),IF($A147>$A$8,"",OFFSET(InputPriceData!$B$15,$A147+$A$11,0,1,1))) -> 2018-11-07 | C147: =IF(A147>$B$30,NA(),IF($A147>$A$8,"",OFFSET(InputPriceData!$G$15,CalculationsAndCharts!$A147+$A$11,IF($C$5,8,0),1,1))) -> 361780000 | D147: =IF(A147>$B$30,NA(),IF(A147>$A$8,"",OFFSET(InputPriceData!$C$15,CalculationsAndCharts!$A147+$A$11,IF($C$5,8,0),1,1))) -> 25788.46 | E147: =IF(A147>$B$30,NA(),IF(A147>$A$8,"",OFFSET(InputPriceData!$D$15,CalculationsAndCharts!$A147+$A$11,IF($C$5,8,0),1,1))) -> 26200.14 | F147: =IF(A147>$B$30,NA(),IF(A147>$A$8,"",OFFSET(InputPriceData!$E$15,CalculationsAndCharts!$A147+$A$11,IF($C$5,8,0),1,1))) -> 25765.88 | G147: =IF(A147>$B$30,NA(),IF(A147>$A$8,"",OFFSET(InputPriceData!$F$15,CalculationsAndCharts!$A147+$A$11,IF($C$5,8,0),1,1))) -> 26180.3 | H147: 361780000 | I147: 0 | J147: 215921631.7 | K147: 159288136.9 | L147: 0.1509382206 | M147: 1.509382206 | N147: 0.2389887815 | O147: 25356.60892 | P147: 25449.25732 | Q147: 181739090.8 | R147: 159100780 | S147: 0.06641919801 | T147: 0.6641919801 | U147: 0.06526243059 | V147: 25546.11723 | W147: 25449.25732 | AW147: 361780000
A148: 116 | B148: =IF(A148>$B$30,NA(),IF($A148>$A$8,"",OFFSET(InputPriceData!$B$15,$A148+$A$11,0,1,1))) -> 2018-11-06 | C148: =IF(A148>$B$30,NA(),IF($A148>$A$8,"",OFFSET(InputPriceData!$G$15,CalculationsAndCharts!$A148+$A$11,IF($C$5,8,0),1,1))) -> 265450000 | D148: =IF(A148>$B$30,NA(),IF(A148>$A$8,"",OFFSET(InputPriceData!$C$15,CalculationsAndCharts!$A148+$A$11,IF($C$5,8,0),1,1))) -> 25452.83 | E148: =IF(A148>$B$30,NA(),IF(A148>$A$8,"",OFFSET(InputPriceData!$D$15,CalculationsAndCharts!$A148+$A$11,IF($C$5,8,0),1,1))) -> 25651.86 | F148: =IF(A148>$B$30,NA(),IF(A148>$A$8,"",OFFSET(InputPriceData!$E$15,CalculationsAndCharts!$A148+$A$11,IF($C$5,8,0),1,1))) -> 25444.9 | G148: =IF(A148>$B$30,NA(),IF(A148>$A$8,"",OFFSET(InputPriceData!$F$15,CalculationsAndCharts!$A148+$A$11,IF($C$5,8,0),1,1))) -> 25635.01 | H148: 265450000 | I148: 0 | J148: 200568119.2 | K148: 176055309.2 | L148: 0.06508572806 | M148: 0.6508572806 | N148: 0.1572245029 | O148: 25097.93608 | P148: 25372.30546 | Q148: 174390482.3 | R148: 165594689.4 | S148: 0.02587110756 | T148: 0.2587110756 | U148: 0.04936121865 | V148: 25501.83923 | W148: 25372.30546 | AW148: 265450000
A149: 117 | B149: =IF(A149>$B$30,NA(),IF($A149>$A$8,"",OFFSET(InputPriceData!$B$15,$A149+$A$11,0,1,1))) -> 2018-11-05 | C149: =IF(A149>$B$30,NA(),IF($A149>$A$8,"",OFFSET(InputPriceData!$G$15,CalculationsAndCharts!$A149+$A$11,IF($C$5,8,0),1,1))) -> 334740000 | D149: =IF(A149>$B$30,NA(),IF(A149>$A$8,"",OFFSET(InputPriceData!$C$15,CalculationsAndCharts!$A149+$A$11,IF($C$5,8,0),1,1))) -> 25261.47 | E149: =IF(A149>$B$30,NA(),IF(A149>$A$8,"",OFFSET(InputPriceData!$D$15,CalculationsAndCharts!$A149+$A$11,IF($C$5,8,0),1,1))) -> 25507.35 | F149: =IF(A149>$B$30,NA(),IF(A149>$A$8,"",OFFSET(InputPriceData!$E$15,CalculationsAndCharts!$A149+$A$11,IF($C$5,8,0),1,1))) -> 25261.47 | G149: =IF(A149>$B$30,NA(),IF(A149>$A$8,"",OFFSET(InputPriceData!$F$15,CalculationsAndCharts!$A149+$A$11,IF($C$5,8,0),1,1))) -> 25461.7 | H149: 334740000 | I149: 0 | J149: 193738447.6 | K149: 194587447 | L149: 0.002186306491 | M149: 0.02186306491 | N149: 0.0973202919 | O149: 24997.74193 | P149: 25344.65235 | Q149: 170673767.3 | R149: 172353656.3 | S149: 0.004897243954 | T149: 0.04897243954 | U149: 0.0411361741 | V149: 25494.92444 | W149: 25344.65235 | AW149: 334740000
A150: 118 | B150: =IF(A150>$B$30,NA(),IF($A150>$A$8,"",OFFSET(InputPriceData!$B$15,$A150+$A$11,0,1,1))) -> 2018-11-02 | C150: =IF(A150>$B$30,NA(),IF($A150>$A$8,"",OFFSET(InputPriceData!$G$15,CalculationsAndCharts!$A150+$A$11,IF($C$5,8,0),1,1))) -> 429480000 | D150: =IF(A150>$B$30,NA(),IF(A150>$A$8,"",OFFSET(InputPriceData!$C$15,CalculationsAndCharts!$A150+$A$11,IF($C$5,8,0),1,1))) -> 25443.6 | E150: =IF(A150>$B$30,NA(),IF(A150>$A$8,"",OFFSET(InputPriceData!$D$15,CalculationsAndCharts!$A150+$A$11,IF($C$5,8,0),1,1))) -> 25578.98 | F150: =IF(A150>$B$30,NA(),IF(A150>$A$8,"",OFFSET(InputPriceData!$E$15,CalculationsAndCharts!$A150+$A$11,IF($C$5,8,0),1,1))) -> 25078.72 | G150: =IF(A150>$B$30,NA(),IF(A150>$A$8,"",OFFSET(InputPriceData!$F$15,CalculationsAndCharts!$A150+$A$11,IF($C$5,8,0),1,1))) -> 25270.83 | H150: 0 | I150: 429480000 | J150: 178896178.9 | K150: 215070336.2 | L150: 0.09182038543 | M150: 0.9182038543 | N150: 0.1826860814 | O150: 24947.72138 | P150: 25332.33155 | Q150: 163977186.4 | R150: 179388499.4 | S150: 0.04488309012 | T150: 0.4488309012 | U150: 0.05681689808 | V150: 25496.3498 | W150: 25332.33155 | AX150: 429480000
A151: 119 | B151: =IF(A151>$B$30,NA(),IF($A151>$A$8,"",OFFSET(InputPriceData!$B$15,$A151+$A$11,0,1,1))) -> 2018-11-01 | C151: =IF(A151>$B$30,NA(),IF($A151>$A$8,"",OFFSET(InputPriceData!$G$15,CalculationsAndCharts!$A151+$A$11,IF($C$5,8,0),1,1))) -> 383970000 | D151: =IF(A151>$B$30,NA(),IF(A151>$A$8,"",OFFSET(InputPriceData!$C$15,CalculationsAndCharts!$A151+$A$11,IF($C$5,8,0),1,1))) -> 25142.08 | E151: =IF(A151>$B$30,NA(),IF(A151>$A$8,"",OFFSET(InputPriceData!$D$15,CalculationsAndCharts!$A151+$A$11,IF($C$5,8,0),1,1))) -> 25396.47 | F151: =IF(A151>$B$30,NA(),IF(A151>$A$8,"",OFFSET(InputPriceData!$E$15,CalculationsAndCharts!$A151+$A$11,IF($C$5,8,0),1,1))) -> 25108.11 | G151: =IF(A151>$B$30,NA(),IF(A151>$A$8,"",OFFSET(InputPriceData!$F$15,CalculationsAndCharts!$A151+$A$11,IF($C$5,8,0),1,1))) -> 25380.74 | H151: 383970000 | I151: 0 | J151: 197727355.6 | K151: 192500897.9 | L151: 0.01339333511 | M151: 0.1339333511 | N151: 0.1079936525 | O151: 24875.50011 | P151: 25338.8054 | Q151: 170670132.7 | R151: 169180683 | S151: 0.004382657475 | T151: 0.04382657475 | U151: 0.04093437548 | V151: 25509.935 | W151: 25338.8054 | AW151: 383970000
A152: 120 | B152: =IF(A152>$B$30,NA(),IF($A152>$A$8,"",OFFSET(InputPriceData!$B$15,$A152+$A$11,0,1,1))) -> 2018-10-31 | C152: =IF(A152>$B$30,NA(),IF($A152>$A$8,"",OFFSET(InputPriceData!$G$15,CalculationsAndCharts!$A152+$A$11,IF($C$5,8,0),1,1))) -> 448930000 | D152: =IF(A152>$B$30,NA(),IF(A152>$A$8,"",OFFSET(InputPriceData!$C$15,CalculationsAndCharts!$A152+$A$11,IF($C$5,8,0),1,1))) -> 25008.82 | E152: =IF(A152>$B$30,NA(),IF(A152>$A$8,"",OFFSET(InputPriceData!$D$15,CalculationsAndCharts!$A152+$A$11,IF($C$5,8,0),1,1))) -> 25336.55 | F152: =IF(A152>$B$30,NA(),IF(A152>$A$8,"",OFFSET(InputPriceData!$E$15,CalculationsAndCharts!$A152+$A$11,IF($C$5,8,0),1,1))) -> 25008.82 | G152: =IF(A152>$B$30,NA(),IF(A152>$A$8,"",OFFSET(InputPriceData!$F$15,CalculationsAndCharts!$A152+$A$11,IF($C$5,8,0),1,1))) -> 25115.76 | H152: 448930000 | I152: 0 | J152: 178122866.7 | K152: 212764150.3 | L152: 0.08862224125 | M152: 0.8862224125 | N152: 0.1796402298 | O152: 24814.3316 | P152: 25334.39123 | Q152: 161964015.7 | R152: 176086017 | S152: 0.04177488521 | T152: 0.4177488521 | U152: 0.0555979942 | V152: 25515.44924 | W152: 25334.39123 | AW152: 448930000
A153: 121 | B153: =IF(A153>$B$30,NA(),IF($A153>$A$8,"",OFFSET(InputPriceData!$B$15,$A153+$A$11,0,1,1))) -> 2018-10-30 | C153: =IF(A153>$B$30,NA(),IF($A153>$A$8,"",OFFSET(InputPriceData!$G$15,CalculationsAndCharts!$A153+$A$11,IF($C$5,8,0),1,1))) -> 470050000 | D153: =IF(A153>$B$30,NA(),IF(A153>$A$8,"",OFFSET(InputPriceData!$C$15,CalculationsAndCharts!$A153+$A$11,IF($C$5,8,0),1,1))) -> 24482.04 | E153: =IF(A153>$B$30,NA(),IF(A153>$A$8,"",OFFSET(InputPriceData!$D$15,CalculationsAndCharts!$A153+$A$11,IF($C$5,8,0),1,1))) -> 24906.68 | F153: =IF(A153>$B$30,NA(),IF(A153>$A$8,"",OFFSET(InputPriceData!$E$15,CalculationsAndCharts!$A153+$A$11,IF($C$5,8,0),1,1))) -> 24415.69 | G153: =IF(A153>$B$30,NA(),IF(A153>$A$8,"",OFFSET(InputPriceData!$F$15,CalculationsAndCharts!$A153+$A$11,IF($C$5,8,0),1,1))) -> 24874.64 | H153: 470050000 | I153: 0 | J153: 149616852.7 | K153: 235160376.6 | L153: 0.2223196109 | M153: 2.223196109 | N153: 0.306971058 | O153: 24748.3256 | P153: 25357.40504 | Q153: 150251118.4 | R153: 183273201.4 | S153: 0.09900952057 | T153: 0.9900952057 | U153: 0.07804294924 | V153: 25538.97939 | W153: 25357.40504 | AW153: 470050000
A154: 122 | B154: =IF(A154>$B$30,NA(),IF($A154>$A$8,"",OFFSET(InputPriceData!$B$15,$A154+$A$11,0,1,1))) -> 2018-10-29 | C154: =IF(A154>$B$30,NA(),IF($A154>$A$8,"",OFFSET(InputPriceData!$G$15,CalculationsAndCharts!$A154+$A$11,IF($C$5,8,0),1,1))) -> 443850000 | D154: =IF(A154>$B$30,NA(),IF(A154>$A$8,"",OFFSET(InputPriceData!$C$15,CalculationsAndCharts!$A154+$A$11,IF($C$5,8,0),1,1))) -> 24818.98 | E154: =IF(A154>$B$30,NA(),IF(A154>$A$8,"",OFFSET(InputPriceData!$D$15,CalculationsAndCharts!$A154+$A$11,IF($C$5,8,0),1,1))) -> 25040.58 | F154: =IF(A154>$B$30,NA(),IF(A154>$A$8,"",OFFSET(InputPriceData!$E$15,CalculationsAndCharts!$A154+$A$11,IF($C$5,8,0),1,1))) -> 24122.23 | G154: =IF(A154>$B$30,NA(),IF(A154>$A$8,"",OFFSET(InputPriceData!$F$15,CalculationsAndCharts!$A154+$A$11,IF($C$5,8,0),1,1))) -> 24442.92 | H154: 0 | I154: 443850000 | J154: 115887047.7 | K154: 259914100.5 | L154: 0.38325336 | M154: 3.8325336 | N154: 0.4602412952 | O154: 24692.37575 | P154: 25408.22242 | Q154: 137198102.8 | R154: 190753740.2 | S154: 0.1633033585 | T154: 1.633033585 | U154: 0.103256219 | V154: 25595.2152 | W154: 25408.22242 | AX154: 443850000
A155: 123 | B155: =IF(A155>$B$30,NA(),IF($A155>$A$8,"",OFFSET(InputPriceData!$B$15,$A155+$A$11,0,1,1))) -> 2018-10-26 | C155: =IF(A155>$B$30,NA(),IF($A155>$A$8,"",OFFSET(InputPriceData!$G$15,CalculationsAndCharts!$A155+$A$11,IF($C$5,8,0),1,1))) -> 505310000 | D155: =IF(A155>$B$30,NA(),IF(A155>$A$8,"",OFFSET(InputPriceData!$C$15,CalculationsAndCharts!$A155+$A$11,IF($C$5,8,0),1,1))) -> 24770.25 | E155: =IF(A155>$B$30,NA(),IF(A155>$A$8,"",OFFSET(InputPriceData!$D$15,CalculationsAndCharts!$A155+$A$11,IF($C$5,8,0),1,1))) -> 24916.16 | F155: =IF(A155>$B$30,NA(),IF(A155>$A$8,"",OFFSET(InputPriceData!$E$15,CalculationsAndCharts!$A155+$A$11,IF($C$5,8,0),1,1))) -> 24445.19 | G155: =IF(A155>$B$30,NA(),IF(A155>$A$8,"",OFFSET(InputPriceData!$F$15,CalculationsAndCharts!$A155+$A$11,IF($C$5,8,0),1,1))) -> 24688.31 | H155: 0 | I155: 505310000 | J155: 128085684.3 | K155: 240552426.8 | L155: 0.3050871277 | M155: 3.050871277 | N155: 0.3857972644 | O155: 24905.08161 | P155: 25509.8332 | Q155: 142798025.4 | R155: 180423280.6 | S155: 0.1164071011 | T155: 1.164071011 | U155: 0.08486552986 | V155: 25727.89708 | W155: 25509.8332 | AX155: 505310000
A156: 124 | B156: =IF(A156>$B$30,NA(),IF($A156>$A$8,"",OFFSET(InputPriceData!$B$15,$A156+$A$11,0,1,1))) -> 2018-10-25 | C156: =IF(A156>$B$30,NA(),IF($A156>$A$8,"",OFFSET(InputPriceData!$G$15,CalculationsAndCharts!$A156+$A$11,IF($C$5,8,0),1,1))) -> 439670000 | D156: =IF(A156>$B$30,NA(),IF(A156>$A$8,"",OFFSET(InputPriceData!$C$15,CalculationsAndCharts!$A156+$A$11,IF($C$5,8,0),1,1))) -> 24736.54 | E156: =IF(A156>$B$30,NA(),IF(A156>$A$8,"",OFFSET(InputPriceData!$D$15,CalculationsAndCharts!$A156+$A$11,IF($C$5,8,0),1,1))) -> 25104.29 | F156: =IF(A156>$B$30,NA(),IF(A156>$A$8,"",OFFSET(InputPriceData!$E$15,CalculationsAndCharts!$A156+$A$11,IF($C$5,8,0),1,1))) -> 24645.56 | G156: =IF(A156>$B$30,NA(),IF(A156>$A$8,"",OFFSET(InputPriceData!$F$15,CalculationsAndCharts!$A156+$A$11,IF($C$5,8,0),1,1))) -> 24984.55 | H156: 439670000 | I156: 0 | J156: 141568388 | K156: 212683208.6 | L156: 0.2007466482 | M156: 2.007466482 | N156: 0.2864253793 | O156: 25041.24168 | P156: 25596.30932 | Q156: 148626516.2 | R156: 167162598.2 | S156: 0.0586976598 | T156: 0.586976598 | U156: 0.06223437639 | V156: 25824.30379 | W156: 25596.30932 | AW156: 439670000
A157: 125 | B157: =IF(A157>$B$30,NA(),IF($A157>$A$8,"",OFFSET(InputPriceData!$B$15,$A157+$A$11,0,1,1))) -> 2018-10-24 | C157: =IF(A157>$B$30,NA(),IF($A157>$A$8,"",OFFSET(InputPriceData!$G$15,CalculationsAndCharts!$A157+$A$11,IF($C$5,8,0),1,1))) -> 496400000 | D157: =IF(A157>$B$30,NA(),IF(A157>$A$8,"",OFFSET(InputPriceData!$C$15,CalculationsAndCharts!$A157+$A$11,IF($C$5,8,0),1,1))) -> 25172.88 | E157: =IF(A157>$B$30,NA(),IF(A157>$A$8,"",OFFSET(InputPriceData!$D$15,CalculationsAndCharts!$A157+$A$11,IF($C$5,8,0),1,1))) -> 25306.23 | F157: =IF(A157>$B$30,NA(),IF(A157>$A$8,"",OFFSET(InputPriceData!$E$15,CalculationsAndCharts!$A157+$A$11,IF($C$5,8,0),1,1))) -> 24533.19 | G157: =IF(A157>$B$30,NA(),IF(A157>$A$8,"",OFFSET(InputPriceData!$F$15,CalculationsAndCharts!$A157+$A$11,IF($C$5,8,0),1,1))) -> 24583.42 | H157: 0 | I157: 496400000 | J157: 110189270.9 | K157: 235070914.8 | L157: 0.3617029969 | M157: 3.617029969 | N157: 0.4397171399 | O157: 25063.99745 | P157: 25660.70504 | Q157: 136747190.3 | R157: 173985561.4 | S157: 0.1198405088 | T157: 1.198405088 | U157: 0.08621196423 | V157: 25880.03366 | W157: 25660.70504 | AX157: 496400000
A158: 126 | B158: =IF(A158>$B$30,NA(),IF($A158>$A$8,"",OFFSET(InputPriceData!$B$15,$A158+$A$11,0,1,1))) -> 2018-10-23 | C158: =IF(A158>$B$30,NA(),IF($A158>$A$8,"",OFFSET(InputPriceData!$G$15,CalculationsAndCharts!$A158+$A$11,IF($C$5,8,0),1,1))) -> 436430000 | D158: =IF(A158>$B$30,NA(),IF(A158>$A$8,"",OFFSET(InputPriceData!$C$15,CalculationsAndCharts!$A158+$A$11,IF($C$5,8,0),1,1))) -> 25038.46 | E158: =IF(A158>$B$30,NA(),IF(A158>$A$8,"",OFFSET(InputPriceData!$D$15,CalculationsAndCharts!$A158+$A$11,IF($C$5,8,0),1,1))) -> 25307.7 | F158: =IF(A158>$B$30,NA(),IF(A158>$A$8,"",OFFSET(InputPriceData!$E$15,CalculationsAndCharts!$A158+$A$11,IF($C$5,8,0),1,1))) -> 24768.79 | G158: =IF(A158>$B$30,NA(),IF(A158>$A$8,"",OFFSET(InputPriceData!$F$15,CalculationsAndCharts!$A158+$A$11,IF($C$5,8,0),1,1))) -> 25191.43 | H158: 0 | I158: 436430000 | J158: 121788141.5 | K158: 207562590 | L158: 0.2604349718 | M158: 2.604349718 | N158: 0.3432714017 | O158: 25441.16077 | P158: 25774.10347 | Q158: 142328708.3 | R158: 160825788.4 | S158: 0.06101535781 | T158: 0.6101535781 | U158: 0.06314327757 | V158: 26002.36357 | W158: 25774.10347 | AW158: 436430000
A159: 127 | B159: =IF(A159>$B$30,NA(),IF($A159>$A$8,"",OFFSET(InputPriceData!$B$15,$A159+$A$11,0,1,1))) -> 2018-10-22 | C159: =IF(A159>$B$30,NA(),IF($A159>$A$8,"",OFFSET(InputPriceData!$G$15,CalculationsAndCharts!$A159+$A$11,IF($C$5,8,0),1,1))) -> 314940000 | D159: =IF(A159>$B$30,NA(),IF(A159>$A$8,"",OFFSET(InputPriceData!$C$15,CalculationsAndCharts!$A159+$A$11,IF($C$5,8,0),1,1))) -> 25492.14 | E159: =IF(A159>$B$30,NA(),IF(A159>$A$8,"",OFFSET(InputPriceData!$D$15,CalculationsAndCharts!$A159+$A$11,IF($C$5,8,0),1,1))) -> 25561.34 | F159: =IF(A159>$B$30,NA(),IF(A159>$A$8,"",OFFSET(InputPriceData!$E$15,CalculationsAndCharts!$A159+$A$11,IF($C$5,8,0),1,1))) -> 25236.05 | G159: =IF(A159>$B$30,NA(),IF(A159>$A$8,"",OFFSET(InputPriceData!$F$15,CalculationsAndCharts!$A159+$A$11,IF($C$5,8,0),1,1))) -> 25317.41 | H159: 0 | I159: 314940000 | J159: 134607945.9 | K159: 183471283.7 | L159: 0.1536200206 | M159: 1.536200206 | N159: 0.2415428767 | O159: 25571.6948 | P159: 25835.43751 | Q159: 148138043.4 | R159: 149576636.9 | S159: 0.004832121693 | T159: 0.04832121693 | U159: 0.04111063596 | V159: 26057.01975 | W159: 25835.43751 | AX159: 314940000
A160: 128 | B160: =IF(A160>$B$30,NA(),IF($A160>$A$8,"",OFFSET(InputPriceData!$B$15,$A160+$A$11,0,1,1))) -> 2018-10-19 | C160: =IF(A160>$B$30,NA(),IF($A160>$A$8,"",OFFSET(InputPriceData!$G$15,CalculationsAndCharts!$A160+$A$11,IF($C$5,8,0),1,1))) -> 350810000 | D160: =IF(A160>$B$30,NA(),IF(A160>$A$8,"",OFFSET(InputPriceData!$C$15,CalculationsAndCharts!$A160+$A$11,IF($C$5,8,0),1,1))) -> 25421.09 | E160: =IF(A160>$B$30,NA(),IF(A160>$A$8,"",OFFSET(InputPriceData!$D$15,CalculationsAndCharts!$A160+$A$11,IF($C$5,8,0),1,1))) -> 25608.71 | F160: =IF(A160>$B$30,NA(),IF(A160>$A$8,"",OFFSET(InputPriceData!$E$15,CalculationsAndCharts!$A160+$A$11,IF($C$5,8,0),1,1))) -> 25350.02 | G160: =IF(A160>$B$30,NA(),IF(A160>$A$8,"",OFFSET(InputPriceData!$F$15,CalculationsAndCharts!$A160+$A$11,IF($C$5,8,0),1,1))) -> 25444.34 | H160: 350810000 | I160: 0 | J160: 148777203.3 | K160: 169632471.4 | L160: 0.06549822364 | M160: 0.6549822364 | N160: 0.1576173558 | O160: 25652.67588 | P160: 25889.96673 | Q160: 154184494.1 | R160: 142827111.9 | S160: 0.03823884986 | T160: 0.3823884986 | U160: 0.05421131367 | V160: 26088.72917 | W160: 25889.96673 | AW160: 350810000
A161: 129 | B161: =IF(A161>$B$30,NA(),IF($A161>$A$8,"",OFFSET(InputPriceData!$B$15,$A161+$A$11,0,1,1))) -> 2018-10-18 | C161: =IF(A161>$B$30,NA(),IF($A161>$A$8,"",OFFSET(InputPriceData!$G$15,CalculationsAndCharts!$A161+$A$11,IF($C$5,8,0),1,1))) -> 328020000 | D161: =IF(A161>$B$30,NA(),IF(A161>$A$8,"",OFFSET(InputPriceData!$C$15,CalculationsAndCharts!$A161+$A$11,IF($C$5,8,0),1,1))) -> 25645.56 | E161: =IF(A161>$B$30,NA(),IF(A161>$A$8,"",OFFSET(InputPriceData!$D$15,CalculationsAndCharts!$A161+$A$11,IF($C$5,8,0),1,1))) -> 25691.46 | F161: =IF(A161>$B$30,NA(),IF(A161>$A$8,"",OFFSET(InputPriceData!$E$15,CalculationsAndCharts!$A161+$A$11,IF($C$5,8,0),1,1))) -> 25236.01 | G161: =IF(A161>$B$30,NA(),IF(A161>$A$8,"",OFFSET(InputPriceData!$F$15,CalculationsAndCharts!$A161+$A$11,IF($C$5,8,0),1,1))) -> 25379.45 | H161: 0 | I161: 328020000 | J161: 127510593.2 | K161: 187488521.1 | L161: 0.1904066557 | M161: 1.904066557 | N161: 0.2765777673 | O161: 25691.6574 | P161: 25936.8748 | Q161: 146158963.3 | R161: 148656789.9 | S161: 0.008472500721 | T161: 0.08472500721 | U161: 0.04253823558 | V161: 26125.66468 | W161: 25936.8748 | AW161: =IF(G161>=D161,C161,NA()) ->  | AX161: =IF(G161<D161,C161,NA()) -> 328020000
A162: 130 | B162: =IF(A162>$B$30,NA(),IF($A162>$A$8,"",OFFSET(InputPriceData!$B$15,$A162+$A$11,0,1,1))) -> 2018-10-17 | C162: =IF(A162>$B$30,NA(),IF($A162>$A$8,"",OFFSET(InputPriceData!$G$15,CalculationsAndCharts!$A162+$A$11,IF($C$5,8,0),1,1))) -> 298210000 | D162: =IF(A162>$B$30,NA(),IF(A162>$A$8,"",OFFSET(InputPriceData!$C$15,CalculationsAndCharts!$A162+$A$11,IF($C$5,8,0),1,1))) -> 25705.87 | E162: =IF(A162>$B$30,NA(),IF(A162>$A$8,"",OFFSET(InputPriceData!$D$15,CalculationsAndCharts!$A162+$A$11,IF($C$5,8,0),1,1))) -> 25810.09 | F162: =IF(A162>$B$30,NA(),IF(A162>$A$8,"",OFFSET(InputPriceData!$E$15,CalculationsAndCharts!$A162+$A$11,IF($C$5,8,0),1,1))) -> 25479.16 | G162: =IF(A162>$B$30,NA(),IF(A162>$A$8,"",OFFSET(InputPriceData!$F$15,CalculationsAndCharts!$A162+$A$11,IF($C$5,8,0),1,1))) -> 25706.68 | H162: =IF($A162>$H$30,NA(),IF($G162>$G163,$C162,0)) -> 0 | I162: =IF($A162>$H$30,NA(),IF($G162<$G163,$C162,0)) -> 298210000 | J162: =IF($A162>$J$30,NA(),IF($A162=$J$30,AVERAGE(OFFSET(H162,0,0,$A$19,1)),J163+$C$19*(H162-J163))) -> 140932760.9 | K162: =IF($A162>$J$30,NA(),IF($A162=$J$30,AVERAGE(OFFSET(I162,0,0,$A$19,1)),K163+$C$19*(I162-K163))) -> 172695733.8 | L162: =IF($A162>$J$30,NA(),ABS(J162-K162)/(J162+K162+0.00001)) -> 0.101275788 | M162: =IF($A162>$J$30,NA(),L162*$A$20) -> 1.01275788 | N162: =IF($A162>$J$30,NA(),$C$18*(1+M162)) -> 0.1916912266 | O162: =IF($A162>$O$30,NA(),IF($A162=$O$30,$G162,O163+N162*($G162-O163))) -> 25811.02009 | P162: =IF($A162>$P$30,NA(),IF($A162=$P$30,AVERAGE(OFFSET($G162,0,0,$A$23,1)),P163+$C$23*($G162-P163))) -> 25995.5511 | Q162: =IF($A162>$Q$30,NA(),IF($A162=$Q$30,AVERAGE(OFFSET($H162,0,0,$D$19,1)),Q163+$F$19*($H162-Q163))) -> 152124635.2 | R162: =IF($A162>$Q$30,NA(),IF($A162=$Q$30,AVERAGE(OFFSET($I162,0,0,$D$19,1)),R163+$F$19*($I162-R163))) -> 141335842.6 | S162: =IF($A162>$Q$30,NA(),ABS(Q162-R162)/(Q162+R162+0.00001)) -> 0.03676403964 | T162: =IF($A162>$J$30,NA(),S162*$A$20) -> 0.3676403964 | U162: =IF($A162>$Q$30,NA(),$F$18*(1+T162)) -> 0.05363295672 | V162: =IF($A162>$V$30,NA(),IF($A162=$V$30,$G162,V163+U162*($G162-V163))) -> 26158.8176 | W162: =IF($A162>$W$30,NA(),IF($A162=$W$30,AVERAGE(OFFSET($G162,0,0,$D$23,1)),W163+$F$23*($G162-W163))) -> 25995.5511 | AW162: 298210000
A163: 131 | B163: =IF(A163>$B$30,NA(),IF($A163>$A$8,"",OFFSET(InputPriceData!$B$15,$A163+$A$11,0,1,1))) -> 2018-10-16 | C163: =IF(A163>$B$30,NA(),IF($A163>$A$8,"",OFFSET(InputPriceData!$G$15,CalculationsAndCharts!$A163+$A$11,IF($C$5,8,0),1,1))) -> 305800000 | D163: =IF(A163>$B$30,NA(),IF(A163>$A$8,"",OFFSET(InputPriceData!$C$15,CalculationsAndCharts!$A163+$A$11,IF($C$5,8,0),1,1))) -> 25351.53 | E163: =IF(A163>$B$30,NA(),IF(A163>$A$8,"",OFFSET(InputPriceData!$D$15,CalculationsAndCharts!$A163+$A$11,IF($C$5,8,0),1,1))) -> 25817.68 | F163: =IF(A163>$B$30,NA(),IF(A163>$A$8,"",OFFSET(InputPriceData!$E$15,CalculationsAndCharts!$A163+$A$11,IF($C$5,8,0),1,1))) -> 25351.53 | G163: =IF(A163>$B$30,NA(),IF(A163>$A$8,"",OFFSET(InputPriceData!$F$15,CalculationsAndCharts!$A163+$A$11,IF($C$5,8,0),1,1))) -> 25798.42 | H163: 305800000 | I163: 0 | J163: 155767788.3 | K163: 159483705.8 | L163: 0.01178715253 | M163: 0.1178715253 | N163: 0.1064639548 | O163: 25835.76445 | P163: 26025.95858 | Q163: 158333804 | R163: 134932815.8 | S163: 0.07979424414 | T163: 0.7979424414 | U163: 0.07050754672 | V163: 26184.44135 | W163: 26025.95858 | AW163: 305800000
A164: 132 | B164: =IF(A164>$B$30,NA(),IF($A164>$A$8,"",OFFSET(InputPriceData!$B$15,$A164+$A$11,0,1,1))) -> 2018-10-15 | C164: =IF(A164>$B$30,NA(),IF($A164>$A$8,"",OFFSET(InputPriceData!$G$15,CalculationsAndCharts!$A164+$A$11,IF($C$5,8,0),1,1))) -> 287320000 | D164: =IF(A164>$B$30,NA(),IF(A164>$A$8,"",OFFSET(InputPriceData!$C$15,CalculationsAndCharts!$A164+$A$11,IF($C$5,8,0),1,1))) -> 25332.46 | E164: =IF(A164>$B$30,NA(),IF(A164>$A$8,"",OFFSET(InputPriceData!$D$15,CalculationsAndCharts!$A164+$A$11,IF($C$5,8,0),1,1))) -> 25482.42 | F164: =IF(A164>$B$30,NA(),IF(A164>$A$8,"",OFFSET(InputPriceData!$E$15,CalculationsAndCharts!$A164+$A$11,IF($C$5,8,0),1,1))) -> 25243.88 | G164: =IF(A164>$B$30,NA(),IF(A164>$A$8,"",OFFSET(InputPriceData!$F$15,CalculationsAndCharts!$A164+$A$11,IF($C$5,8,0),1,1))) -> 25250.55 | H164: 0 | I164: 287320000 | J164: 139974924 | K164: 176271464.3 | L164: 0.1147729798 | M164: 1.147729798 | N164: 0.2045456951 | O164: 25840.214 | P164: 26049.91001 | Q164: 152314775.6 | R164: 140440277.6 | S164: 0.04056120586 | T164: 0.4056120586 | U164: 0.05512204151 | V164: 26213.72337 | W164: 26049.91001 | AX164: 287320000
A165: 133 | B165: =IF(A165>$B$30,NA(),IF($A165>$A$8,"",OFFSET(InputPriceData!$B$15,$A165+$A$11,0,1,1))) -> 2018-10-12 | C165: =IF(A165>$B$30,NA(),IF($A165>$A$8,"",OFFSET(InputPriceData!$G$15,CalculationsAndCharts!$A165+$A$11,IF($C$5,8,0),1,1))) -> 397510000 | D165: =IF(A165>$B$30,NA(),IF(A165>$A$8,"",OFFSET(InputPriceData!$C$15,CalculationsAndCharts!$A165+$A$11,IF($C$5,8,0),1,1))) -> 25407.63 | E165: =IF(A165>$B$30,NA(),IF(A165>$A$8,"",OFFSET(InputPriceData!$D$15,CalculationsAndCharts!$A165+$A$11,IF($C$5,8,0),1,1))) -> 25467.55 | F165: =IF(A165>$B$30,NA(),IF(A165>$A$8,"",OFFSET(InputPriceData!$E$15,CalculationsAndCharts!$A165+$A$11,IF($C$5,8,0),1,1))) -> 25000.83 | G165: =IF(A165>$B$30,NA(),IF(A165>$A$8,"",OFFSET(InputPriceData!$F$15,CalculationsAndCharts!$A165+$A$11,IF($C$5,8,0),1,1))) -> 25339.99 | H165: 397510000 | I165: 0 | J165: 154709126.5 | K165: 164582144.7 | L165: 0.03092166669 | M165: 0.3092166669 | N165: 0.1246873016 | O165: 25991.84211 | P165: 26134.05317 | Q165: 158531705.2 | R165: 134445186.9 | S165: 0.08221303097 | T165: 0.8221303097 | U165: 0.07145609058 | V165: 26269.91273 | W165: 26134.05317 | AX165: 397510000
A166: 134 | B166: =IF(A166>$B$30,NA(),IF($A166>$A$8,"",OFFSET(InputPriceData!$B$15,$A166+$A$11,0,1,1))) -> 2018-10-11 | C166: =IF(A166>$B$30,NA(),IF($A166>$A$8,"",OFFSET(InputPriceData!$G$15,CalculationsAndCharts!$A166+$A$11,IF($C$5,8,0),1,1))) -> 522880000 | D166: =IF(A166>$B$30,NA(),IF(A166>$A$8,"",OFFSET(InputPriceData!$C$15,CalculationsAndCharts!$A166+$A$11,IF($C$5,8,0),1,1))) -> 25518.39 | E166: =IF(A166>$B$30,NA(),IF(A166>$A$8,"",OFFSET(InputPriceData!$D$15,CalculationsAndCharts!$A166+$A$11,IF($C$5,8,0),1,1))) -> 25683.64 | F166: =IF(A166>$B$30,NA(),IF(A166>$A$8,"",OFFSET(InputPriceData!$E$15,CalculationsAndCharts!$A166+$A$11,IF($C$5,8,0),1,1))) -> 24899.77 | G166: =IF(A166>$B$30,NA(),IF(A166>$A$8,"",OFFSET(InputPriceData!$F$15,CalculationsAndCharts!$A166+$A$11,IF($C$5,8,0),1,1))) -> 25052.83 | H166: 0 | I166: 522880000 | J166: 129151139.8 | K166: 181906581 | L166: 0.1696001665 | M166: 1.696001665 | N166: 0.2567620633 | O166: 26084.69771 | P166: 26217.63877 | Q166: 148777489.1 | R166: 139932745.6 | S166: 0.03063536543 | T166: 0.3063536543 | U166: 0.05122955507 | V166: 26341.47493 | W166: 26217.63877 | AX166: 522880000
A167: 135 | B167: =IF(A167>$B$30,NA(),IF($A167>$A$8,"",OFFSET(InputPriceData!$B$15,$A167+$A$11,0,1,1))) -> 2018-10-10 | C167: =IF(A167>$B$30,NA(),IF($A167>$A$8,"",OFFSET(InputPriceData!$G$15,CalculationsAndCharts!$A167+$A$11,IF($C$5,8,0),1,1))) -> 438200000 | D167: =IF(A167>$B$30,NA(),IF(A167>$A$8,"",OFFSET(InputPriceData!$C$15,CalculationsAndCharts!$A167+$A$11,IF($C$5,8,0),1,1))) -> 26441.73 | E167: =IF(A167>$B$30,NA(),IF(A167>$A$8,"",OFFSET(InputPriceData!$D$15,CalculationsAndCharts!$A167+$A$11,IF($C$5,8,0),1,1))) -> 26487.87 | F167: =IF(A167>$B$30,NA(),IF(A167>$A$8,"",OFFSET(InputPriceData!$E$15,CalculationsAndCharts!$A167+$A$11,IF($C$5,8,0),1,1))) -> 25567.1 | G167: =IF(A167>$B$30,NA(),IF(A167>$A$8,"",OFFSET(InputPriceData!$F$15,CalculationsAndCharts!$A167+$A$11,IF($C$5,8,0),1,1))) -> 25598.74 | H167: 0 | I167: 438200000 | J167: 142745996.6 | K167: 146014642.2 | L167: 0.01131956763 | M167: 0.1131956763 | N167: 0.1060186358 | O167: 26441.17101 | P167: 26340.25022 | Q167: 154850039.7 | R167: 124302245.4 | S167: 0.1094305723 | T167: 1.094305723 | U167: 0.08212963618 | V167: 26411.05625 | W167: 26340.25022 | AX167: 438200000
A168: 136 | B168: =IF(A168>$B$30,NA(),IF($A168>$A$8,"",OFFSET(InputPriceData!$B$15,$A168+$A$11,0,1,1))) -> 2018-10-09 | C168: =IF(A168>$B$30,NA(),IF($A168>$A$8,"",OFFSET(InputPriceData!$G$15,CalculationsAndCharts!$A168+$A$11,IF($C$5,8,0),1,1))) -> 282560000 | D168: =IF(A168>$B$30,NA(),IF(A168>$A$8,"",OFFSET(InputPriceData!$C$15,CalculationsAndCharts!$A168+$A$11,IF($C$5,8,0),1,1))) -> 26469.19 | E168: =IF(A168>$B$30,NA(),IF(A168>$A$8,"",OFFSET(InputPriceData!$D$15,CalculationsAndCharts!$A168+$A$11,IF($C$5,8,0),1,1))) -> 26539.94 | F168: =IF(A168>$B$30,NA(),IF(A168>$A$8,"",OFFSET(InputPriceData!$E$15,CalculationsAndCharts!$A168+$A$11,IF($C$5,8,0),1,1))) -> 26324.16 | G168: =IF(A168>$B$30,NA(),IF(A168>$A$8,"",OFFSET(InputPriceData!$F$15,CalculationsAndCharts!$A168+$A$11,IF($C$5,8,0),1,1))) -> 26430.57 | H168: 0 | I168: 282560000 | J168: 157771891 | K168: 115258288.7 | L168: 0.1557102673 | M168: 1.557102673 | N168: 0.2435335879 | O168: 26541.07621 | P168: 26418.30392 | Q168: 161170449.5 | R168: 111490092.1 | S168: 0.1822058925 | T168: 1.822058925 | U168: 0.1106689775 | V168: 26483.74107 | W168: 26418.30392 | AX168: 282560000
A169: 137 | B169: =IF(A169>$B$30,NA(),IF($A169>$A$8,"",OFFSET(InputPriceData!$B$15,$A169+$A$11,0,1,1))) -> 2018-10-08 | C169: =IF(A169>$B$30,NA(),IF($A169>$A$8,"",OFFSET(InputPriceData!$G$15,CalculationsAndCharts!$A169+$A$11,IF($C$5,8,0),1,1))) -> 273020000 | D169: =IF(A169>$B$30,NA(),IF(A169>$A$8,"",OFFSET(InputPriceData!$C$15,CalculationsAndCharts!$A169+$A$11,IF($C$5,8,0),1,1))) -> 26399.45 | E169: =IF(A169>$B$30,NA(),IF(A169>$A$8,"",OFFSET(InputPriceData!$D$15,CalculationsAndCharts!$A169+$A$11,IF($C$5,8,0),1,1))) -> 26529.35 | F169: =IF(A169>$B$30,NA(),IF(A169>$A$8,"",OFFSET(InputPriceData!$E$15,CalculationsAndCharts!$A169+$A$11,IF($C$5,8,0),1,1))) -> 26223.09 | G169: =IF(A169>$B$30,NA(),IF(A169>$A$8,"",OFFSET(InputPriceData!$F$15,CalculationsAndCharts!$A169+$A$11,IF($C$5,8,0),1,1))) -> 26486.78 | H169: 273020000 | I169: 0 | J169: 174379458.5 | K169: 97647582.29 | L169: 0.2820744436 | M169: 2.820744436 | N169: 0.3638804225 | O169: 26576.65211 | P169: 26417.01276 | Q169: 167748835.2 | R169: 104507646.9 | S169: 0.2322853354 | T169: 2.322853354 | U169: 0.1303079747 | V169: 26490.35771 | W169: 26417.01276 | AW169: 273020000
A170: 138 | B170: =IF(A170>$B$30,NA(),IF($A170>$A$8,"",OFFSET(InputPriceData!$B$15,$A170+$A$11,0,1,1))) -> 2018-10-05 | C170: =IF(A170>$B$30,NA(),IF($A170>$A$8,"",OFFSET(InputPriceData!$G$15,CalculationsAndCharts!$A170+$A$11,IF($C$5,8,0),1,1))) -> 267100000 | D170: =IF(A170>$B$30,NA(),IF(A170>$A$8,"",OFFSET(InputPriceData!$C$15,CalculationsAndCharts!$A170+$A$11,IF($C$5,8,0),1,1))) -> 26632.77 | E170: =IF(A170>$B$30,NA(),IF(A170>$A$8,"",OFFSET(InputPriceData!$D$15,CalculationsAndCharts!$A170+$A$11,IF($C$5,8,0),1,1))) -> 26676.16 | F170: =IF(A170>$B$30,NA(),IF(A170>$A$8,"",OFFSET(InputPriceData!$E$15,CalculationsAndCharts!$A170+$A$11,IF($C$5,8,0),1,1))) -> 26301.81 | G170: =IF(A170>$B$30,NA(),IF(A170>$A$8,"",OFFSET(InputPriceData!$F$15,CalculationsAndCharts!$A170+$A$11,IF($C$5,8,0),1,1))) -> 26447.05 | H170: 0 | I170: 267100000 | J170: 163996243.6 | K170: 107926275.2 | L170: 0.2061983269 | M170: 2.061983269 | N170: 0.2916174542 | O170: 26628.06179 | P170: 26409.66884 | Q170: 163452052.9 | R170: 108773265.2 | S170: 0.2008585688 | T170: 2.008585688 | U170: 0.1179837525 | V170: 26490.89377 | W170: 26409.66884 | AX170: 267100000
A171: 139 | B171: =IF(A171>$B$30,NA(),IF($A171>$A$8,"",OFFSET(InputPriceData!$B$15,$A171+$A$11,0,1,1))) -> 2018-10-04 | C171: =IF(A171>$B$30,NA(),IF($A171>$A$8,"",OFFSET(InputPriceData!$G$15,CalculationsAndCharts!$A171+$A$11,IF($C$5,8,0),1,1))) -> 289600000 | D171: =IF(A171>$B$30,NA(),IF(A171>$A$8,"",OFFSET(InputPriceData!$C$15,CalculationsAndCharts!$A171+$A$11,IF($C$5,8,0),1,1))) -> 26784.08 | E171: =IF(A171>$B$30,NA(),IF(A171>$A$8,"",OFFSET(InputPriceData!$D$15,CalculationsAndCharts!$A171+$A$11,IF($C$5,8,0),1,1))) -> 26793.82 | F171: =IF(A171>$B$30,NA(),IF(A171>$A$8,"",OFFSET(InputPriceData!$E$15,CalculationsAndCharts!$A171+$A$11,IF($C$5,8,0),1,1))) -> 26471.61 | G171: =IF(A171>$B$30,NA(),IF(A171>$A$8,"",OFFSET(InputPriceData!$F$15,CalculationsAndCharts!$A171+$A$11,IF($C$5,8,0),1,1))) -> 26627.48 | H171: 0 | I171: 289600000 | J171: 181259006 | K171: 91171146.23 | L171: 0.3306824119 | M171: 3.306824119 | N171: 0.4101737256 | O171: 26702.5783 | P171: 26405.73398 | Q171: 170123565.3 | R171: 102310949.4 | S171: 0.2489134532 | T171: 2.489134532 | U171: 0.1368288052 | V171: 26496.75858 | W171: 26405.73398 | AX171: 289600000
A172: 140 | B172: =IF(A172>$B$30,NA(),IF($A172>$A$8,"",OFFSET(InputPriceData!$B$15,$A172+$A$11,0,1,1))) -> 2018-10-03 | C172: =IF(A172>$B$30,NA(),IF($A172>$A$8,"",OFFSET(InputPriceData!$G$15,CalculationsAndCharts!$A172+$A$11,IF($C$5,8,0),1,1))) -> 280130000 | D172: =IF(A172>$B$30,NA(),IF(A172>$A$8,"",OFFSET(InputPriceData!$C$15,CalculationsAndCharts!$A172+$A$11,IF($C$5,8,0),1,1))) -> 26833.47 | E172: =IF(A172>$B$30,NA(),IF(A172>$A$8,"",OFFSET(InputPriceData!$D$15,CalculationsAndCharts!$A172+$A$11,IF($C$5,8,0),1,1))) -> 26951.81 | F172: =IF(A172>$B$30,NA(),IF(A172>$A$8,"",OFFSET(InputPriceData!$E$15,CalculationsAndCharts!$A172+$A$11,IF($C$5,8,0),1,1))) -> 26789.08 | G172: =IF(A172>$B$30,NA(),IF(A172>$A$8,"",OFFSET(InputPriceData!$F$15,CalculationsAndCharts!$A172+$A$11,IF($C$5,8,0),1,1))) -> 26828.39 | H172: 280130000 | I172: 0 | J172: 200338901.4 | K172: 70283898.46 | L172: 0.4805766662 | M172: 4.805766662 | N172: 0.5529301582 | O172: 26754.80275 | P172: 26382.39229 | Q172: 177067384.3 | R172: 94666498.4 | S172: 0.3032411161 | T172: 3.032411161 | U172: 0.158133771 | V172: 26476.03678 | W172: 26382.39229 | AX172: 280130000
A173: 141 | B173: =IF(A173>$B$30,NA(),IF($A173>$A$8,"",OFFSET(InputPriceData!$B$15,$A173+$A$11,0,1,1))) -> 2018-10-02 | C173: =IF(A173>$B$30,NA(),IF($A173>$A$8,"",OFFSET(InputPriceData!$G$15,CalculationsAndCharts!$A173+$A$11,IF($C$5,8,0),1,1))) -> 258290000 | D173: =IF(A173>$B$30,NA(),IF(A173>$A$8,"",OFFSET(InputPriceData!$C$15,CalculationsAndCharts!$A173+$A$11,IF($C$5,8,0),1,1))) -> 26648.91 | E173: =IF(A173>$B$30,NA(),IF(A173>$A$8,"",OFFSET(InputPriceData!$D$15,CalculationsAndCharts!$A173+$A$11,IF($C$5,8,0),1,1))) -> 26824.78 | F173: =IF(A173>$B$30,NA(),IF(A173>$A$8,"",OFFSET(InputPriceData!$E$15,CalculationsAndCharts!$A173+$A$11,IF($C$5,8,0),1,1))) -> 26627.66 | G173: =IF(A173>$B$30,NA(),IF(A173>$A$8,"",OFFSET(InputPriceData!$F$15,CalculationsAndCharts!$A173+$A$11,IF($C$5,8,0),1,1))) -> 26773.94 | H173: 258290000 | I173: 0 | J173: 191939838.4 | K173: 77682203.57 | L173: 0.423769637 | M173: 4.23769637 | N173: 0.4988282257 | O173: 26663.79099 | P173: 26335.44516 | Q173: 172860746.9 | R173: 98530437.11 | S173: 0.2738862357 | T173: 2.738862357 | U173: 0.1466220532 | V173: 26409.85175 | W173: 26335.44516 | AW173: 258290000
A174: 142 | B174: =IF(A174>$B$30,NA(),IF($A174>$A$8,"",OFFSET(InputPriceData!$B$15,$A174+$A$11,0,1,1))) -> 2018-10-01 | C174: =IF(A174>$B$30,NA(),IF($A174>$A$8,"",OFFSET(InputPriceData!$G$15,CalculationsAndCharts!$A174+$A$11,IF($C$5,8,0),1,1))) -> 238320000 | D174: =IF(A174>$B$30,NA(),IF(A174>$A$8,"",OFFSET(InputPriceData!$C$15,CalculationsAndCharts!$A174+$A$11,IF($C$5,8,0),1,1))) -> 26598.36 | E174: =IF(A174>$B$30,NA(),IF(A174>$A$8,"",OFFSET(InputPriceData!$D$15,CalculationsAndCharts!$A174+$A$11,IF($C$5,8,0),1,1))) -> 26737.98 | F174: =IF(A174>$B$30,NA(),IF(A174>$A$8,"",OFFSET(InputPriceData!$E$15,CalculationsAndCharts!$A174+$A$11,IF($C$5,8,0),1,1))) -> 26596.05 | G174: =IF(A174>$B$30,NA(),IF(A174>$A$8,"",OFFSET(InputPriceData!$F$15,CalculationsAndCharts!$A174+$A$11,IF($C$5,8,0),1,1))) -> 26651.21 | H174: 238320000 | I174: 0 | J174: 184955610.9 | K174: 85859277.62 | L174: 0.3659190741 | M174: 3.659190741 | N174: 0.4437324515 | O174: 26554.15705 | P174: 26289.28781 | Q174: 169373838.6 | R174: 102552087.6 | S174: 0.2457351233 | T174: 2.457351233 | U174: 0.1355824013 | V174: 26347.29639 | W174: 26289.28781 | AW174: 238320000
A175: 143 | B175: =IF(A175>$B$30,NA(),IF($A175>$A$8,"",OFFSET(InputPriceData!$B$15,$A175+$A$11,0,1,1))) -> 2018-09-28 | C175: =IF(A175>$B$30,NA(),IF($A175>$A$8,"",OFFSET(InputPriceData!$G$15,CalculationsAndCharts!$A175+$A$11,IF($C$5,8,0),1,1))) -> 264030000 | D175: =IF(A175>$B$30,NA(),IF(A175>$A$8,"",OFFSET(InputPriceData!$C$15,CalculationsAndCharts!$A175+$A$11,IF($C$5,8,0),1,1))) -> 26407.66 | E175: =IF(A175>$B$30,NA(),IF(A175>$A$8,"",OFFSET(InputPriceData!$D$15,CalculationsAndCharts!$A175+$A$11,IF($C$5,8,0),1,1))) -> 26515.76 | F175: =IF(A175>$B$30,NA(),IF(A175>$A$8,"",OFFSET(InputPriceData!$E$15,CalculationsAndCharts!$A175+$A$11,IF($C$5,8,0),1,1))) -> 26383.57 | G175: =IF(A175>$B$30,NA(),IF(A175>$A$8,"",OFFSET(InputPriceData!$F$15,CalculationsAndCharts!$A175+$A$11,IF($C$5,8,0),1,1))) -> 26458.31 | H175: 264030000 | I175: 0 | J175: 179338306.8 | K175: 94897096.32 | L175: 0.3079150594 | M175: 3.079150594 | N175: 0.3884905328 | O175: 26476.73829 | P175: 26251.19074 | Q175: 166559709.6 | R175: 106737887.1 | S175: 0.2188889445 | T175: 2.188889445 | U175: 0.125054488 | V175: 26299.62806 | W175: 26251.19074 | AW175: 264030000
A176: 144 | B176: =IF(A176>$B$30,NA(),IF($A176>$A$8,"",OFFSET(InputPriceData!$B$15,$A176+$A$11,0,1,1))) -> 2018-09-27 | C176: =IF(A176>$B$30,NA(),IF($A176>$A$8,"",OFFSET(InputPriceData!$G$15,CalculationsAndCharts!$A176+$A$11,IF($C$5,8,0),1,1))) -> 226350000 | D176: =IF(A176>$B$30,NA(),IF(A176>$A$8,"",OFFSET(InputPriceData!$C$15,CalculationsAndCharts!$A176+$A$11,IF($C$5,8,0),1,1))) -> 26418.27 | E176: =IF(A176>$B$30,NA(),IF(A176>$A$8,"",OFFSET(InputPriceData!$D$15,CalculationsAndCharts!$A176+$A$11,IF($C$5,8,0),1,1))) -> 26557.01 | F176: =IF(A176>$B$30,NA(),IF(A176>$A$8,"",OFFSET(InputPriceData!$E$15,CalculationsAndCharts!$A176+$A$11,IF($C$5,8,0),1,1))) -> 26379.95 | G176: =IF(A176>$B$30,NA(),IF(A176>$A$8,"",OFFSET(InputPriceData!$F$15,CalculationsAndCharts!$A176+$A$11,IF($C$5,8,0),1,1))) -> 26439.93 | H176: 226350000 | I176: 0 | J176: 170423391.7 | K176: 104886264.4 | L176: 0.2380487785 | M176: 2.380487785 | N176: 0.3219512176 | O176: 26488.44573 | P176: 26229.38871 | Q176: 162581330.4 | R176: 111094535.6 | S176: 0.1881305633 | T176: 1.881305633 | U176: 0.1129923778 | V176: 26276.94792 | W176: 26229.38871 | AW176: 226350000
A177: 145 | B177: =IF(A177>$B$30,NA(),IF($A177>$A$8,"",OFFSET(InputPriceData!$B$15,$A177+$A$11,0,1,1))) -> 2018-09-26 | C177: =IF(A177>$B$30,NA(),IF($A177>$A$8,"",OFFSET(InputPriceData!$G$15,CalculationsAndCharts!$A177+$A$11,IF($C$5,8,0),1,1))) -> 262620000 | D177: =IF(A177>$B$30,NA(),IF(A177>$A$8,"",OFFSET(InputPriceData!$C$15,CalculationsAndCharts!$A177+$A$11,IF($C$5,8,0),1,1))) -> 26536.86 | E177: =IF(A177>$B$30,NA(),IF(A177>$A$8,"",OFFSET(InputPriceData!$D$15,CalculationsAndCharts!$A177+$A$11,IF($C$5,8,0),1,1))) -> 26606.09 | F177: =IF(A177>$B$30,NA(),IF(A177>$A$8,"",OFFSET(InputPriceData!$E$15,CalculationsAndCharts!$A177+$A$11,IF($C$5,8,0),1,1))) -> 26349.34 | G177: =IF(A177>$B$30,NA(),IF(A177>$A$8,"",OFFSET(InputPriceData!$F$15,CalculationsAndCharts!$A177+$A$11,IF($C$5,8,0),1,1))) -> 26385.28 | H177: 0 | I177: 262620000 | J177: 164536380.3 | K177: 115926923.8 | L177: 0.1733184192 | M177: 1.733184192 | N177: 0.2603032564 | O177: 26511.48198 | P177: 26207.22647 | Q177: 159978527.5 | R177: 115629006.4 | S177: 0.1609154892 | T177: 1.609154892 | U177: 0.1023197997 | V177: 26256.18628 | W177: 26207.22647 | AX177: 262620000
A178: 146 | B178: =IF(A178>$B$30,NA(),IF($A178>$A$8,"",OFFSET(InputPriceData!$B$15,$A178+$A$11,0,1,1))) -> 2018-09-25 | C178: =IF(A178>$B$30,NA(),IF($A178>$A$8,"",OFFSET(InputPriceData!$G$15,CalculationsAndCharts!$A178+$A$11,IF($C$5,8,0),1,1))) -> 234110000 | D178: =IF(A178>$B$30,NA(),IF(A178>$A$8,"",OFFSET(InputPriceData!$C$15,CalculationsAndCharts!$A178+$A$11,IF($C$5,8,0),1,1))) -> 26601.58 | E178: =IF(A178>$B$30,NA(),IF(A178>$A$8,"",OFFSET(InputPriceData!$D$15,CalculationsAndCharts!$A178+$A$11,IF($C$5,8,0),1,1))) -> 26634.85 | F178: =IF(A178>$B$30,NA(),IF(A178>$A$8,"",OFFSET(InputPriceData!$E$15,CalculationsAndCharts!$A178+$A$11,IF($C$5,8,0),1,1))) -> 26475.58 | G178: =IF(A178>$B$30,NA(),IF(A178>$A$8,"",OFFSET(InputPriceData!$F$15,CalculationsAndCharts!$A178+$A$11,IF($C$5,8,0),1,1))) -> 26492.21 | H178: 0 | I178: 234110000 | J178: 181855999.2 | K178: 100485547.3 | L178: 0.2881986478 | M178: 2.881986478 | N178: 0.3697129979 | O178: 26555.89314 | P178: 26188.484 | Q178: 166508263.3 | R178: 109629374 | S178: 0.205980213 | T178: 2.05980213 | U178: 0.1199922404 | V178: 26241.47186 | W178: 26188.484 | AX178: 234110000
A179: 147 | B179: =IF(A179>$B$30,NA(),IF($A179>$A$8,"",OFFSET(InputPriceData!$B$15,$A179+$A$11,0,1,1))) -> 2018-09-24 | C179: =IF(A179>$B$30,NA(),IF($A179>$A$8,"",OFFSET(InputPriceData!$G$15,CalculationsAndCharts!$A179+$A$11,IF($C$5,8,0),1,1))) -> 254850000 | D179: =IF(A179>$B$30,NA(),IF(A179>$A$8,"",OFFSET(InputPriceData!$C$15,CalculationsAndCharts!$A179+$A$11,IF($C$5,8,0),1,1))) -> 26705.25 | E179: =IF(A179>$B$30,NA(),IF(A179>$A$8,"",OFFSET(InputPriceData!$D$15,CalculationsAndCharts!$A179+$A$11,IF($C$5,8,0),1,1))) -> 26709.94 | F179: =IF(A179>$B$30,NA(),IF(A179>$A$8,"",OFFSET(InputPriceData!$E$15,CalculationsAndCharts!$A179+$A$11,IF($C$5,8,0),1,1))) -> 26548.68 | G179: =IF(A179>$B$30,NA(),IF(A179>$A$8,"",OFFSET(InputPriceData!$F$15,CalculationsAndCharts!$A179+$A$11,IF($C$5,8,0),1,1))) -> 26562.05 | H179: 0 | I179: 254850000 | J179: 200998736 | K179: 86419815.45 | L179: 0.3986483126 | M179: 3.986483126 | N179: 0.4749031549 | O179: 26593.24831 | P179: 26156.51284 | Q179: 173304519 | R179: 104548532.1 | S179: 0.2474544965 | T179: 2.474544965 | U179: 0.1362566653 | V179: 26207.28281 | W179: 26156.51284 | AX179: 254850000
A180: 148 | B180: =IF(A180>$B$30,NA(),IF($A180>$A$8,"",OFFSET(InputPriceData!$B$15,$A180+$A$11,0,1,1))) -> 2018-09-21 | C180: =IF(A180>$B$30,NA(),IF($A180>$A$8,"",OFFSET(InputPriceData!$G$15,CalculationsAndCharts!$A180+$A$11,IF($C$5,8,0),1,1))) -> 657620000 | D180: =IF(A180>$B$30,NA(),IF(A180>$A$8,"",OFFSET(InputPriceData!$C$15,CalculationsAndCharts!$A180+$A$11,IF($C$5,8,0),1,1))) -> 26726.25 | E180: =IF(A180>$B$30,NA(),IF(A180>$A$8,"",OFFSET(InputPriceData!$D$15,CalculationsAndCharts!$A180+$A$11,IF($C$5,8,0),1,1))) -> 26769.16 | F180: =IF(A180>$B$30,NA(),IF(A180>$A$8,"",OFFSET(InputPriceData!$E$15,CalculationsAndCharts!$A180+$A$11,IF($C$5,8,0),1,1))) -> 26680.37 | G180: =IF(A180>$B$30,NA(),IF(A180>$A$8,"",OFFSET(InputPriceData!$F$15,CalculationsAndCharts!$A180+$A$11,IF($C$5,8,0),1,1))) -> 26743.5 | H180: 657620000 | I180: 0 | J180: 222156497.7 | K180: 68690322.34 | L180: 0.5276529251 | M180: 5.276529251 | N180: 0.5977646906 | O180: 26621.4644 | P180: 26113.82472 | Q180: 180378172.8 | R180: 98413778.33 | S180: 0.2939984248 | T180: 2.939984248 | U180: 0.1545091862 | V180: 26151.31781 | W180: 26113.82472 | AW180: 657620000
A181: 149 | B181: =IF(A181>$B$30,NA(),IF($A181>$A$8,"",OFFSET(InputPriceData!$B$15,$A181+$A$11,0,1,1))) -> 2018-09-20 | C181: =IF(A181>$B$30,NA(),IF($A181>$A$8,"",OFFSET(InputPriceData!$G$15,CalculationsAndCharts!$A181+$A$11,IF($C$5,8,0),1,1))) -> 260480000 | D181: =IF(A181>$B$30,NA(),IF(A181>$A$8,"",OFFSET(InputPriceData!$C$15,CalculationsAndCharts!$A181+$A$11,IF($C$5,8,0),1,1))) -> 26519.39 | E181: =IF(A181>$B$30,NA(),IF(A181>$A$8,"",OFFSET(InputPriceData!$D$15,CalculationsAndCharts!$A181+$A$11,IF($C$5,8,0),1,1))) -> 26697.49 | F181: =IF(A181>$B$30,NA(),IF(A181>$A$8,"",OFFSET(InputPriceData!$E$15,CalculationsAndCharts!$A181+$A$11,IF($C$5,8,0),1,1))) -> 26519.39 | G181: =IF(A181>$B$30,NA(),IF(A181>$A$8,"",OFFSET(InputPriceData!$F$15,CalculationsAndCharts!$A181+$A$11,IF($C$5,8,0),1,1))) -> 26656.98 | H181: 260480000 | I181: 0 | J181: 176318234.3 | K181: 75920882.59 | L181: 0.3980245132 | M181: 3.980245132 | N181: 0.4743090602 | O181: 26440.10644 | P181: 26047.54311 | Q181: 160898914.6 | R181: 102430667.2 | S181: 0.2220344821 | T181: 2.220344821 | U181: 0.1262880322 | V181: 26043.0995 | W181: 26047.54311 | AW181: 260480000
A182: 150 | B182: =IF(A182>$B$30,NA(),IF($A182>$A$8,"",OFFSET(InputPriceData!$B$15,$A182+$A$11,0,1,1))) -> 2018-09-19 | C182: =IF(A182>$B$30,NA(),IF($A182>$A$8,"",OFFSET(InputPriceData!$G$15,CalculationsAndCharts!$A182+$A$11,IF($C$5,8,0),1,1))) -> 251330000 | D182: =IF(A182>$B$30,NA(),IF(A182>$A$8,"",OFFSET(InputPriceData!$C$15,CalculationsAndCharts!$A182+$A$11,IF($C$5,8,0),1,1))) -> 26287.84 | E182: =IF(A182>$B$30,NA(),IF(A182>$A$8,"",OFFSET(InputPriceData!$D$15,CalculationsAndCharts!$A182+$A$11,IF($C$5,8,0),1,1))) -> 26464.41 | F182: =IF(A182>$B$30,NA(),IF(A182>$A$8,"",OFFSET(InputPriceData!$E$15,CalculationsAndCharts!$A182+$A$11,IF($C$5,8,0),1,1))) -> 26280.76 | G182: =IF(A182>$B$30,NA(),IF(A182>$A$8,"",OFFSET(InputPriceData!$F$15,CalculationsAndCharts!$A182+$A$11,IF($C$5,8,0),1,1))) -> 26405.76 | H182: 251330000 | I182: 0 | J182: 167459101.1 | K182: 83912554.44 | L182: 0.3323626383 | M182: 3.323626383 | N182: 0.4117739412 | O182: 26244.43045 | P182: 25983.39185 | Q182: 156834380.5 | R182: 106611510.8 | S182: 0.1906382727 | T182: 1.906382727 | U182: 0.1139757932 | V182: 25954.36802 | W182: 25983.39185 | AW182: 251330000
A183: 151 | B183: =IF(A183>$B$30,NA(),IF($A183>$A$8,"",OFFSET(InputPriceData!$B$15,$A183+$A$11,0,1,1))) -> 2018-09-18 | C183: =IF(A183>$B$30,NA(),IF($A183>$A$8,"",OFFSET(InputPriceData!$G$15,CalculationsAndCharts!$A183+$A$11,IF($C$5,8,0),1,1))) -> 243000000 | D183: =IF(A183>$B$30,NA(),IF(A183>$A$8,"",OFFSET(InputPriceData!$C$15,CalculationsAndCharts!$A183+$A$11,IF($C$5,8,0),1,1))) -> 26076.21 | E183: =IF(A183>$B$30,NA(),IF(A183>$A$8,"",OFFSET(InputPriceData!$D$15,CalculationsAndCharts!$A183+$A$11,IF($C$5,8,0),1,1))) -> 26317.34 | F183: =IF(A183>$B$30,NA(),IF(A183>$A$8,"",OFFSET(InputPriceData!$E$15,CalculationsAndCharts!$A183+$A$11,IF($C$5,8,0),1,1))) -> 26076.21 | G183: =IF(A183>$B$30,NA(),IF(A183>$A$8,"",OFFSET(InputPriceData!$F$15,CalculationsAndCharts!$A183+$A$11,IF($C$5,8,0),1,1))) -> 26246.96 | H183: 243000000 | I183: 0 | J183: 158630585.4 | K183: 92745454.91 | L183: 0.2620978929 | M183: 2.620978929 | N183: 0.3448551361 | O183: 26131.49546 | P183: 25938.93205 | Q183: 152977416.4 | R183: 110963001 | S183: 0.1591814387 | T183: 1.591814387 | U183: 0.1016397799 | V183: 25896.30215 | W183: 25938.93205 | AW183: 243000000
A184: 152 | B184: =IF(A184>$B$30,NA(),IF($A184>$A$8,"",OFFSET(InputPriceData!$B$15,$A184+$A$11,0,1,1))) -> 2018-09-17 | C184: =IF(A184>$B$30,NA(),IF($A184>$A$8,"",OFFSET(InputPriceData!$G$15,CalculationsAndCharts!$A184+$A$11,IF($C$5,8,0),1,1))) -> 230230000 | D184: =IF(A184>$B$30,NA(),IF(A184>$A$8,"",OFFSET(InputPriceData!$C$15,CalculationsAndCharts!$A184+$A$11,IF($C$5,8,0),1,1))) -> 26151.66 | E184: =IF(A184>$B$30,NA(),IF(A184>$A$8,"",OFFSET(InputPriceData!$D$15,CalculationsAndCharts!$A184+$A$11,IF($C$5,8,0),1,1))) -> 26184.47 | F184: =IF(A184>$B$30,NA(),IF(A184>$A$8,"",OFFSET(InputPriceData!$E$15,CalculationsAndCharts!$A184+$A$11,IF($C$5,8,0),1,1))) -> 26030.35 | G184: =IF(A184>$B$30,NA(),IF(A184>$A$8,"",OFFSET(InputPriceData!$F$15,CalculationsAndCharts!$A184+$A$11,IF($C$5,8,0),1,1))) -> 26062.12 | H184: 0 | I184: 230230000 | J184: 149749594.4 | K184: 102508134.4 | L184: 0.1872745792 | M184: 1.872745792 | N184: 0.2735948373 | O184: 26070.71724 | P184: 25906.50805 | Q184: 149303025.2 | R184: 115492103.1 | S184: 0.1276871003 | T184: 1.276871003 | U184: 0.08928905895 | V184: 25856.629 | W184: 25906.50805 | AX184: 230230000
A185: 153 | B185: =IF(A185>$B$30,NA(),IF($A185>$A$8,"",OFFSET(InputPriceData!$B$15,$A185+$A$11,0,1,1))) -> 2018-09-14 | C185: =IF(A185>$B$30,NA(),IF($A185>$A$8,"",OFFSET(InputPriceData!$G$15,CalculationsAndCharts!$A185+$A$11,IF($C$5,8,0),1,1))) -> 228640000 | D185: =IF(A185>$B$30,NA(),IF(A185>$A$8,"",OFFSET(InputPriceData!$C$15,CalculationsAndCharts!$A185+$A$11,IF($C$5,8,0),1,1))) -> 26169.56 | E185: =IF(A185>$B$30,NA(),IF(A185>$A$8,"",OFFSET(InputPriceData!$D$15,CalculationsAndCharts!$A185+$A$11,IF($C$5,8,0),1,1))) -> 26211.11 | F185: =IF(A185>$B$30,NA(),IF(A185>$A$8,"",OFFSET(InputPriceData!$E$15,CalculationsAndCharts!$A185+$A$11,IF($C$5,8,0),1,1))) -> 26068.29 | G185: =IF(A185>$B$30,NA(),IF(A185>$A$8,"",OFFSET(InputPriceData!$F$15,CalculationsAndCharts!$A185+$A$11,IF($C$5,8,0),1,1))) -> 26154.67 | H185: 228640000 | I185: 0 | J185: 165512709.6 | K185: 89063727.47 | L185: 0.3002987354 | M185: 3.002987354 | N185: 0.3812368909 | O185: 26073.95532 | P185: 25890.12785 | Q185: 155397026.3 | R185: 110808923.7 | S185: 0.1674947635 | T185: 1.674947635 | U185: 0.1048999072 | V185: 25836.48199 | W185: 25890.12785 | AX185: 228640000
A186: 154 | B186: =IF(A186>$B$30,NA(),IF($A186>$A$8,"",OFFSET(InputPriceData!$B$15,$A186+$A$11,0,1,1))) -> 2018-09-13 | C186: =IF(A186>$B$30,NA(),IF($A186>$A$8,"",OFFSET(InputPriceData!$G$15,CalculationsAndCharts!$A186+$A$11,IF($C$5,8,0),1,1))) -> 260800000 | D186: =IF(A186>$B$30,NA(),IF(A186>$A$8,"",OFFSET(InputPriceData!$C$15,CalculationsAndCharts!$A186+$A$11,IF($C$5,8,0),1,1))) -> 26083.94 | E186: =IF(A186>$B$30,NA(),IF(A186>$A$8,"",OFFSET(InputPriceData!$D$15,CalculationsAndCharts!$A186+$A$11,IF($C$5,8,0),1,1))) -> 26191.64 | F186: =IF(A186>$B$30,NA(),IF(A186>$A$8,"",OFFSET(InputPriceData!$E$15,CalculationsAndCharts!$A186+$A$11,IF($C$5,8,0),1,1))) -> 26067.08 | G186: =IF(A186>$B$30,NA(),IF(A186>$A$8,"",OFFSET(InputPriceData!$F$15,CalculationsAndCharts!$A186+$A$11,IF($C$5,8,0),1,1))) -> 26145.99 | H186: 260800000 | I186: 0 | J186: 158867731.6 | K186: 98438856.67 | L186: 0.2348516428 | M186: 2.348516428 | N186: 0.3189063264 | O186: 26024.2248 | P186: 25862.28131 | Q186: 152407517.1 | R186: 115331736.9 | S186: 0.1384771927 | T186: 1.384771927 | U186: 0.09352046773 | V186: 25799.19243 | W186: 25862.28131 | AW186: 260800000
A187: 155 | B187: =IF(A187>$B$30,NA(),IF($A187>$A$8,"",OFFSET(InputPriceData!$B$15,$A187+$A$11,0,1,1))) -> 2018-09-12 | C187: =IF(A187>$B$30,NA(),IF($A187>$A$8,"",OFFSET(InputPriceData!$G$15,CalculationsAndCharts!$A187+$A$11,IF($C$5,8,0),1,1))) -> 282770000 | D187: =IF(A187>$B$30,NA(),IF(A187>$A$8,"",OFFSET(InputPriceData!$C$15,CalculationsAndCharts!$A187+$A$11,IF($C$5,8,0),1,1))) -> 25989.07 | E187: =IF(A187>$B$30,NA(),IF(A187>$A$8,"",OFFSET(InputPriceData!$D$15,CalculationsAndCharts!$A187+$A$11,IF($C$5,8,0),1,1))) -> 26145.72 | F187: =IF(A187>$B$30,NA(),IF(A187>$A$8,"",OFFSET(InputPriceData!$E$15,CalculationsAndCharts!$A187+$A$11,IF($C$5,8,0),1,1))) -> 25929.43 | G187: =IF(A187>$B$30,NA(),IF(A187>$A$8,"",OFFSET(InputPriceData!$F$15,CalculationsAndCharts!$A187+$A$11,IF($C$5,8,0),1,1))) -> 25998.92 | H187: 282770000 | I187: 0 | J187: 148138019.2 | K187: 108800841.6 | L187: 0.1530993695 | M187: 1.530993695 | N187: 0.2410470186 | O187: 25967.21107 | P187: 25832.41723 | Q187: 147983334.2 | R187: 120039154.7 | S187: 0.1042605775 | T187: 1.042605775 | U187: 0.08010218725 | V187: 25763.41371 | W187: 25832.41723 | AW187: 282770000
A188: 156 | B188: =IF(A188>$B$30,NA(),IF($A188>$A$8,"",OFFSET(InputPriceData!$B$15,$A188+$A$11,0,1,1))) -> 2018-09-11 | C188: =IF(A188>$B$30,NA(),IF($A188>$A$8,"",OFFSET(InputPriceData!$G$15,CalculationsAndCharts!$A188+$A$11,IF($C$5,8,0),1,1))) -> 265960000 | D188: =IF(A188>$B$30,NA(),IF(A188>$A$8,"",OFFSET(InputPriceData!$C$15,CalculationsAndCharts!$A188+$A$11,IF($C$5,8,0),1,1))) -> 25841.14 | E188: =IF(A188>$B$30,NA(),IF(A188>$A$8,"",OFFSET(InputPriceData!$D$15,CalculationsAndCharts!$A188+$A$11,IF($C$5,8,0),1,1))) -> 26019.92 | F188: =IF(A188>$B$30,NA(),IF(A188>$A$8,"",OFFSET(InputPriceData!$E$15,CalculationsAndCharts!$A188+$A$11,IF($C$5,8,0),1,1))) -> 25754.32 | G188: =IF(A188>$B$30,NA(),IF(A188>$A$8,"",OFFSET(InputPriceData!$F$15,CalculationsAndCharts!$A188+$A$11,IF($C$5,8,0),1,1))) -> 25971.06 | H188: 265960000 | I188: 0 | J188: 133966231.7 | K188: 120253561.8 | L188: 0.05394021361 | M188: 0.5394021361 | N188: 0.1466097272 | O188: 25957.14017 | P188: 25814.89063 | Q188: 142481837.6 | R188: 124938712 | S188: 0.06560126211 | T188: 0.6560126211 | U188: 0.06494167141 | V188: 25742.90647 | W188: 25814.89063 | AW188: 265960000
A189: 157 | B189: =IF(A189>$B$30,NA(),IF($A189>$A$8,"",OFFSET(InputPriceData!$B$15,$A189+$A$11,0,1,1))) -> 2018-09-10 | C189: =IF(A189>$B$30,NA(),IF($A189>$A$8,"",OFFSET(InputPriceData!$G$15,CalculationsAndCharts!$A189+$A$11,IF($C$5,8,0),1,1))) -> 252170000 | D189: =IF(A189>$B$30,NA(),IF(A189>$A$8,"",OFFSET(InputPriceData!$C$15,CalculationsAndCharts!$A189+$A$11,IF($C$5,8,0),1,1))) -> 25991.91 | E189: =IF(A189>$B$30,NA(),IF(A189>$A$8,"",OFFSET(InputPriceData!$D$15,CalculationsAndCharts!$A189+$A$11,IF($C$5,8,0),1,1))) -> 26039.96 | F189: =IF(A189>$B$30,NA(),IF(A189>$A$8,"",OFFSET(InputPriceData!$E$15,CalculationsAndCharts!$A189+$A$11,IF($C$5,8,0),1,1))) -> 25854.13 | G189: =IF(A189>$B$30,NA(),IF(A189>$A$8,"",OFFSET(InputPriceData!$F$15,CalculationsAndCharts!$A189+$A$11,IF($C$5,8,0),1,1))) -> 25857.07 | H189: 0 | I189: 252170000 | J189: 120072150.8 | K189: 132911831.4 | L189: 0.0507529388 | M189: 0.507529388 | N189: 0.1435742274 | O189: 25954.74879 | P189: 25798.45175 | Q189: 137441912.6 | R189: 130038251.3 | S189: 0.02767929105 | T189: 0.2767929105 | U189: 0.05007031022 | V189: 25727.06075 | W189: 25798.45175 | AX189: 252170000
A190: 158 | B190: =IF(A190>$B$30,NA(),IF($A190>$A$8,"",OFFSET(InputPriceData!$B$15,$A190+$A$11,0,1,1))) -> 2018-09-07 | C190: =IF(A190>$B$30,NA(),IF($A190>$A$8,"",OFFSET(InputPriceData!$G$15,CalculationsAndCharts!$A190+$A$11,IF($C$5,8,0),1,1))) -> 281350000 | D190: =IF(A190>$B$30,NA(),IF(A190>$A$8,"",OFFSET(InputPriceData!$C$15,CalculationsAndCharts!$A190+$A$11,IF($C$5,8,0),1,1))) -> 25951.02 | E190: =IF(A190>$B$30,NA(),IF(A190>$A$8,"",OFFSET(InputPriceData!$D$15,CalculationsAndCharts!$A190+$A$11,IF($C$5,8,0),1,1))) -> 26002.99 | F190: =IF(A190>$B$30,NA(),IF(A190>$A$8,"",OFFSET(InputPriceData!$E$15,CalculationsAndCharts!$A190+$A$11,IF($C$5,8,0),1,1))) -> 25818.39 | G190: =IF(A190>$B$30,NA(),IF(A190>$A$8,"",OFFSET(InputPriceData!$F$15,CalculationsAndCharts!$A190+$A$11,IF($C$5,8,0),1,1))) -> 25916.54 | H190: 0 | I190: 281350000 | J190: 132711324.6 | K190: 120358340 | L190: 0.04881258548 | M190: 0.4881258548 | N190: 0.1417262719 | O190: 25971.124 | P190: 25792.2814 | Q190: 143051786.6 | R190: 125053282 | S190: 0.06713228035 | T190: 0.6713228035 | U190: 0.06554207073 | V190: 25720.20803 | W190: 25792.2814 | AX190: 281350000
A191: 159 | B191: =IF(A191>$B$30,NA(),IF($A191>$A$8,"",OFFSET(InputPriceData!$B$15,$A191+$A$11,0,1,1))) -> 2018-09-06 | C191: =IF(A191>$B$30,NA(),IF($A191>$A$8,"",OFFSET(InputPriceData!$G$15,CalculationsAndCharts!$A191+$A$11,IF($C$5,8,0),1,1))) -> 262380000 | D191: =IF(A191>$B$30,NA(),IF(A191>$A$8,"",OFFSET(InputPriceData!$C$15,CalculationsAndCharts!$A191+$A$11,IF($C$5,8,0),1,1))) -> 25973.02 | E191: =IF(A191>$B$30,NA(),IF(A191>$A$8,"",OFFSET(InputPriceData!$D$15,CalculationsAndCharts!$A191+$A$11,IF($C$5,8,0),1,1))) -> 26073.68 | F191: =IF(A191>$B$30,NA(),IF(A191>$A$8,"",OFFSET(InputPriceData!$E$15,CalculationsAndCharts!$A191+$A$11,IF($C$5,8,0),1,1))) -> 25880.84 | G191: =IF(A191>$B$30,NA(),IF(A191>$A$8,"",OFFSET(InputPriceData!$F$15,CalculationsAndCharts!$A191+$A$11,IF($C$5,8,0),1,1))) -> 25995.87 | H191: 262380000 | I191: 0 | J191: 146680937.7 | K191: 103411849.5 | L191: 0.1730121399 | M191: 1.730121399 | N191: 0.2600115618 | O191: 25980.13743 | P191: 25779.20155 | Q191: 148890635 | R191: 118673824.1 | S191: 0.1129328276 | T191: 1.129328276 | U191: 0.08350306965 | V191: 25706.43747 | W191: 25779.20155 | AW191: 262380000
A192: 160 | B192: =IF(A192>$B$30,NA(),IF($A192>$A$8,"",OFFSET(InputPriceData!$B$15,$A192+$A$11,0,1,1))) -> 2018-09-05 | C192: =IF(A192>$B$30,NA(),IF($A192>$A$8,"",OFFSET(InputPriceData!$G$15,CalculationsAndCharts!$A192+$A$11,IF($C$5,8,0),1,1))) -> 289210000 | D192: =IF(A192>$B$30,NA(),IF(A192>$A$8,"",OFFSET(InputPriceData!$C$15,CalculationsAndCharts!$A192+$A$11,IF($C$5,8,0),1,1))) -> 25919.84 | E192: =IF(A192>$B$30,NA(),IF(A192>$A$8,"",OFFSET(InputPriceData!$D$15,CalculationsAndCharts!$A192+$A$11,IF($C$5,8,0),1,1))) -> 26011.22 | F192: =IF(A192>$B$30,NA(),IF(A192>$A$8,"",OFFSET(InputPriceData!$E$15,CalculationsAndCharts!$A192+$A$11,IF($C$5,8,0),1,1))) -> 25871.04 | G192: =IF(A192>$B$30,NA(),IF(A192>$A$8,"",OFFSET(InputPriceData!$F$15,CalculationsAndCharts!$A192+$A$11,IF($C$5,8,0),1,1))) -> 25974.99 | H192: 289210000 | I192: 0 | J192: 134502089.1 | K192: 114297307.3 | L192: 0.08120912703 | M192: 0.8120912703 | N192: 0.172580121 | O192: 25974.60943 | P192: 25756.39435 | Q192: 144258416 | R192: 123517653.6 | S192: 0.07745562338 | T192: 0.7745562338 | U192: 0.06959044054 | V192: 25680.06695 | W192: 25756.39435 | AW192: 289210000
A193: 161 | B193: =IF(A193>$B$30,NA(),IF($A193>$A$8,"",OFFSET(InputPriceData!$B$15,$A193+$A$11,0,1,1))) -> 2018-09-04 | C193: =IF(A193>$B$30,NA(),IF($A193>$A$8,"",OFFSET(InputPriceData!$G$15,CalculationsAndCharts!$A193+$A$11,IF($C$5,8,0),1,1))) -> 254600000 | D193: =IF(A193>$B$30,NA(),IF(A193>$A$8,"",OFFSET(InputPriceData!$C$15,CalculationsAndCharts!$A193+$A$11,IF($C$5,8,0),1,1))) -> 25916.07 | E193: =IF(A193>$B$30,NA(),IF(A193>$A$8,"",OFFSET(InputPriceData!$D$15,CalculationsAndCharts!$A193+$A$11,IF($C$5,8,0),1,1))) -> 25971.77 | F193: =IF(A193>$B$30,NA(),IF(A193>$A$8,"",OFFSET(InputPriceData!$E$15,CalculationsAndCharts!$A193+$A$11,IF($C$5,8,0),1,1))) -> 25805.95 | G193: =IF(A193>$B$30,NA(),IF(A193>$A$8,"",OFFSET(InputPriceData!$F$15,CalculationsAndCharts!$A193+$A$11,IF($C$5,8,0),1,1))) -> 25952.48 | H193: 0 | I193: 254600000 | J193: 118217045.8 | K193: 126328602.8 | L193: 0.03316990926 | M193: 0.3316990926 | N193: 0.126828485 | O193: 25974.53006 | P193: 25733.38428 | Q193: 138342024.9 | R193: 128559190.5 | S193: 0.03665339 | T193: 0.3665339 | U193: 0.05358956471 | V193: 25658.00804 | W193: 25733.38428 | AW193: 254600000
A194: 162 | B194: =IF(A194>$B$30,NA(),IF($A194>$A$8,"",OFFSET(InputPriceData!$B$15,$A194+$A$11,0,1,1))) -> 2018-08-31 | C194: =IF(A194>$B$30,NA(),IF($A194>$A$8,"",OFFSET(InputPriceData!$G$15,CalculationsAndCharts!$A194+$A$11,IF($C$5,8,0),1,1))) -> 273440000 | D194: =IF(A194>$B$30,NA(),IF(A194>$A$8,"",OFFSET(InputPriceData!$C$15,CalculationsAndCharts!$A194+$A$11,IF($C$5,8,0),1,1))) -> 25964.85 | E194: =IF(A194>$B$30,NA(),IF(A194>$A$8,"",OFFSET(InputPriceData!$D$15,CalculationsAndCharts!$A194+$A$11,IF($C$5,8,0),1,1))) -> 26028.83 | F194: =IF(A194>$B$30,NA(),IF(A194>$A$8,"",OFFSET(InputPriceData!$E$15,CalculationsAndCharts!$A194+$A$11,IF($C$5,8,0),1,1))) -> 25879.77 | G194: =IF(A194>$B$30,NA(),IF(A194>$A$8,"",OFFSET(InputPriceData!$F$15,CalculationsAndCharts!$A194+$A$11,IF($C$5,8,0),1,1))) -> 25964.82 | H194: 0 | I194: 273440000 | J194: 130660945.4 | K194: 112826350.5 | L194: 0.07324651112 | M194: 0.7324651112 | N194: 0.1649966773 | O194: 25977.73284 | P194: 25710.32157 | Q194: 143988638.1 | R194: 123414667.7 | S194: 0.07693985073 | T194: 0.7693985073 | U194: 0.06938817676 | V194: 25641.33385 | W194: 25710.32157 | AX194: 273440000
A195: 163 | B195: =IF(A195>$B$30,NA(),IF($A195>$A$8,"",OFFSET(InputPriceData!$B$15,$A195+$A$11,0,1,1))) -> 2018-08-30 | C195: =IF(A195>$B$30,NA(),IF($A195>$A$8,"",OFFSET(InputPriceData!$G$15,CalculationsAndCharts!$A195+$A$11,IF($C$5,8,0),1,1))) -> 240440000 | D195: =IF(A195>$B$30,NA(),IF(A195>$A$8,"",OFFSET(InputPriceData!$C$15,CalculationsAndCharts!$A195+$A$11,IF($C$5,8,0),1,1))) -> 26099.01 | E195: =IF(A195>$B$30,NA(),IF(A195>$A$8,"",OFFSET(InputPriceData!$D$15,CalculationsAndCharts!$A195+$A$11,IF($C$5,8,0),1,1))) -> 26104.37 | F195: =IF(A195>$B$30,NA(),IF(A195>$A$8,"",OFFSET(InputPriceData!$E$15,CalculationsAndCharts!$A195+$A$11,IF($C$5,8,0),1,1))) -> 25934.8 | G195: =IF(A195>$B$30,NA(),IF(A195>$A$8,"",OFFSET(InputPriceData!$F$15,CalculationsAndCharts!$A195+$A$11,IF($C$5,8,0),1,1))) -> 25986.92 | H195: 0 | I195: 240440000 | J195: 144414729.1 | K195: 95919650.51 | L195: 0.2017816955 | M195: 2.017816955 | N195: 0.2874111385 | O195: 25980.28441 | P195: 25683.53226 | Q195: 149865725.4 | R195: 117291184.7 | S195: 0.1219303691 | T195: 1.219303691 | U195: 0.08703151729 | V195: 25617.21411 | W195: 25683.53226 | AX195: 240440000
A196: 164 | B196: =IF(A196>$B$30,NA(),IF($A196>$A$8,"",OFFSET(InputPriceData!$B$15,$A196+$A$11,0,1,1))) -> 2018-08-29 | C196: =IF(A196>$B$30,NA(),IF($A196>$A$8,"",OFFSET(InputPriceData!$G$15,CalculationsAndCharts!$A196+$A$11,IF($C$5,8,0),1,1))) -> 214960000 | D196: =IF(A196>$B$30,NA(),IF(A196>$A$8,"",OFFSET(InputPriceData!$C$15,CalculationsAndCharts!$A196+$A$11,IF($C$5,8,0),1,1))) -> 26082.53 | E196: =IF(A196>$B$30,NA(),IF(A196>$A$8,"",OFFSET(InputPriceData!$D$15,CalculationsAndCharts!$A196+$A$11,IF($C$5,8,0),1,1))) -> 26167.94 | F196: =IF(A196>$B$30,NA(),IF(A196>$A$8,"",OFFSET(InputPriceData!$E$15,CalculationsAndCharts!$A196+$A$11,IF($C$5,8,0),1,1))) -> 26035.3 | G196: =IF(A196>$B$30,NA(),IF(A196>$A$8,"",OFFSET(InputPriceData!$F$15,CalculationsAndCharts!$A196+$A$11,IF($C$5,8,0),1,1))) -> 26124.57 | H196: 214960000 | I196: 0 | J196: 159616279.5 | K196: 80706982.14 | L196: 0.3283464815 | M196: 3.283464815 | N196: 0.40794903 | O196: 25977.60806 | P196: 25651.59671 | Q196: 155982693.8 | R196: 112264702.5 | S196: 0.1629763864 | T196: 1.629763864 | U196: 0.1031279947 | V196: 25581.97076 | W196: 25651.59671 | AW196: 214960000
A197: 165 | B197: =IF(A197>$B$30,NA(),IF($A197>$A$8,"",OFFSET(InputPriceData!$B$15,$A197+$A$11,0,1,1))) -> 2018-08-28 | C197: =IF(A197>$B$30,NA(),IF($A197>$A$8,"",OFFSET(InputPriceData!$G$15,CalculationsAndCharts!$A197+$A$11,IF($C$5,8,0),1,1))) -> 211470000 | D197: =IF(A197>$B$30,NA(),IF(A197>$A$8,"",OFFSET(InputPriceData!$C$15,CalculationsAndCharts!$A197+$A$11,IF($C$5,8,0),1,1))) -> 26092.7 | E197: =IF(A197>$B$30,NA(),IF(A197>$A$8,"",OFFSET(InputPriceData!$D$15,CalculationsAndCharts!$A197+$A$11,IF($C$5,8,0),1,1))) -> 26122.24 | F197: =IF(A197>$B$30,NA(),IF(A197>$A$8,"",OFFSET(InputPriceData!$E$15,CalculationsAndCharts!$A197+$A$11,IF($C$5,8,0),1,1))) -> 26037.85 | G197: =IF(A197>$B$30,NA(),IF(A197>$A$8,"",OFFSET(InputPriceData!$F$15,CalculationsAndCharts!$A197+$A$11,IF($C$5,8,0),1,1))) -> 26064.02 | H197: 211470000 | I197: 0 | J197: 153790624.8 | K197: 89202453.94 | L197: 0.2658025124 | M197: 2.658025124 | N197: 0.3483833451 | O197: 25876.34484 | P197: 25601.81005 | Q197: 153575456.8 | R197: 116846935.2 | S197: 0.1358190839 | T197: 1.358190839 | U197: 0.09247807212 | V197: 25519.57928 | W197: 25601.81005 | AX197: 211470000
A198: 166 | B198: =IF(A198>$B$30,NA(),IF($A198>$A$8,"",OFFSET(InputPriceData!$B$15,$A198+$A$11,0,1,1))) -> 2018-08-27 | C198: =IF(A198>$B$30,NA(),IF($A198>$A$8,"",OFFSET(InputPriceData!$G$15,CalculationsAndCharts!$A198+$A$11,IF($C$5,8,0),1,1))) -> 220510000 | D198: =IF(A198>$B$30,NA(),IF(A198>$A$8,"",OFFSET(InputPriceData!$C$15,CalculationsAndCharts!$A198+$A$11,IF($C$5,8,0),1,1))) -> 25882.71 | E198: =IF(A198>$B$30,NA(),IF(A198>$A$8,"",OFFSET(InputPriceData!$D$15,CalculationsAndCharts!$A198+$A$11,IF($C$5,8,0),1,1))) -> 26067.57 | F198: =IF(A198>$B$30,NA(),IF(A198>$A$8,"",OFFSET(InputPriceData!$E$15,CalculationsAndCharts!$A198+$A$11,IF($C$5,8,0),1,1))) -> 25882.71 | G198: =IF(A198>$B$30,NA(),IF(A198>$A$8,"",OFFSET(InputPriceData!$F$15,CalculationsAndCharts!$A198+$A$11,IF($C$5,8,0),1,1))) -> 26049.64 | H198: 220510000 | I198: 0 | J198: 147719111.6 | K198: 98592185.94 | L198: 0.1994505576 | M198: 1.994505576 | N198: 0.2851910072 | O198: 25776.00533 | P198: 25553.15637 | Q198: 151212414.2 | R198: 121616197.9 | S198: 0.1084791514 | T198: 1.084791514 | U198: 0.08175652995 | V198: 25464.09982 | W198: 25553.15637 | AW198: 220510000
A199: 167 | B199: =IF(A199>$B$30,NA(),IF($A199>$A$8,"",OFFSET(InputPriceData!$B$15,$A199+$A$11,0,1,1))) -> 2018-08-24 | C199: =IF(A199>$B$30,NA(),IF($A199>$A$8,"",OFFSET(InputPriceData!$G$15,CalculationsAndCharts!$A199+$A$11,IF($C$5,8,0),1,1))) -> 200330000 | D199: =IF(A199>$B$30,NA(),IF(A199>$A$8,"",OFFSET(InputPriceData!$C$15,CalculationsAndCharts!$A199+$A$11,IF($C$5,8,0),1,1))) -> 25688.58 | E199: =IF(A199>$B$30,NA(),IF(A199>$A$8,"",OFFSET(InputPriceData!$D$15,CalculationsAndCharts!$A199+$A$11,IF($C$5,8,0),1,1))) -> 25826.05 | F199: =IF(A199>$B$30,NA(),IF(A199>$A$8,"",OFFSET(InputPriceData!$E$15,CalculationsAndCharts!$A199+$A$11,IF($C$5,8,0),1,1))) -> 25688.58 | G199: =IF(A199>$B$30,NA(),IF(A199>$A$8,"",OFFSET(InputPriceData!$F$15,CalculationsAndCharts!$A199+$A$11,IF($C$5,8,0),1,1))) -> 25790.35 | H199: 200330000 | I199: 0 | J199: 140056912.8 | K199: 108970310.8 | L199: 0.1248321431 | M199: 1.248321431 | N199: 0.2141258506 | O199: 25666.8319 | P199: 25500.89493 | Q199: 148383941.3 | R199: 126580124.3 | S199: 0.07929696894 | T199: 0.7929696894 | U199: 0.07031253684 | V199: 25411.96579 | W199: 25500.89493 | AW199: 200330000
A200: 168 | B200: =IF(A200>$B$30,NA(),IF($A200>$A$8,"",OFFSET(InputPriceData!$B$15,$A200+$A$11,0,1,1))) -> 2018-08-23 | C200: =IF(A200>$B$30,NA(),IF($A200>$A$8,"",OFFSET(InputPriceData!$G$15,CalculationsAndCharts!$A200+$A$11,IF($C$5,8,0),1,1))) -> 213270000 | D200: =IF(A200>$B$30,NA(),IF(A200>$A$8,"",OFFSET(InputPriceData!$C$15,CalculationsAndCharts!$A200+$A$11,IF($C$5,8,0),1,1))) -> 25714.86 | E200: =IF(A200>$B$30,NA(),IF(A200>$A$8,"",OFFSET(InputPriceData!$D$15,CalculationsAndCharts!$A200+$A$11,IF($C$5,8,0),1,1))) -> 25762.56 | F200: =IF(A200>$B$30,NA(),IF(A200>$A$8,"",OFFSET(InputPriceData!$E$15,CalculationsAndCharts!$A200+$A$11,IF($C$5,8,0),1,1))) -> 25608.02 | G200: =IF(A200>$B$30,NA(),IF(A200>$A$8,"",OFFSET(InputPriceData!$F$15,CalculationsAndCharts!$A200+$A$11,IF($C$5,8,0),1,1))) -> 25656.98 | H200: 0 | I200: 213270000 | J200: 133712377.3 | K200: 120440869.8 | L200: 0.05221852422 | M200: 0.5221852422 | N200: 0.1449700231 | O200: 25633.17713 | P200: 25470.42598 | Q200: 146263694 | R200: 131746660 | S200: 0.05221760191 | T200: 0.5221760191 | U200: 0.05969317722 | V200: 25383.34848 | W200: 25470.42598 | AX200: 213270000
A201: 169 | B201: =IF(A201>$B$30,NA(),IF($A201>$A$8,"",OFFSET(InputPriceData!$B$15,$A201+$A$11,0,1,1))) -> 2018-08-22 | C201: =IF(A201>$B$30,NA(),IF($A201>$A$8,"",OFFSET(InputPriceData!$G$15,CalculationsAndCharts!$A201+$A$11,IF($C$5,8,0),1,1))) -> 200480000 | D201: =IF(A201>$B$30,NA(),IF(A201>$A$8,"",OFFSET(InputPriceData!$C$15,CalculationsAndCharts!$A201+$A$11,IF($C$5,8,0),1,1))) -> 25825.06 | E201: =IF(A201>$B$30,NA(),IF(A201>$A$8,"",OFFSET(InputPriceData!$D$15,CalculationsAndCharts!$A201+$A$11,IF($C$5,8,0),1,1))) -> 25836.16 | F201: =IF(A201>$B$30,NA(),IF(A201>$A$8,"",OFFSET(InputPriceData!$E$15,CalculationsAndCharts!$A201+$A$11,IF($C$5,8,0),1,1))) -> 25722.43 | G201: =IF(A201>$B$30,NA(),IF(A201>$A$8,"",OFFSET(InputPriceData!$F$15,CalculationsAndCharts!$A201+$A$11,IF($C$5,8,0),1,1))) -> 25733.6 | H201: 0 | I201: 200480000 | J201: 147787364.4 | K201: 110669382.4 | L201: 0.1436139022 | M201: 1.436139022 | N201: 0.2320132402 | O201: 25629.14136 | P201: 25450.78872 | Q201: 152233640.7 | R201: 128419176.8 | S201: 0.08485382105 | T201: 0.8485382105 | U201: 0.07249169453 | V201: 25365.97763 | W201: 25450.78872 | AX201: 200480000
A202: 170 | B202: =IF(A202>$B$30,NA(),IF($A202>$A$8,"",OFFSET(InputPriceData!$B$15,$A202+$A$11,0,1,1))) -> 2018-08-21 | C202: =IF(A202>$B$30,NA(),IF($A202>$A$8,"",OFFSET(InputPriceData!$G$15,CalculationsAndCharts!$A202+$A$11,IF($C$5,8,0),1,1))) -> 241620000 | D202: =IF(A202>$B$30,NA(),IF(A202>$A$8,"",OFFSET(InputPriceData!$C$15,CalculationsAndCharts!$A202+$A$11,IF($C$5,8,0),1,1))) -> 25786.99 | E202: =IF(A202>$B$30,NA(),IF(A202>$A$8,"",OFFSET(InputPriceData!$D$15,CalculationsAndCharts!$A202+$A$11,IF($C$5,8,0),1,1))) -> 25888.82 | F202: =IF(A202>$B$30,NA(),IF(A202>$A$8,"",OFFSET(InputPriceData!$E$15,CalculationsAndCharts!$A202+$A$11,IF($C$5,8,0),1,1))) -> 25784.9 | G202: =IF(A202>$B$30,NA(),IF(A202>$A$8,"",OFFSET(InputPriceData!$F$15,CalculationsAndCharts!$A202+$A$11,IF($C$5,8,0),1,1))) -> 25822.29 | H202: 241620000 | I202: 0 | J202: 163343929 | K202: 101215633.2 | L202: 0.2348367049 | M202: 2.348367049 | N202: 0.3188920999 | O202: 25597.5838 | P202: 25421.01911 | Q202: 158447258.7 | R202: 125477918.7 | S202: 0.1161198184 | T202: 1.161198184 | U202: 0.08475286996 | V202: 25337.2452 | W202: 25421.01911 | AW202: 241620000
A203: 171 | B203: =IF(A203>$B$30,NA(),IF($A203>$A$8,"",OFFSET(InputPriceData!$B$15,$A203+$A$11,0,1,1))) -> 2018-08-20 | C203: =IF(A203>$B$30,NA(),IF($A203>$A$8,"",OFFSET(InputPriceData!$G$15,CalculationsAndCharts!$A203+$A$11,IF($C$5,8,0),1,1))) -> 248570000 | D203: =IF(A203>$B$30,NA(),IF(A203>$A$8,"",OFFSET(InputPriceData!$C$15,CalculationsAndCharts!$A203+$A$11,IF($C$5,8,0),1,1))) -> 25727.7 | E203: =IF(A203>$B$30,NA(),IF(A203>$A$8,"",OFFSET(InputPriceData!$D$15,CalculationsAndCharts!$A203+$A$11,IF($C$5,8,0),1,1))) -> 25790.17 | F203: =IF(A203>$B$30,NA(),IF(A203>$A$8,"",OFFSET(InputPriceData!$E$15,CalculationsAndCharts!$A203+$A$11,IF($C$5,8,0),1,1))) -> 25716.41 | G203: =IF(A203>$B$30,NA(),IF(A203>$A$8,"",OFFSET(InputPriceData!$F$15,CalculationsAndCharts!$A203+$A$11,IF($C$5,8,0),1,1))) -> 25758.69 | H203: 248570000 | I203: 0 | J203: 155104342.6 | K203: 111869910.4 | L203: 0.1619423288 | M203: 1.619423288 | N203: 0.2494688846 | O203: 25492.37723 | P203: 25378.78007 | Q203: 155052452.9 | R203: 130599466.4 | S203: 0.08560413885 | T203: 0.8560413885 | U203: 0.07278593681 | V203: 25292.32953 | W203: 25378.78007 | AW203: 248570000
A204: 172 | B204: =IF(A204>$B$30,NA(),IF($A204>$A$8,"",OFFSET(InputPriceData!$B$15,$A204+$A$11,0,1,1))) -> 2018-08-17 | C204: =IF(A204>$B$30,NA(),IF($A204>$A$8,"",OFFSET(InputPriceData!$G$15,CalculationsAndCharts!$A204+$A$11,IF($C$5,8,0),1,1))) -> 284160000 | D204: =IF(A204>$B$30,NA(),IF(A204>$A$8,"",OFFSET(InputPriceData!$C$15,CalculationsAndCharts!$A204+$A$11,IF($C$5,8,0),1,1))) -> 25550.8 | E204: =IF(A204>$B$30,NA(),IF(A204>$A$8,"",OFFSET(InputPriceData!$D$15,CalculationsAndCharts!$A204+$A$11,IF($C$5,8,0),1,1))) -> 25728.16 | F204: =IF(A204>$B$30,NA(),IF(A204>$A$8,"",OFFSET(InputPriceData!$E$15,CalculationsAndCharts!$A204+$A$11,IF($C$5,8,0),1,1))) -> 25521.66 | G204: =IF(A204>$B$30,NA(),IF(A204>$A$8,"",OFFSET(InputPriceData!$F$15,CalculationsAndCharts!$A204+$A$11,IF($C$5,8,0),1,1))) -> 25669.32 | H204: 284160000 | I204: 0 | J204: 145265852.4 | K204: 123645690.4 | L204: 0.08039878744 | M204: 0.8039878744 | N204: 0.171808369 | O204: 25403.85758 | P204: 25338.78955 | Q204: 151235410.2 | R204: 135930056.8 | S204: 0.05329802891 | T204: 0.5329802891 | U204: 0.06011687408 | V204: 25255.72041 | W204: 25338.78955 | AW204: 284160000
A205: 173 | B205: =IF(A205>$B$30,NA(),IF($A205>$A$8,"",OFFSET(InputPriceData!$B$15,$A205+$A$11,0,1,1))) -> 2018-08-16 | C205: =IF(A205>$B$30,NA(),IF($A205>$A$8,"",OFFSET(InputPriceData!$G$15,CalculationsAndCharts!$A205+$A$11,IF($C$5,8,0),1,1))) -> 342430000 | D205: =IF(A205>$B$30,NA(),IF(A205>$A$8,"",OFFSET(InputPriceData!$C$15,CalculationsAndCharts!$A205+$A$11,IF($C$5,8,0),1,1))) -> 25294.97 | E205: =IF(A205>$B$30,NA(),IF(A205>$A$8,"",OFFSET(InputPriceData!$D$15,CalculationsAndCharts!$A205+$A$11,IF($C$5,8,0),1,1))) -> 25607.34 | F205: =IF(A205>$B$30,NA(),IF(A205>$A$8,"",OFFSET(InputPriceData!$E$15,CalculationsAndCharts!$A205+$A$11,IF($C$5,8,0),1,1))) -> 25294.97 | G205: =IF(A205>$B$30,NA(),IF(A205>$A$8,"",OFFSET(InputPriceData!$F$15,CalculationsAndCharts!$A205+$A$11,IF($C$5,8,0),1,1))) -> 25558.73 | H205: 342430000 | I205: 0 | J205: 130645415.8 | K205: 136661026.2 | L205: 0.02250454726 | M205: 0.2250454726 | N205: 0.1166709974 | O205: 25348.78739 | P205: 25303.99687 | Q205: 145809916.7 | R205: 141478222.4 | S205: 0.01507787383 | T205: 0.1507787383 | U205: 0.04512857797 | V205: 25229.26573 | W205: 25303.99687 | AW205: 342430000
... 920 more rows

Sheet Follow
A1: Stocks and Indexes I wish to follow
A3: To ease following a stock, enter a Yahoo Finance acceptable symbol in column "A" anywhere below cell "A9".
A4: Thereafter you may doubleclick the cell containing a symbol of interest to initiate data retrieval and charting for that symbol.
A7: Symbol
A8: To | B8: Description | C8: Last Trade as of most recent check
A9: Follow | C9: Date | D9: Time | E9: Open | F9: High | G9: Low | H9: Close | I9: Volume | J9: Change | K9: Retrieved @
A10: A | B10: Agilent Technologies, Inc. (A) -NYSE (Daily) | C10: 2020-03-09 | D10: 16:04:00 | E10: 72.589996 | F10: 74.190002 | G10: 70.169998 | H10: 70.75 | I10: 4591093 | J10: -7.809998 | K10: 2020-03-09T16:59:21
A11: AA | B11: Alcoa Corporation (AA) -NYSE (Daily) | C11: 2020-01-31 | D11: 16:04:00 | E11: 14.01 | F11: 14.24 | G11: 13.62 | H11: 13.95 | I11: 9931500 | J11: -0.34 | K11: 2020-02-02T15:07:13
A12: AAL | B12: American Airlines Group Inc. (AAL) -NasdaqGS (Daily) | C12: 2020-03-09 | D12: 16:00:00 | E12: 14.87 | F12: 15.79 | G12: 14.46 | H12: 14.75 | I12: 41078614 | J12: -1.22 | K12: 2020-03-09T17:00:15
A13: AAPL | B13: Apple Inc. (AAPL) -NasdaqGS (Daily) | C13: 2020-06-17 | D13: 16:00:00 | E13: 355.149994 | F13: 355.369995 | G13: 351.089996 | H13: 351.589996 | I13: 27604481 | J13: -0.489991 | K13: 2020-06-17T17:45:34
A14: ADM | B14: Archer-Daniels-Midland Company (ADM) -NYSE (Weekly) | C14: 2018-07-13 | D14: 16:00:00 | E14: 47.5 | F14: 47.84 | G14: 47.169998 | H14: 47.57 | I14: 2402809 | J14: 0
A15: ADBE | B15: Adobe Inc. (ADBE) -NasdaqGS (Daily) | C15: 2020-06-17 | D15: 16:00:00 | E15: 414 | F15: 417.425995 | G15: 411.429993 | H15: 413.48999 | I15: 2026063 | J15: 1.819977 | K15: 2020-06-17T17:42:59
A16: ALGN | B16: Align Technology, Inc. (ALGN) -NasdaqGS (Daily) | C16: 2020-01-30 | D16: 16:00:00 | E16: 248.740005 | F16: 264.450012 | G16: 248.350006 | H16: 262.890015 | I16: 1833160 | J16: 1.290009
A17: AMC | B17: AMC Entertainment Holdings, Inc. (AMC) -NYSE (Weekly) | C17: 2018-07-13 | D17: 16:02:00 | E17: 17.049999 | F17: 17.15 | G17: 16.525 | H17: 17.049999 | I17: 1442776 | J17: 0
A18: AMD | B18: Advanced Micro Devices, Inc. (AMD) -NasdaqGS (Daily) | C18: 2020-08-19 | D18: 12:40:00 | E18: 81.775703 | F18: 81.849998 | G18: 80.449997 | H18: 80.760002 | I18: 18434143 | J18: -0.900002 | K18: 2020-08-19T12:40:49
A19: BSX | B19: Boston Scientific Corporation C (BSX) -NYQ (Daily) | C19: 2015-03-13 | D19: 16:01:00 | E19: 16.84 | F19: 16.91 | G19: 16.44 | H19: 16.61 | I19: 7262460 | J19: -0.28
A20: CASY | B20: Casey's General Stores, Inc. (CASY) -NasdaqGS (Daily) | C20: 2019-04-10 | D20: 16:00:00 | E20: 128.979996 | F20: 130.330002 | G20: 128.779999 | H20: 130.179993 | I20: 351300 | J20: 1.489991
A21: CAT | B21: Caterpillar Inc. (CAT) -NYSE (Daily) | C21: 2022-03-15 | D21: 15:43:00 | E21: 216.119995 | F21: 217.190002 | G21: 210.514999 | H21: 217.070007 | I21: 3247033 | J21: 1.630005 | K21: 2022-03-15T15:44:21
A22: CSCO | B22: Cisco Systems, In (CSCO) -NasdaqNM (Daily) | C22: 2015-02-19 | D22: 16:00:00 | E22: 29.32 | F22: 29.39 | G22: 29.13 | H22: 29.31 | I22: 21469012 | J22: -0.18
A23: CVS | B23: CVS Health Corporation (CVS) -NYSE (Daily) | C23: 2020-03-09 | D23: 16:07:00 | E23: 59.75 | F23: 63 | G23: 59.599998 | H23: 61.299999 | I23: 13065424 | J23: -2.850003 | K23: 2020-03-09T17:51:54
A24: DIS | B24: The Walt Disney Company (DIS) -NYSE (Daily) | C24: 2020-03-09 | D24: 16:07:00 | E24: 108.690002 | F24: 110.43 | G24: 104.279999 | H24: 104.349998 | I24: 26101127 | J24: -10.919999 | K24: 2020-03-09T16:59:51
A25: F | B25: Ford Motor Company (F) -NYSE (Daily) | C25: 2020-01-31 | D25: 16:03:00 | E25: 8.78 | F25: 8.84 | G25: 8.74 | H25: 8.82 | I25: 59781000 | J25: -0.02 | K25: 2020-02-02T15:09:03
A26: FAS | B26: Direxion Daily Financial Bull 3X ETF (FAS) -NYSEArca (Daily) | C26: 2017-10-13 | D26: 16:00:00 | E26: 58.099998 | F26: 58.939999 | G26: 57.43 | H26: 58.450001 | I26: 1709300 | J26: 0.07
A27: FB | B27: Facebook, Inc. (FB) -NasdaqGS (Daily) | C27: 2020-02-14 | D27: 16:00:00 | E27: 214 | F27: 214.929993 | G27: 212.649994 | H27: 214.179993 | I27: 10727400 | J27: 1.039994 | K27: 2020-02-15T17:19:34
A28: FDX | B28: FedEx Corporation (FDX) -NYSE (Daily) | C28: 2022-04-12 | D28: 12:53:00 | E28: 204.130005 | F28: 207.169998 | G28: 203.580093 | H28: 204.649994 | I28: 699435 | J28: 0.529999 | K28: 2022-04-12T12:54:11
A29: GSK | B29: GlaxoSmithKline plc (GSK) -NYSE (Daily) | C29: 2021-01-15 | D29: 16:00:00 | E29: 38.41 | F29: 38.66 | G29: 38.209999 | H29: 38.470001 | I29: 3100400 | J29: 0.310001 | K29: 2021-01-17T18:07:58
A30: GDX | B30: VanEck Vectors Gold Miners ETF (GDX) -NYSEArca (Daily) | C30: 2020-01-31 | D30: 16:00:00 | E30: 28.799999 | F30: 29.24 | G30: 28.76 | H30: 28.99 | I30: 41946000 | J30: 0.26 | K30: 2020-02-02T15:11:17
A31: GOOG | B31: Alphabet Inc. (GOOG) -NasdaqGS (Daily) | C31: 2021-06-10 | D31: 16:00:00 | E31: 2494.01001 | F31: 2523.26001 | G31: 2494.01001 | H31: 2521.600098 | I31: 1390763 | J31: 30.200196 | K31: 2021-06-10T16:45:42
A32: HAL | B32: Halliburton Company (HAL) -NYSE (Daily) | C32: 2020-09-17 | D32: 11:11:00 | E32: 14.73 | F32: 14.945 | G32: 14.57 | H32: 14.91 | I32: 4265279 | J32: -0.16 | K32: 2020-09-17T11:11:52
A33: HD | B33: The Home Depot, Inc. (HD) -NYSE (Daily) | C33: 2020-03-13 | D33: 11:54:00 | E33: 200.449997 | F33: 201.179993 | G33: 192.270096 | H33: 193.449997 | I33: 3274582 | J33: 2.860001 | K33: 2020-03-13T11:54:29
A34: HSY | B34: The Hershey Company (HSY) -NYSE (Daily) | C34: 2021-01-15 | D34: 16:00:00 | E34: 147.089996 | F34: 149.490005 | G34: 146.880005 | H34: 148.460007 | I34: 1193700 | J34: 1.040009 | K34: 2021-01-17T18:06:10
A35: HTLD | B35: Heartland Express, Inc. (HTLD) -NasdaqGS (Daily) | C35: 2020-03-09 | D35: 16:00:00 | E35: 17.33 | F35: 17.690001 | G35: 16.82 | H35: 16.879999 | I35: 284762 | J35: -1.280001 | K35: 2020-03-09T17:00:56
A36: IDEX | B36: Ideanomics, Inc. (IDEX) -NasdaqGS (Daily) | C36: 2021-02-19 | D36: 10:11:00 | E36: 3.99 | F36: 4.15 | G36: 3.88 | H36: 3.92 | I36: 8623006 | J36: 0.19 | K36: 2021-02-19T10:11:40
A37: IBM | B37: International Business Machines Corporation (IBM) -NYSE (Daily) | C37: 2021-02-09 | D37: 16:00:00 | E37: 121.900002 | F37: 122.565002 | G37: 121.050003 | H37: 122.099998 | I37: 4173266 | J37: -1.510003 | K37: 2021-02-09T17:01:49
A38: INTC | B38: Intel Corporation (INTC) -NasdaqGS (Daily) | C38: 2020-02-14 | D38: 16:00:00 | E38: 67.519997 | F38: 67.860001 | G38: 66.82 | H38: 67.269997 | I38: 13402800 | J38: -0.170005 | K38: 2020-02-15T17:21:41
A39: JAH | B39: Jarden Corporation Common Stock (JAH) -NYQ (Daily) | C39: 2016-01-08 | D39: 16:02:00 | E39: 53.82 | F39: 53.88 | G39: 52.65 | H39: 52.73 | I39: 4519480 | J39: -0.81
A40: JNJ | B40: Johnson & Johnson (JNJ) -NYSE (Daily) | C40: 2019-08-14 | D40: 10:33:00 | E40: 132.529999 | F40: 132.539993 | G40: 131.419998 | H40: 131.759995 | I40: 870520 | J40: -0.169998
A41: KO | B41: The Coca-Cola Company (KO) -NYSE (Daily) | C41: 2020-03-09 | D41: 16:07:00 | E41: 52.049999 | F41: 53.580002 | G41: 51.474998 | H41: 51.860001 | I41: 27771279 | J41: -3.399997 | K41: 2020-03-09T17:05:43
A42: LOW | B42: Lowe's Companies, Inc. (LOW) -NYSE (Daily) | C42: 2020-03-09 | D42: 16:03:00 | E42: 97.82 | F42: 99.82 | G42: 93.150101 | H42: 94.220001 | I42: 8167579 | J42: -11.089997 | K42: 2020-03-09T16:57:19
A43: LMT | B43: Lockheed Martin Corporation (LMT) -NYSE (Daily) | C43: 2021-02-09 | D43: 16:04:00 | E43: 338.540009 | F43: 344.48999 | G43: 336.570007 | H43: 342.339996 | I43: 1545066 | J43: 4.5 | K43: 2021-02-09T16:56:05
A44: MCD | B44: McDonald's Corporation (MCD) -NYSE (Daily) | C44: 2022-03-15 | D44: 16:00:00 | E44: 227.979996 | F44: 234.565002 | G44: 227.979996 | H44: 232.570007 | I44: 4989454 | J44: 6.390014 | K44: 2022-03-15T20:08:37
A45: MDT | B45: Medtronic plc (MDT) -NYSE (Daily) | C45: 2020-03-09 | D45: 16:07:00 | E45: 94.019997 | F45: 95.470001 | G45: 91.709999 | H45: 92.400002 | I45: 9000931 | J45: -6.659996 | K45: 2020-03-09T17:48:45
A46: MGM | B46: MGM Resorts International (MGM) -NYSE (Daily) | C46: 2020-03-09 | D46: 16:02:00 | E46: 18.6 | F46: 19.58 | G46: 17.530001 | H46: 17.879999 | I46: 26050818 | J46: -2.51 | K46: 2020-03-09T17:13:53
A47: MO | B47: Altria Group, Inc. (MO) -NYSE (Daily) | C47: 2020-01-31 | D47: 16:05:00 | E47: 48.25 | F47: 48.799999 | G47: 47.240002 | H47: 47.529999 | I47: 11790800 | J47: -0.470001 | K47: 2020-02-02T15:20:55
A48: MSFT | B48: Microsoft Corporation (MSFT) -NasdaqGS (Daily) | C48: 2020-03-09 | D48: 16:00:00 | E48: 151 | F48: 157.75 | G48: 150 | H48: 150.619995 | I48: 69167627 | J48: -10.950012 | K48: 2020-03-09T17:06:41
A49: NFLX | B49: Netflix, Inc. (NFLX) -NasdaqGS (Daily) | C49: 2020-03-09 | D49: 16:00:00 | E49: 343.859985 | F49: 357.470001 | G49: 341.720886 | H49: 346.48999 | I49: 6746188 | J49: -22.480011 | K49: 2020-03-09T17:23:37
A50: NUGT | B50: Direxion Daily Gold Miners Index Bull 3X Shares (NUGT) -NYSEArca (Daily) | C50: 2020-01-31 | D50: 16:00:00 | E50: 32.439999 | F50: 33.830002 | G50: 32.240002 | H50: 33.02 | I50: 11325200 | J50: 0.84 | K50: 2020-02-02T15:21:51
A51: NVS | B51: Novartis AG (NVS) -NYSE (Daily) | C51: 2020-03-06 | D51: 16:02:00 | E51: 84.330002 | F51: 85.830002 | G51: 83.970001 | H51: 85.720001 | I51: 5624700 | J51: -0.089997 | K51: 2020-03-08T16:56:35
A52: NVDA | B52: html id="atomic" class="NoJs chrome desktop" lang="en-US"> -html id="atomic" class="NoJs chrome desktop" lang="en (Daily) | C52: 2022-01-14 | D52: 16:00:00 | E52: 263 | F52: 271.970001 | G52: 262.100006 | H52: 269.420013 | I52: 39522800 | J52: 3.670013 | K52: 2022-01-17T20:12:45
A53: PRU | B53: Prudential Financial, Inc. (PRU) -NYSE (Daily) | C53: 2020-03-09 | D53: 16:02:00 | E53: 63.75 | F53: 65.830002 | G53: 57.375 | H53: 58.240002 | I53: 7614493 | J53: -11.569996 | K53: 2020-03-09T17:11:43
A54: PSEC | B54: Prospect Capital Corporation (PSEC) -NasdaqGS (Daily) | C54: 2020-02-14 | D54: 16:00:00 | E54: 6.53 | F54: 6.56 | G54: 6.51 | H54: 6.52 | I54: 1235500 | J54: -0.04 | K54: 2020-02-15T14:43:16
A55: RPM | B55: RPM International Inc. (RPM) -NYSE (Daily) | C55: 2020-03-09 | D55: 16:02:00 | E55: 64.470001 | F55: 66.730003 | G55: 63.5 | H55: 65.290001 | I55: 1115882 | J55: -2.919998 | K55: 2020-03-09T17:10:08
A56: RSP | B56: Invesco S&P 500 Equal Weight ETF (RSP) -NYSEArca (Daily) | C56: 2020-01-31 | D56: 16:00:00 | E56: 115.279999 | F56: 115.32 | G56: 113.230003 | H56: 113.540001 | I56: 747600 | J56: -2.309997 | K56: 2020-02-02T15:28:52
A57: RTX | B57: Raytheon Technologies Corporation (RTX) -NYSE (Daily) | C57: 2022-07-08 | D57: 16:00:00 | E57: 94.290001 | F57: 95.720001 | G57: 93.940002 | H57: 95.120003 | I57: 2762700 | J57: 1.180001 | K57: 2022-07-10T16:26:50
A58: RY | B58: Royal Bank of Canada (RY) -NYSE (Daily) | C58: 2022-08-16 | D58: 12:12:00 | E58: 99.5 | F58: 100.57 | G58: 99.379997 | H58: 100.57 | I58: 240809 | J58: 1.029999 | K58: 2022-08-16T12:14:41
A59: SPR | B59: Spirit AeroSystems Holdings, Inc. (SPR) -NYSE (Daily) | C59: 2020-03-09 | D59: 16:06:00 | E59: 43.700001 | F59: 43.880001 | G59: 41.5 | H59: 42.139999 | I59: 2091368 | J59: -5.23 | K59: 2020-03-09T17:09:37
A60: SQ | B60: Square, Inc. (SQ) -NYSE (Daily) | C60: 2020-10-02 | D60: 16:00:00 | E60: 164.050003 | F60: 171.240005 | G60: 163.800995 | H60: 169.610001 | I60: 11150500 | J60: 1.119996 | K60: 2020-10-04T20:00:52
A61: SWKS | B61: Skyworks Solutions, Inc. (SWKS) -NasdaqGS (Daily) | C61: 2020-01-31 | D61: 16:00:00 | E61: 115.5 | F61: 115.739998 | G61: 112.720001 | H61: 113.150002 | I61: 2444600 | J61: -3.080001 | K61: 2020-02-02T15:26:46
A62: TOL | B62: Toll Brothers, Inc. (TOL) -NYSE (Daily) | C62: 2020-03-09 | D62: 16:07:00 | E62: 34.759998 | F62: 35.314999 | G62: 32.060001 | H62: 34.110001 | I62: 3127968 | J62: -2.86 | K62: 2020-03-09T17:12:09
A63: TSLA | B63: Tesla, Inc. (TSLA) -NasdaqGS (Daily) | C63: 2020-03-13 | D63: 12:08:00 | E63: 595 | F63: 607.570007 | G63: 502.01001 | H63: 510 | I63: 12224537 | J63: -50.549988 | K63: 2020-03-13T12:08:39
A64: TXN | B64: Texas Instruments Incorporated (TXN) -NasdaqGS (Daily) | C64: 2020-06-19 | D64: 11:30:00 | E64: 128.059998 | F64: 128.179993 | G64: 126.07 | H64: 126.370003 | I64: 2078988 | J64: 0.39 | K64: 2020-06-19T11:31:00
A65: UNP | B65: Union Pacific Corporation (UNP) -NYSE (Daily) | C65: 2020-03-09 | D65: 16:07:00 | E65: 145.199997 | F65: 145.580002 | G65: 133.179993 | H65: 135.839996 | I65: 9380024 | J65: -20.25 | K65: 2020-03-09T17:11:21
A66: VZ | B66: Verizon Communications Inc. (VZ) -NYSE (Daily) | C66: 2022-05-18 | D66: 11:42:00 | E66: 48.950001 | F66: 49.345001 | G66: 48.740002 | H66: 49.2309 | I66: 6984652 | J66: 0.290901 | K66: 2022-05-18T11:42:25
A67: WBA | B67: Walgreens Boots Alliance, Inc. (WBA) -NasdaqGS (Daily) | C67: 2020-01-31 | D67: 16:00:00 | E67: 51.709999 | F67: 51.919998 | G67: 50.66 | H67: 50.849998 | I67: 6532300 | J67: -1.100003 | K67: 2020-02-02T15:28:06
A68: WMT | B68: Walmart Inc. (WMT) -NYSE (Daily) | C68: 2020-03-09 | D68: 16:01:00 | E68: 113.82 | F68: 120.629997 | G68: 112.730003 | H68: 117.160004 | I68: 19567750 | J68: -0.069999 | K68: 2020-03-09T17:10:39
A70: ^AEX | B70: AEX-INDEX (^AEX) -Amsterdam (Daily) | C70: 2020-03-09 | D70: 18:05:00 | E70: 506.950012 | F70: 506.950012 | G70: 485.730011 | H70: 490.660004 | I70: 0 | J70: -40.629974 | K70: 2020-03-09T17:41:58
A71: ^AORD | B71: ALL ORDINARIES (^AORD) -ASX (Daily) | C71: 2020-03-09 | D71: 16:17:00 | E71: 6472.399902 | F71: 6287.299805 | G71: 5822.399902 | H71: 5822.399902 | I71: 0 | J71: -465.100098 | K71: 2020-03-09T17:45:59
A72: ^DJI | B72: Dow Jones Industrial Average (^DJI) -DJI (Daily) | C72: 2022-08-16 | D72: 12:21:00 | E72: 33924.35156 | F72: 34188.05078 | G72: 33852.57031 | H72: 34161.71094 | I72: 134711422 | J72: 249.269532 | K72: 2022-08-16T12:21:50
A73: ^FTSE | B73: FTSE 100 (^FTSE) -FTSE Index (Daily) | C73: 2022-03-15 | D73: 16:50:00 | E73: 7193.470215 | F73: 7193.470215 | G73: 7075.819824 | H73: 7175.700195 | I73: 0 | J73: -17.799805 | K73: 2022-03-15T20:53:13
A74: ^GSPC | B74: S&P 500 (^GSPC) -SNP (Daily) | C74: 2022-03-15 | D74: 17:28:00 | E74: 4188.819824 | F74: 4271.049805 | G74: 4187.899902 | H74: 4262.450195 | I74: 2636945000 | J74: 89.340332 | K74: 2022-03-15T21:04:33
A75: ^HSI | B75: HANG SENG INDEX (^HSI) -HKSE (Daily) | C75: 2020-03-09 | D75: 16:08:00 | E75: 25134.01953 | F75: 25321.2793 | G75: 24948.38086 | H75: 25040.46094 | I75: 0 | J75: -1106.208984 | K75: 2020-03-09T17:39:06
A76: ^MID | B76: S&P MID CAP 400 INDEX (^MID) -NYSE (Daily) | C76: 2022-04-08 | D76: 16:00:00 | E76: 2619.169922 | F76: 2641.689941 | G76: 2607.01001 | H76: 2617.090088 | I76: 0 | J76: -2.079834 | K76: 2022-04-10T15:01:59
A77: ^NDX | B77: NASDAQ 100 (^NDX) -Nasdaq GIDS (Weekly) | C77: 2022-03-15 | D77: 13:30:00 | E77: 13175 | F77: 13402.97754 | G77: 13092.45019 | H77: 13290.41406 | I77: 520738514 | J77: 243.774415 | K77: 2022-03-15T13:30:48
A78: ^NYA | B78: NYSE COMPOSITE (DJ) (^NYA) -NYSE (Daily) | C78: 2022-03-15 | D78: 12:28:00 | E78: 15694.40039 | F78: 15839.09863 | G78: 15694.35059 | H78: 15825.58691 | I78: 0 | J78: 131.237305 | K78: 2022-03-15T12:43:18
A79: ^OEX | B79: S&P 100 INDEX (^OEX) -Chicago Options (Daily) | C79: 2019-09-13 | D79: 16:56:00 | E79: 1332.27002 | F79: 1334.420044 | G79: 1328.73999 | H79: 1330.969971 | I79: 3520060000 | J79: -1.010009
A80: ^RUT | B80: Russell 2000 (^RUT) -Chicago Options (Daily) | C80: 2022-03-15 | D80: 11:22:00 | E80: 1979.785767 | F80: 1983.430908 | G80: 1932.708618 | H80: 1954.294556 | I80: 0 | J80: 12.574585 | K80: 2022-03-15T11:37:16
A81: ^SSEC | B81: SSE Composite Index (^SSEC) -Shanghai (Daily) | C81: 2020-03-09 | D81: 15:00:00 | E81: 3039.939453 | F81: 2989.205078 | G81: 2940.713867 | H81: 2943.290771 | I81: 2801367936 | J81: -388.231202 | K81: 2020-03-09T17:38:09
A82: ^VIX | B82: CBOE Volatility Index (^VIX) -Chicago Options (Daily) | C82: 2022-02-15 | D82: 16:15:00 | E82: 28.09 | F82: 28.09 | G82: 25.33 | H82: 25.700001 | I82: 0 | J82: -2.629999 | K82: 2022-02-15T16:45:54
A83: IWM | B83: iShares Russell 2000 ETF (IWM) -NYSEArca (Daily) | C83: 2021-02-19 | D83: 09:56:00 | E83: 222.460007 | F83: 223.080002 | G83: 222.169998 | H83: 222.970001 | I83: 3614630 | J83: 2.380005 | K83: 2021-02-19T09:56:07
A84: QQQ | B84: Invesco QQQ Trust (QQQ) -NasdaqGM (Daily) | C84: 2020-08-27 | D84: 15:01:00 | E84: 293.079987 | F84: 293.851013 | G84: 288.704987 | H84: 291.994995 | I84: 41822663 | J84: 0.035004 | K84: 2020-08-27T15:02:03
A85: XLE | B85: Energy Select Sector SPDR Fund (XLE) -NYSEArca (Daily) | C85: 2020-07-10 | D85: 16:00:00 | E85: 34.240002 | F85: 35.580002 | G85: 34.240002 | H85: 35.540001 | I85: 25223900 | J85: 1.100002 | K85: 2020-07-11T16:34:13
A86: SPY | B86: SPDR S&P 500 ETF Trust (SPY) -NYSEArca (Daily) | C86: 2022-05-18 | D86: 11:50:00 | E86: 403.5 | F86: 403.799988 | G86: 396.529999 | H86: 397.429993 | I86: 30358470 | J86: -10.890014 | K86: 2022-05-18T11:51:14
A88: ACAD | B88: ACADIA Pharmaceut (ACAD) -NasdaqNM (Daily) | C88: 2014-07-21 | D88: 16:00:00 | E88: 20.13 | F88: 20.55 | G88: 19.8101 | H88: 20.31 | I88: 691016
A89: CLDX | B89: Celldex Therapeut (CLDX) -NasdaqNM (Daily) | C89: 2015-02-02 | D89: 16:00:00 | E89: 21.47 | F89: 21.69 | G89: 20.11 | H89: 21.02 | I89: 1570418 | J89: -0.4
A90: ICPT | B90: Intercept Pharmac (ICPT) -NasdaqNM (Daily) | C90: 2014-07-21 | D90: 16:00:00 | E90: 215.97 | F90: 218.43 | G90: 213.05 | H90: 218.14 | I90: 191276
A91: INO | B91: Inovio Pharmaceut (INO) -AMEX (Daily) | C91: 2014-07-21 | D91: 16:00:00 | E91: 10.3 | F91: 11.08 | G91: 10.1 | H91: 11.01 | I91: 1800796
A92: JCP | B92: J. C. Penney Company, Inc. (JCP) -NYSE (Daily) | C92: 2017-12-07 | D92: 16:01:00 | E92: 3.34 | F92: 3.4 | G92: 3.25 | H92: 3.27 | I92: 14485464 | J92: -0.07
A93: LCI | B93: Lannett Co Inc Co (LCI) -NYSE (Daily) | C93: 2014-07-21 | D93: 16:02:00 | E93: 38.09 | F93: 38.803 | G93: 36.5101 | H93: 37.76 | I93: 611367
A94: NPSP | B94: NPS Pharmaceutica (NPSP) -NasdaqNM (Daily) | C94: 2014-07-21 | D94: 15:59:00 | E94: 28.75 | F94: 29.43 | G94: 28.31 | H94: 29.29 | I94: 1126758
A95: PBYI | B95: Puma Biotechnolog (PBYI) -NYSE (Daily) | C95: 2014-07-21 | D95: 16:02:00 | E95: 58.27 | F95: 59.46 | G95: 57.39 | H95: 58.98 | I95: 348030
